Workbook

Sheet INTRO
B2: PC Joint Reporting Form v.3
B4: The purpose of this template Joint Reporting Form (JRF) - available as an Excel file - is to provide national health authorities and data managers with a standardized tool to address these reporting challenges, facilitate integration and thereby further contribute to improving overall programme management. This template aims to standardize national reporting of programme implementation outcomes, improve availability and coordination of preventive chemotherapy data across the World Health Organization regions. National authorities are requested to complete this form for submission to the World Health Organization any time before 15 August of the current year for reporting data on PC interventions implemented during the previous year.
B6: Structure of the application (worksheets):
B8: INTRO | C8: This worksheet includes guides on how to complete the joint reporting form and information about status of PC for endemic diseases in the country
B9: COUNTRY_INFO | C9: This worksheet includes information about administrative structure of the country, population by age group, status of endemicity for each disease, population requiring PC, planned interventions and interventions implemented
B10: MDA1, MDA2, MDA3, T1, T2 and T3 | C10: These worksheets include information about endemic districts targeted for treatment with specified PC medicines, treatment plan, and number of people who received treatment by age group
B11: DISTRICT | C11: This worksheet includes summary of people treated by disease at the level of implementation. If data by gender is available, it requires to enter.
B12: SUMMARY | C12: This worksheet includes summary of people treated by disease and by PC intervention. Before generating the report (run macros) please select the disease for which you need the report. Follow the same rule to generate various reports. This worksheet should be printed and submitted as a Joint Report (see the instruction for submission in the SUMMARY worksheet).
B14: Instruction for data entry
B16: Most of the cells in the above-mentioned worksheets include formula that are calculated automatically according to the treatment policy recommended by WHO for each disease. See the link http://www.who.int/neglected_diseases/preventive_chemotherapy/pct_manual/en/index.html
B18: Please enter your data into the cells according to their colour code:
C20: White - cell is not protected. Please enter the value of the requested indicator.
C22: Yellow - cell is protected and includes name of indicator. No data entry required.
C24: Orange - cell is not protected and includes a drop-down menu. Please select the value from the drop-down list.
C27: Green - cell is not protected and includes formula. Please change the value only if your data are different from those that are calculated automatically.
C30: Blue - cell is protected and includes formula. No data entry required.
B32: Country data
B34: COUNTRY | E34: DRC
B36: Year of reporting data | E36: 2016
B38: Is country endemic for lymphatic filariasis (LF)? | E38: Endemic
B40: Is country endemic for onchocerciasis (ONCHO)? | E40: Endemic
B42: Is country endemic for soil-transmitted helminthiases (STH)? | E42: Endemic
B44: Is country endemic for schistosomiasis (SCH)? | E44: Endemic
B46: How many administrative units in the country? | E46: 519
B47: If demographical data at the second administrative level are not available by age group, please enter the proportion (%) of population by age group in the country. If data are available, please leave these cells blank.
B48: 1-4 years age | C48: Preschool-age children (PreSAC) | E48: 0.19
B49: 5-14 years age | C49: School-age children (SAC) | E49: 0.35
B50: 15 years + | C50: Adults | E50: 0.46

Sheet COUNTRY_INFO
A1: COUNTRY INFORMATION
A2: Administrative structure, population by age group, endemicity status, planned interventions and interventions implemented
A4: TOTAL | D4: =SUM(D$9:D$1000) -> 89373565 | E4: =SUM(E$9:E$1000) -> 16980984 | F4: =SUM(F$9:F$1000) -> 31280751 | G4: =SUM(G$9:G$1000) -> 41111851 | L4: =SUM(L$9:L$1000) -> 38738084 | M4: =SUM(M$9:M$1000) -> 41151940 | N4: =SUM(N$9:N$1000) -> 26016171 | O4: =SUM(O$9:O$1000) -> 13309917.58
A6: Country administrative structure | D6: Population | H6: Endemicity | L6: Population requiring PC | P6: Number of treatment rounds planned for the year | T6: PC implemented | V6: Click to see the recommended strategy
A7: Country | B7: Province/State | C7: District | D7: Total | E7: PreSAC | F7: SAC | G7: Adults | H7: LF | I7: Oncho | J7: STH | K7: SCH | L7: LF | M7: Oncho | N7: STH | O7: SCH | P7: LF | Q7: Oncho | R7: STH | S7: SCH | T7: ROUND 1 | U7: ROUND2 | X7: IU_ID | Y7: IU_Name
A9: =IF(INTRO!$E$34<>0,INTRO!$E$34,"") -> DRC | B9: BAS UELE | C9: Aketi | D9: 107059 | E9: =IF(INTRO!$E$48="","",ROUND($D9*INTRO!$E$48,0)) -> 20341 | F9: =IF(INTRO!$E$49="","",ROUND($D9*INTRO!$E$49,0)) -> 37471 | G9: =IF(INTRO!$E$50="","",ROUND($D9*INTRO!$E$50,0)) -> 49247 | H9: 1 | I9: 1 | J9: 1 | K9: 1 | L9: =IF(INTRO!$E$38="Endemic", IF($H9>0, IF($H9=4,"Unknown", IF($H9=99,"Stopped", $D9)), 0),"Not required") -> 107059 | M9: =IF(INTRO!$E$40="Endemic", IF($I9>0, IF($I9=4,"Unknown",IF($I9=99,"Stopped", $D9)), 0),"Not required") -> 107059 | N9: =IF(INTRO!$E$42="Endemic", IF(AND($J9>1,$J9<5), IF($J9=4, "Unknown", E9+F9), 0),"Not required") -> 0 | O9: =IF(INTRO!$E$44="Endemic", IF(AND($K9>0,$K9<5), IF($K9=4,"Unknown", IF($K9=1, $F9*0.33, IF($K9=2, $F9*0.5+$G9*0.2, SUM(F9:G9)))), 0),"Not required") -> 12365.43 | P9: 0 | Q9: 1 | R9: 0 | S9: 0 | T9: MDA3 (IVM) | X9: 14216 | Y9: Aketi
A10: =IF(INTRO!$E$34<>0,INTRO!$E$34,"") -> DRC | B10: BAS UELE | C10: Ango | D10: 84868 | E10: =IF(INTRO!$E$48="","",ROUND($D10*INTRO!$E$48,0)) -> 16125 | F10: =IF(INTRO!$E$49="","",ROUND($D10*INTRO!$E$49,0)) -> 29704 | G10: =IF(INTRO!$E$50="","",ROUND($D10*INTRO!$E$50,0)) -> 39039 | H10: 0 | I10: 1 | J10: 3 | K10: 1 | L10: =IF(INTRO!$E$38="Endemic", IF($H10>0, IF($H10=4,"Unknown", IF($H10=99,"Stopped", $D10)), 0),"Not required") -> 0 | M10: =IF(INTRO!$E$40="Endemic", IF($I10>0, IF($I10=4,"Unknown",IF($I10=99,"Stopped", $D10)), 0),"Not required") -> 84868 | N10: =IF(INTRO!$E$42="Endemic", IF(AND($J10>1,$J10<5), IF($J10=4, "Unknown", E10+F10), 0),"Not required") -> 45829 | O10: =IF(INTRO!$E$44="Endemic", IF(AND($K10>0,$K10<5), IF($K10=4,"Unknown", IF($K10=1, $F10*0.33, IF($K10=2, $F10*0.5+$G10*0.2, SUM(F10:G10)))), 0),"Not required") -> 9802.32 | P10: 0 | Q10: 1 | R10: 0 | S10: 0 | T10: MDA3 (IVM) | X10: 14217 | Y10: Ango
A11: =IF(INTRO!$E$34<>0,INTRO!$E$34,"") -> DRC | B11: BAS UELE | C11: Bili | D11: 62707 | E11: =IF(INTRO!$E$48="","",ROUND($D11*INTRO!$E$48,0)) -> 11914 | F11: =IF(INTRO!$E$49="","",ROUND($D11*INTRO!$E$49,0)) -> 21947 | G11: =IF(INTRO!$E$50="","",ROUND($D11*INTRO!$E$50,0)) -> 28845 | H11: 0 | I11: 1 | J11: 2 | K11: 1 | L11: =IF(INTRO!$E$38="Endemic", IF($H11>0, IF($H11=4,"Unknown", IF($H11=99,"Stopped", $D11)), 0),"Not required") -> 0 | M11: =IF(INTRO!$E$40="Endemic", IF($I11>0, IF($I11=4,"Unknown",IF($I11=99,"Stopped", $D11)), 0),"Not required") -> 62707 | N11: =IF(INTRO!$E$42="Endemic", IF(AND($J11>1,$J11<5), IF($J11=4, "Unknown", E11+F11), 0),"Not required") -> 33861 | O11: =IF(INTRO!$E$44="Endemic", IF(AND($K11>0,$K11<5), IF($K11=4,"Unknown", IF($K11=1, $F11*0.33, IF($K11=2, $F11*0.5+$G11*0.2, SUM(F11:G11)))), 0),"Not required") -> 7242.51 | P11: 0 | Q11: 1 | R11: 0 | S11: 0 | T11: MDA3 (IVM) | X11: 13903 | Y11: Bili (Bas-Ueles)
A12: =IF(INTRO!$E$34<>0,INTRO!$E$34,"") -> DRC | B12: BAS UELE | C12: Bondo | D12: 96417 | E12: =IF(INTRO!$E$48="","",ROUND($D12*INTRO!$E$48,0)) -> 18319 | F12: =IF(INTRO!$E$49="","",ROUND($D12*INTRO!$E$49,0)) -> 33746 | G12: =IF(INTRO!$E$50="","",ROUND($D12*INTRO!$E$50,0)) -> 44352 | H12: 1 | I12: 1 | J12: 2 | K12: 2 | L12: =IF(INTRO!$E$38="Endemic", IF($H12>0, IF($H12=4,"Unknown", IF($H12=99,"Stopped", $D12)), 0),"Not required") -> 96417 | M12: =IF(INTRO!$E$40="Endemic", IF($I12>0, IF($I12=4,"Unknown",IF($I12=99,"Stopped", $D12)), 0),"Not required") -> 96417 | N12: =IF(INTRO!$E$42="Endemic", IF(AND($J12>1,$J12<5), IF($J12=4, "Unknown", E12+F12), 0),"Not required") -> 52065 | O12: =IF(INTRO!$E$44="Endemic", IF(AND($K12>0,$K12<5), IF($K12=4,"Unknown", IF($K12=1, $F12*0.33, IF($K12=2, $F12*0.5+$G12*0.2, SUM(F12:G12)))), 0),"Not required") -> 25743.4 | P12: 0 | Q12: 1 | R12: 0 | S12: 0 | T12: MDA3 (IVM) | X12: 14232 | Y12: Bondo
A13: =IF(INTRO!$E$34<>0,INTRO!$E$34,"") -> DRC | B13: BAS UELE | C13: Buta | D13: 124273 | E13: =IF(INTRO!$E$48="","",ROUND($D13*INTRO!$E$48,0)) -> 23612 | F13: =IF(INTRO!$E$49="","",ROUND($D13*INTRO!$E$49,0)) -> 43496 | G13: =IF(INTRO!$E$50="","",ROUND($D13*INTRO!$E$50,0)) -> 57166 | H13: 1 | I13: 1 | J13: 2 | K13: 3 | L13: =IF(INTRO!$E$38="Endemic", IF($H13>0, IF($H13=4,"Unknown", IF($H13=99,"Stopped", $D13)), 0),"Not required") -> 124273 | M13: =IF(INTRO!$E$40="Endemic", IF($I13>0, IF($I13=4,"Unknown",IF($I13=99,"Stopped", $D13)), 0),"Not required") -> 124273 | N13: =IF(INTRO!$E$42="Endemic", IF(AND($J13>1,$J13<5), IF($J13=4, "Unknown", E13+F13), 0),"Not required") -> 67108 | O13: =IF(INTRO!$E$44="Endemic", IF(AND($K13>0,$K13<5), IF($K13=4,"Unknown", IF($K13=1, $F13*0.33, IF($K13=2, $F13*0.5+$G13*0.2, SUM(F13:G13)))), 0),"Not required") -> 100662 | P13: 0 | Q13: 1 | R13: 0 | S13: 0 | T13: MDA3 (IVM) | X13: 14234 | Y13: Buta
A14: =IF(INTRO!$E$34<>0,INTRO!$E$34,"") -> DRC | B14: BAS UELE | C14: Dingela | D14: 99221 | E14: =IF(INTRO!$E$48="","",ROUND($D14*INTRO!$E$48,0)) -> 18852 | F14: =IF(INTRO!$E$49="","",ROUND($D14*INTRO!$E$49,0)) -> 34727 | G14: =IF(INTRO!$E$50="","",ROUND($D14*INTRO!$E$50,0)) -> 45642 | H14: 0 | I14: 1 | J14: 3 | K14: 1 | L14: =IF(INTRO!$E$38="Endemic", IF($H14>0, IF($H14=4,"Unknown", IF($H14=99,"Stopped", $D14)), 0),"Not required") -> 0 | M14: =IF(INTRO!$E$40="Endemic", IF($I14>0, IF($I14=4,"Unknown",IF($I14=99,"Stopped", $D14)), 0),"Not required") -> 99221 | N14: =IF(INTRO!$E$42="Endemic", IF(AND($J14>1,$J14<5), IF($J14=4, "Unknown", E14+F14), 0),"Not required") -> 53579 | O14: =IF(INTRO!$E$44="Endemic", IF(AND($K14>0,$K14<5), IF($K14=4,"Unknown", IF($K14=1, $F14*0.33, IF($K14=2, $F14*0.5+$G14*0.2, SUM(F14:G14)))), 0),"Not required") -> 11459.91 | P14: 0 | Q14: 1 | R14: 0 | S14: 0 | T14: MDA3 (IVM) | X14: 14241 | Y14: Dingela
A15: =IF(INTRO!$E$34<>0,INTRO!$E$34,"") -> DRC | B15: BAS UELE | C15: Likati | D15: 47939 | E15: =IF(INTRO!$E$48="","",ROUND($D15*INTRO!$E$48,0)) -> 9108 | F15: =IF(INTRO!$E$49="","",ROUND($D15*INTRO!$E$49,0)) -> 16779 | G15: =IF(INTRO!$E$50="","",ROUND($D15*INTRO!$E$50,0)) -> 22052 | H15: 1 | I15: 1 | J15: 1 | K15: 3 | L15: =IF(INTRO!$E$38="Endemic", IF($H15>0, IF($H15=4,"Unknown", IF($H15=99,"Stopped", $D15)), 0),"Not required") -> 47939 | M15: =IF(INTRO!$E$40="Endemic", IF($I15>0, IF($I15=4,"Unknown",IF($I15=99,"Stopped", $D15)), 0),"Not required") -> 47939 | N15: =IF(INTRO!$E$42="Endemic", IF(AND($J15>1,$J15<5), IF($J15=4, "Unknown", E15+F15), 0),"Not required") -> 0 | O15: =IF(INTRO!$E$44="Endemic", IF(AND($K15>0,$K15<5), IF($K15=4,"Unknown", IF($K15=1, $F15*0.33, IF($K15=2, $F15*0.5+$G15*0.2, SUM(F15:G15)))), 0),"Not required") -> 38831 | P15: 0 | Q15: 1 | R15: 0 | S15: 0 | T15: MDA3 (IVM) | X15: 14252 | Y15: Likati
A16: =IF(INTRO!$E$34<>0,INTRO!$E$34,"") -> DRC | B16: BAS UELE | C16: Monga | D16: 135840 | E16: =IF(INTRO!$E$48="","",ROUND($D16*INTRO!$E$48,0)) -> 25810 | F16: =IF(INTRO!$E$49="","",ROUND($D16*INTRO!$E$49,0)) -> 47544 | G16: =IF(INTRO!$E$50="","",ROUND($D16*INTRO!$E$50,0)) -> 62486 | H16: 1 | I16: 1 | J16: 2 | K16: 2 | L16: =IF(INTRO!$E$38="Endemic", IF($H16>0, IF($H16=4,"Unknown", IF($H16=99,"Stopped", $D16)), 0),"Not required") -> 135840 | M16: =IF(INTRO!$E$40="Endemic", IF($I16>0, IF($I16=4,"Unknown",IF($I16=99,"Stopped", $D16)), 0),"Not required") -> 135840 | N16: =IF(INTRO!$E$42="Endemic", IF(AND($J16>1,$J16<5), IF($J16=4, "Unknown", E16+F16), 0),"Not required") -> 73354 | O16: =IF(INTRO!$E$44="Endemic", IF(AND($K16>0,$K16<5), IF($K16=4,"Unknown", IF($K16=1, $F16*0.33, IF($K16=2, $F16*0.5+$G16*0.2, SUM(F16:G16)))), 0),"Not required") -> 36269.2 | P16: 0 | Q16: 1 | R16: 0 | S16: 0 | T16: MDA3 (IVM) | X16: 14266 | Y16: Monga
A17: =IF(INTRO!$E$34<>0,INTRO!$E$34,"") -> DRC | B17: BAS UELE | C17: Poko | D17: 239063 | E17: =IF(INTRO!$E$48="","",ROUND($D17*INTRO!$E$48,0)) -> 45422 | F17: =IF(INTRO!$E$49="","",ROUND($D17*INTRO!$E$49,0)) -> 83672 | G17: =IF(INTRO!$E$50="","",ROUND($D17*INTRO!$E$50,0)) -> 109969 | H17: 1 | I17: 1 | J17: 2 | K17: 2 | L17: =IF(INTRO!$E$38="Endemic", IF($H17>0, IF($H17=4,"Unknown", IF($H17=99,"Stopped", $D17)), 0),"Not required") -> 239063 | M17: =IF(INTRO!$E$40="Endemic", IF($I17>0, IF($I17=4,"Unknown",IF($I17=99,"Stopped", $D17)), 0),"Not required") -> 239063 | N17: =IF(INTRO!$E$42="Endemic", IF(AND($J17>1,$J17<5), IF($J17=4, "Unknown", E17+F17), 0),"Not required") -> 129094 | O17: =IF(INTRO!$E$44="Endemic", IF(AND($K17>0,$K17<5), IF($K17=4,"Unknown", IF($K17=1, $F17*0.33, IF($K17=2, $F17*0.5+$G17*0.2, SUM(F17:G17)))), 0),"Not required") -> 63829.8 | P17: 0 | Q17: 1 | R17: 0 | S17: 0 | T17: MDA3 (IVM) | X17: 14276 | Y17: Poko
A18: =IF(INTRO!$E$34<>0,INTRO!$E$34,"") -> DRC | B18: BAS UELE | C18: Titule | D18: 54741 | E18: =IF(INTRO!$E$48="","",ROUND($D18*INTRO!$E$48,0)) -> 10401 | F18: =IF(INTRO!$E$49="","",ROUND($D18*INTRO!$E$49,0)) -> 19159 | G18: =IF(INTRO!$E$50="","",ROUND($D18*INTRO!$E$50,0)) -> 25181 | H18: 0 | I18: 1 | J18: 3 | K18: 2 | L18: =IF(INTRO!$E$38="Endemic", IF($H18>0, IF($H18=4,"Unknown", IF($H18=99,"Stopped", $D18)), 0),"Not required") -> 0 | M18: =IF(INTRO!$E$40="Endemic", IF($I18>0, IF($I18=4,"Unknown",IF($I18=99,"Stopped", $D18)), 0),"Not required") -> 54741 | N18: =IF(INTRO!$E$42="Endemic", IF(AND($J18>1,$J18<5), IF($J18=4, "Unknown", E18+F18), 0),"Not required") -> 29560 | O18: =IF(INTRO!$E$44="Endemic", IF(AND($K18>0,$K18<5), IF($K18=4,"Unknown", IF($K18=1, $F18*0.33, IF($K18=2, $F18*0.5+$G18*0.2, SUM(F18:G18)))), 0),"Not required") -> 14615.7 | P18: 0 | Q18: 1 | R18: 0 | S18: 0 | T18: MDA3 (IVM) | X18: 14282 | Y18: Titule
A19: =IF(INTRO!$E$34<>0,INTRO!$E$34,"") -> DRC | B19: BAS UELE | C19: Viadana | D19: 107801 | E19: =IF(INTRO!$E$48="","",ROUND($D19*INTRO!$E$48,0)) -> 20482 | F19: =IF(INTRO!$E$49="","",ROUND($D19*INTRO!$E$49,0)) -> 37730 | G19: =IF(INTRO!$E$50="","",ROUND($D19*INTRO!$E$50,0)) -> 49588 | H19: 1 | I19: 1 | J19: 3 | K19: 1 | L19: =IF(INTRO!$E$38="Endemic", IF($H19>0, IF($H19=4,"Unknown", IF($H19=99,"Stopped", $D19)), 0),"Not required") -> 107801 | M19: =IF(INTRO!$E$40="Endemic", IF($I19>0, IF($I19=4,"Unknown",IF($I19=99,"Stopped", $D19)), 0),"Not required") -> 107801 | N19: =IF(INTRO!$E$42="Endemic", IF(AND($J19>1,$J19<5), IF($J19=4, "Unknown", E19+F19), 0),"Not required") -> 58212 | O19: =IF(INTRO!$E$44="Endemic", IF(AND($K19>0,$K19<5), IF($K19=4,"Unknown", IF($K19=1, $F19*0.33, IF($K19=2, $F19*0.5+$G19*0.2, SUM(F19:G19)))), 0),"Not required") -> 12450.9 | P19: 0 | Q19: 1 | R19: 0 | S19: 0 | T19: MDA3 (IVM) | X19: 14285 | Y19: Viadana
A20: =IF(INTRO!$E$34<>0,INTRO!$E$34,"") -> DRC | B20: EQUATEUR | C20: Basankusu | D20: 231908 | E20: =IF(INTRO!$E$48="","",ROUND($D20*INTRO!$E$48,0)) -> 44063 | F20: =IF(INTRO!$E$49="","",ROUND($D20*INTRO!$E$49,0)) -> 81168 | G20: =IF(INTRO!$E$50="","",ROUND($D20*INTRO!$E$50,0)) -> 106678 | H20: 1 | I20: 1 | J20: 3 | K20: 0 | L20: =IF(INTRO!$E$38="Endemic", IF($H20>0, IF($H20=4,"Unknown", IF($H20=99,"Stopped", $D20)), 0),"Not required") -> 231908 | M20: =IF(INTRO!$E$40="Endemic", IF($I20>0, IF($I20=4,"Unknown",IF($I20=99,"Stopped", $D20)), 0),"Not required") -> 231908 | N20: =IF(INTRO!$E$42="Endemic", IF(AND($J20>1,$J20<5), IF($J20=4, "Unknown", E20+F20), 0),"Not required") -> 125231 | O20: =IF(INTRO!$E$44="Endemic", IF(AND($K20>0,$K20<5), IF($K20=4,"Unknown", IF($K20=1, $F20*0.33, IF($K20=2, $F20*0.5+$G20*0.2, SUM(F20:G20)))), 0),"Not required") -> 0 | P20: 0 | Q20: 1 | R20: 0 | S20: 0 | T20: MDA3 (IVM) | X20: 13901 | Y20: Basankusu
A21: =IF(INTRO!$E$34<>0,INTRO!$E$34,"") -> DRC | B21: EQUATEUR | C21: Bikoro | D21: 136267 | E21: =IF(INTRO!$E$48="","",ROUND($D21*INTRO!$E$48,0)) -> 25891 | F21: =IF(INTRO!$E$49="","",ROUND($D21*INTRO!$E$49,0)) -> 47693 | G21: =IF(INTRO!$E$50="","",ROUND($D21*INTRO!$E$50,0)) -> 62683 | H21: 1 | I21: 0 | J21: 3 | K21: 1 | L21: =IF(INTRO!$E$38="Endemic", IF($H21>0, IF($H21=4,"Unknown", IF($H21=99,"Stopped", $D21)), 0),"Not required") -> 136267 | M21: =IF(INTRO!$E$40="Endemic", IF($I21>0, IF($I21=4,"Unknown",IF($I21=99,"Stopped", $D21)), 0),"Not required") -> 0 | N21: =IF(INTRO!$E$42="Endemic", IF(AND($J21>1,$J21<5), IF($J21=4, "Unknown", E21+F21), 0),"Not required") -> 73584 | O21: =IF(INTRO!$E$44="Endemic", IF(AND($K21>0,$K21<5), IF($K21=4,"Unknown", IF($K21=1, $F21*0.33, IF($K21=2, $F21*0.5+$G21*0.2, SUM(F21:G21)))), 0),"Not required") -> 15738.69 | P21: 0 | Q21: 0 | R21: 0 | S21: 0 | X21: 13902 | Y21: Bikoro
A22: =IF(INTRO!$E$34<>0,INTRO!$E$34,"") -> DRC | B22: EQUATEUR | C22: Bolenge | D22: 78615 | E22: =IF(INTRO!$E$48="","",ROUND($D22*INTRO!$E$48,0)) -> 14937 | F22: =IF(INTRO!$E$49="","",ROUND($D22*INTRO!$E$49,0)) -> 27515 | G22: =IF(INTRO!$E$50="","",ROUND($D22*INTRO!$E$50,0)) -> 36163 | H22: 0 | I22: 1 | J22: 3 | K22: 1 | L22: =IF(INTRO!$E$38="Endemic", IF($H22>0, IF($H22=4,"Unknown", IF($H22=99,"Stopped", $D22)), 0),"Not required") -> 0 | M22: =IF(INTRO!$E$40="Endemic", IF($I22>0, IF($I22=4,"Unknown",IF($I22=99,"Stopped", $D22)), 0),"Not required") -> 78615 | N22: =IF(INTRO!$E$42="Endemic", IF(AND($J22>1,$J22<5), IF($J22=4, "Unknown", E22+F22), 0),"Not required") -> 42452 | O22: =IF(INTRO!$E$44="Endemic", IF(AND($K22>0,$K22<5), IF($K22=4,"Unknown", IF($K22=1, $F22*0.33, IF($K22=2, $F22*0.5+$G22*0.2, SUM(F22:G22)))), 0),"Not required") -> 9079.95 | P22: 0 | Q22: 1 | R22: 0 | S22: 0 | T22: MDA3 (IVM) | X22: 13909 | Y22: Bolenge
A23: =IF(INTRO!$E$34<>0,INTRO!$E$34,"") -> DRC | B23: EQUATEUR | C23: Bolomba | D23: 251301 | E23: =IF(INTRO!$E$48="","",ROUND($D23*INTRO!$E$48,0)) -> 47747 | F23: =IF(INTRO!$E$49="","",ROUND($D23*INTRO!$E$49,0)) -> 87955 | G23: =IF(INTRO!$E$50="","",ROUND($D23*INTRO!$E$50,0)) -> 115598 | H23: 1 | I23: 1 | J23: 3 | K23: 1 | L23: =IF(INTRO!$E$38="Endemic", IF($H23>0, IF($H23=4,"Unknown", IF($H23=99,"Stopped", $D23)), 0),"Not required") -> 251301 | M23: =IF(INTRO!$E$40="Endemic", IF($I23>0, IF($I23=4,"Unknown",IF($I23=99,"Stopped", $D23)), 0),"Not required") -> 251301 | N23: =IF(INTRO!$E$42="Endemic", IF(AND($J23>1,$J23<5), IF($J23=4, "Unknown", E23+F23), 0),"Not required") -> 135702 | O23: =IF(INTRO!$E$44="Endemic", IF(AND($K23>0,$K23<5), IF($K23=4,"Unknown", IF($K23=1, $F23*0.33, IF($K23=2, $F23*0.5+$G23*0.2, SUM(F23:G23)))), 0),"Not required") -> 29025.15 | P23: 0 | Q23: 1 | R23: 0 | S23: 0 | T23: MDA3 (IVM) | X23: 13910 | Y23: Bolomba
A24: =IF(INTRO!$E$34<>0,INTRO!$E$34,"") -> DRC | B24: EQUATEUR | C24: Bomongo | D24: 145355 | E24: =IF(INTRO!$E$48="","",ROUND($D24*INTRO!$E$48,0)) -> 27617 | F24: =IF(INTRO!$E$49="","",ROUND($D24*INTRO!$E$49,0)) -> 50874 | G24: =IF(INTRO!$E$50="","",ROUND($D24*INTRO!$E$50,0)) -> 66863 | H24: 1 | I24: 0 | J24: 2 | K24: 2 | L24: =IF(INTRO!$E$38="Endemic", IF($H24>0, IF($H24=4,"Unknown", IF($H24=99,"Stopped", $D24)), 0),"Not required") -> 145355 | M24: =IF(INTRO!$E$40="Endemic", IF($I24>0, IF($I24=4,"Unknown",IF($I24=99,"Stopped", $D24)), 0),"Not required") -> 0 | N24: =IF(INTRO!$E$42="Endemic", IF(AND($J24>1,$J24<5), IF($J24=4, "Unknown", E24+F24), 0),"Not required") -> 78491 | O24: =IF(INTRO!$E$44="Endemic", IF(AND($K24>0,$K24<5), IF($K24=4,"Unknown", IF($K24=1, $F24*0.33, IF($K24=2, $F24*0.5+$G24*0.2, SUM(F24:G24)))), 0),"Not required") -> 38809.6 | P24: 0 | Q24: 0 | R24: 0 | S24: 0 | X24: 13912 | Y24: Bomongo
A25: =IF(INTRO!$E$34<>0,INTRO!$E$34,"") -> DRC | B25: EQUATEUR | C25: Djombo | D25: 93303 | E25: =IF(INTRO!$E$48="","",ROUND($D25*INTRO!$E$48,0)) -> 17728 | F25: =IF(INTRO!$E$49="","",ROUND($D25*INTRO!$E$49,0)) -> 32656 | G25: =IF(INTRO!$E$50="","",ROUND($D25*INTRO!$E$50,0)) -> 42919 | H25: 1 | I25: 1 | J25: 3 | K25: 1 | L25: =IF(INTRO!$E$38="Endemic", IF($H25>0, IF($H25=4,"Unknown", IF($H25=99,"Stopped", $D25)), 0),"Not required") -> 93303 | M25: =IF(INTRO!$E$40="Endemic", IF($I25>0, IF($I25=4,"Unknown",IF($I25=99,"Stopped", $D25)), 0),"Not required") -> 93303 | N25: =IF(INTRO!$E$42="Endemic", IF(AND($J25>1,$J25<5), IF($J25=4, "Unknown", E25+F25), 0),"Not required") -> 50384 | O25: =IF(INTRO!$E$44="Endemic", IF(AND($K25>0,$K25<5), IF($K25=4,"Unknown", IF($K25=1, $F25*0.33, IF($K25=2, $F25*0.5+$G25*0.2, SUM(F25:G25)))), 0),"Not required") -> 10776.48 | P25: 0 | Q25: 1 | R25: 0 | S25: 0 | T25: MDA3 (IVM) | X25: 13925 | Y25: Djombo
A26: =IF(INTRO!$E$34<>0,INTRO!$E$34,"") -> DRC | B26: EQUATEUR | C26: Iboko | D26: 99425 | E26: =IF(INTRO!$E$48="","",ROUND($D26*INTRO!$E$48,0)) -> 18891 | F26: =IF(INTRO!$E$49="","",ROUND($D26*INTRO!$E$49,0)) -> 34799 | G26: =IF(INTRO!$E$50="","",ROUND($D26*INTRO!$E$50,0)) -> 45736 | H26: 0 | I26: 0 | J26: 2 | K26: 1 | L26: =IF(INTRO!$E$38="Endemic", IF($H26>0, IF($H26=4,"Unknown", IF($H26=99,"Stopped", $D26)), 0),"Not required") -> 0 | M26: =IF(INTRO!$E$40="Endemic", IF($I26>0, IF($I26=4,"Unknown",IF($I26=99,"Stopped", $D26)), 0),"Not required") -> 0 | N26: =IF(INTRO!$E$42="Endemic", IF(AND($J26>1,$J26<5), IF($J26=4, "Unknown", E26+F26), 0),"Not required") -> 53690 | O26: =IF(INTRO!$E$44="Endemic", IF(AND($K26>0,$K26<5), IF($K26=4,"Unknown", IF($K26=1, $F26*0.33, IF($K26=2, $F26*0.5+$G26*0.2, SUM(F26:G26)))), 0),"Not required") -> 11483.67 | P26: 0 | Q26: 0 | R26: 0 | S26: 0 | X26: 13928 | Y26: Iboko
A27: =IF(INTRO!$E$34<>0,INTRO!$E$34,"") -> DRC | B27: EQUATEUR | C27: Ingende | D27: 131907 | E27: =IF(INTRO!$E$48="","",ROUND($D27*INTRO!$E$48,0)) -> 25062 | F27: =IF(INTRO!$E$49="","",ROUND($D27*INTRO!$E$49,0)) -> 46167 | G27: =IF(INTRO!$E$50="","",ROUND($D27*INTRO!$E$50,0)) -> 60677 | H27: 0 | I27: 1 | J27: 3 | K27: 1 | L27: =IF(INTRO!$E$38="Endemic", IF($H27>0, IF($H27=4,"Unknown", IF($H27=99,"Stopped", $D27)), 0),"Not required") -> 0 | M27: =IF(INTRO!$E$40="Endemic", IF($I27>0, IF($I27=4,"Unknown",IF($I27=99,"Stopped", $D27)), 0),"Not required") -> 131907 | N27: =IF(INTRO!$E$42="Endemic", IF(AND($J27>1,$J27<5), IF($J27=4, "Unknown", E27+F27), 0),"Not required") -> 71229 | O27: =IF(INTRO!$E$44="Endemic", IF(AND($K27>0,$K27<5), IF($K27=4,"Unknown", IF($K27=1, $F27*0.33, IF($K27=2, $F27*0.5+$G27*0.2, SUM(F27:G27)))), 0),"Not required") -> 15235.11 | P27: 0 | Q27: 1 | R27: 0 | S27: 0 | T27: MDA3 (IVM) | X27: 13930 | Y27: Ingende
A28: =IF(INTRO!$E$34<>0,INTRO!$E$34,"") -> DRC | B28: EQUATEUR | C28: Irebu | D28: 35979 | E28: =IF(INTRO!$E$48="","",ROUND($D28*INTRO!$E$48,0)) -> 6836 | F28: =IF(INTRO!$E$49="","",ROUND($D28*INTRO!$E$49,0)) -> 12593 | G28: =IF(INTRO!$E$50="","",ROUND($D28*INTRO!$E$50,0)) -> 16550 | H28: 0 | I28: 0 | J28: 1 | K28: 0 | L28: =IF(INTRO!$E$38="Endemic", IF($H28>0, IF($H28=4,"Unknown", IF($H28=99,"Stopped", $D28)), 0),"Not required") -> 0 | M28: =IF(INTRO!$E$40="Endemic", IF($I28>0, IF($I28=4,"Unknown",IF($I28=99,"Stopped", $D28)), 0),"Not required") -> 0 | N28: =IF(INTRO!$E$42="Endemic", IF(AND($J28>1,$J28<5), IF($J28=4, "Unknown", E28+F28), 0),"Not required") -> 0 | O28: =IF(INTRO!$E$44="Endemic", IF(AND($K28>0,$K28<5), IF($K28=4,"Unknown", IF($K28=1, $F28*0.33, IF($K28=2, $F28*0.5+$G28*0.2, SUM(F28:G28)))), 0),"Not required") -> 0 | P28: 0 | Q28: 0 | R28: 0 | S28: 0 | X28: 13931 | Y28: Irebu
A29: =IF(INTRO!$E$34<>0,INTRO!$E$34,"") -> DRC | B29: EQUATEUR | C29: Lilanga Bobangi | D29: 79520 | E29: =IF(INTRO!$E$48="","",ROUND($D29*INTRO!$E$48,0)) -> 15109 | F29: =IF(INTRO!$E$49="","",ROUND($D29*INTRO!$E$49,0)) -> 27832 | G29: =IF(INTRO!$E$50="","",ROUND($D29*INTRO!$E$50,0)) -> 36579 | H29: 0 | I29: 0 | J29: 2 | K29: 2 | L29: =IF(INTRO!$E$38="Endemic", IF($H29>0, IF($H29=4,"Unknown", IF($H29=99,"Stopped", $D29)), 0),"Not required") -> 0 | M29: =IF(INTRO!$E$40="Endemic", IF($I29>0, IF($I29=4,"Unknown",IF($I29=99,"Stopped", $D29)), 0),"Not required") -> 0 | N29: =IF(INTRO!$E$42="Endemic", IF(AND($J29>1,$J29<5), IF($J29=4, "Unknown", E29+F29), 0),"Not required") -> 42941 | O29: =IF(INTRO!$E$44="Endemic", IF(AND($K29>0,$K29<5), IF($K29=4,"Unknown", IF($K29=1, $F29*0.33, IF($K29=2, $F29*0.5+$G29*0.2, SUM(F29:G29)))), 0),"Not required") -> 21231.8 | P29: 0 | Q29: 0 | R29: 0 | S29: 0 | X29: 13966 | Y29: Lilanga Bobangi
A30: =IF(INTRO!$E$34<>0,INTRO!$E$34,"") -> DRC | B30: EQUATEUR | C30: Lotumbe | D30: 114095 | E30: =IF(INTRO!$E$48="","",ROUND($D30*INTRO!$E$48,0)) -> 21678 | F30: =IF(INTRO!$E$49="","",ROUND($D30*INTRO!$E$49,0)) -> 39933 | G30: =IF(INTRO!$E$50="","",ROUND($D30*INTRO!$E$50,0)) -> 52484 | H30: 0 | I30: 1 | J30: 3 | K30: 0 | L30: =IF(INTRO!$E$38="Endemic", IF($H30>0, IF($H30=4,"Unknown", IF($H30=99,"Stopped", $D30)), 0),"Not required") -> 0 | M30: =IF(INTRO!$E$40="Endemic", IF($I30>0, IF($I30=4,"Unknown",IF($I30=99,"Stopped", $D30)), 0),"Not required") -> 114095 | N30: =IF(INTRO!$E$42="Endemic", IF(AND($J30>1,$J30<5), IF($J30=4, "Unknown", E30+F30), 0),"Not required") -> 61611 | O30: =IF(INTRO!$E$44="Endemic", IF(AND($K30>0,$K30<5), IF($K30=4,"Unknown", IF($K30=1, $F30*0.33, IF($K30=2, $F30*0.5+$G30*0.2, SUM(F30:G30)))), 0),"Not required") -> 0 | P30: 0 | Q30: 1 | R30: 0 | S30: 0 | T30: MDA3 (IVM) | X30: 13939 | Y30: Lotumbe
A31: =IF(INTRO!$E$34<>0,INTRO!$E$34,"") -> DRC | B31: EQUATEUR | C31: Lukolela | D31: 142819 | E31: =IF(INTRO!$E$48="","",ROUND($D31*INTRO!$E$48,0)) -> 27136 | F31: =IF(INTRO!$E$49="","",ROUND($D31*INTRO!$E$49,0)) -> 49987 | G31: =IF(INTRO!$E$50="","",ROUND($D31*INTRO!$E$50,0)) -> 65697 | H31: 0 | I31: 0 | J31: 1 | K31: 2 | L31: =IF(INTRO!$E$38="Endemic", IF($H31>0, IF($H31=4,"Unknown", IF($H31=99,"Stopped", $D31)), 0),"Not required") -> 0 | M31: =IF(INTRO!$E$40="Endemic", IF($I31>0, IF($I31=4,"Unknown",IF($I31=99,"Stopped", $D31)), 0),"Not required") -> 0 | N31: =IF(INTRO!$E$42="Endemic", IF(AND($J31>1,$J31<5), IF($J31=4, "Unknown", E31+F31), 0),"Not required") -> 0 | O31: =IF(INTRO!$E$44="Endemic", IF(AND($K31>0,$K31<5), IF($K31=4,"Unknown", IF($K31=1, $F31*0.33, IF($K31=2, $F31*0.5+$G31*0.2, SUM(F31:G31)))), 0),"Not required") -> 38132.9 | P31: 0 | Q31: 0 | R31: 0 | S31: 0 | X31: 13940 | Y31: Lukolela
A32: =IF(INTRO!$E$34<>0,INTRO!$E$34,"") -> DRC | B32: EQUATEUR | C32: Makanza | D32: 122082 | E32: =IF(INTRO!$E$48="","",ROUND($D32*INTRO!$E$48,0)) -> 23196 | F32: =IF(INTRO!$E$49="","",ROUND($D32*INTRO!$E$49,0)) -> 42729 | G32: =IF(INTRO!$E$50="","",ROUND($D32*INTRO!$E$50,0)) -> 56158 | H32: 0 | I32: 0 | J32: 2 | K32: 0 | L32: =IF(INTRO!$E$38="Endemic", IF($H32>0, IF($H32=4,"Unknown", IF($H32=99,"Stopped", $D32)), 0),"Not required") -> 0 | M32: =IF(INTRO!$E$40="Endemic", IF($I32>0, IF($I32=4,"Unknown",IF($I32=99,"Stopped", $D32)), 0),"Not required") -> 0 | N32: =IF(INTRO!$E$42="Endemic", IF(AND($J32>1,$J32<5), IF($J32=4, "Unknown", E32+F32), 0),"Not required") -> 65925 | O32: =IF(INTRO!$E$44="Endemic", IF(AND($K32>0,$K32<5), IF($K32=4,"Unknown", IF($K32=1, $F32*0.33, IF($K32=2, $F32*0.5+$G32*0.2, SUM(F32:G32)))), 0),"Not required") -> 0 | P32: 0 | Q32: 0 | R32: 0 | S32: 0 | X32: 13942 | Y32: Makanza
A33: =IF(INTRO!$E$34<>0,INTRO!$E$34,"") -> DRC | B33: EQUATEUR | C33: Mampoko | D33: 78891 | E33: =IF(INTRO!$E$48="","",ROUND($D33*INTRO!$E$48,0)) -> 14989 | F33: =IF(INTRO!$E$49="","",ROUND($D33*INTRO!$E$49,0)) -> 27612 | G33: =IF(INTRO!$E$50="","",ROUND($D33*INTRO!$E$50,0)) -> 36290 | H33: 1 | I33: 1 | J33: 0 | K33: 0 | L33: =IF(INTRO!$E$38="Endemic", IF($H33>0, IF($H33=4,"Unknown", IF($H33=99,"Stopped", $D33)), 0),"Not required") -> 78891 | M33: =IF(INTRO!$E$40="Endemic", IF($I33>0, IF($I33=4,"Unknown",IF($I33=99,"Stopped", $D33)), 0),"Not required") -> 78891 | N33: =IF(INTRO!$E$42="Endemic", IF(AND($J33>1,$J33<5), IF($J33=4, "Unknown", E33+F33), 0),"Not required") -> 0 | O33: =IF(INTRO!$E$44="Endemic", IF(AND($K33>0,$K33<5), IF($K33=4,"Unknown", IF($K33=1, $F33*0.33, IF($K33=2, $F33*0.5+$G33*0.2, SUM(F33:G33)))), 0),"Not required") -> 0 | P33: 0 | Q33: 1 | R33: 0 | S33: 0 | T33: MDA3 (IVM) | X33: 13941 | Y33: Mampoko
A34: =IF(INTRO!$E$34<>0,INTRO!$E$34,"") -> DRC | B34: EQUATEUR | C34: Mbandaka | D34: 153104 | E34: =IF(INTRO!$E$48="","",ROUND($D34*INTRO!$E$48,0)) -> 29090 | F34: =IF(INTRO!$E$49="","",ROUND($D34*INTRO!$E$49,0)) -> 53586 | G34: =IF(INTRO!$E$50="","",ROUND($D34*INTRO!$E$50,0)) -> 70428 | H34: 0 | I34: 0 | J34: 2 | K34: 2 | L34: =IF(INTRO!$E$38="Endemic", IF($H34>0, IF($H34=4,"Unknown", IF($H34=99,"Stopped", $D34)), 0),"Not required") -> 0 | M34: =IF(INTRO!$E$40="Endemic", IF($I34>0, IF($I34=4,"Unknown",IF($I34=99,"Stopped", $D34)), 0),"Not required") -> 0 | N34: =IF(INTRO!$E$42="Endemic", IF(AND($J34>1,$J34<5), IF($J34=4, "Unknown", E34+F34), 0),"Not required") -> 82676 | O34: =IF(INTRO!$E$44="Endemic", IF(AND($K34>0,$K34<5), IF($K34=4,"Unknown", IF($K34=1, $F34*0.33, IF($K34=2, $F34*0.5+$G34*0.2, SUM(F34:G34)))), 0),"Not required") -> 40878.6 | P34: 0 | Q34: 0 | R34: 0 | S34: 0 | X34: 13944 | Y34: Mbandaka
A35: =IF(INTRO!$E$34<>0,INTRO!$E$34,"") -> DRC | B35: EQUATEUR | C35: Monieka | D35: 78678 | E35: =IF(INTRO!$E$48="","",ROUND($D35*INTRO!$E$48,0)) -> 14949 | F35: =IF(INTRO!$E$49="","",ROUND($D35*INTRO!$E$49,0)) -> 27537 | G35: =IF(INTRO!$E$50="","",ROUND($D35*INTRO!$E$50,0)) -> 36192 | H35: 1 | I35: 1 | J35: 1 | K35: 1 | L35: =IF(INTRO!$E$38="Endemic", IF($H35>0, IF($H35=4,"Unknown", IF($H35=99,"Stopped", $D35)), 0),"Not required") -> 78678 | M35: =IF(INTRO!$E$40="Endemic", IF($I35>0, IF($I35=4,"Unknown",IF($I35=99,"Stopped", $D35)), 0),"Not required") -> 78678 | N35: =IF(INTRO!$E$42="Endemic", IF(AND($J35>1,$J35<5), IF($J35=4, "Unknown", E35+F35), 0),"Not required") -> 0 | O35: =IF(INTRO!$E$44="Endemic", IF(AND($K35>0,$K35<5), IF($K35=4,"Unknown", IF($K35=1, $F35*0.33, IF($K35=2, $F35*0.5+$G35*0.2, SUM(F35:G35)))), 0),"Not required") -> 9087.21 | P35: 0 | Q35: 1 | R35: 0 | S35: 0 | T35: MDA3 (IVM) | X35: 13950 | Y35: Monieka
A36: =IF(INTRO!$E$34<>0,INTRO!$E$34,"") -> DRC | B36: EQUATEUR | C36: Ntondo | D36: 61589 | E36: =IF(INTRO!$E$48="","",ROUND($D36*INTRO!$E$48,0)) -> 11702 | F36: =IF(INTRO!$E$49="","",ROUND($D36*INTRO!$E$49,0)) -> 21556 | G36: =IF(INTRO!$E$50="","",ROUND($D36*INTRO!$E$50,0)) -> 28331 | H36: 0 | I36: 0 | J36: 3 | K36: 0 | L36: =IF(INTRO!$E$38="Endemic", IF($H36>0, IF($H36=4,"Unknown", IF($H36=99,"Stopped", $D36)), 0),"Not required") -> 0 | M36: =IF(INTRO!$E$40="Endemic", IF($I36>0, IF($I36=4,"Unknown",IF($I36=99,"Stopped", $D36)), 0),"Not required") -> 0 | N36: =IF(INTRO!$E$42="Endemic", IF(AND($J36>1,$J36<5), IF($J36=4, "Unknown", E36+F36), 0),"Not required") -> 33258 | O36: =IF(INTRO!$E$44="Endemic", IF(AND($K36>0,$K36<5), IF($K36=4,"Unknown", IF($K36=1, $F36*0.33, IF($K36=2, $F36*0.5+$G36*0.2, SUM(F36:G36)))), 0),"Not required") -> 0 | P36: 0 | Q36: 0 | R36: 0 | S36: 0 | X36: 13953 | Y36: Ntondo
A37: =IF(INTRO!$E$34<>0,INTRO!$E$34,"") -> DRC | B37: EQUATEUR | C37: Wangata | D37: 126811 | E37: =IF(INTRO!$E$48="","",ROUND($D37*INTRO!$E$48,0)) -> 24094 | F37: =IF(INTRO!$E$49="","",ROUND($D37*INTRO!$E$49,0)) -> 44384 | G37: =IF(INTRO!$E$50="","",ROUND($D37*INTRO!$E$50,0)) -> 58333 | H37: 1 | I37: 1 | J37: 3 | K37: 1 | L37: =IF(INTRO!$E$38="Endemic", IF($H37>0, IF($H37=4,"Unknown", IF($H37=99,"Stopped", $D37)), 0),"Not required") -> 126811 | M37: =IF(INTRO!$E$40="Endemic", IF($I37>0, IF($I37=4,"Unknown",IF($I37=99,"Stopped", $D37)), 0),"Not required") -> 126811 | N37: =IF(INTRO!$E$42="Endemic", IF(AND($J37>1,$J37<5), IF($J37=4, "Unknown", E37+F37), 0),"Not required") -> 68478 | O37: =IF(INTRO!$E$44="Endemic", IF(AND($K37>0,$K37<5), IF($K37=4,"Unknown", IF($K37=1, $F37*0.33, IF($K37=2, $F37*0.5+$G37*0.2, SUM(F37:G37)))), 0),"Not required") -> 14646.72 | P37: 0 | Q37: 1 | R37: 0 | S37: 0 | T37: MDA3 (IVM) | X37: 13957 | Y37: Wangata
A38: =IF(INTRO!$E$34<>0,INTRO!$E$34,"") -> DRC | B38: HAUT KATANGA | C38: Kafubu | D38: 101294 | E38: =IF(INTRO!$E$48="","",ROUND($D38*INTRO!$E$48,0)) -> 19246 | F38: =IF(INTRO!$E$49="","",ROUND($D38*INTRO!$E$49,0)) -> 35453 | G38: =IF(INTRO!$E$50="","",ROUND($D38*INTRO!$E$50,0)) -> 46595 | H38: 0 | I38: 1 | J38: 1 | K38: 1 | L38: =IF(INTRO!$E$38="Endemic", IF($H38>0, IF($H38=4,"Unknown", IF($H38=99,"Stopped", $D38)), 0),"Not required") -> 0 | M38: =IF(INTRO!$E$40="Endemic", IF($I38>0, IF($I38=4,"Unknown",IF($I38=99,"Stopped", $D38)), 0),"Not required") -> 101294 | N38: =IF(INTRO!$E$42="Endemic", IF(AND($J38>1,$J38<5), IF($J38=4, "Unknown", E38+F38), 0),"Not required") -> 0 | O38: =IF(INTRO!$E$44="Endemic", IF(AND($K38>0,$K38<5), IF($K38=4,"Unknown", IF($K38=1, $F38*0.33, IF($K38=2, $F38*0.5+$G38*0.2, SUM(F38:G38)))), 0),"Not required") -> 11699.49 | P38: 0 | Q38: 1 | R38: 0 | S38: 0 | T38: MDA3 (IVM) | X38: 14071 | Y38: Kafubu
A39: =IF(INTRO!$E$34<>0,INTRO!$E$34,"") -> DRC | B39: HAUT KATANGA | C39: Kamalondo | D39: 49651 | E39: =IF(INTRO!$E$48="","",ROUND($D39*INTRO!$E$48,0)) -> 9434 | F39: =IF(INTRO!$E$49="","",ROUND($D39*INTRO!$E$49,0)) -> 17378 | G39: =IF(INTRO!$E$50="","",ROUND($D39*INTRO!$E$50,0)) -> 22839 | H39: 0 | I39: 0 | J39: 2 | K39: 1 | L39: =IF(INTRO!$E$38="Endemic", IF($H39>0, IF($H39=4,"Unknown", IF($H39=99,"Stopped", $D39)), 0),"Not required") -> 0 | M39: =IF(INTRO!$E$40="Endemic", IF($I39>0, IF($I39=4,"Unknown",IF($I39=99,"Stopped", $D39)), 0),"Not required") -> 0 | N39: =IF(INTRO!$E$42="Endemic", IF(AND($J39>1,$J39<5), IF($J39=4, "Unknown", E39+F39), 0),"Not required") -> 26812 | O39: =IF(INTRO!$E$44="Endemic", IF(AND($K39>0,$K39<5), IF($K39=4,"Unknown", IF($K39=1, $F39*0.33, IF($K39=2, $F39*0.5+$G39*0.2, SUM(F39:G39)))), 0),"Not required") -> 5734.74 | P39: 0 | Q39: 0 | R39: 1 | S39: 1 | T39: T1 (PZQ+ALB/MBD) | X39: 14074 | Y39: Kamalondo
A40: =IF(INTRO!$E$34<>0,INTRO!$E$34,"") -> DRC | B40: HAUT KATANGA | C40: Kambove | D40: 119353 | E40: =IF(INTRO!$E$48="","",ROUND($D40*INTRO!$E$48,0)) -> 22677 | F40: =IF(INTRO!$E$49="","",ROUND($D40*INTRO!$E$49,0)) -> 41774 | G40: =IF(INTRO!$E$50="","",ROUND($D40*INTRO!$E$50,0)) -> 54902 | H40: 0 | I40: 0 | J40: 1 | K40: 0 | L40: =IF(INTRO!$E$38="Endemic", IF($H40>0, IF($H40=4,"Unknown", IF($H40=99,"Stopped", $D40)), 0),"Not required") -> 0 | M40: =IF(INTRO!$E$40="Endemic", IF($I40>0, IF($I40=4,"Unknown",IF($I40=99,"Stopped", $D40)), 0),"Not required") -> 0 | N40: =IF(INTRO!$E$42="Endemic", IF(AND($J40>1,$J40<5), IF($J40=4, "Unknown", E40+F40), 0),"Not required") -> 0 | O40: =IF(INTRO!$E$44="Endemic", IF(AND($K40>0,$K40<5), IF($K40=4,"Unknown", IF($K40=1, $F40*0.33, IF($K40=2, $F40*0.5+$G40*0.2, SUM(F40:G40)))), 0),"Not required") -> 0 | P40: 0 | Q40: 0 | R40: 0 | S40: 0 | X40: 14075 | Y40: Kambove
A41: =IF(INTRO!$E$34<>0,INTRO!$E$34,"") -> DRC | B41: HAUT KATANGA | C41: Kampemba | D41: 363401 | E41: =IF(INTRO!$E$48="","",ROUND($D41*INTRO!$E$48,0)) -> 69046 | F41: =IF(INTRO!$E$49="","",ROUND($D41*INTRO!$E$49,0)) -> 127190 | G41: =IF(INTRO!$E$50="","",ROUND($D41*INTRO!$E$50,0)) -> 167164 | H41: 0 | I41: 0 | J41: 4 | K41: 4 | L41: =IF(INTRO!$E$38="Endemic", IF($H41>0, IF($H41=4,"Unknown", IF($H41=99,"Stopped", $D41)), 0),"Not required") -> 0 | M41: =IF(INTRO!$E$40="Endemic", IF($I41>0, IF($I41=4,"Unknown",IF($I41=99,"Stopped", $D41)), 0),"Not required") -> 0 | N41: =IF(INTRO!$E$42="Endemic", IF(AND($J41>1,$J41<5), IF($J41=4, "Unknown", E41+F41), 0),"Not required") -> Unknown | O41: =IF(INTRO!$E$44="Endemic", IF(AND($K41>0,$K41<5), IF($K41=4,"Unknown", IF($K41=1, $F41*0.33, IF($K41=2, $F41*0.5+$G41*0.2, SUM(F41:G41)))), 0),"Not required") -> Unknown | P41: 0 | Q41: 0 | R41: 0 | S41: 0 | X41: 14080 | Y41: Kampemba
A42: =IF(INTRO!$E$34<>0,INTRO!$E$34,"") -> DRC | B42: HAUT KATANGA | C42: Kapolobwe | D42: 160849 | E42: =IF(INTRO!$E$48="","",ROUND($D42*INTRO!$E$48,0)) -> 30561 | F42: =IF(INTRO!$E$49="","",ROUND($D42*INTRO!$E$49,0)) -> 56297 | G42: =IF(INTRO!$E$50="","",ROUND($D42*INTRO!$E$50,0)) -> 73991 | H42: 0 | I42: 0 | J42: 0 | K42: 2 | L42: =IF(INTRO!$E$38="Endemic", IF($H42>0, IF($H42=4,"Unknown", IF($H42=99,"Stopped", $D42)), 0),"Not required") -> 0 | M42: =IF(INTRO!$E$40="Endemic", IF($I42>0, IF($I42=4,"Unknown",IF($I42=99,"Stopped", $D42)), 0),"Not required") -> 0 | N42: =IF(INTRO!$E$42="Endemic", IF(AND($J42>1,$J42<5), IF($J42=4, "Unknown", E42+F42), 0),"Not required") -> 0 | O42: =IF(INTRO!$E$44="Endemic", IF(AND($K42>0,$K42<5), IF($K42=4,"Unknown", IF($K42=1, $F42*0.33, IF($K42=2, $F42*0.5+$G42*0.2, SUM(F42:G42)))), 0),"Not required") -> 42946.7 | P42: 0 | Q42: 0 | R42: 0 | S42: 1 | T42: T2 (PZQ) | X42: 14081 | Y42: Kapolobwe
A43: =IF(INTRO!$E$34<>0,INTRO!$E$34,"") -> DRC | B43: HAUT KATANGA | C43: Kasenga | D43: 311542 | E43: =IF(INTRO!$E$48="","",ROUND($D43*INTRO!$E$48,0)) -> 59193 | F43: =IF(INTRO!$E$49="","",ROUND($D43*INTRO!$E$49,0)) -> 109040 | G43: =IF(INTRO!$E$50="","",ROUND($D43*INTRO!$E$50,0)) -> 143309 | H43: 1 | I43: 0 | J43: 1 | K43: 2 | L43: =IF(INTRO!$E$38="Endemic", IF($H43>0, IF($H43=4,"Unknown", IF($H43=99,"Stopped", $D43)), 0),"Not required") -> 311542 | M43: =IF(INTRO!$E$40="Endemic", IF($I43>0, IF($I43=4,"Unknown",IF($I43=99,"Stopped", $D43)), 0),"Not required") -> 0 | N43: =IF(INTRO!$E$42="Endemic", IF(AND($J43>1,$J43<5), IF($J43=4, "Unknown", E43+F43), 0),"Not required") -> 0 | O43: =IF(INTRO!$E$44="Endemic", IF(AND($K43>0,$K43<5), IF($K43=4,"Unknown", IF($K43=1, $F43*0.33, IF($K43=2, $F43*0.5+$G43*0.2, SUM(F43:G43)))), 0),"Not required") -> 83181.8 | P43: 1 | Q43: 0 | R43: 0 | S43: 1 | T43: MDA1 (IVM+ALB) | U43: T2 (PZQ) | X43: 14083 | Y43: Kasenga
A44: =IF(INTRO!$E$34<>0,INTRO!$E$34,"") -> DRC | B44: HAUT KATANGA | C44: Kashobwe | D44: 147778 | E44: =IF(INTRO!$E$48="","",ROUND($D44*INTRO!$E$48,0)) -> 28078 | F44: =IF(INTRO!$E$49="","",ROUND($D44*INTRO!$E$49,0)) -> 51722 | G44: =IF(INTRO!$E$50="","",ROUND($D44*INTRO!$E$50,0)) -> 67978 | H44: 0 | I44: 0 | J44: 1 | K44: 2 | L44: =IF(INTRO!$E$38="Endemic", IF($H44>0, IF($H44=4,"Unknown", IF($H44=99,"Stopped", $D44)), 0),"Not required") -> 0 | M44: =IF(INTRO!$E$40="Endemic", IF($I44>0, IF($I44=4,"Unknown",IF($I44=99,"Stopped", $D44)), 0),"Not required") -> 0 | N44: =IF(INTRO!$E$42="Endemic", IF(AND($J44>1,$J44<5), IF($J44=4, "Unknown", E44+F44), 0),"Not required") -> 0 | O44: =IF(INTRO!$E$44="Endemic", IF(AND($K44>0,$K44<5), IF($K44=4,"Unknown", IF($K44=1, $F44*0.33, IF($K44=2, $F44*0.5+$G44*0.2, SUM(F44:G44)))), 0),"Not required") -> 39456.6 | P44: 0 | Q44: 0 | R44: 0 | S44: 0 | X44: 14337 | Y44: Kashobwe
A45: =IF(INTRO!$E$34<>0,INTRO!$E$34,"") -> DRC | B45: HAUT KATANGA | C45: Katuba | D45: 264320 | E45: =IF(INTRO!$E$48="","",ROUND($D45*INTRO!$E$48,0)) -> 50221 | F45: =IF(INTRO!$E$49="","",ROUND($D45*INTRO!$E$49,0)) -> 92512 | G45: =IF(INTRO!$E$50="","",ROUND($D45*INTRO!$E$50,0)) -> 121587 | H45: 0 | I45: 0 | J45: 2 | K45: 0 | L45: =IF(INTRO!$E$38="Endemic", IF($H45>0, IF($H45=4,"Unknown", IF($H45=99,"Stopped", $D45)), 0),"Not required") -> 0 | M45: =IF(INTRO!$E$40="Endemic", IF($I45>0, IF($I45=4,"Unknown",IF($I45=99,"Stopped", $D45)), 0),"Not required") -> 0 | N45: =IF(INTRO!$E$42="Endemic", IF(AND($J45>1,$J45<5), IF($J45=4, "Unknown", E45+F45), 0),"Not required") -> 142733 | O45: =IF(INTRO!$E$44="Endemic", IF(AND($K45>0,$K45<5), IF($K45=4,"Unknown", IF($K45=1, $F45*0.33, IF($K45=2, $F45*0.5+$G45*0.2, SUM(F45:G45)))), 0),"Not required") -> 0 | P45: 0 | Q45: 0 | R45: 1 | S45: 0 | T45: T3 (ALB/MBD) | X45: 14085 | Y45: Katuba
A46: =IF(INTRO!$E$34<>0,INTRO!$E$34,"") -> DRC | B46: HAUT KATANGA | C46: Kenya | D46: 153680 | E46: =IF(INTRO!$E$48="","",ROUND($D46*INTRO!$E$48,0)) -> 29199 | F46: =IF(INTRO!$E$49="","",ROUND($D46*INTRO!$E$49,0)) -> 53788 | G46: =IF(INTRO!$E$50="","",ROUND($D46*INTRO!$E$50,0)) -> 70693 | H46: 1 | I46: 0 | J46: 1 | K46: 0 | L46: =IF(INTRO!$E$38="Endemic", IF($H46>0, IF($H46=4,"Unknown", IF($H46=99,"Stopped", $D46)), 0),"Not required") -> 153680 | M46: =IF(INTRO!$E$40="Endemic", IF($I46>0, IF($I46=4,"Unknown",IF($I46=99,"Stopped", $D46)), 0),"Not required") -> 0 | N46: =IF(INTRO!$E$42="Endemic", IF(AND($J46>1,$J46<5), IF($J46=4, "Unknown", E46+F46), 0),"Not required") -> 0 | O46: =IF(INTRO!$E$44="Endemic", IF(AND($K46>0,$K46<5), IF($K46=4,"Unknown", IF($K46=1, $F46*0.33, IF($K46=2, $F46*0.5+$G46*0.2, SUM(F46:G46)))), 0),"Not required") -> 0 | P46: 1 | Q46: 0 | R46: 0 | S46: 0 | T46: MDA1 (IVM+ALB) | X46: 14087 | Y46: Kenya
A47: =IF(INTRO!$E$34<>0,INTRO!$E$34,"") -> DRC | B47: HAUT KATANGA | C47: Kikula | D47: 223743 | E47: =IF(INTRO!$E$48="","",ROUND($D47*INTRO!$E$48,0)) -> 42511 | F47: =IF(INTRO!$E$49="","",ROUND($D47*INTRO!$E$49,0)) -> 78310 | G47: =IF(INTRO!$E$50="","",ROUND($D47*INTRO!$E$50,0)) -> 102922 | H47: 0 | I47: 0 | J47: 0 | K47: 1 | L47: =IF(INTRO!$E$38="Endemic", IF($H47>0, IF($H47=4,"Unknown", IF($H47=99,"Stopped", $D47)), 0),"Not required") -> 0 | M47: =IF(INTRO!$E$40="Endemic", IF($I47>0, IF($I47=4,"Unknown",IF($I47=99,"Stopped", $D47)), 0),"Not required") -> 0 | N47: =IF(INTRO!$E$42="Endemic", IF(AND($J47>1,$J47<5), IF($J47=4, "Unknown", E47+F47), 0),"Not required") -> 0 | O47: =IF(INTRO!$E$44="Endemic", IF(AND($K47>0,$K47<5), IF($K47=4,"Unknown", IF($K47=1, $F47*0.33, IF($K47=2, $F47*0.5+$G47*0.2, SUM(F47:G47)))), 0),"Not required") -> 25842.3 | P47: 0 | Q47: 0 | R47: 0 | S47: 1 | T47: T2 (PZQ) | X47: 14089 | Y47: Kikula
A48: =IF(INTRO!$E$34<>0,INTRO!$E$34,"") -> DRC | B48: HAUT KATANGA | C48: Kilela Balanda | D48: 73874 | E48: =IF(INTRO!$E$48="","",ROUND($D48*INTRO!$E$48,0)) -> 14036 | F48: =IF(INTRO!$E$49="","",ROUND($D48*INTRO!$E$49,0)) -> 25856 | G48: =IF(INTRO!$E$50="","",ROUND($D48*INTRO!$E$50,0)) -> 33982 | H48: 0 | I48: 0 | J48: 1 | K48: 1 | L48: =IF(INTRO!$E$38="Endemic", IF($H48>0, IF($H48=4,"Unknown", IF($H48=99,"Stopped", $D48)), 0),"Not required") -> 0 | M48: =IF(INTRO!$E$40="Endemic", IF($I48>0, IF($I48=4,"Unknown",IF($I48=99,"Stopped", $D48)), 0),"Not required") -> 0 | N48: =IF(INTRO!$E$42="Endemic", IF(AND($J48>1,$J48<5), IF($J48=4, "Unknown", E48+F48), 0),"Not required") -> 0 | O48: =IF(INTRO!$E$44="Endemic", IF(AND($K48>0,$K48<5), IF($K48=4,"Unknown", IF($K48=1, $F48*0.33, IF($K48=2, $F48*0.5+$G48*0.2, SUM(F48:G48)))), 0),"Not required") -> 8532.48 | P48: 0 | Q48: 0 | R48: 0 | S48: 0 | X48: 14090 | Y48: Kilela Balanda
A49: =IF(INTRO!$E$34<>0,INTRO!$E$34,"") -> DRC | B49: HAUT KATANGA | C49: Kilwa | D49: 335776 | E49: =IF(INTRO!$E$48="","",ROUND($D49*INTRO!$E$48,0)) -> 63797 | F49: =IF(INTRO!$E$49="","",ROUND($D49*INTRO!$E$49,0)) -> 117522 | G49: =IF(INTRO!$E$50="","",ROUND($D49*INTRO!$E$50,0)) -> 154457 | H49: 1 | I49: 0 | J49: 1 | K49: 2 | L49: =IF(INTRO!$E$38="Endemic", IF($H49>0, IF($H49=4,"Unknown", IF($H49=99,"Stopped", $D49)), 0),"Not required") -> 335776 | M49: =IF(INTRO!$E$40="Endemic", IF($I49>0, IF($I49=4,"Unknown",IF($I49=99,"Stopped", $D49)), 0),"Not required") -> 0 | N49: =IF(INTRO!$E$42="Endemic", IF(AND($J49>1,$J49<5), IF($J49=4, "Unknown", E49+F49), 0),"Not required") -> 0 | O49: =IF(INTRO!$E$44="Endemic", IF(AND($K49>0,$K49<5), IF($K49=4,"Unknown", IF($K49=1, $F49*0.33, IF($K49=2, $F49*0.5+$G49*0.2, SUM(F49:G49)))), 0),"Not required") -> 89652.4 | P49: 1 | Q49: 0 | R49: 0 | S49: 1 | T49: MDA1 (IVM+ALB) | U49: T2 (PZQ) | X49: 14091 | Y49: Kilwa
A50: =IF(INTRO!$E$34<>0,INTRO!$E$34,"") -> DRC | B50: HAUT KATANGA | C50: Kipushi | D50: 181638 | E50: =IF(INTRO!$E$48="","",ROUND($D50*INTRO!$E$48,0)) -> 34511 | F50: =IF(INTRO!$E$49="","",ROUND($D50*INTRO!$E$49,0)) -> 63573 | G50: =IF(INTRO!$E$50="","",ROUND($D50*INTRO!$E$50,0)) -> 83553 | H50: 1 | I50: 1 | J50: 1 | K50: 2 | L50: =IF(INTRO!$E$38="Endemic", IF($H50>0, IF($H50=4,"Unknown", IF($H50=99,"Stopped", $D50)), 0),"Not required") -> 181638 | M50: =IF(INTRO!$E$40="Endemic", IF($I50>0, IF($I50=4,"Unknown",IF($I50=99,"Stopped", $D50)), 0),"Not required") -> 181638 | N50: =IF(INTRO!$E$42="Endemic", IF(AND($J50>1,$J50<5), IF($J50=4, "Unknown", E50+F50), 0),"Not required") -> 0 | O50: =IF(INTRO!$E$44="Endemic", IF(AND($K50>0,$K50<5), IF($K50=4,"Unknown", IF($K50=1, $F50*0.33, IF($K50=2, $F50*0.5+$G50*0.2, SUM(F50:G50)))), 0),"Not required") -> 48497.1 | P50: 1 | Q50: 1 | R50: 0 | S50: 1 | T50: MDA1 (IVM+ALB) | U50: T2 (PZQ) | X50: 14094 | Y50: Kipushi
A51: =IF(INTRO!$E$34<>0,INTRO!$E$34,"") -> DRC | B51: HAUT KATANGA | C51: Kisanga | D51: 153063 | E51: =IF(INTRO!$E$48="","",ROUND($D51*INTRO!$E$48,0)) -> 29082 | F51: =IF(INTRO!$E$49="","",ROUND($D51*INTRO!$E$49,0)) -> 53572 | G51: =IF(INTRO!$E$50="","",ROUND($D51*INTRO!$E$50,0)) -> 70409 | H51: 1 | I51: 0 | J51: 1 | K51: 0 | L51: =IF(INTRO!$E$38="Endemic", IF($H51>0, IF($H51=4,"Unknown", IF($H51=99,"Stopped", $D51)), 0),"Not required") -> 153063 | M51: =IF(INTRO!$E$40="Endemic", IF($I51>0, IF($I51=4,"Unknown",IF($I51=99,"Stopped", $D51)), 0),"Not required") -> 0 | N51: =IF(INTRO!$E$42="Endemic", IF(AND($J51>1,$J51<5), IF($J51=4, "Unknown", E51+F51), 0),"Not required") -> 0 | O51: =IF(INTRO!$E$44="Endemic", IF(AND($K51>0,$K51<5), IF($K51=4,"Unknown", IF($K51=1, $F51*0.33, IF($K51=2, $F51*0.5+$G51*0.2, SUM(F51:G51)))), 0),"Not required") -> 0 | P51: 1 | Q51: 0 | R51: 0 | S51: 0 | T51: MDA1 (IVM+ALB) | X51: 14095 | Y51: Kisanga
A52: =IF(INTRO!$E$34<>0,INTRO!$E$34,"") -> DRC | B52: HAUT KATANGA | C52: Kowe | D52: 31044 | E52: =IF(INTRO!$E$48="","",ROUND($D52*INTRO!$E$48,0)) -> 5898 | F52: =IF(INTRO!$E$49="","",ROUND($D52*INTRO!$E$49,0)) -> 10865 | G52: =IF(INTRO!$E$50="","",ROUND($D52*INTRO!$E$50,0)) -> 14280 | H52: 0 | I52: 0 | J52: 2 | K52: 1 | L52: =IF(INTRO!$E$38="Endemic", IF($H52>0, IF($H52=4,"Unknown", IF($H52=99,"Stopped", $D52)), 0),"Not required") -> 0 | M52: =IF(INTRO!$E$40="Endemic", IF($I52>0, IF($I52=4,"Unknown",IF($I52=99,"Stopped", $D52)), 0),"Not required") -> 0 | N52: =IF(INTRO!$E$42="Endemic", IF(AND($J52>1,$J52<5), IF($J52=4, "Unknown", E52+F52), 0),"Not required") -> 16763 | O52: =IF(INTRO!$E$44="Endemic", IF(AND($K52>0,$K52<5), IF($K52=4,"Unknown", IF($K52=1, $F52*0.33, IF($K52=2, $F52*0.5+$G52*0.2, SUM(F52:G52)))), 0),"Not required") -> 3585.45 | P52: 0 | Q52: 0 | R52: 1 | S52: 0 | T52: T3 (ALB/MBD) | X52: 14098 | Y52: Kowe
A53: =IF(INTRO!$E$34<>0,INTRO!$E$34,"") -> DRC | B53: HAUT KATANGA | C53: Likasi | D53: 120722 | E53: =IF(INTRO!$E$48="","",ROUND($D53*INTRO!$E$48,0)) -> 22937 | F53: =IF(INTRO!$E$49="","",ROUND($D53*INTRO!$E$49,0)) -> 42253 | G53: =IF(INTRO!$E$50="","",ROUND($D53*INTRO!$E$50,0)) -> 55532 | H53: 1 | I53: 0 | J53: 1 | K53: 0 | L53: =IF(INTRO!$E$38="Endemic", IF($H53>0, IF($H53=4,"Unknown", IF($H53=99,"Stopped", $D53)), 0),"Not required") -> 120722 | M53: =IF(INTRO!$E$40="Endemic", IF($I53>0, IF($I53=4,"Unknown",IF($I53=99,"Stopped", $D53)), 0),"Not required") -> 0 | N53: =IF(INTRO!$E$42="Endemic", IF(AND($J53>1,$J53<5), IF($J53=4, "Unknown", E53+F53), 0),"Not required") -> 0 | O53: =IF(INTRO!$E$44="Endemic", IF(AND($K53>0,$K53<5), IF($K53=4,"Unknown", IF($K53=1, $F53*0.33, IF($K53=2, $F53*0.5+$G53*0.2, SUM(F53:G53)))), 0),"Not required") -> 0 | P53: 1 | Q53: 0 | R53: 0 | S53: 0 | T53: MDA1 (IVM+ALB) | X53: 14099 | Y53: Likasi
A54: =IF(INTRO!$E$34<>0,INTRO!$E$34,"") -> DRC | B54: HAUT KATANGA | C54: Lubumbashi | D54: 167243 | E54: =IF(INTRO!$E$48="","",ROUND($D54*INTRO!$E$48,0)) -> 31776 | F54: =IF(INTRO!$E$49="","",ROUND($D54*INTRO!$E$49,0)) -> 58535 | G54: =IF(INTRO!$E$50="","",ROUND($D54*INTRO!$E$50,0)) -> 76932 | H54: 1 | I54: 0 | J54: 1 | K54: 1 | L54: =IF(INTRO!$E$38="Endemic", IF($H54>0, IF($H54=4,"Unknown", IF($H54=99,"Stopped", $D54)), 0),"Not required") -> 167243 | M54: =IF(INTRO!$E$40="Endemic", IF($I54>0, IF($I54=4,"Unknown",IF($I54=99,"Stopped", $D54)), 0),"Not required") -> 0 | N54: =IF(INTRO!$E$42="Endemic", IF(AND($J54>1,$J54<5), IF($J54=4, "Unknown", E54+F54), 0),"Not required") -> 0 | O54: =IF(INTRO!$E$44="Endemic", IF(AND($K54>0,$K54<5), IF($K54=4,"Unknown", IF($K54=1, $F54*0.33, IF($K54=2, $F54*0.5+$G54*0.2, SUM(F54:G54)))), 0),"Not required") -> 19316.55 | P54: 1 | Q54: 0 | R54: 0 | S54: 1 | T54: MDA1 (IVM+ALB) | U54: T2 (PZQ) | X54: 14102 | Y54: Lubumbashi
A55: =IF(INTRO!$E$34<>0,INTRO!$E$34,"") -> DRC | B55: HAUT KATANGA | C55: Lukafu | D55: 101998 | E55: =IF(INTRO!$E$48="","",ROUND($D55*INTRO!$E$48,0)) -> 19380 | F55: =IF(INTRO!$E$49="","",ROUND($D55*INTRO!$E$49,0)) -> 35699 | G55: =IF(INTRO!$E$50="","",ROUND($D55*INTRO!$E$50,0)) -> 46919 | H55: 1 | I55: 0 | J55: 1 | K55: 2 | L55: =IF(INTRO!$E$38="Endemic", IF($H55>0, IF($H55=4,"Unknown", IF($H55=99,"Stopped", $D55)), 0),"Not required") -> 101998 | M55: =IF(INTRO!$E$40="Endemic", IF($I55>0, IF($I55=4,"Unknown",IF($I55=99,"Stopped", $D55)), 0),"Not required") -> 0 | N55: =IF(INTRO!$E$42="Endemic", IF(AND($J55>1,$J55<5), IF($J55=4, "Unknown", E55+F55), 0),"Not required") -> 0 | O55: =IF(INTRO!$E$44="Endemic", IF(AND($K55>0,$K55<5), IF($K55=4,"Unknown", IF($K55=1, $F55*0.33, IF($K55=2, $F55*0.5+$G55*0.2, SUM(F55:G55)))), 0),"Not required") -> 27233.3 | P55: 1 | Q55: 0 | R55: 0 | S55: 1 | T55: MDA1 (IVM+ALB) | U55: T2 (PZQ) | X55: 14103 | Y55: Lukafu
A56: =IF(INTRO!$E$34<>0,INTRO!$E$34,"") -> DRC | B56: HAUT KATANGA | C56: Mitwaba | D56: 114790 | E56: =IF(INTRO!$E$48="","",ROUND($D56*INTRO!$E$48,0)) -> 21810 | F56: =IF(INTRO!$E$49="","",ROUND($D56*INTRO!$E$49,0)) -> 40177 | G56: =IF(INTRO!$E$50="","",ROUND($D56*INTRO!$E$50,0)) -> 52803 | H56: 1 | I56: 1 | J56: 1 | K56: 1 | L56: =IF(INTRO!$E$38="Endemic", IF($H56>0, IF($H56=4,"Unknown", IF($H56=99,"Stopped", $D56)), 0),"Not required") -> 114790 | M56: =IF(INTRO!$E$40="Endemic", IF($I56>0, IF($I56=4,"Unknown",IF($I56=99,"Stopped", $D56)), 0),"Not required") -> 114790 | N56: =IF(INTRO!$E$42="Endemic", IF(AND($J56>1,$J56<5), IF($J56=4, "Unknown", E56+F56), 0),"Not required") -> 0 | O56: =IF(INTRO!$E$44="Endemic", IF(AND($K56>0,$K56<5), IF($K56=4,"Unknown", IF($K56=1, $F56*0.33, IF($K56=2, $F56*0.5+$G56*0.2, SUM(F56:G56)))), 0),"Not required") -> 13258.41 | P56: 1 | Q56: 1 | R56: 0 | S56: 1 | T56: MDA1 (IVM+ALB) | U56: T2 (PZQ) | X56: 14109 | Y56: Mitwaba
A57: =IF(INTRO!$E$34<>0,INTRO!$E$34,"") -> DRC | B57: HAUT KATANGA | C57: Mufunga Sampwe | D57: 180476 | E57: =IF(INTRO!$E$48="","",ROUND($D57*INTRO!$E$48,0)) -> 34290 | F57: =IF(INTRO!$E$49="","",ROUND($D57*INTRO!$E$49,0)) -> 63167 | G57: =IF(INTRO!$E$50="","",ROUND($D57*INTRO!$E$50,0)) -> 83019 | H57: 1 | I57: 1 | J57: 1 | K57: 0 | L57: =IF(INTRO!$E$38="Endemic", IF($H57>0, IF($H57=4,"Unknown", IF($H57=99,"Stopped", $D57)), 0),"Not required") -> 180476 | M57: =IF(INTRO!$E$40="Endemic", IF($I57>0, IF($I57=4,"Unknown",IF($I57=99,"Stopped", $D57)), 0),"Not required") -> 180476 | N57: =IF(INTRO!$E$42="Endemic", IF(AND($J57>1,$J57<5), IF($J57=4, "Unknown", E57+F57), 0),"Not required") -> 0 | O57: =IF(INTRO!$E$44="Endemic", IF(AND($K57>0,$K57<5), IF($K57=4,"Unknown", IF($K57=1, $F57*0.33, IF($K57=2, $F57*0.5+$G57*0.2, SUM(F57:G57)))), 0),"Not required") -> 0 | P57: 1 | Q57: 1 | R57: 0 | S57: 0 | T57: MDA1 (IVM+ALB) | X57: 14112 | Y57: Mufunga Sampwe
A58: =IF(INTRO!$E$34<>0,INTRO!$E$34,"") -> DRC | B58: HAUT KATANGA | C58: Mumbunda | D58: 146901 | E58: =IF(INTRO!$E$48="","",ROUND($D58*INTRO!$E$48,0)) -> 27911 | F58: =IF(INTRO!$E$49="","",ROUND($D58*INTRO!$E$49,0)) -> 51415 | G58: =IF(INTRO!$E$50="","",ROUND($D58*INTRO!$E$50,0)) -> 67574 | H58: 0 | I58: 0 | J58: 1 | K58: 0 | L58: =IF(INTRO!$E$38="Endemic", IF($H58>0, IF($H58=4,"Unknown", IF($H58=99,"Stopped", $D58)), 0),"Not required") -> 0 | M58: =IF(INTRO!$E$40="Endemic", IF($I58>0, IF($I58=4,"Unknown",IF($I58=99,"Stopped", $D58)), 0),"Not required") -> 0 | N58: =IF(INTRO!$E$42="Endemic", IF(AND($J58>1,$J58<5), IF($J58=4, "Unknown", E58+F58), 0),"Not required") -> 0 | O58: =IF(INTRO!$E$44="Endemic", IF(AND($K58>0,$K58<5), IF($K58=4,"Unknown", IF($K58=1, $F58*0.33, IF($K58=2, $F58*0.5+$G58*0.2, SUM(F58:G58)))), 0),"Not required") -> 0 | P58: 0 | Q58: 0 | R58: 0 | S58: 0 | X58: 14111 | Y58: Mumbunda
A59: =IF(INTRO!$E$34<>0,INTRO!$E$34,"") -> DRC | B59: HAUT KATANGA | C59: Panda | D59: 85106 | E59: =IF(INTRO!$E$48="","",ROUND($D59*INTRO!$E$48,0)) -> 16170 | F59: =IF(INTRO!$E$49="","",ROUND($D59*INTRO!$E$49,0)) -> 29787 | G59: =IF(INTRO!$E$50="","",ROUND($D59*INTRO!$E$50,0)) -> 39149 | H59: 0 | I59: 0 | J59: 1 | K59: 0 | L59: =IF(INTRO!$E$38="Endemic", IF($H59>0, IF($H59=4,"Unknown", IF($H59=99,"Stopped", $D59)), 0),"Not required") -> 0 | M59: =IF(INTRO!$E$40="Endemic", IF($I59>0, IF($I59=4,"Unknown",IF($I59=99,"Stopped", $D59)), 0),"Not required") -> 0 | N59: =IF(INTRO!$E$42="Endemic", IF(AND($J59>1,$J59<5), IF($J59=4, "Unknown", E59+F59), 0),"Not required") -> 0 | O59: =IF(INTRO!$E$44="Endemic", IF(AND($K59>0,$K59<5), IF($K59=4,"Unknown", IF($K59=1, $F59*0.33, IF($K59=2, $F59*0.5+$G59*0.2, SUM(F59:G59)))), 0),"Not required") -> 0 | P59: 0 | Q59: 0 | R59: 0 | S59: 0 | X59: 14118 | Y59: Panda
A60: =IF(INTRO!$E$34<>0,INTRO!$E$34,"") -> DRC | B60: HAUT KATANGA | C60: Pweto | D60: 268021 | E60: =IF(INTRO!$E$48="","",ROUND($D60*INTRO!$E$48,0)) -> 50924 | F60: =IF(INTRO!$E$49="","",ROUND($D60*INTRO!$E$49,0)) -> 93807 | G60: =IF(INTRO!$E$50="","",ROUND($D60*INTRO!$E$50,0)) -> 123290 | H60: 0 | I60: 0 | J60: 1 | K60: 1 | L60: =IF(INTRO!$E$38="Endemic", IF($H60>0, IF($H60=4,"Unknown", IF($H60=99,"Stopped", $D60)), 0),"Not required") -> 0 | M60: =IF(INTRO!$E$40="Endemic", IF($I60>0, IF($I60=4,"Unknown",IF($I60=99,"Stopped", $D60)), 0),"Not required") -> 0 | N60: =IF(INTRO!$E$42="Endemic", IF(AND($J60>1,$J60<5), IF($J60=4, "Unknown", E60+F60), 0),"Not required") -> 0 | O60: =IF(INTRO!$E$44="Endemic", IF(AND($K60>0,$K60<5), IF($K60=4,"Unknown", IF($K60=1, $F60*0.33, IF($K60=2, $F60*0.5+$G60*0.2, SUM(F60:G60)))), 0),"Not required") -> 30956.31 | P60: 0 | Q60: 0 | R60: 0 | S60: 0 | X60: 14119 | Y60: Pweto
A61: =IF(INTRO!$E$34<>0,INTRO!$E$34,"") -> DRC | B61: HAUT KATANGA | C61: Ruashi | D61: 265430 | E61: =IF(INTRO!$E$48="","",ROUND($D61*INTRO!$E$48,0)) -> 50432 | F61: =IF(INTRO!$E$49="","",ROUND($D61*INTRO!$E$49,0)) -> 92901 | G61: =IF(INTRO!$E$50="","",ROUND($D61*INTRO!$E$50,0)) -> 122098 | H61: 0 | I61: 0 | J61: 1 | K61: 0 | L61: =IF(INTRO!$E$38="Endemic", IF($H61>0, IF($H61=4,"Unknown", IF($H61=99,"Stopped", $D61)), 0),"Not required") -> 0 | M61: =IF(INTRO!$E$40="Endemic", IF($I61>0, IF($I61=4,"Unknown",IF($I61=99,"Stopped", $D61)), 0),"Not required") -> 0 | N61: =IF(INTRO!$E$42="Endemic", IF(AND($J61>1,$J61<5), IF($J61=4, "Unknown", E61+F61), 0),"Not required") -> 0 | O61: =IF(INTRO!$E$44="Endemic", IF(AND($K61>0,$K61<5), IF($K61=4,"Unknown", IF($K61=1, $F61*0.33, IF($K61=2, $F61*0.5+$G61*0.2, SUM(F61:G61)))), 0),"Not required") -> 0 | P61: 0 | Q61: 0 | R61: 0 | S61: 0 | X61: 14120 | Y61: Ruashi
A62: =IF(INTRO!$E$34<>0,INTRO!$E$34,"") -> DRC | B62: HAUT KATANGA | C62: Sakania | D62: 250995 | E62: =IF(INTRO!$E$48="","",ROUND($D62*INTRO!$E$48,0)) -> 47689 | F62: =IF(INTRO!$E$49="","",ROUND($D62*INTRO!$E$49,0)) -> 87848 | G62: =IF(INTRO!$E$50="","",ROUND($D62*INTRO!$E$50,0)) -> 115458 | H62: 1 | I62: 0 | J62: 1 | K62: 2 | L62: =IF(INTRO!$E$38="Endemic", IF($H62>0, IF($H62=4,"Unknown", IF($H62=99,"Stopped", $D62)), 0),"Not required") -> 250995 | M62: =IF(INTRO!$E$40="Endemic", IF($I62>0, IF($I62=4,"Unknown",IF($I62=99,"Stopped", $D62)), 0),"Not required") -> 0 | N62: =IF(INTRO!$E$42="Endemic", IF(AND($J62>1,$J62<5), IF($J62=4, "Unknown", E62+F62), 0),"Not required") -> 0 | O62: =IF(INTRO!$E$44="Endemic", IF(AND($K62>0,$K62<5), IF($K62=4,"Unknown", IF($K62=1, $F62*0.33, IF($K62=2, $F62*0.5+$G62*0.2, SUM(F62:G62)))), 0),"Not required") -> 67015.6 | P62: 1 | Q62: 0 | R62: 0 | S62: 1 | T62: MDA1 (IVM+ALB) | U62: T2 (PZQ) | X62: 14121 | Y62: Sakania
A63: =IF(INTRO!$E$34<>0,INTRO!$E$34,"") -> DRC | B63: HAUT KATANGA | C63: Tshamilemba | D63: 146188 | E63: =IF(INTRO!$E$48="","",ROUND($D63*INTRO!$E$48,0)) -> 27776 | F63: =IF(INTRO!$E$49="","",ROUND($D63*INTRO!$E$49,0)) -> 51166 | G63: =IF(INTRO!$E$50="","",ROUND($D63*INTRO!$E$50,0)) -> 67246 | H63: 0 | I63: 0 | J63: 1 | K63: 1 | L63: =IF(INTRO!$E$38="Endemic", IF($H63>0, IF($H63=4,"Unknown", IF($H63=99,"Stopped", $D63)), 0),"Not required") -> 0 | M63: =IF(INTRO!$E$40="Endemic", IF($I63>0, IF($I63=4,"Unknown",IF($I63=99,"Stopped", $D63)), 0),"Not required") -> 0 | N63: =IF(INTRO!$E$42="Endemic", IF(AND($J63>1,$J63<5), IF($J63=4, "Unknown", E63+F63), 0),"Not required") -> 0 | O63: =IF(INTRO!$E$44="Endemic", IF(AND($K63>0,$K63<5), IF($K63=4,"Unknown", IF($K63=1, $F63*0.33, IF($K63=2, $F63*0.5+$G63*0.2, SUM(F63:G63)))), 0),"Not required") -> 16884.78 | P63: 0 | Q63: 0 | R63: 0 | S63: 0 | X63: 14124 | Y63: Tshamilemba
A64: =IF(INTRO!$E$34<>0,INTRO!$E$34,"") -> DRC | B64: HAUT KATANGA | C64: Vangu | D64: 124700 | E64: =IF(INTRO!$E$48="","",ROUND($D64*INTRO!$E$48,0)) -> 23693 | F64: =IF(INTRO!$E$49="","",ROUND($D64*INTRO!$E$49,0)) -> 43645 | G64: =IF(INTRO!$E$50="","",ROUND($D64*INTRO!$E$50,0)) -> 57362 | H64: 0 | I64: 0 | J64: 2 | K64: 1 | L64: =IF(INTRO!$E$38="Endemic", IF($H64>0, IF($H64=4,"Unknown", IF($H64=99,"Stopped", $D64)), 0),"Not required") -> 0 | M64: =IF(INTRO!$E$40="Endemic", IF($I64>0, IF($I64=4,"Unknown",IF($I64=99,"Stopped", $D64)), 0),"Not required") -> 0 | N64: =IF(INTRO!$E$42="Endemic", IF(AND($J64>1,$J64<5), IF($J64=4, "Unknown", E64+F64), 0),"Not required") -> 67338 | O64: =IF(INTRO!$E$44="Endemic", IF(AND($K64>0,$K64<5), IF($K64=4,"Unknown", IF($K64=1, $F64*0.33, IF($K64=2, $F64*0.5+$G64*0.2, SUM(F64:G64)))), 0),"Not required") -> 14402.85 | P64: 0 | Q64: 0 | R64: 1 | S64: 0 | T64: T3 (ALB/MBD) | X64: 14125 | Y64: Vangu
A65: =IF(INTRO!$E$34<>0,INTRO!$E$34,"") -> DRC | B65: HAUT LOMAMI | C65: Bukama | D65: 371780 | E65: =IF(INTRO!$E$48="","",ROUND($D65*INTRO!$E$48,0)) -> 70638 | F65: =IF(INTRO!$E$49="","",ROUND($D65*INTRO!$E$49,0)) -> 130123 | G65: =IF(INTRO!$E$50="","",ROUND($D65*INTRO!$E$50,0)) -> 171019 | H65: 0 | I65: 0 | J65: 1 | K65: 2 | L65: =IF(INTRO!$E$38="Endemic", IF($H65>0, IF($H65=4,"Unknown", IF($H65=99,"Stopped", $D65)), 0),"Not required") -> 0 | M65: =IF(INTRO!$E$40="Endemic", IF($I65>0, IF($I65=4,"Unknown",IF($I65=99,"Stopped", $D65)), 0),"Not required") -> 0 | N65: =IF(INTRO!$E$42="Endemic", IF(AND($J65>1,$J65<5), IF($J65=4, "Unknown", E65+F65), 0),"Not required") -> 0 | O65: =IF(INTRO!$E$44="Endemic", IF(AND($K65>0,$K65<5), IF($K65=4,"Unknown", IF($K65=1, $F65*0.33, IF($K65=2, $F65*0.5+$G65*0.2, SUM(F65:G65)))), 0),"Not required") -> 99265.3 | P65: 0 | Q65: 0 | R65: 0 | S65: 1 | T65: T2 (PZQ) | X65: 14061 | Y65: Bukama
A66: =IF(INTRO!$E$34<>0,INTRO!$E$34,"") -> DRC | B66: HAUT LOMAMI | C66: Butumba | D66: 205681 | E66: =IF(INTRO!$E$48="","",ROUND($D66*INTRO!$E$48,0)) -> 39079 | F66: =IF(INTRO!$E$49="","",ROUND($D66*INTRO!$E$49,0)) -> 71988 | G66: =IF(INTRO!$E$50="","",ROUND($D66*INTRO!$E$50,0)) -> 94613 | H66: 0 | I66: 0 | J66: 1 | K66: 2 | L66: =IF(INTRO!$E$38="Endemic", IF($H66>0, IF($H66=4,"Unknown", IF($H66=99,"Stopped", $D66)), 0),"Not required") -> 0 | M66: =IF(INTRO!$E$40="Endemic", IF($I66>0, IF($I66=4,"Unknown",IF($I66=99,"Stopped", $D66)), 0),"Not required") -> 0 | N66: =IF(INTRO!$E$42="Endemic", IF(AND($J66>1,$J66<5), IF($J66=4, "Unknown", E66+F66), 0),"Not required") -> 0 | O66: =IF(INTRO!$E$44="Endemic", IF(AND($K66>0,$K66<5), IF($K66=4,"Unknown", IF($K66=1, $F66*0.33, IF($K66=2, $F66*0.5+$G66*0.2, SUM(F66:G66)))), 0),"Not required") -> 54916.6 | P66: 0 | Q66: 0 | R66: 0 | S66: 1 | T66: T2 (PZQ) | X66: 14063 | Y66: Butumba
A67: =IF(INTRO!$E$34<>0,INTRO!$E$34,"") -> DRC | B67: HAUT LOMAMI | C67: Kabondo Dianda | D67: 88744 | E67: =IF(INTRO!$E$48="","",ROUND($D67*INTRO!$E$48,0)) -> 16861 | F67: =IF(INTRO!$E$49="","",ROUND($D67*INTRO!$E$49,0)) -> 31060 | G67: =IF(INTRO!$E$50="","",ROUND($D67*INTRO!$E$50,0)) -> 40822 | H67: 0 | I67: 0 | J67: 1 | K67: 1 | L67: =IF(INTRO!$E$38="Endemic", IF($H67>0, IF($H67=4,"Unknown", IF($H67=99,"Stopped", $D67)), 0),"Not required") -> 0 | M67: =IF(INTRO!$E$40="Endemic", IF($I67>0, IF($I67=4,"Unknown",IF($I67=99,"Stopped", $D67)), 0),"Not required") -> 0 | N67: =IF(INTRO!$E$42="Endemic", IF(AND($J67>1,$J67<5), IF($J67=4, "Unknown", E67+F67), 0),"Not required") -> 0 | O67: =IF(INTRO!$E$44="Endemic", IF(AND($K67>0,$K67<5), IF($K67=4,"Unknown", IF($K67=1, $F67*0.33, IF($K67=2, $F67*0.5+$G67*0.2, SUM(F67:G67)))), 0),"Not required") -> 10249.8 | P67: 0 | Q67: 0 | R67: 0 | S67: 1 | T67: T2 (PZQ) | X67: 14068 | Y67: Kabondo Dianda
A68: =IF(INTRO!$E$34<>0,INTRO!$E$34,"") -> DRC | B68: HAUT LOMAMI | C68: Kabongo | D68: 343504 | E68: =IF(INTRO!$E$48="","",ROUND($D68*INTRO!$E$48,0)) -> 65266 | F68: =IF(INTRO!$E$49="","",ROUND($D68*INTRO!$E$49,0)) -> 120226 | G68: =IF(INTRO!$E$50="","",ROUND($D68*INTRO!$E$50,0)) -> 158012 | H68: 1 | I68: 0 | J68: 0 | K68: 2 | L68: =IF(INTRO!$E$38="Endemic", IF($H68>0, IF($H68=4,"Unknown", IF($H68=99,"Stopped", $D68)), 0),"Not required") -> 343504 | M68: =IF(INTRO!$E$40="Endemic", IF($I68>0, IF($I68=4,"Unknown",IF($I68=99,"Stopped", $D68)), 0),"Not required") -> 0 | N68: =IF(INTRO!$E$42="Endemic", IF(AND($J68>1,$J68<5), IF($J68=4, "Unknown", E68+F68), 0),"Not required") -> 0 | O68: =IF(INTRO!$E$44="Endemic", IF(AND($K68>0,$K68<5), IF($K68=4,"Unknown", IF($K68=1, $F68*0.33, IF($K68=2, $F68*0.5+$G68*0.2, SUM(F68:G68)))), 0),"Not required") -> 91715.4 | P68: 1 | Q68: 0 | R68: 0 | S68: 1 | T68: MDA1 (IVM+ALB) | U68: T2 (PZQ) | X68: 14069 | Y68: Kabongo
A69: =IF(INTRO!$E$34<>0,INTRO!$E$34,"") -> DRC | B69: HAUT LOMAMI | C69: Kamina | D69: 313057 | E69: =IF(INTRO!$E$48="","",ROUND($D69*INTRO!$E$48,0)) -> 59481 | F69: =IF(INTRO!$E$49="","",ROUND($D69*INTRO!$E$49,0)) -> 109570 | G69: =IF(INTRO!$E$50="","",ROUND($D69*INTRO!$E$50,0)) -> 144006 | H69: 0 | I69: 0 | J69: 2 | K69: 0 | L69: =IF(INTRO!$E$38="Endemic", IF($H69>0, IF($H69=4,"Unknown", IF($H69=99,"Stopped", $D69)), 0),"Not required") -> 0 | M69: =IF(INTRO!$E$40="Endemic", IF($I69>0, IF($I69=4,"Unknown",IF($I69=99,"Stopped", $D69)), 0),"Not required") -> 0 | N69: =IF(INTRO!$E$42="Endemic", IF(AND($J69>1,$J69<5), IF($J69=4, "Unknown", E69+F69), 0),"Not required") -> 169051 | O69: =IF(INTRO!$E$44="Endemic", IF(AND($K69>0,$K69<5), IF($K69=4,"Unknown", IF($K69=1, $F69*0.33, IF($K69=2, $F69*0.5+$G69*0.2, SUM(F69:G69)))), 0),"Not required") -> 0 | P69: 0 | Q69: 0 | R69: 1 | S69: 0 | T69: T3 (ALB/MBD) | X69: 14076 | Y69: Kamina
A70: =IF(INTRO!$E$34<>0,INTRO!$E$34,"") -> DRC | B70: HAUT LOMAMI | C70: Kamina Base (Baka) | D70: 30004 | E70: =IF(INTRO!$E$48="","",ROUND($D70*INTRO!$E$48,0)) -> 5701 | F70: =IF(INTRO!$E$49="","",ROUND($D70*INTRO!$E$49,0)) -> 10501 | G70: =IF(INTRO!$E$50="","",ROUND($D70*INTRO!$E$50,0)) -> 13802 | H70: 1 | I70: 0 | J70: 0 | K70: 0 | L70: =IF(INTRO!$E$38="Endemic", IF($H70>0, IF($H70=4,"Unknown", IF($H70=99,"Stopped", $D70)), 0),"Not required") -> 30004 | M70: =IF(INTRO!$E$40="Endemic", IF($I70>0, IF($I70=4,"Unknown",IF($I70=99,"Stopped", $D70)), 0),"Not required") -> 0 | N70: =IF(INTRO!$E$42="Endemic", IF(AND($J70>1,$J70<5), IF($J70=4, "Unknown", E70+F70), 0),"Not required") -> 0 | O70: =IF(INTRO!$E$44="Endemic", IF(AND($K70>0,$K70<5), IF($K70=4,"Unknown", IF($K70=1, $F70*0.33, IF($K70=2, $F70*0.5+$G70*0.2, SUM(F70:G70)))), 0),"Not required") -> 0 | P70: 1 | Q70: 0 | R70: 0 | S70: 0 | T70: MDA1 (IVM+ALB) | X70: 14060 | Y70: Kamina Base (Baka)
A71: =IF(INTRO!$E$34<>0,INTRO!$E$34,"") -> DRC | B71: HAUT LOMAMI | C71: Kaniama | D71: 302586 | E71: =IF(INTRO!$E$48="","",ROUND($D71*INTRO!$E$48,0)) -> 57491 | F71: =IF(INTRO!$E$49="","",ROUND($D71*INTRO!$E$49,0)) -> 105905 | G71: =IF(INTRO!$E$50="","",ROUND($D71*INTRO!$E$50,0)) -> 139190 | H71: 1 | I71: 0 | J71: 0 | K71: 0 | L71: =IF(INTRO!$E$38="Endemic", IF($H71>0, IF($H71=4,"Unknown", IF($H71=99,"Stopped", $D71)), 0),"Not required") -> 302586 | M71: =IF(INTRO!$E$40="Endemic", IF($I71>0, IF($I71=4,"Unknown",IF($I71=99,"Stopped", $D71)), 0),"Not required") -> 0 | N71: =IF(INTRO!$E$42="Endemic", IF(AND($J71>1,$J71<5), IF($J71=4, "Unknown", E71+F71), 0),"Not required") -> 0 | O71: =IF(INTRO!$E$44="Endemic", IF(AND($K71>0,$K71<5), IF($K71=4,"Unknown", IF($K71=1, $F71*0.33, IF($K71=2, $F71*0.5+$G71*0.2, SUM(F71:G71)))), 0),"Not required") -> 0 | P71: 1 | Q71: 0 | R71: 0 | S71: 0 | T71: MDA1 (IVM+ALB) | X71: 14077 | Y71: Kaniama
A72: =IF(INTRO!$E$34<>0,INTRO!$E$34,"") -> DRC | B72: HAUT LOMAMI | C72: Kayamba | D72: 111044 | E72: =IF(INTRO!$E$48="","",ROUND($D72*INTRO!$E$48,0)) -> 21098 | F72: =IF(INTRO!$E$49="","",ROUND($D72*INTRO!$E$49,0)) -> 38865 | G72: =IF(INTRO!$E$50="","",ROUND($D72*INTRO!$E$50,0)) -> 51080 | H72: 1 | I72: 1 | J72: 4 | K72: 4 | L72: =IF(INTRO!$E$38="Endemic", IF($H72>0, IF($H72=4,"Unknown", IF($H72=99,"Stopped", $D72)), 0),"Not required") -> 111044 | M72: =IF(INTRO!$E$40="Endemic", IF($I72>0, IF($I72=4,"Unknown",IF($I72=99,"Stopped", $D72)), 0),"Not required") -> 111044 | N72: =IF(INTRO!$E$42="Endemic", IF(AND($J72>1,$J72<5), IF($J72=4, "Unknown", E72+F72), 0),"Not required") -> Unknown | O72: =IF(INTRO!$E$44="Endemic", IF(AND($K72>0,$K72<5), IF($K72=4,"Unknown", IF($K72=1, $F72*0.33, IF($K72=2, $F72*0.5+$G72*0.2, SUM(F72:G72)))), 0),"Not required") -> Unknown | P72: 1 | Q72: 1 | R72: 0 | S72: 0 | T72: MDA1 (IVM+ALB) | X72: 14086 | Y72: Kayamba
A73: =IF(INTRO!$E$34<>0,INTRO!$E$34,"") -> DRC | B73: HAUT LOMAMI | C73: Kinda | D73: 67917 | E73: =IF(INTRO!$E$48="","",ROUND($D73*INTRO!$E$48,0)) -> 12904 | F73: =IF(INTRO!$E$49="","",ROUND($D73*INTRO!$E$49,0)) -> 23771 | G73: =IF(INTRO!$E$50="","",ROUND($D73*INTRO!$E$50,0)) -> 31242 | H73: 0 | I73: 0 | J73: 1 | K73: 2 | L73: =IF(INTRO!$E$38="Endemic", IF($H73>0, IF($H73=4,"Unknown", IF($H73=99,"Stopped", $D73)), 0),"Not required") -> 0 | M73: =IF(INTRO!$E$40="Endemic", IF($I73>0, IF($I73=4,"Unknown",IF($I73=99,"Stopped", $D73)), 0),"Not required") -> 0 | N73: =IF(INTRO!$E$42="Endemic", IF(AND($J73>1,$J73<5), IF($J73=4, "Unknown", E73+F73), 0),"Not required") -> 0 | O73: =IF(INTRO!$E$44="Endemic", IF(AND($K73>0,$K73<5), IF($K73=4,"Unknown", IF($K73=1, $F73*0.33, IF($K73=2, $F73*0.5+$G73*0.2, SUM(F73:G73)))), 0),"Not required") -> 18133.9 | P73: 0 | Q73: 0 | R73: 0 | S73: 1 | T73: T2 (PZQ) | X73: 14092 | Y73: Kinda
A74: =IF(INTRO!$E$34<>0,INTRO!$E$34,"") -> DRC | B74: HAUT LOMAMI | C74: Kinkonja | D74: 263455 | E74: =IF(INTRO!$E$48="","",ROUND($D74*INTRO!$E$48,0)) -> 50056 | F74: =IF(INTRO!$E$49="","",ROUND($D74*INTRO!$E$49,0)) -> 92209 | G74: =IF(INTRO!$E$50="","",ROUND($D74*INTRO!$E$50,0)) -> 121189 | H74: 0 | I74: 0 | J74: 1 | K74: 1 | L74: =IF(INTRO!$E$38="Endemic", IF($H74>0, IF($H74=4,"Unknown", IF($H74=99,"Stopped", $D74)), 0),"Not required") -> 0 | M74: =IF(INTRO!$E$40="Endemic", IF($I74>0, IF($I74=4,"Unknown",IF($I74=99,"Stopped", $D74)), 0),"Not required") -> 0 | N74: =IF(INTRO!$E$42="Endemic", IF(AND($J74>1,$J74<5), IF($J74=4, "Unknown", E74+F74), 0),"Not required") -> 0 | O74: =IF(INTRO!$E$44="Endemic", IF(AND($K74>0,$K74<5), IF($K74=4,"Unknown", IF($K74=1, $F74*0.33, IF($K74=2, $F74*0.5+$G74*0.2, SUM(F74:G74)))), 0),"Not required") -> 30428.97 | P74: 0 | Q74: 0 | R74: 0 | S74: 1 | T74: T2 (PZQ) | X74: 14093 | Y74: Kinkonja
A75: =IF(INTRO!$E$34<>0,INTRO!$E$34,"") -> DRC | B75: HAUT LOMAMI | C75: Kitenge | D75: 303025 | E75: =IF(INTRO!$E$48="","",ROUND($D75*INTRO!$E$48,0)) -> 57575 | F75: =IF(INTRO!$E$49="","",ROUND($D75*INTRO!$E$49,0)) -> 106059 | G75: =IF(INTRO!$E$50="","",ROUND($D75*INTRO!$E$50,0)) -> 139392 | H75: 0 | I75: 1 | J75: 1 | K75: 0 | L75: =IF(INTRO!$E$38="Endemic", IF($H75>0, IF($H75=4,"Unknown", IF($H75=99,"Stopped", $D75)), 0),"Not required") -> 0 | M75: =IF(INTRO!$E$40="Endemic", IF($I75>0, IF($I75=4,"Unknown",IF($I75=99,"Stopped", $D75)), 0),"Not required") -> 303025 | N75: =IF(INTRO!$E$42="Endemic", IF(AND($J75>1,$J75<5), IF($J75=4, "Unknown", E75+F75), 0),"Not required") -> 0 | O75: =IF(INTRO!$E$44="Endemic", IF(AND($K75>0,$K75<5), IF($K75=4,"Unknown", IF($K75=1, $F75*0.33, IF($K75=2, $F75*0.5+$G75*0.2, SUM(F75:G75)))), 0),"Not required") -> 0 | P75: 0 | Q75: 1 | R75: 0 | S75: 0 | T75: MDA3 (IVM) | X75: 14096 | Y75: Kitenge
A76: =IF(INTRO!$E$34<>0,INTRO!$E$34,"") -> DRC | B76: HAUT LOMAMI | C76: Lwamba | D76: 142486 | E76: =IF(INTRO!$E$48="","",ROUND($D76*INTRO!$E$48,0)) -> 27072 | F76: =IF(INTRO!$E$49="","",ROUND($D76*INTRO!$E$49,0)) -> 49870 | G76: =IF(INTRO!$E$50="","",ROUND($D76*INTRO!$E$50,0)) -> 65544 | H76: 0 | I76: 0 | J76: 1 | K76: 1 | L76: =IF(INTRO!$E$38="Endemic", IF($H76>0, IF($H76=4,"Unknown", IF($H76=99,"Stopped", $D76)), 0),"Not required") -> 0 | M76: =IF(INTRO!$E$40="Endemic", IF($I76>0, IF($I76=4,"Unknown",IF($I76=99,"Stopped", $D76)), 0),"Not required") -> 0 | N76: =IF(INTRO!$E$42="Endemic", IF(AND($J76>1,$J76<5), IF($J76=4, "Unknown", E76+F76), 0),"Not required") -> 0 | O76: =IF(INTRO!$E$44="Endemic", IF(AND($K76>0,$K76<5), IF($K76=4,"Unknown", IF($K76=1, $F76*0.33, IF($K76=2, $F76*0.5+$G76*0.2, SUM(F76:G76)))), 0),"Not required") -> 16457.1 | P76: 0 | Q76: 0 | R76: 0 | S76: 1 | T76: T2 (PZQ) | X76: 14104 | Y76: Lwamba
A77: =IF(INTRO!$E$34<>0,INTRO!$E$34,"") -> DRC | B77: HAUT LOMAMI | C77: Malemba Nkulu | D77: 277462 | E77: =IF(INTRO!$E$48="","",ROUND($D77*INTRO!$E$48,0)) -> 52718 | F77: =IF(INTRO!$E$49="","",ROUND($D77*INTRO!$E$49,0)) -> 97112 | G77: =IF(INTRO!$E$50="","",ROUND($D77*INTRO!$E$50,0)) -> 127633 | H77: 0 | I77: 0 | J77: 1 | K77: 2 | L77: =IF(INTRO!$E$38="Endemic", IF($H77>0, IF($H77=4,"Unknown", IF($H77=99,"Stopped", $D77)), 0),"Not required") -> 0 | M77: =IF(INTRO!$E$40="Endemic", IF($I77>0, IF($I77=4,"Unknown",IF($I77=99,"Stopped", $D77)), 0),"Not required") -> 0 | N77: =IF(INTRO!$E$42="Endemic", IF(AND($J77>1,$J77<5), IF($J77=4, "Unknown", E77+F77), 0),"Not required") -> 0 | O77: =IF(INTRO!$E$44="Endemic", IF(AND($K77>0,$K77<5), IF($K77=4,"Unknown", IF($K77=1, $F77*0.33, IF($K77=2, $F77*0.5+$G77*0.2, SUM(F77:G77)))), 0),"Not required") -> 74082.6 | P77: 0 | Q77: 0 | R77: 0 | S77: 0 | X77: 14105 | Y77: Malemba Nkulu
A78: =IF(INTRO!$E$34<>0,INTRO!$E$34,"") -> DRC | B78: HAUT LOMAMI | C78: Mukanga | D78: 229383 | E78: =IF(INTRO!$E$48="","",ROUND($D78*INTRO!$E$48,0)) -> 43583 | F78: =IF(INTRO!$E$49="","",ROUND($D78*INTRO!$E$49,0)) -> 80284 | G78: =IF(INTRO!$E$50="","",ROUND($D78*INTRO!$E$50,0)) -> 105516 | H78: 0 | I78: 0 | J78: 1 | K78: 2 | L78: =IF(INTRO!$E$38="Endemic", IF($H78>0, IF($H78=4,"Unknown", IF($H78=99,"Stopped", $D78)), 0),"Not required") -> 0 | M78: =IF(INTRO!$E$40="Endemic", IF($I78>0, IF($I78=4,"Unknown",IF($I78=99,"Stopped", $D78)), 0),"Not required") -> 0 | N78: =IF(INTRO!$E$42="Endemic", IF(AND($J78>1,$J78<5), IF($J78=4, "Unknown", E78+F78), 0),"Not required") -> 0 | O78: =IF(INTRO!$E$44="Endemic", IF(AND($K78>0,$K78<5), IF($K78=4,"Unknown", IF($K78=1, $F78*0.33, IF($K78=2, $F78*0.5+$G78*0.2, SUM(F78:G78)))), 0),"Not required") -> 61245.2 | P78: 0 | Q78: 0 | R78: 0 | S78: 0 | X78: 14113 | Y78: Mukanga
A79: =IF(INTRO!$E$34<>0,INTRO!$E$34,"") -> DRC | B79: HAUT LOMAMI | C79: Mulongo | D79: 281405 | E79: =IF(INTRO!$E$48="","",ROUND($D79*INTRO!$E$48,0)) -> 53467 | F79: =IF(INTRO!$E$49="","",ROUND($D79*INTRO!$E$49,0)) -> 98492 | G79: =IF(INTRO!$E$50="","",ROUND($D79*INTRO!$E$50,0)) -> 129446 | H79: 0 | I79: 0 | J79: 1 | K79: 0 | L79: =IF(INTRO!$E$38="Endemic", IF($H79>0, IF($H79=4,"Unknown", IF($H79=99,"Stopped", $D79)), 0),"Not required") -> 0 | M79: =IF(INTRO!$E$40="Endemic", IF($I79>0, IF($I79=4,"Unknown",IF($I79=99,"Stopped", $D79)), 0),"Not required") -> 0 | N79: =IF(INTRO!$E$42="Endemic", IF(AND($J79>1,$J79<5), IF($J79=4, "Unknown", E79+F79), 0),"Not required") -> 0 | O79: =IF(INTRO!$E$44="Endemic", IF(AND($K79>0,$K79<5), IF($K79=4,"Unknown", IF($K79=1, $F79*0.33, IF($K79=2, $F79*0.5+$G79*0.2, SUM(F79:G79)))), 0),"Not required") -> 0 | P79: 0 | Q79: 0 | R79: 0 | S79: 0 | X79: 14114 | Y79: Mulongo
A80: =IF(INTRO!$E$34<>0,INTRO!$E$34,"") -> DRC | B80: HAUT LOMAMI | C80: Songa | D80: 170756 | E80: =IF(INTRO!$E$48="","",ROUND($D80*INTRO!$E$48,0)) -> 32444 | F80: =IF(INTRO!$E$49="","",ROUND($D80*INTRO!$E$49,0)) -> 59765 | G80: =IF(INTRO!$E$50="","",ROUND($D80*INTRO!$E$50,0)) -> 78548 | H80: 1 | I80: 0 | J80: 2 | K80: 2 | L80: =IF(INTRO!$E$38="Endemic", IF($H80>0, IF($H80=4,"Unknown", IF($H80=99,"Stopped", $D80)), 0),"Not required") -> 170756 | M80: =IF(INTRO!$E$40="Endemic", IF($I80>0, IF($I80=4,"Unknown",IF($I80=99,"Stopped", $D80)), 0),"Not required") -> 0 | N80: =IF(INTRO!$E$42="Endemic", IF(AND($J80>1,$J80<5), IF($J80=4, "Unknown", E80+F80), 0),"Not required") -> 92209 | O80: =IF(INTRO!$E$44="Endemic", IF(AND($K80>0,$K80<5), IF($K80=4,"Unknown", IF($K80=1, $F80*0.33, IF($K80=2, $F80*0.5+$G80*0.2, SUM(F80:G80)))), 0),"Not required") -> 45592.1 | P80: 1 | Q80: 0 | R80: 1 | S80: 1 | T80: MDA1 (IVM+ALB) | U80: T2 (PZQ) | X80: 14123 | Y80: Songa
A81: =IF(INTRO!$E$34<>0,INTRO!$E$34,"") -> DRC | B81: HAUT UELE | C81: Aba | D81: 141330 | E81: =IF(INTRO!$E$48="","",ROUND($D81*INTRO!$E$48,0)) -> 26853 | F81: =IF(INTRO!$E$49="","",ROUND($D81*INTRO!$E$49,0)) -> 49466 | G81: =IF(INTRO!$E$50="","",ROUND($D81*INTRO!$E$50,0)) -> 65012 | H81: 1 | I81: 0 | J81: 1 | K81: 1 | L81: =IF(INTRO!$E$38="Endemic", IF($H81>0, IF($H81=4,"Unknown", IF($H81=99,"Stopped", $D81)), 0),"Not required") -> 141330 | M81: =IF(INTRO!$E$40="Endemic", IF($I81>0, IF($I81=4,"Unknown",IF($I81=99,"Stopped", $D81)), 0),"Not required") -> 0 | N81: =IF(INTRO!$E$42="Endemic", IF(AND($J81>1,$J81<5), IF($J81=4, "Unknown", E81+F81), 0),"Not required") -> 0 | O81: =IF(INTRO!$E$44="Endemic", IF(AND($K81>0,$K81<5), IF($K81=4,"Unknown", IF($K81=1, $F81*0.33, IF($K81=2, $F81*0.5+$G81*0.2, SUM(F81:G81)))), 0),"Not required") -> 16323.78 | P81: 0 | Q81: 0 | R81: 0 | S81: 0 | X81: 14213 | Y81: Aba
A82: =IF(INTRO!$E$34<>0,INTRO!$E$34,"") -> DRC | B82: HAUT UELE | C82: Bomamangbetu | D82: 96417 | E82: =IF(INTRO!$E$48="","",ROUND($D82*INTRO!$E$48,0)) -> 18319 | F82: =IF(INTRO!$E$49="","",ROUND($D82*INTRO!$E$49,0)) -> 33746 | G82: =IF(INTRO!$E$50="","",ROUND($D82*INTRO!$E$50,0)) -> 44352 | H82: 0 | I82: 1 | J82: 1 | K82: 1 | L82: =IF(INTRO!$E$38="Endemic", IF($H82>0, IF($H82=4,"Unknown", IF($H82=99,"Stopped", $D82)), 0),"Not required") -> 0 | M82: =IF(INTRO!$E$40="Endemic", IF($I82>0, IF($I82=4,"Unknown",IF($I82=99,"Stopped", $D82)), 0),"Not required") -> 96417 | N82: =IF(INTRO!$E$42="Endemic", IF(AND($J82>1,$J82<5), IF($J82=4, "Unknown", E82+F82), 0),"Not required") -> 0 | O82: =IF(INTRO!$E$44="Endemic", IF(AND($K82>0,$K82<5), IF($K82=4,"Unknown", IF($K82=1, $F82*0.33, IF($K82=2, $F82*0.5+$G82*0.2, SUM(F82:G82)))), 0),"Not required") -> 11136.18 | P82: 0 | Q82: 1 | R82: 0 | S82: 0 | T82: MDA3 (IVM) | X82: 14330 | Y82: Bomamangbetu
A83: =IF(INTRO!$E$34<>0,INTRO!$E$34,"") -> DRC | B83: HAUT UELE | C83: Doruma | D83: 75527 | E83: =IF(INTRO!$E$48="","",ROUND($D83*INTRO!$E$48,0)) -> 14350 | F83: =IF(INTRO!$E$49="","",ROUND($D83*INTRO!$E$49,0)) -> 26434 | G83: =IF(INTRO!$E$50="","",ROUND($D83*INTRO!$E$50,0)) -> 34742 | H83: 1 | I83: 0 | J83: 1 | K83: 1 | L83: =IF(INTRO!$E$38="Endemic", IF($H83>0, IF($H83=4,"Unknown", IF($H83=99,"Stopped", $D83)), 0),"Not required") -> 75527 | M83: =IF(INTRO!$E$40="Endemic", IF($I83>0, IF($I83=4,"Unknown",IF($I83=99,"Stopped", $D83)), 0),"Not required") -> 0 | N83: =IF(INTRO!$E$42="Endemic", IF(AND($J83>1,$J83<5), IF($J83=4, "Unknown", E83+F83), 0),"Not required") -> 0 | O83: =IF(INTRO!$E$44="Endemic", IF(AND($K83>0,$K83<5), IF($K83=4,"Unknown", IF($K83=1, $F83*0.33, IF($K83=2, $F83*0.5+$G83*0.2, SUM(F83:G83)))), 0),"Not required") -> 8723.22 | P83: 0 | Q83: 0 | R83: 0 | S83: 0 | X83: 14236 | Y83: Doruma
A84: =IF(INTRO!$E$34<>0,INTRO!$E$34,"") -> DRC | B84: HAUT UELE | C84: Dungu | D84: 95485 | E84: =IF(INTRO!$E$48="","",ROUND($D84*INTRO!$E$48,0)) -> 18142 | F84: =IF(INTRO!$E$49="","",ROUND($D84*INTRO!$E$49,0)) -> 33420 | G84: =IF(INTRO!$E$50="","",ROUND($D84*INTRO!$E$50,0)) -> 43923 | H84: 0 | I84: 1 | J84: 1 | K84: 1 | L84: =IF(INTRO!$E$38="Endemic", IF($H84>0, IF($H84=4,"Unknown", IF($H84=99,"Stopped", $D84)), 0),"Not required") -> 0 | M84: =IF(INTRO!$E$40="Endemic", IF($I84>0, IF($I84=4,"Unknown",IF($I84=99,"Stopped", $D84)), 0),"Not required") -> 95485 | N84: =IF(INTRO!$E$42="Endemic", IF(AND($J84>1,$J84<5), IF($J84=4, "Unknown", E84+F84), 0),"Not required") -> 0 | O84: =IF(INTRO!$E$44="Endemic", IF(AND($K84>0,$K84<5), IF($K84=4,"Unknown", IF($K84=1, $F84*0.33, IF($K84=2, $F84*0.5+$G84*0.2, SUM(F84:G84)))), 0),"Not required") -> 11028.6 | P84: 0 | Q84: 1 | R84: 0 | S84: 0 | T84: MDA3 (IVM) | X84: 14238 | Y84: Dungu
A85: =IF(INTRO!$E$34<>0,INTRO!$E$34,"") -> DRC | B85: HAUT UELE | C85: Faradje | D85: 123178 | E85: =IF(INTRO!$E$48="","",ROUND($D85*INTRO!$E$48,0)) -> 23404 | F85: =IF(INTRO!$E$49="","",ROUND($D85*INTRO!$E$49,0)) -> 43112 | G85: =IF(INTRO!$E$50="","",ROUND($D85*INTRO!$E$50,0)) -> 56662 | H85: 1 | I85: 1 | J85: 1 | K85: 1 | L85: =IF(INTRO!$E$38="Endemic", IF($H85>0, IF($H85=4,"Unknown", IF($H85=99,"Stopped", $D85)), 0),"Not required") -> 123178 | M85: =IF(INTRO!$E$40="Endemic", IF($I85>0, IF($I85=4,"Unknown",IF($I85=99,"Stopped", $D85)), 0),"Not required") -> 123178 | N85: =IF(INTRO!$E$42="Endemic", IF(AND($J85>1,$J85<5), IF($J85=4, "Unknown", E85+F85), 0),"Not required") -> 0 | O85: =IF(INTRO!$E$44="Endemic", IF(AND($K85>0,$K85<5), IF($K85=4,"Unknown", IF($K85=1, $F85*0.33, IF($K85=2, $F85*0.5+$G85*0.2, SUM(F85:G85)))), 0),"Not required") -> 14226.96 | P85: 0 | Q85: 1 | R85: 0 | S85: 0 | T85: MDA3 (IVM) | X85: 14239 | Y85: Faradje
A86: =IF(INTRO!$E$34<>0,INTRO!$E$34,"") -> DRC | B86: HAUT UELE | C86: Gombari | D86: 98269 | E86: =IF(INTRO!$E$48="","",ROUND($D86*INTRO!$E$48,0)) -> 18671 | F86: =IF(INTRO!$E$49="","",ROUND($D86*INTRO!$E$49,0)) -> 34394 | G86: =IF(INTRO!$E$50="","",ROUND($D86*INTRO!$E$50,0)) -> 45204 | H86: 1 | I86: 0 | J86: 1 | K86: 1 | L86: =IF(INTRO!$E$38="Endemic", IF($H86>0, IF($H86=4,"Unknown", IF($H86=99,"Stopped", $D86)), 0),"Not required") -> 98269 | M86: =IF(INTRO!$E$40="Endemic", IF($I86>0, IF($I86=4,"Unknown",IF($I86=99,"Stopped", $D86)), 0),"Not required") -> 0 | N86: =IF(INTRO!$E$42="Endemic", IF(AND($J86>1,$J86<5), IF($J86=4, "Unknown", E86+F86), 0),"Not required") -> 0 | O86: =IF(INTRO!$E$44="Endemic", IF(AND($K86>0,$K86<5), IF($K86=4,"Unknown", IF($K86=1, $F86*0.33, IF($K86=2, $F86*0.5+$G86*0.2, SUM(F86:G86)))), 0),"Not required") -> 11350.02 | P86: 0 | Q86: 0 | R86: 0 | S86: 0 | X86: 14243 | Y86: Gombari
A87: =IF(INTRO!$E$34<>0,INTRO!$E$34,"") -> DRC | B87: HAUT UELE | C87: Isiro | D87: 70690 | E87: =IF(INTRO!$E$48="","",ROUND($D87*INTRO!$E$48,0)) -> 13431 | F87: =IF(INTRO!$E$49="","",ROUND($D87*INTRO!$E$49,0)) -> 24742 | G87: =IF(INTRO!$E$50="","",ROUND($D87*INTRO!$E$50,0)) -> 32517 | H87: 1 | I87: 1 | J87: 1 | K87: 2 | L87: =IF(INTRO!$E$38="Endemic", IF($H87>0, IF($H87=4,"Unknown", IF($H87=99,"Stopped", $D87)), 0),"Not required") -> 70690 | M87: =IF(INTRO!$E$40="Endemic", IF($I87>0, IF($I87=4,"Unknown",IF($I87=99,"Stopped", $D87)), 0),"Not required") -> 70690 | N87: =IF(INTRO!$E$42="Endemic", IF(AND($J87>1,$J87<5), IF($J87=4, "Unknown", E87+F87), 0),"Not required") -> 0 | O87: =IF(INTRO!$E$44="Endemic", IF(AND($K87>0,$K87<5), IF($K87=4,"Unknown", IF($K87=1, $F87*0.33, IF($K87=2, $F87*0.5+$G87*0.2, SUM(F87:G87)))), 0),"Not required") -> 18874.4 | P87: 0 | Q87: 1 | R87: 0 | S87: 0 | T87: MDA3 (IVM) | X87: 14245 | Y87: Isiro
A88: =IF(INTRO!$E$34<>0,INTRO!$E$34,"") -> DRC | B88: HAUT UELE | C88: Makoro | D88: 150343 | E88: =IF(INTRO!$E$48="","",ROUND($D88*INTRO!$E$48,0)) -> 28565 | F88: =IF(INTRO!$E$49="","",ROUND($D88*INTRO!$E$49,0)) -> 52620 | G88: =IF(INTRO!$E$50="","",ROUND($D88*INTRO!$E$50,0)) -> 69158 | H88: 0 | I88: 1 | J88: 1 | K88: 1 | L88: =IF(INTRO!$E$38="Endemic", IF($H88>0, IF($H88=4,"Unknown", IF($H88=99,"Stopped", $D88)), 0),"Not required") -> 0 | M88: =IF(INTRO!$E$40="Endemic", IF($I88>0, IF($I88=4,"Unknown",IF($I88=99,"Stopped", $D88)), 0),"Not required") -> 150343 | N88: =IF(INTRO!$E$42="Endemic", IF(AND($J88>1,$J88<5), IF($J88=4, "Unknown", E88+F88), 0),"Not required") -> 0 | O88: =IF(INTRO!$E$44="Endemic", IF(AND($K88>0,$K88<5), IF($K88=4,"Unknown", IF($K88=1, $F88*0.33, IF($K88=2, $F88*0.5+$G88*0.2, SUM(F88:G88)))), 0),"Not required") -> 17364.6 | P88: 0 | Q88: 1 | R88: 0 | S88: 0 | T88: MDA3 (IVM) | X88: 14260 | Y88: Makoro
A89: =IF(INTRO!$E$34<>0,INTRO!$E$34,"") -> DRC | B89: HAUT UELE | C89: Niangara | D89: 80697 | E89: =IF(INTRO!$E$48="","",ROUND($D89*INTRO!$E$48,0)) -> 15332 | F89: =IF(INTRO!$E$49="","",ROUND($D89*INTRO!$E$49,0)) -> 28244 | G89: =IF(INTRO!$E$50="","",ROUND($D89*INTRO!$E$50,0)) -> 37121 | H89: 1 | I89: 1 | J89: 1 | K89: 1 | L89: =IF(INTRO!$E$38="Endemic", IF($H89>0, IF($H89=4,"Unknown", IF($H89=99,"Stopped", $D89)), 0),"Not required") -> 80697 | M89: =IF(INTRO!$E$40="Endemic", IF($I89>0, IF($I89=4,"Unknown",IF($I89=99,"Stopped", $D89)), 0),"Not required") -> 80697 | N89: =IF(INTRO!$E$42="Endemic", IF(AND($J89>1,$J89<5), IF($J89=4, "Unknown", E89+F89), 0),"Not required") -> 0 | O89: =IF(INTRO!$E$44="Endemic", IF(AND($K89>0,$K89<5), IF($K89=4,"Unknown", IF($K89=1, $F89*0.33, IF($K89=2, $F89*0.5+$G89*0.2, SUM(F89:G89)))), 0),"Not required") -> 9320.52 | P89: 0 | Q89: 1 | R89: 0 | S89: 0 | T89: MDA3 (IVM) | X89: 14268 | Y89: Niangara
A90: =IF(INTRO!$E$34<>0,INTRO!$E$34,"") -> DRC | B90: HAUT UELE | C90: Pawa | D90: 146622 | E90: =IF(INTRO!$E$48="","",ROUND($D90*INTRO!$E$48,0)) -> 27858 | F90: =IF(INTRO!$E$49="","",ROUND($D90*INTRO!$E$49,0)) -> 51318 | G90: =IF(INTRO!$E$50="","",ROUND($D90*INTRO!$E$50,0)) -> 67446 | H90: 1 | I90: 1 | J90: 0 | K90: 1 | L90: =IF(INTRO!$E$38="Endemic", IF($H90>0, IF($H90=4,"Unknown", IF($H90=99,"Stopped", $D90)), 0),"Not required") -> 146622 | M90: =IF(INTRO!$E$40="Endemic", IF($I90>0, IF($I90=4,"Unknown",IF($I90=99,"Stopped", $D90)), 0),"Not required") -> 146622 | N90: =IF(INTRO!$E$42="Endemic", IF(AND($J90>1,$J90<5), IF($J90=4, "Unknown", E90+F90), 0),"Not required") -> 0 | O90: =IF(INTRO!$E$44="Endemic", IF(AND($K90>0,$K90<5), IF($K90=4,"Unknown", IF($K90=1, $F90*0.33, IF($K90=2, $F90*0.5+$G90*0.2, SUM(F90:G90)))), 0),"Not required") -> 16934.94 | P90: 0 | Q90: 1 | R90: 0 | S90: 0 | T90: MDA3 (IVM) | X90: 14275 | Y90: Pawa
A91: =IF(INTRO!$E$34<>0,INTRO!$E$34,"") -> DRC | B91: HAUT UELE | C91: Rungu | D91: 95008 | E91: =IF(INTRO!$E$48="","",ROUND($D91*INTRO!$E$48,0)) -> 18052 | F91: =IF(INTRO!$E$49="","",ROUND($D91*INTRO!$E$49,0)) -> 33253 | G91: =IF(INTRO!$E$50="","",ROUND($D91*INTRO!$E$50,0)) -> 43704 | H91: 1 | I91: 1 | J91: 1 | K91: 1 | L91: =IF(INTRO!$E$38="Endemic", IF($H91>0, IF($H91=4,"Unknown", IF($H91=99,"Stopped", $D91)), 0),"Not required") -> 95008 | M91: =IF(INTRO!$E$40="Endemic", IF($I91>0, IF($I91=4,"Unknown",IF($I91=99,"Stopped", $D91)), 0),"Not required") -> 95008 | N91: =IF(INTRO!$E$42="Endemic", IF(AND($J91>1,$J91<5), IF($J91=4, "Unknown", E91+F91), 0),"Not required") -> 0 | O91: =IF(INTRO!$E$44="Endemic", IF(AND($K91>0,$K91<5), IF($K91=4,"Unknown", IF($K91=1, $F91*0.33, IF($K91=2, $F91*0.5+$G91*0.2, SUM(F91:G91)))), 0),"Not required") -> 10973.49 | P91: 0 | Q91: 1 | R91: 0 | S91: 0 | T91: MDA3 (IVM) | X91: 14279 | Y91: Rungu
A92: =IF(INTRO!$E$34<>0,INTRO!$E$34,"") -> DRC | B92: HAUT UELE | C92: Wamba | D92: 99084 | E92: =IF(INTRO!$E$48="","",ROUND($D92*INTRO!$E$48,0)) -> 18826 | F92: =IF(INTRO!$E$49="","",ROUND($D92*INTRO!$E$49,0)) -> 34679 | G92: =IF(INTRO!$E$50="","",ROUND($D92*INTRO!$E$50,0)) -> 45579 | H92: 0 | I92: 1 | J92: 1 | K92: 1 | L92: =IF(INTRO!$E$38="Endemic", IF($H92>0, IF($H92=4,"Unknown", IF($H92=99,"Stopped", $D92)), 0),"Not required") -> 0 | M92: =IF(INTRO!$E$40="Endemic", IF($I92>0, IF($I92=4,"Unknown",IF($I92=99,"Stopped", $D92)), 0),"Not required") -> 99084 | N92: =IF(INTRO!$E$42="Endemic", IF(AND($J92>1,$J92<5), IF($J92=4, "Unknown", E92+F92), 0),"Not required") -> 0 | O92: =IF(INTRO!$E$44="Endemic", IF(AND($K92>0,$K92<5), IF($K92=4,"Unknown", IF($K92=1, $F92*0.33, IF($K92=2, $F92*0.5+$G92*0.2, SUM(F92:G92)))), 0),"Not required") -> 11444.07 | P92: 0 | Q92: 1 | R92: 0 | S92: 0 | T92: MDA3 (IVM) | X92: 14286 | Y92: Wamba
A93: =IF(INTRO!$E$34<>0,INTRO!$E$34,"") -> DRC | B93: HAUT UELE | C93: Wasta | D93: 187825 | E93: =IF(INTRO!$E$48="","",ROUND($D93*INTRO!$E$48,0)) -> 35687 | F93: =IF(INTRO!$E$49="","",ROUND($D93*INTRO!$E$49,0)) -> 65739 | G93: =IF(INTRO!$E$50="","",ROUND($D93*INTRO!$E$50,0)) -> 86400 | H93: 1 | I93: 1 | J93: 1 | K93: 2 | L93: =IF(INTRO!$E$38="Endemic", IF($H93>0, IF($H93=4,"Unknown", IF($H93=99,"Stopped", $D93)), 0),"Not required") -> 187825 | M93: =IF(INTRO!$E$40="Endemic", IF($I93>0, IF($I93=4,"Unknown",IF($I93=99,"Stopped", $D93)), 0),"Not required") -> 187825 | N93: =IF(INTRO!$E$42="Endemic", IF(AND($J93>1,$J93<5), IF($J93=4, "Unknown", E93+F93), 0),"Not required") -> 0 | O93: =IF(INTRO!$E$44="Endemic", IF(AND($K93>0,$K93<5), IF($K93=4,"Unknown", IF($K93=1, $F93*0.33, IF($K93=2, $F93*0.5+$G93*0.2, SUM(F93:G93)))), 0),"Not required") -> 50149.5 | P93: 0 | Q93: 1 | R93: 0 | S93: 0 | T93: MDA3 (IVM) | X93: 14288 | Y93: Wasta
A94: =IF(INTRO!$E$34<>0,INTRO!$E$34,"") -> DRC | B94: ITURI | C94: Adi | D94: 166096 | E94: =IF(INTRO!$E$48="","",ROUND($D94*INTRO!$E$48,0)) -> 31558 | F94: =IF(INTRO!$E$49="","",ROUND($D94*INTRO!$E$49,0)) -> 58134 | G94: =IF(INTRO!$E$50="","",ROUND($D94*INTRO!$E$50,0)) -> 76404 | H94: 0 | I94: 1 | J94: 1 | K94: 0 | L94: =IF(INTRO!$E$38="Endemic", IF($H94>0, IF($H94=4,"Unknown", IF($H94=99,"Stopped", $D94)), 0),"Not required") -> 0 | M94: =IF(INTRO!$E$40="Endemic", IF($I94>0, IF($I94=4,"Unknown",IF($I94=99,"Stopped", $D94)), 0),"Not required") -> 166096 | N94: =IF(INTRO!$E$42="Endemic", IF(AND($J94>1,$J94<5), IF($J94=4, "Unknown", E94+F94), 0),"Not required") -> 0 | O94: =IF(INTRO!$E$44="Endemic", IF(AND($K94>0,$K94<5), IF($K94=4,"Unknown", IF($K94=1, $F94*0.33, IF($K94=2, $F94*0.5+$G94*0.2, SUM(F94:G94)))), 0),"Not required") -> 0 | P94: 0 | Q94: 1 | R94: 0 | S94: 0 | T94: MDA3 (IVM) | X94: 14214 | Y94: Adi
A95: =IF(INTRO!$E$34<>0,INTRO!$E$34,"") -> DRC | B95: ITURI | C95: Adja | D95: 132459 | E95: =IF(INTRO!$E$48="","",ROUND($D95*INTRO!$E$48,0)) -> 25167 | F95: =IF(INTRO!$E$49="","",ROUND($D95*INTRO!$E$49,0)) -> 46361 | G95: =IF(INTRO!$E$50="","",ROUND($D95*INTRO!$E$50,0)) -> 60931 | H95: 0 | I95: 1 | J95: 1 | K95: 0 | L95: =IF(INTRO!$E$38="Endemic", IF($H95>0, IF($H95=4,"Unknown", IF($H95=99,"Stopped", $D95)), 0),"Not required") -> 0 | M95: =IF(INTRO!$E$40="Endemic", IF($I95>0, IF($I95=4,"Unknown",IF($I95=99,"Stopped", $D95)), 0),"Not required") -> 132459 | N95: =IF(INTRO!$E$42="Endemic", IF(AND($J95>1,$J95<5), IF($J95=4, "Unknown", E95+F95), 0),"Not required") -> 0 | O95: =IF(INTRO!$E$44="Endemic", IF(AND($K95>0,$K95<5), IF($K95=4,"Unknown", IF($K95=1, $F95*0.33, IF($K95=2, $F95*0.5+$G95*0.2, SUM(F95:G95)))), 0),"Not required") -> 0 | P95: 0 | Q95: 1 | R95: 0 | S95: 0 | T95: MDA3 (IVM) | X95: 14215 | Y95: Adja
A96: =IF(INTRO!$E$34<>0,INTRO!$E$34,"") -> DRC | B96: ITURI | C96: Angumu | D96: 173021 | E96: =IF(INTRO!$E$48="","",ROUND($D96*INTRO!$E$48,0)) -> 32874 | F96: =IF(INTRO!$E$49="","",ROUND($D96*INTRO!$E$49,0)) -> 60557 | G96: =IF(INTRO!$E$50="","",ROUND($D96*INTRO!$E$50,0)) -> 79590 | H96: 1 | I96: 1 | J96: 0 | K96: 1 | L96: =IF(INTRO!$E$38="Endemic", IF($H96>0, IF($H96=4,"Unknown", IF($H96=99,"Stopped", $D96)), 0),"Not required") -> 173021 | M96: =IF(INTRO!$E$40="Endemic", IF($I96>0, IF($I96=4,"Unknown",IF($I96=99,"Stopped", $D96)), 0),"Not required") -> 173021 | N96: =IF(INTRO!$E$42="Endemic", IF(AND($J96>1,$J96<5), IF($J96=4, "Unknown", E96+F96), 0),"Not required") -> 0 | O96: =IF(INTRO!$E$44="Endemic", IF(AND($K96>0,$K96<5), IF($K96=4,"Unknown", IF($K96=1, $F96*0.33, IF($K96=2, $F96*0.5+$G96*0.2, SUM(F96:G96)))), 0),"Not required") -> 19983.81 | P96: 1 | Q96: 1 | R96: 0 | S96: 1 | T96: MDA1 (IVM+ALB) | U96: T2 (PZQ) | X96: 14218 | Y96: Angumu
A97: =IF(INTRO!$E$34<>0,INTRO!$E$34,"") -> DRC | B97: ITURI | C97: Ariwara | D97: 12615 | E97: =IF(INTRO!$E$48="","",ROUND($D97*INTRO!$E$48,0)) -> 2397 | F97: =IF(INTRO!$E$49="","",ROUND($D97*INTRO!$E$49,0)) -> 4415 | G97: =IF(INTRO!$E$50="","",ROUND($D97*INTRO!$E$50,0)) -> 5803 | H97: 1 | I97: 0 | J97: 1 | K97: 0 | L97: =IF(INTRO!$E$38="Endemic", IF($H97>0, IF($H97=4,"Unknown", IF($H97=99,"Stopped", $D97)), 0),"Not required") -> 12615 | M97: =IF(INTRO!$E$40="Endemic", IF($I97>0, IF($I97=4,"Unknown",IF($I97=99,"Stopped", $D97)), 0),"Not required") -> 0 | N97: =IF(INTRO!$E$42="Endemic", IF(AND($J97>1,$J97<5), IF($J97=4, "Unknown", E97+F97), 0),"Not required") -> 0 | O97: =IF(INTRO!$E$44="Endemic", IF(AND($K97>0,$K97<5), IF($K97=4,"Unknown", IF($K97=1, $F97*0.33, IF($K97=2, $F97*0.5+$G97*0.2, SUM(F97:G97)))), 0),"Not required") -> 0 | P97: 1 | Q97: 0 | R97: 0 | S97: 0 | T97: MDA1 (IVM+ALB) | X97: 14219 | Y97: Ariwara
A98: =IF(INTRO!$E$34<>0,INTRO!$E$34,"") -> DRC | B98: ITURI | C98: Aru | D98: 197497 | E98: =IF(INTRO!$E$48="","",ROUND($D98*INTRO!$E$48,0)) -> 37524 | F98: =IF(INTRO!$E$49="","",ROUND($D98*INTRO!$E$49,0)) -> 69124 | G98: =IF(INTRO!$E$50="","",ROUND($D98*INTRO!$E$50,0)) -> 90849 | H98: 0 | I98: 0 | J98: 1 | K98: 2 | L98: =IF(INTRO!$E$38="Endemic", IF($H98>0, IF($H98=4,"Unknown", IF($H98=99,"Stopped", $D98)), 0),"Not required") -> 0 | M98: =IF(INTRO!$E$40="Endemic", IF($I98>0, IF($I98=4,"Unknown",IF($I98=99,"Stopped", $D98)), 0),"Not required") -> 0 | N98: =IF(INTRO!$E$42="Endemic", IF(AND($J98>1,$J98<5), IF($J98=4, "Unknown", E98+F98), 0),"Not required") -> 0 | O98: =IF(INTRO!$E$44="Endemic", IF(AND($K98>0,$K98<5), IF($K98=4,"Unknown", IF($K98=1, $F98*0.33, IF($K98=2, $F98*0.5+$G98*0.2, SUM(F98:G98)))), 0),"Not required") -> 52731.8 | P98: 0 | Q98: 0 | R98: 0 | S98: 0 | X98: 14220 | Y98: Aru
A99: =IF(INTRO!$E$34<>0,INTRO!$E$34,"") -> DRC | B99: ITURI | C99: Augnba | D99: 153226 | E99: =IF(INTRO!$E$48="","",ROUND($D99*INTRO!$E$48,0)) -> 29113 | F99: =IF(INTRO!$E$49="","",ROUND($D99*INTRO!$E$49,0)) -> 53629 | G99: =IF(INTRO!$E$50="","",ROUND($D99*INTRO!$E$50,0)) -> 70484 | H99: 0 | I99: 1 | J99: 2 | K99: 1 | L99: =IF(INTRO!$E$38="Endemic", IF($H99>0, IF($H99=4,"Unknown", IF($H99=99,"Stopped", $D99)), 0),"Not required") -> 0 | M99: =IF(INTRO!$E$40="Endemic", IF($I99>0, IF($I99=4,"Unknown",IF($I99=99,"Stopped", $D99)), 0),"Not required") -> 153226 | N99: =IF(INTRO!$E$42="Endemic", IF(AND($J99>1,$J99<5), IF($J99=4, "Unknown", E99+F99), 0),"Not required") -> 82742 | O99: =IF(INTRO!$E$44="Endemic", IF(AND($K99>0,$K99<5), IF($K99=4,"Unknown", IF($K99=1, $F99*0.33, IF($K99=2, $F99*0.5+$G99*0.2, SUM(F99:G99)))), 0),"Not required") -> 17697.57 | P99: 0 | Q99: 1 | R99: 1 | S99: 1 | T99: MDA3 (IVM) | U99: T1 (PZQ+ALB/MBD) | X99: 14221 | Y99: Augnba
A100: =IF(INTRO!$E$34<>0,INTRO!$E$34,"") -> DRC | B100: ITURI | C100: Bambu | D100: 171718 | E100: =IF(INTRO!$E$48="","",ROUND($D100*INTRO!$E$48,0)) -> 32626 | F100: =IF(INTRO!$E$49="","",ROUND($D100*INTRO!$E$49,0)) -> 60101 | G100: =IF(INTRO!$E$50="","",ROUND($D100*INTRO!$E$50,0)) -> 78990 | H100: 1 | I100: 0 | J100: 1 | K100: 1 | L100: =IF(INTRO!$E$38="Endemic", IF($H100>0, IF($H100=4,"Unknown", IF($H100=99,"Stopped", $D100)), 0),"Not required") -> 171718 | M100: =IF(INTRO!$E$40="Endemic", IF($I100>0, IF($I100=4,"Unknown",IF($I100=99,"Stopped", $D100)), 0),"Not required") -> 0 | N100: =IF(INTRO!$E$42="Endemic", IF(AND($J100>1,$J100<5), IF($J100=4, "Unknown", E100+F100), 0),"Not required") -> 0 | O100: =IF(INTRO!$E$44="Endemic", IF(AND($K100>0,$K100<5), IF($K100=4,"Unknown", IF($K100=1, $F100*0.33, IF($K100=2, $F100*0.5+$G100*0.2, SUM(F100:G100)))), 0),"Not required") -> 19833.33 | P100: 0 | Q100: 0 | R100: 0 | S100: 0 | X100: 14224 | Y100: Bambu
A101: =IF(INTRO!$E$34<>0,INTRO!$E$34,"") -> DRC | B101: ITURI | C101: Biringi | D101: 145607 | E101: =IF(INTRO!$E$48="","",ROUND($D101*INTRO!$E$48,0)) -> 27665 | F101: =IF(INTRO!$E$49="","",ROUND($D101*INTRO!$E$49,0)) -> 50962 | G101: =IF(INTRO!$E$50="","",ROUND($D101*INTRO!$E$50,0)) -> 66979 | H101: 1 | I101: 1 | J101: 1 | K101: 2 | L101: =IF(INTRO!$E$38="Endemic", IF($H101>0, IF($H101=4,"Unknown", IF($H101=99,"Stopped", $D101)), 0),"Not required") -> 145607 | M101: =IF(INTRO!$E$40="Endemic", IF($I101>0, IF($I101=4,"Unknown",IF($I101=99,"Stopped", $D101)), 0),"Not required") -> 145607 | N101: =IF(INTRO!$E$42="Endemic", IF(AND($J101>1,$J101<5), IF($J101=4, "Unknown", E101+F101), 0),"Not required") -> 0 | O101: =IF(INTRO!$E$44="Endemic", IF(AND($K101>0,$K101<5), IF($K101=4,"Unknown", IF($K101=1, $F101*0.33, IF($K101=2, $F101*0.5+$G101*0.2, SUM(F101:G101)))), 0),"Not required") -> 38876.8 | P101: 1 | Q101: 1 | R101: 0 | S101: 1 | T101: MDA1 (IVM+ALB) | U101: T2 (PZQ) | X101: 14230 | Y101: Biringi
A102: =IF(INTRO!$E$34<>0,INTRO!$E$34,"") -> DRC | B102: ITURI | C102: Boga | D102: 71507 | E102: =IF(INTRO!$E$48="","",ROUND($D102*INTRO!$E$48,0)) -> 13586 | F102: =IF(INTRO!$E$49="","",ROUND($D102*INTRO!$E$49,0)) -> 25027 | G102: =IF(INTRO!$E$50="","",ROUND($D102*INTRO!$E$50,0)) -> 32893 | H102: 1 | I102: 1 | J102: 1 | K102: 2 | L102: =IF(INTRO!$E$38="Endemic", IF($H102>0, IF($H102=4,"Unknown", IF($H102=99,"Stopped", $D102)), 0),"Not required") -> 71507 | M102: =IF(INTRO!$E$40="Endemic", IF($I102>0, IF($I102=4,"Unknown",IF($I102=99,"Stopped", $D102)), 0),"Not required") -> 71507 | N102: =IF(INTRO!$E$42="Endemic", IF(AND($J102>1,$J102<5), IF($J102=4, "Unknown", E102+F102), 0),"Not required") -> 0 | O102: =IF(INTRO!$E$44="Endemic", IF(AND($K102>0,$K102<5), IF($K102=4,"Unknown", IF($K102=1, $F102*0.33, IF($K102=2, $F102*0.5+$G102*0.2, SUM(F102:G102)))), 0),"Not required") -> 19092.1 | P102: 1 | Q102: 1 | R102: 0 | S102: 1 | T102: MDA1 (IVM+ALB) | U102: T2 (PZQ) | X102: 14231 | Y102: Boga
A103: =IF(INTRO!$E$34<>0,INTRO!$E$34,"") -> DRC | B103: ITURI | C103: Bunia | D103: 278079 | E103: =IF(INTRO!$E$48="","",ROUND($D103*INTRO!$E$48,0)) -> 52835 | F103: =IF(INTRO!$E$49="","",ROUND($D103*INTRO!$E$49,0)) -> 97328 | G103: =IF(INTRO!$E$50="","",ROUND($D103*INTRO!$E$50,0)) -> 127916 | H103: 1 | I103: 0 | J103: 1 | K103: 2 | L103: =IF(INTRO!$E$38="Endemic", IF($H103>0, IF($H103=4,"Unknown", IF($H103=99,"Stopped", $D103)), 0),"Not required") -> 278079 | M103: =IF(INTRO!$E$40="Endemic", IF($I103>0, IF($I103=4,"Unknown",IF($I103=99,"Stopped", $D103)), 0),"Not required") -> 0 | N103: =IF(INTRO!$E$42="Endemic", IF(AND($J103>1,$J103<5), IF($J103=4, "Unknown", E103+F103), 0),"Not required") -> 0 | O103: =IF(INTRO!$E$44="Endemic", IF(AND($K103>0,$K103<5), IF($K103=4,"Unknown", IF($K103=1, $F103*0.33, IF($K103=2, $F103*0.5+$G103*0.2, SUM(F103:G103)))), 0),"Not required") -> 74247.2 | P103: 0 | Q103: 0 | R103: 0 | S103: 0 | X103: 14233 | Y103: Bunia
A104: =IF(INTRO!$E$34<>0,INTRO!$E$34,"") -> DRC | B104: ITURI | C104: Damas | D104: 100315 | E104: =IF(INTRO!$E$48="","",ROUND($D104*INTRO!$E$48,0)) -> 19060 | F104: =IF(INTRO!$E$49="","",ROUND($D104*INTRO!$E$49,0)) -> 35110 | G104: =IF(INTRO!$E$50="","",ROUND($D104*INTRO!$E$50,0)) -> 46145 | H104: 1 | I104: 1 | J104: 1 | K104: 1 | L104: =IF(INTRO!$E$38="Endemic", IF($H104>0, IF($H104=4,"Unknown", IF($H104=99,"Stopped", $D104)), 0),"Not required") -> 100315 | M104: =IF(INTRO!$E$40="Endemic", IF($I104>0, IF($I104=4,"Unknown",IF($I104=99,"Stopped", $D104)), 0),"Not required") -> 100315 | N104: =IF(INTRO!$E$42="Endemic", IF(AND($J104>1,$J104<5), IF($J104=4, "Unknown", E104+F104), 0),"Not required") -> 0 | O104: =IF(INTRO!$E$44="Endemic", IF(AND($K104>0,$K104<5), IF($K104=4,"Unknown", IF($K104=1, $F104*0.33, IF($K104=2, $F104*0.5+$G104*0.2, SUM(F104:G104)))), 0),"Not required") -> 11586.3 | P104: 1 | Q104: 1 | R104: 0 | S104: 1 | T104: MDA1 (IVM+ALB) | U104: T2 (PZQ) | X104: 14235 | Y104: Damas
A105: =IF(INTRO!$E$34<>0,INTRO!$E$34,"") -> DRC | B105: ITURI | C105: Drodro | D105: 178961 | E105: =IF(INTRO!$E$48="","",ROUND($D105*INTRO!$E$48,0)) -> 34003 | F105: =IF(INTRO!$E$49="","",ROUND($D105*INTRO!$E$49,0)) -> 62636 | G105: =IF(INTRO!$E$50="","",ROUND($D105*INTRO!$E$50,0)) -> 82322 | H105: 0 | I105: 0 | J105: 1 | K105: 2 | L105: =IF(INTRO!$E$38="Endemic", IF($H105>0, IF($H105=4,"Unknown", IF($H105=99,"Stopped", $D105)), 0),"Not required") -> 0 | M105: =IF(INTRO!$E$40="Endemic", IF($I105>0, IF($I105=4,"Unknown",IF($I105=99,"Stopped", $D105)), 0),"Not required") -> 0 | N105: =IF(INTRO!$E$42="Endemic", IF(AND($J105>1,$J105<5), IF($J105=4, "Unknown", E105+F105), 0),"Not required") -> 0 | O105: =IF(INTRO!$E$44="Endemic", IF(AND($K105>0,$K105<5), IF($K105=4,"Unknown", IF($K105=1, $F105*0.33, IF($K105=2, $F105*0.5+$G105*0.2, SUM(F105:G105)))), 0),"Not required") -> 47782.4 | P105: 0 | Q105: 0 | R105: 0 | S105: 0 | X105: 14237 | Y105: Drodro
A106: =IF(INTRO!$E$34<>0,INTRO!$E$34,"") -> DRC | B106: ITURI | C106: Fataki | D106: 130659 | E106: =IF(INTRO!$E$48="","",ROUND($D106*INTRO!$E$48,0)) -> 24825 | F106: =IF(INTRO!$E$49="","",ROUND($D106*INTRO!$E$49,0)) -> 45731 | G106: =IF(INTRO!$E$50="","",ROUND($D106*INTRO!$E$50,0)) -> 60103 | H106: 1 | I106: 0 | J106: 1 | K106: 1 | L106: =IF(INTRO!$E$38="Endemic", IF($H106>0, IF($H106=4,"Unknown", IF($H106=99,"Stopped", $D106)), 0),"Not required") -> 130659 | M106: =IF(INTRO!$E$40="Endemic", IF($I106>0, IF($I106=4,"Unknown",IF($I106=99,"Stopped", $D106)), 0),"Not required") -> 0 | N106: =IF(INTRO!$E$42="Endemic", IF(AND($J106>1,$J106<5), IF($J106=4, "Unknown", E106+F106), 0),"Not required") -> 0 | O106: =IF(INTRO!$E$44="Endemic", IF(AND($K106>0,$K106<5), IF($K106=4,"Unknown", IF($K106=1, $F106*0.33, IF($K106=2, $F106*0.5+$G106*0.2, SUM(F106:G106)))), 0),"Not required") -> 15091.23 | P106: 0 | Q106: 0 | R106: 0 | S106: 0 | X106: 14240 | Y106: Fataki
A107: =IF(INTRO!$E$34<>0,INTRO!$E$34,"") -> DRC | B107: ITURI | C107: Gethy | D107: 179786 | E107: =IF(INTRO!$E$48="","",ROUND($D107*INTRO!$E$48,0)) -> 34159 | F107: =IF(INTRO!$E$49="","",ROUND($D107*INTRO!$E$49,0)) -> 62925 | G107: =IF(INTRO!$E$50="","",ROUND($D107*INTRO!$E$50,0)) -> 82702 | H107: 0 | I107: 1 | J107: 1 | K107: 2 | L107: =IF(INTRO!$E$38="Endemic", IF($H107>0, IF($H107=4,"Unknown", IF($H107=99,"Stopped", $D107)), 0),"Not required") -> 0 | M107: =IF(INTRO!$E$40="Endemic", IF($I107>0, IF($I107=4,"Unknown",IF($I107=99,"Stopped", $D107)), 0),"Not required") -> 179786 | N107: =IF(INTRO!$E$42="Endemic", IF(AND($J107>1,$J107<5), IF($J107=4, "Unknown", E107+F107), 0),"Not required") -> 0 | O107: =IF(INTRO!$E$44="Endemic", IF(AND($K107>0,$K107<5), IF($K107=4,"Unknown", IF($K107=1, $F107*0.33, IF($K107=2, $F107*0.5+$G107*0.2, SUM(F107:G107)))), 0),"Not required") -> 48002.9 | P107: 0 | Q107: 1 | R107: 0 | S107: 1 | T107: MDA3 (IVM) | U107: T2 (PZQ) | X107: 14242 | Y107: Gethy
A108: =IF(INTRO!$E$34<>0,INTRO!$E$34,"") -> DRC | B108: ITURI | C108: Jiba | D108: 171903 | E108: =IF(INTRO!$E$48="","",ROUND($D108*INTRO!$E$48,0)) -> 32662 | F108: =IF(INTRO!$E$49="","",ROUND($D108*INTRO!$E$49,0)) -> 60166 | G108: =IF(INTRO!$E$50="","",ROUND($D108*INTRO!$E$50,0)) -> 79075 | H108: 1 | I108: 0 | J108: 1 | K108: 1 | L108: =IF(INTRO!$E$38="Endemic", IF($H108>0, IF($H108=4,"Unknown", IF($H108=99,"Stopped", $D108)), 0),"Not required") -> 171903 | M108: =IF(INTRO!$E$40="Endemic", IF($I108>0, IF($I108=4,"Unknown",IF($I108=99,"Stopped", $D108)), 0),"Not required") -> 0 | N108: =IF(INTRO!$E$42="Endemic", IF(AND($J108>1,$J108<5), IF($J108=4, "Unknown", E108+F108), 0),"Not required") -> 0 | O108: =IF(INTRO!$E$44="Endemic", IF(AND($K108>0,$K108<5), IF($K108=4,"Unknown", IF($K108=1, $F108*0.33, IF($K108=2, $F108*0.5+$G108*0.2, SUM(F108:G108)))), 0),"Not required") -> 19854.78 | P108: 0 | Q108: 0 | R108: 0 | S108: 0 | X108: 14246 | Y108: Jiba
A109: =IF(INTRO!$E$34<>0,INTRO!$E$34,"") -> DRC | B109: ITURI | C109: Kambale | D109: 134991 | E109: =IF(INTRO!$E$48="","",ROUND($D109*INTRO!$E$48,0)) -> 25648 | F109: =IF(INTRO!$E$49="","",ROUND($D109*INTRO!$E$49,0)) -> 47247 | G109: =IF(INTRO!$E$50="","",ROUND($D109*INTRO!$E$50,0)) -> 62096 | H109: 1 | I109: 1 | J109: 1 | K109: 0 | L109: =IF(INTRO!$E$38="Endemic", IF($H109>0, IF($H109=4,"Unknown", IF($H109=99,"Stopped", $D109)), 0),"Not required") -> 134991 | M109: =IF(INTRO!$E$40="Endemic", IF($I109>0, IF($I109=4,"Unknown",IF($I109=99,"Stopped", $D109)), 0),"Not required") -> 134991 | N109: =IF(INTRO!$E$42="Endemic", IF(AND($J109>1,$J109<5), IF($J109=4, "Unknown", E109+F109), 0),"Not required") -> 0 | O109: =IF(INTRO!$E$44="Endemic", IF(AND($K109>0,$K109<5), IF($K109=4,"Unknown", IF($K109=1, $F109*0.33, IF($K109=2, $F109*0.5+$G109*0.2, SUM(F109:G109)))), 0),"Not required") -> 0 | P109: 1 | Q109: 1 | R109: 0 | S109: 0 | T109: MDA1 (IVM+ALB) | X109: 14248 | Y109: Kambale
A110: =IF(INTRO!$E$34<>0,INTRO!$E$34,"") -> DRC | B110: ITURI | C110: Kilo | D110: 69030 | E110: =IF(INTRO!$E$48="","",ROUND($D110*INTRO!$E$48,0)) -> 13116 | F110: =IF(INTRO!$E$49="","",ROUND($D110*INTRO!$E$49,0)) -> 24161 | G110: =IF(INTRO!$E$50="","",ROUND($D110*INTRO!$E$50,0)) -> 31754 | H110: 1 | I110: 0 | J110: 2 | K110: 2 | L110: =IF(INTRO!$E$38="Endemic", IF($H110>0, IF($H110=4,"Unknown", IF($H110=99,"Stopped", $D110)), 0),"Not required") -> 69030 | M110: =IF(INTRO!$E$40="Endemic", IF($I110>0, IF($I110=4,"Unknown",IF($I110=99,"Stopped", $D110)), 0),"Not required") -> 0 | N110: =IF(INTRO!$E$42="Endemic", IF(AND($J110>1,$J110<5), IF($J110=4, "Unknown", E110+F110), 0),"Not required") -> 37277 | O110: =IF(INTRO!$E$44="Endemic", IF(AND($K110>0,$K110<5), IF($K110=4,"Unknown", IF($K110=1, $F110*0.33, IF($K110=2, $F110*0.5+$G110*0.2, SUM(F110:G110)))), 0),"Not required") -> 18431.3 | P110: 0 | Q110: 0 | R110: 0 | S110: 0 | X110: 14249 | Y110: Kilo
A111: =IF(INTRO!$E$34<>0,INTRO!$E$34,"") -> DRC | B111: ITURI | C111: Komanda | D111: 221792 | E111: =IF(INTRO!$E$48="","",ROUND($D111*INTRO!$E$48,0)) -> 42140 | F111: =IF(INTRO!$E$49="","",ROUND($D111*INTRO!$E$49,0)) -> 77627 | G111: =IF(INTRO!$E$50="","",ROUND($D111*INTRO!$E$50,0)) -> 102024 | H111: 1 | I111: 1 | J111: 1 | K111: 2 | L111: =IF(INTRO!$E$38="Endemic", IF($H111>0, IF($H111=4,"Unknown", IF($H111=99,"Stopped", $D111)), 0),"Not required") -> 221792 | M111: =IF(INTRO!$E$40="Endemic", IF($I111>0, IF($I111=4,"Unknown",IF($I111=99,"Stopped", $D111)), 0),"Not required") -> 221792 | N111: =IF(INTRO!$E$42="Endemic", IF(AND($J111>1,$J111<5), IF($J111=4, "Unknown", E111+F111), 0),"Not required") -> 0 | O111: =IF(INTRO!$E$44="Endemic", IF(AND($K111>0,$K111<5), IF($K111=4,"Unknown", IF($K111=1, $F111*0.33, IF($K111=2, $F111*0.5+$G111*0.2, SUM(F111:G111)))), 0),"Not required") -> 59218.3 | P111: 1 | Q111: 1 | R111: 0 | S111: 1 | T111: MDA1 (IVM+ALB) | U111: T2 (PZQ) | X111: 14250 | Y111: Komanda
A112: =IF(INTRO!$E$34<>0,INTRO!$E$34,"") -> DRC | B112: ITURI | C112: Laybo | D112: 169722 | E112: =IF(INTRO!$E$48="","",ROUND($D112*INTRO!$E$48,0)) -> 32247 | F112: =IF(INTRO!$E$49="","",ROUND($D112*INTRO!$E$49,0)) -> 59403 | G112: =IF(INTRO!$E$50="","",ROUND($D112*INTRO!$E$50,0)) -> 78072 | H112: 0 | I112: 1 | J112: 1 | K112: 0 | L112: =IF(INTRO!$E$38="Endemic", IF($H112>0, IF($H112=4,"Unknown", IF($H112=99,"Stopped", $D112)), 0),"Not required") -> 0 | M112: =IF(INTRO!$E$40="Endemic", IF($I112>0, IF($I112=4,"Unknown",IF($I112=99,"Stopped", $D112)), 0),"Not required") -> 169722 | N112: =IF(INTRO!$E$42="Endemic", IF(AND($J112>1,$J112<5), IF($J112=4, "Unknown", E112+F112), 0),"Not required") -> 0 | O112: =IF(INTRO!$E$44="Endemic", IF(AND($K112>0,$K112<5), IF($K112=4,"Unknown", IF($K112=1, $F112*0.33, IF($K112=2, $F112*0.5+$G112*0.2, SUM(F112:G112)))), 0),"Not required") -> 0 | P112: 0 | Q112: 1 | R112: 0 | S112: 0 | T112: MDA3 (IVM) | X112: 14251 | Y112: Laybo
A113: =IF(INTRO!$E$34<>0,INTRO!$E$34,"") -> DRC | B113: ITURI | C113: Linga | D113: 173463 | E113: =IF(INTRO!$E$48="","",ROUND($D113*INTRO!$E$48,0)) -> 32958 | F113: =IF(INTRO!$E$49="","",ROUND($D113*INTRO!$E$49,0)) -> 60712 | G113: =IF(INTRO!$E$50="","",ROUND($D113*INTRO!$E$50,0)) -> 79793 | H113: 1 | I113: 0 | J113: 1 | K113: 1 | L113: =IF(INTRO!$E$38="Endemic", IF($H113>0, IF($H113=4,"Unknown", IF($H113=99,"Stopped", $D113)), 0),"Not required") -> 173463 | M113: =IF(INTRO!$E$40="Endemic", IF($I113>0, IF($I113=4,"Unknown",IF($I113=99,"Stopped", $D113)), 0),"Not required") -> 0 | N113: =IF(INTRO!$E$42="Endemic", IF(AND($J113>1,$J113<5), IF($J113=4, "Unknown", E113+F113), 0),"Not required") -> 0 | O113: =IF(INTRO!$E$44="Endemic", IF(AND($K113>0,$K113<5), IF($K113=4,"Unknown", IF($K113=1, $F113*0.33, IF($K113=2, $F113*0.5+$G113*0.2, SUM(F113:G113)))), 0),"Not required") -> 20034.96 | P113: 0 | Q113: 0 | R113: 0 | S113: 0 | X113: 14253 | Y113: Linga
A114: =IF(INTRO!$E$34<>0,INTRO!$E$34,"") -> DRC | B114: ITURI | C114: Lita | D114: 130935 | E114: =IF(INTRO!$E$48="","",ROUND($D114*INTRO!$E$48,0)) -> 24878 | F114: =IF(INTRO!$E$49="","",ROUND($D114*INTRO!$E$49,0)) -> 45827 | G114: =IF(INTRO!$E$50="","",ROUND($D114*INTRO!$E$50,0)) -> 60230 | H114: 0 | I114: 0 | J114: 1 | K114: 1 | L114: =IF(INTRO!$E$38="Endemic", IF($H114>0, IF($H114=4,"Unknown", IF($H114=99,"Stopped", $D114)), 0),"Not required") -> 0 | M114: =IF(INTRO!$E$40="Endemic", IF($I114>0, IF($I114=4,"Unknown",IF($I114=99,"Stopped", $D114)), 0),"Not required") -> 0 | N114: =IF(INTRO!$E$42="Endemic", IF(AND($J114>1,$J114<5), IF($J114=4, "Unknown", E114+F114), 0),"Not required") -> 0 | O114: =IF(INTRO!$E$44="Endemic", IF(AND($K114>0,$K114<5), IF($K114=4,"Unknown", IF($K114=1, $F114*0.33, IF($K114=2, $F114*0.5+$G114*0.2, SUM(F114:G114)))), 0),"Not required") -> 15122.91 | P114: 0 | Q114: 0 | R114: 0 | S114: 0 | X114: 14254 | Y114: Lita
A115: =IF(INTRO!$E$34<>0,INTRO!$E$34,"") -> DRC | B115: ITURI | C115: Logo | D115: 283530 | E115: =IF(INTRO!$E$48="","",ROUND($D115*INTRO!$E$48,0)) -> 53871 | F115: =IF(INTRO!$E$49="","",ROUND($D115*INTRO!$E$49,0)) -> 99236 | G115: =IF(INTRO!$E$50="","",ROUND($D115*INTRO!$E$50,0)) -> 130424 | H115: 0 | I115: 0 | J115: 1 | K115: 2 | L115: =IF(INTRO!$E$38="Endemic", IF($H115>0, IF($H115=4,"Unknown", IF($H115=99,"Stopped", $D115)), 0),"Not required") -> 0 | M115: =IF(INTRO!$E$40="Endemic", IF($I115>0, IF($I115=4,"Unknown",IF($I115=99,"Stopped", $D115)), 0),"Not required") -> 0 | N115: =IF(INTRO!$E$42="Endemic", IF(AND($J115>1,$J115<5), IF($J115=4, "Unknown", E115+F115), 0),"Not required") -> 0 | O115: =IF(INTRO!$E$44="Endemic", IF(AND($K115>0,$K115<5), IF($K115=4,"Unknown", IF($K115=1, $F115*0.33, IF($K115=2, $F115*0.5+$G115*0.2, SUM(F115:G115)))), 0),"Not required") -> 75702.8 | P115: 0 | Q115: 0 | R115: 0 | S115: 0 | X115: 14255 | Y115: Logo
A116: =IF(INTRO!$E$34<>0,INTRO!$E$34,"") -> DRC | B116: ITURI | C116: Lolwa | D116: 60435 | E116: =IF(INTRO!$E$48="","",ROUND($D116*INTRO!$E$48,0)) -> 11483 | F116: =IF(INTRO!$E$49="","",ROUND($D116*INTRO!$E$49,0)) -> 21152 | G116: =IF(INTRO!$E$50="","",ROUND($D116*INTRO!$E$50,0)) -> 27800 | H116: 1 | I116: 1 | J116: 1 | K116: 2 | L116: =IF(INTRO!$E$38="Endemic", IF($H116>0, IF($H116=4,"Unknown", IF($H116=99,"Stopped", $D116)), 0),"Not required") -> 60435 | M116: =IF(INTRO!$E$40="Endemic", IF($I116>0, IF($I116=4,"Unknown",IF($I116=99,"Stopped", $D116)), 0),"Not required") -> 60435 | N116: =IF(INTRO!$E$42="Endemic", IF(AND($J116>1,$J116<5), IF($J116=4, "Unknown", E116+F116), 0),"Not required") -> 0 | O116: =IF(INTRO!$E$44="Endemic", IF(AND($K116>0,$K116<5), IF($K116=4,"Unknown", IF($K116=1, $F116*0.33, IF($K116=2, $F116*0.5+$G116*0.2, SUM(F116:G116)))), 0),"Not required") -> 16136 | P116: 1 | Q116: 1 | R116: 0 | S116: 1 | T116: MDA1 (IVM+ALB) | U116: T2 (PZQ) | X116: 13992 | Y116: Lolwa
A117: =IF(INTRO!$E$34<>0,INTRO!$E$34,"") -> DRC | B117: ITURI | C117: Mahagi | D117: 188841 | E117: =IF(INTRO!$E$48="","",ROUND($D117*INTRO!$E$48,0)) -> 35880 | F117: =IF(INTRO!$E$49="","",ROUND($D117*INTRO!$E$49,0)) -> 66094 | G117: =IF(INTRO!$E$50="","",ROUND($D117*INTRO!$E$50,0)) -> 86867 | H117: 0 | I117: 0 | J117: 1 | K117: 1 | L117: =IF(INTRO!$E$38="Endemic", IF($H117>0, IF($H117=4,"Unknown", IF($H117=99,"Stopped", $D117)), 0),"Not required") -> 0 | M117: =IF(INTRO!$E$40="Endemic", IF($I117>0, IF($I117=4,"Unknown",IF($I117=99,"Stopped", $D117)), 0),"Not required") -> 0 | N117: =IF(INTRO!$E$42="Endemic", IF(AND($J117>1,$J117<5), IF($J117=4, "Unknown", E117+F117), 0),"Not required") -> 0 | O117: =IF(INTRO!$E$44="Endemic", IF(AND($K117>0,$K117<5), IF($K117=4,"Unknown", IF($K117=1, $F117*0.33, IF($K117=2, $F117*0.5+$G117*0.2, SUM(F117:G117)))), 0),"Not required") -> 21811.02 | P117: 0 | Q117: 0 | R117: 0 | S117: 0 | X117: 14258 | Y117: Mahagi
A118: =IF(INTRO!$E$34<>0,INTRO!$E$34,"") -> DRC | B118: ITURI | C118: Mambasa | D118: 96582 | E118: =IF(INTRO!$E$48="","",ROUND($D118*INTRO!$E$48,0)) -> 18351 | F118: =IF(INTRO!$E$49="","",ROUND($D118*INTRO!$E$49,0)) -> 33804 | G118: =IF(INTRO!$E$50="","",ROUND($D118*INTRO!$E$50,0)) -> 44428 | H118: 1 | I118: 1 | J118: 1 | K118: 2 | L118: =IF(INTRO!$E$38="Endemic", IF($H118>0, IF($H118=4,"Unknown", IF($H118=99,"Stopped", $D118)), 0),"Not required") -> 96582 | M118: =IF(INTRO!$E$40="Endemic", IF($I118>0, IF($I118=4,"Unknown",IF($I118=99,"Stopped", $D118)), 0),"Not required") -> 96582 | N118: =IF(INTRO!$E$42="Endemic", IF(AND($J118>1,$J118<5), IF($J118=4, "Unknown", E118+F118), 0),"Not required") -> 0 | O118: =IF(INTRO!$E$44="Endemic", IF(AND($K118>0,$K118<5), IF($K118=4,"Unknown", IF($K118=1, $F118*0.33, IF($K118=2, $F118*0.5+$G118*0.2, SUM(F118:G118)))), 0),"Not required") -> 25787.6 | P118: 1 | Q118: 1 | R118: 0 | S118: 1 | T118: MDA1 (IVM+ALB) | U118: T2 (PZQ) | X118: 14261 | Y118: Mambasa
A119: =IF(INTRO!$E$34<>0,INTRO!$E$34,"") -> DRC | B119: ITURI | C119: Mandima | D119: 144843 | E119: =IF(INTRO!$E$48="","",ROUND($D119*INTRO!$E$48,0)) -> 27520 | F119: =IF(INTRO!$E$49="","",ROUND($D119*INTRO!$E$49,0)) -> 50695 | G119: =IF(INTRO!$E$50="","",ROUND($D119*INTRO!$E$50,0)) -> 66628 | H119: 1 | I119: 1 | J119: 2 | K119: 1 | L119: =IF(INTRO!$E$38="Endemic", IF($H119>0, IF($H119=4,"Unknown", IF($H119=99,"Stopped", $D119)), 0),"Not required") -> 144843 | M119: =IF(INTRO!$E$40="Endemic", IF($I119>0, IF($I119=4,"Unknown",IF($I119=99,"Stopped", $D119)), 0),"Not required") -> 144843 | N119: =IF(INTRO!$E$42="Endemic", IF(AND($J119>1,$J119<5), IF($J119=4, "Unknown", E119+F119), 0),"Not required") -> 78215 | O119: =IF(INTRO!$E$44="Endemic", IF(AND($K119>0,$K119<5), IF($K119=4,"Unknown", IF($K119=1, $F119*0.33, IF($K119=2, $F119*0.5+$G119*0.2, SUM(F119:G119)))), 0),"Not required") -> 16729.35 | P119: 1 | Q119: 1 | R119: 1 | S119: 1 | T119: MDA1 (IVM+ALB) | U119: T2 (PZQ) | X119: 14262 | Y119: Mandima
A120: =IF(INTRO!$E$34<>0,INTRO!$E$34,"") -> DRC | B120: ITURI | C120: Mangala | D120: 62883 | E120: =IF(INTRO!$E$48="","",ROUND($D120*INTRO!$E$48,0)) -> 11948 | F120: =IF(INTRO!$E$49="","",ROUND($D120*INTRO!$E$49,0)) -> 22009 | G120: =IF(INTRO!$E$50="","",ROUND($D120*INTRO!$E$50,0)) -> 28926 | H120: 1 | I120: 0 | J120: 2 | K120: 1 | L120: =IF(INTRO!$E$38="Endemic", IF($H120>0, IF($H120=4,"Unknown", IF($H120=99,"Stopped", $D120)), 0),"Not required") -> 62883 | M120: =IF(INTRO!$E$40="Endemic", IF($I120>0, IF($I120=4,"Unknown",IF($I120=99,"Stopped", $D120)), 0),"Not required") -> 0 | N120: =IF(INTRO!$E$42="Endemic", IF(AND($J120>1,$J120<5), IF($J120=4, "Unknown", E120+F120), 0),"Not required") -> 33957 | O120: =IF(INTRO!$E$44="Endemic", IF(AND($K120>0,$K120<5), IF($K120=4,"Unknown", IF($K120=1, $F120*0.33, IF($K120=2, $F120*0.5+$G120*0.2, SUM(F120:G120)))), 0),"Not required") -> 7262.97 | P120: 0 | Q120: 0 | R120: 0 | S120: 0 | X120: 14263 | Y120: Mangala
A121: =IF(INTRO!$E$34<>0,INTRO!$E$34,"") -> DRC | B121: ITURI | C121: Mongbwalu | D121: 126540 | E121: =IF(INTRO!$E$48="","",ROUND($D121*INTRO!$E$48,0)) -> 24043 | F121: =IF(INTRO!$E$49="","",ROUND($D121*INTRO!$E$49,0)) -> 44289 | G121: =IF(INTRO!$E$50="","",ROUND($D121*INTRO!$E$50,0)) -> 58208 | H121: 0 | I121: 1 | J121: 2 | K121: 2 | L121: =IF(INTRO!$E$38="Endemic", IF($H121>0, IF($H121=4,"Unknown", IF($H121=99,"Stopped", $D121)), 0),"Not required") -> 0 | M121: =IF(INTRO!$E$40="Endemic", IF($I121>0, IF($I121=4,"Unknown",IF($I121=99,"Stopped", $D121)), 0),"Not required") -> 126540 | N121: =IF(INTRO!$E$42="Endemic", IF(AND($J121>1,$J121<5), IF($J121=4, "Unknown", E121+F121), 0),"Not required") -> 68332 | O121: =IF(INTRO!$E$44="Endemic", IF(AND($K121>0,$K121<5), IF($K121=4,"Unknown", IF($K121=1, $F121*0.33, IF($K121=2, $F121*0.5+$G121*0.2, SUM(F121:G121)))), 0),"Not required") -> 33786.1 | P121: 0 | Q121: 1 | R121: 1 | S121: 1 | T121: MDA3 (IVM) | U121: T1 (PZQ+ALB/MBD) | X121: 14267 | Y121: Mongbwalu
A122: =IF(INTRO!$E$34<>0,INTRO!$E$34,"") -> DRC | B122: ITURI | C122: Niania | D122: 74692 | E122: =IF(INTRO!$E$48="","",ROUND($D122*INTRO!$E$48,0)) -> 14191 | F122: =IF(INTRO!$E$49="","",ROUND($D122*INTRO!$E$49,0)) -> 26142 | G122: =IF(INTRO!$E$50="","",ROUND($D122*INTRO!$E$50,0)) -> 34358 | H122: 1 | I122: 1 | J122: 1 | K122: 2 | L122: =IF(INTRO!$E$38="Endemic", IF($H122>0, IF($H122=4,"Unknown", IF($H122=99,"Stopped", $D122)), 0),"Not required") -> 74692 | M122: =IF(INTRO!$E$40="Endemic", IF($I122>0, IF($I122=4,"Unknown",IF($I122=99,"Stopped", $D122)), 0),"Not required") -> 74692 | N122: =IF(INTRO!$E$42="Endemic", IF(AND($J122>1,$J122<5), IF($J122=4, "Unknown", E122+F122), 0),"Not required") -> 0 | O122: =IF(INTRO!$E$44="Endemic", IF(AND($K122>0,$K122<5), IF($K122=4,"Unknown", IF($K122=1, $F122*0.33, IF($K122=2, $F122*0.5+$G122*0.2, SUM(F122:G122)))), 0),"Not required") -> 19942.6 | P122: 1 | Q122: 1 | R122: 0 | S122: 1 | T122: MDA1 (IVM+ALB) | U122: T2 (PZQ) | X122: 14269 | Y122: Niania
A123: =IF(INTRO!$E$34<>0,INTRO!$E$34,"") -> DRC | B123: ITURI | C123: Nizi | D123: 128197 | E123: =IF(INTRO!$E$48="","",ROUND($D123*INTRO!$E$48,0)) -> 24357 | F123: =IF(INTRO!$E$49="","",ROUND($D123*INTRO!$E$49,0)) -> 44869 | G123: =IF(INTRO!$E$50="","",ROUND($D123*INTRO!$E$50,0)) -> 58971 | H123: 1 | I123: 0 | J123: 2 | K123: 1 | L123: =IF(INTRO!$E$38="Endemic", IF($H123>0, IF($H123=4,"Unknown", IF($H123=99,"Stopped", $D123)), 0),"Not required") -> 128197 | M123: =IF(INTRO!$E$40="Endemic", IF($I123>0, IF($I123=4,"Unknown",IF($I123=99,"Stopped", $D123)), 0),"Not required") -> 0 | N123: =IF(INTRO!$E$42="Endemic", IF(AND($J123>1,$J123<5), IF($J123=4, "Unknown", E123+F123), 0),"Not required") -> 69226 | O123: =IF(INTRO!$E$44="Endemic", IF(AND($K123>0,$K123<5), IF($K123=4,"Unknown", IF($K123=1, $F123*0.33, IF($K123=2, $F123*0.5+$G123*0.2, SUM(F123:G123)))), 0),"Not required") -> 14806.77 | P123: 0 | Q123: 0 | R123: 0 | S123: 0 | X123: 14270 | Y123: Nizi
A124: =IF(INTRO!$E$34<>0,INTRO!$E$34,"") -> DRC | B124: ITURI | C124: Nyankunde | D124: 101792 | E124: =IF(INTRO!$E$48="","",ROUND($D124*INTRO!$E$48,0)) -> 19340 | F124: =IF(INTRO!$E$49="","",ROUND($D124*INTRO!$E$49,0)) -> 35627 | G124: =IF(INTRO!$E$50="","",ROUND($D124*INTRO!$E$50,0)) -> 46824 | H124: 1 | I124: 1 | J124: 1 | K124: 2 | L124: =IF(INTRO!$E$38="Endemic", IF($H124>0, IF($H124=4,"Unknown", IF($H124=99,"Stopped", $D124)), 0),"Not required") -> 101792 | M124: =IF(INTRO!$E$40="Endemic", IF($I124>0, IF($I124=4,"Unknown",IF($I124=99,"Stopped", $D124)), 0),"Not required") -> 101792 | N124: =IF(INTRO!$E$42="Endemic", IF(AND($J124>1,$J124<5), IF($J124=4, "Unknown", E124+F124), 0),"Not required") -> 0 | O124: =IF(INTRO!$E$44="Endemic", IF(AND($K124>0,$K124<5), IF($K124=4,"Unknown", IF($K124=1, $F124*0.33, IF($K124=2, $F124*0.5+$G124*0.2, SUM(F124:G124)))), 0),"Not required") -> 27178.3 | P124: 1 | Q124: 1 | R124: 0 | S124: 1 | T124: MDA1 (IVM+ALB) | U124: T2 (PZQ) | X124: 14271 | Y124: Nyankunde
A125: =IF(INTRO!$E$34<>0,INTRO!$E$34,"") -> DRC | B125: ITURI | C125: Nyarambe | D125: 230453 | E125: =IF(INTRO!$E$48="","",ROUND($D125*INTRO!$E$48,0)) -> 43786 | F125: =IF(INTRO!$E$49="","",ROUND($D125*INTRO!$E$49,0)) -> 80659 | G125: =IF(INTRO!$E$50="","",ROUND($D125*INTRO!$E$50,0)) -> 106008 | H125: 1 | I125: 0 | J125: 0 | K125: 3 | L125: =IF(INTRO!$E$38="Endemic", IF($H125>0, IF($H125=4,"Unknown", IF($H125=99,"Stopped", $D125)), 0),"Not required") -> 230453 | M125: =IF(INTRO!$E$40="Endemic", IF($I125>0, IF($I125=4,"Unknown",IF($I125=99,"Stopped", $D125)), 0),"Not required") -> 0 | N125: =IF(INTRO!$E$42="Endemic", IF(AND($J125>1,$J125<5), IF($J125=4, "Unknown", E125+F125), 0),"Not required") -> 0 | O125: =IF(INTRO!$E$44="Endemic", IF(AND($K125>0,$K125<5), IF($K125=4,"Unknown", IF($K125=1, $F125*0.33, IF($K125=2, $F125*0.5+$G125*0.2, SUM(F125:G125)))), 0),"Not required") -> 186667 | P125: 1 | Q125: 0 | R125: 0 | S125: 1 | T125: MDA1 (IVM+ALB) | U125: T2 (PZQ) | X125: 14272 | Y125: Nyarambe
A126: =IF(INTRO!$E$34<>0,INTRO!$E$34,"") -> DRC | B126: ITURI | C126: Rethy | D126: 204655 | E126: =IF(INTRO!$E$48="","",ROUND($D126*INTRO!$E$48,0)) -> 38884 | F126: =IF(INTRO!$E$49="","",ROUND($D126*INTRO!$E$49,0)) -> 71629 | G126: =IF(INTRO!$E$50="","",ROUND($D126*INTRO!$E$50,0)) -> 94141 | H126: 1 | I126: 1 | J126: 1 | K126: 1 | L126: =IF(INTRO!$E$38="Endemic", IF($H126>0, IF($H126=4,"Unknown", IF($H126=99,"Stopped", $D126)), 0),"Not required") -> 204655 | M126: =IF(INTRO!$E$40="Endemic", IF($I126>0, IF($I126=4,"Unknown",IF($I126=99,"Stopped", $D126)), 0),"Not required") -> 204655 | N126: =IF(INTRO!$E$42="Endemic", IF(AND($J126>1,$J126<5), IF($J126=4, "Unknown", E126+F126), 0),"Not required") -> 0 | O126: =IF(INTRO!$E$44="Endemic", IF(AND($K126>0,$K126<5), IF($K126=4,"Unknown", IF($K126=1, $F126*0.33, IF($K126=2, $F126*0.5+$G126*0.2, SUM(F126:G126)))), 0),"Not required") -> 23637.57 | P126: 1 | Q126: 1 | R126: 0 | S126: 1 | T126: MDA1 (IVM+ALB) | U126: T2 (PZQ) | X126: 14277 | Y126: Rethy
A127: =IF(INTRO!$E$34<>0,INTRO!$E$34,"") -> DRC | B127: ITURI | C127: Rimba | D127: 152338 | E127: =IF(INTRO!$E$48="","",ROUND($D127*INTRO!$E$48,0)) -> 28944 | F127: =IF(INTRO!$E$49="","",ROUND($D127*INTRO!$E$49,0)) -> 53318 | G127: =IF(INTRO!$E$50="","",ROUND($D127*INTRO!$E$50,0)) -> 70075 | H127: 0 | I127: 1 | J127: 1 | K127: 1 | L127: =IF(INTRO!$E$38="Endemic", IF($H127>0, IF($H127=4,"Unknown", IF($H127=99,"Stopped", $D127)), 0),"Not required") -> 0 | M127: =IF(INTRO!$E$40="Endemic", IF($I127>0, IF($I127=4,"Unknown",IF($I127=99,"Stopped", $D127)), 0),"Not required") -> 152338 | N127: =IF(INTRO!$E$42="Endemic", IF(AND($J127>1,$J127<5), IF($J127=4, "Unknown", E127+F127), 0),"Not required") -> 0 | O127: =IF(INTRO!$E$44="Endemic", IF(AND($K127>0,$K127<5), IF($K127=4,"Unknown", IF($K127=1, $F127*0.33, IF($K127=2, $F127*0.5+$G127*0.2, SUM(F127:G127)))), 0),"Not required") -> 17594.94 | P127: 0 | Q127: 1 | R127: 0 | S127: 1 | T127: MDA3 (IVM) | U127: T2 (PZQ) | X127: 14278 | Y127: Rimba
A128: =IF(INTRO!$E$34<>0,INTRO!$E$34,"") -> DRC | B128: ITURI | C128: Rwampara | D128: 133515 | E128: =IF(INTRO!$E$48="","",ROUND($D128*INTRO!$E$48,0)) -> 25368 | F128: =IF(INTRO!$E$49="","",ROUND($D128*INTRO!$E$49,0)) -> 46730 | G128: =IF(INTRO!$E$50="","",ROUND($D128*INTRO!$E$50,0)) -> 61417 | H128: 1 | I128: 1 | J128: 1 | K128: 2 | L128: =IF(INTRO!$E$38="Endemic", IF($H128>0, IF($H128=4,"Unknown", IF($H128=99,"Stopped", $D128)), 0),"Not required") -> 133515 | M128: =IF(INTRO!$E$40="Endemic", IF($I128>0, IF($I128=4,"Unknown",IF($I128=99,"Stopped", $D128)), 0),"Not required") -> 133515 | N128: =IF(INTRO!$E$42="Endemic", IF(AND($J128>1,$J128<5), IF($J128=4, "Unknown", E128+F128), 0),"Not required") -> 0 | O128: =IF(INTRO!$E$44="Endemic", IF(AND($K128>0,$K128<5), IF($K128=4,"Unknown", IF($K128=1, $F128*0.33, IF($K128=2, $F128*0.5+$G128*0.2, SUM(F128:G128)))), 0),"Not required") -> 35648.4 | P128: 1 | Q128: 1 | R128: 0 | S128: 1 | T128: MDA1 (IVM+ALB) | U128: T2 (PZQ) | X128: 14280 | Y128: Rwampara
A129: =IF(INTRO!$E$34<>0,INTRO!$E$34,"") -> DRC | B129: ITURI | C129: Tchomia | D129: 106975 | E129: =IF(INTRO!$E$48="","",ROUND($D129*INTRO!$E$48,0)) -> 20325 | F129: =IF(INTRO!$E$49="","",ROUND($D129*INTRO!$E$49,0)) -> 37441 | G129: =IF(INTRO!$E$50="","",ROUND($D129*INTRO!$E$50,0)) -> 49209 | H129: 1 | I129: 0 | J129: 1 | K129: 3 | L129: =IF(INTRO!$E$38="Endemic", IF($H129>0, IF($H129=4,"Unknown", IF($H129=99,"Stopped", $D129)), 0),"Not required") -> 106975 | M129: =IF(INTRO!$E$40="Endemic", IF($I129>0, IF($I129=4,"Unknown",IF($I129=99,"Stopped", $D129)), 0),"Not required") -> 0 | N129: =IF(INTRO!$E$42="Endemic", IF(AND($J129>1,$J129<5), IF($J129=4, "Unknown", E129+F129), 0),"Not required") -> 0 | O129: =IF(INTRO!$E$44="Endemic", IF(AND($K129>0,$K129<5), IF($K129=4,"Unknown", IF($K129=1, $F129*0.33, IF($K129=2, $F129*0.5+$G129*0.2, SUM(F129:G129)))), 0),"Not required") -> 86650 | P129: 0 | Q129: 0 | R129: 0 | S129: 0 | X129: 14281 | Y129: Tchomia
A130: =IF(INTRO!$E$34<>0,INTRO!$E$34,"") -> DRC | B130: KASAI | C130: Banga Lubaka | D130: 176723 | E130: =IF(INTRO!$E$48="","",ROUND($D130*INTRO!$E$48,0)) -> 33577 | F130: =IF(INTRO!$E$49="","",ROUND($D130*INTRO!$E$49,0)) -> 61853 | G130: =IF(INTRO!$E$50="","",ROUND($D130*INTRO!$E$50,0)) -> 81293 | H130: 1 | I130: 1 | J130: 3 | K130: 0 | L130: =IF(INTRO!$E$38="Endemic", IF($H130>0, IF($H130=4,"Unknown", IF($H130=99,"Stopped", $D130)), 0),"Not required") -> 176723 | M130: =IF(INTRO!$E$40="Endemic", IF($I130>0, IF($I130=4,"Unknown",IF($I130=99,"Stopped", $D130)), 0),"Not required") -> 176723 | N130: =IF(INTRO!$E$42="Endemic", IF(AND($J130>1,$J130<5), IF($J130=4, "Unknown", E130+F130), 0),"Not required") -> 95430 | O130: =IF(INTRO!$E$44="Endemic", IF(AND($K130>0,$K130<5), IF($K130=4,"Unknown", IF($K130=1, $F130*0.33, IF($K130=2, $F130*0.5+$G130*0.2, SUM(F130:G130)))), 0),"Not required") -> 0 | P130: 1 | Q130: 1 | R130: 1 | S130: 0 | T130: MDA1 (IVM+ALB) | X130: 13968 | Y130: Banga Lubaka
A131: =IF(INTRO!$E$34<>0,INTRO!$E$34,"") -> DRC | B131: KASAI | C131: Bulape | D131: 175447 | E131: =IF(INTRO!$E$48="","",ROUND($D131*INTRO!$E$48,0)) -> 33335 | F131: =IF(INTRO!$E$49="","",ROUND($D131*INTRO!$E$49,0)) -> 61406 | G131: =IF(INTRO!$E$50="","",ROUND($D131*INTRO!$E$50,0)) -> 80706 | H131: 0 | I131: 1 | J131: 2 | K131: 0 | L131: =IF(INTRO!$E$38="Endemic", IF($H131>0, IF($H131=4,"Unknown", IF($H131=99,"Stopped", $D131)), 0),"Not required") -> 0 | M131: =IF(INTRO!$E$40="Endemic", IF($I131>0, IF($I131=4,"Unknown",IF($I131=99,"Stopped", $D131)), 0),"Not required") -> 175447 | N131: =IF(INTRO!$E$42="Endemic", IF(AND($J131>1,$J131<5), IF($J131=4, "Unknown", E131+F131), 0),"Not required") -> 94741 | O131: =IF(INTRO!$E$44="Endemic", IF(AND($K131>0,$K131<5), IF($K131=4,"Unknown", IF($K131=1, $F131*0.33, IF($K131=2, $F131*0.5+$G131*0.2, SUM(F131:G131)))), 0),"Not required") -> 0 | P131: 0 | Q131: 1 | R131: 1 | S131: 0 | T131: MDA3 (IVM) | U131: T3 (ALB/MBD) | X131: 13972 | Y131: Bulape
A132: =IF(INTRO!$E$34<>0,INTRO!$E$34,"") -> DRC | B132: KASAI | C132: Dekese | D132: 168739 | E132: =IF(INTRO!$E$48="","",ROUND($D132*INTRO!$E$48,0)) -> 32060 | F132: =IF(INTRO!$E$49="","",ROUND($D132*INTRO!$E$49,0)) -> 59059 | G132: =IF(INTRO!$E$50="","",ROUND($D132*INTRO!$E$50,0)) -> 77620 | H132: 0 | I132: 1 | J132: 3 | K132: 0 | L132: =IF(INTRO!$E$38="Endemic", IF($H132>0, IF($H132=4,"Unknown", IF($H132=99,"Stopped", $D132)), 0),"Not required") -> 0 | M132: =IF(INTRO!$E$40="Endemic", IF($I132>0, IF($I132=4,"Unknown",IF($I132=99,"Stopped", $D132)), 0),"Not required") -> 168739 | N132: =IF(INTRO!$E$42="Endemic", IF(AND($J132>1,$J132<5), IF($J132=4, "Unknown", E132+F132), 0),"Not required") -> 91119 | O132: =IF(INTRO!$E$44="Endemic", IF(AND($K132>0,$K132<5), IF($K132=4,"Unknown", IF($K132=1, $F132*0.33, IF($K132=2, $F132*0.5+$G132*0.2, SUM(F132:G132)))), 0),"Not required") -> 0 | P132: 0 | Q132: 1 | R132: 1 | S132: 0 | T132: MDA3 (IVM) | U132: T3 (ALB/MBD) | X132: 13973 | Y132: Dekese
A133: =IF(INTRO!$E$34<>0,INTRO!$E$34,"") -> DRC | B133: KASAI | C133: Ilebo | D133: 192488 | E133: =IF(INTRO!$E$48="","",ROUND($D133*INTRO!$E$48,0)) -> 36573 | F133: =IF(INTRO!$E$49="","",ROUND($D133*INTRO!$E$49,0)) -> 67371 | G133: =IF(INTRO!$E$50="","",ROUND($D133*INTRO!$E$50,0)) -> 88544 | H133: 1 | I133: 1 | J133: 2 | K133: 0 | L133: =IF(INTRO!$E$38="Endemic", IF($H133>0, IF($H133=4,"Unknown", IF($H133=99,"Stopped", $D133)), 0),"Not required") -> 192488 | M133: =IF(INTRO!$E$40="Endemic", IF($I133>0, IF($I133=4,"Unknown",IF($I133=99,"Stopped", $D133)), 0),"Not required") -> 192488 | N133: =IF(INTRO!$E$42="Endemic", IF(AND($J133>1,$J133<5), IF($J133=4, "Unknown", E133+F133), 0),"Not required") -> 103944 | O133: =IF(INTRO!$E$44="Endemic", IF(AND($K133>0,$K133<5), IF($K133=4,"Unknown", IF($K133=1, $F133*0.33, IF($K133=2, $F133*0.5+$G133*0.2, SUM(F133:G133)))), 0),"Not required") -> 0 | P133: 1 | Q133: 1 | R133: 1 | S133: 0 | T133: MDA1 (IVM+ALB) | X133: 13976 | Y133: Ilebo
A134: =IF(INTRO!$E$34<>0,INTRO!$E$34,"") -> DRC | B134: KASAI | C134: Kakenge | D134: 188773 | E134: =IF(INTRO!$E$48="","",ROUND($D134*INTRO!$E$48,0)) -> 35867 | F134: =IF(INTRO!$E$49="","",ROUND($D134*INTRO!$E$49,0)) -> 66071 | G134: =IF(INTRO!$E$50="","",ROUND($D134*INTRO!$E$50,0)) -> 86836 | H134: 0 | I134: 1 | J134: 2 | K134: 0 | L134: =IF(INTRO!$E$38="Endemic", IF($H134>0, IF($H134=4,"Unknown", IF($H134=99,"Stopped", $D134)), 0),"Not required") -> 0 | M134: =IF(INTRO!$E$40="Endemic", IF($I134>0, IF($I134=4,"Unknown",IF($I134=99,"Stopped", $D134)), 0),"Not required") -> 188773 | N134: =IF(INTRO!$E$42="Endemic", IF(AND($J134>1,$J134<5), IF($J134=4, "Unknown", E134+F134), 0),"Not required") -> 101938 | O134: =IF(INTRO!$E$44="Endemic", IF(AND($K134>0,$K134<5), IF($K134=4,"Unknown", IF($K134=1, $F134*0.33, IF($K134=2, $F134*0.5+$G134*0.2, SUM(F134:G134)))), 0),"Not required") -> 0 | P134: 0 | Q134: 1 | R134: 1 | S134: 0 | T134: MDA3 (IVM) | U134: T3 (ALB/MBD) | X134: 13977 | Y134: Kakenge
A135: =IF(INTRO!$E$34<>0,INTRO!$E$34,"") -> DRC | B135: KASAI | C135: Kalonda | D135: 411157 | E135: =IF(INTRO!$E$48="","",ROUND($D135*INTRO!$E$48,0)) -> 78120 | F135: =IF(INTRO!$E$49="","",ROUND($D135*INTRO!$E$49,0)) -> 143905 | G135: =IF(INTRO!$E$50="","",ROUND($D135*INTRO!$E$50,0)) -> 189132 | H135: 0 | I135: 1 | J135: 1 | K135: 0 | L135: =IF(INTRO!$E$38="Endemic", IF($H135>0, IF($H135=4,"Unknown", IF($H135=99,"Stopped", $D135)), 0),"Not required") -> 0 | M135: =IF(INTRO!$E$40="Endemic", IF($I135>0, IF($I135=4,"Unknown",IF($I135=99,"Stopped", $D135)), 0),"Not required") -> 411157 | N135: =IF(INTRO!$E$42="Endemic", IF(AND($J135>1,$J135<5), IF($J135=4, "Unknown", E135+F135), 0),"Not required") -> 0 | O135: =IF(INTRO!$E$44="Endemic", IF(AND($K135>0,$K135<5), IF($K135=4,"Unknown", IF($K135=1, $F135*0.33, IF($K135=2, $F135*0.5+$G135*0.2, SUM(F135:G135)))), 0),"Not required") -> 0 | P135: 0 | Q135: 1 | R135: 0 | S135: 0 | T135: MDA3 (IVM) | X135: 13978 | Y135: Kalonda
A136: =IF(INTRO!$E$34<>0,INTRO!$E$34,"") -> DRC | B136: KASAI | C136: Kamonya | D136: 442415 | E136: =IF(INTRO!$E$48="","",ROUND($D136*INTRO!$E$48,0)) -> 84059 | F136: =IF(INTRO!$E$49="","",ROUND($D136*INTRO!$E$49,0)) -> 154845 | G136: =IF(INTRO!$E$50="","",ROUND($D136*INTRO!$E$50,0)) -> 203511 | H136: 1 | I136: 1 | J136: 1 | K136: 0 | L136: =IF(INTRO!$E$38="Endemic", IF($H136>0, IF($H136=4,"Unknown", IF($H136=99,"Stopped", $D136)), 0),"Not required") -> 442415 | M136: =IF(INTRO!$E$40="Endemic", IF($I136>0, IF($I136=4,"Unknown",IF($I136=99,"Stopped", $D136)), 0),"Not required") -> 442415 | N136: =IF(INTRO!$E$42="Endemic", IF(AND($J136>1,$J136<5), IF($J136=4, "Unknown", E136+F136), 0),"Not required") -> 0 | O136: =IF(INTRO!$E$44="Endemic", IF(AND($K136>0,$K136<5), IF($K136=4,"Unknown", IF($K136=1, $F136*0.33, IF($K136=2, $F136*0.5+$G136*0.2, SUM(F136:G136)))), 0),"Not required") -> 0 | P136: 1 | Q136: 1 | R136: 0 | S136: 0 | T136: MDA1 (IVM+ALB) | X136: 14340 | Y136: Kamonya
A137: =IF(INTRO!$E$34<>0,INTRO!$E$34,"") -> DRC | B137: KASAI | C137: Kamwesha | D137: 468266 | E137: =IF(INTRO!$E$48="","",ROUND($D137*INTRO!$E$48,0)) -> 88971 | F137: =IF(INTRO!$E$49="","",ROUND($D137*INTRO!$E$49,0)) -> 163893 | G137: =IF(INTRO!$E$50="","",ROUND($D137*INTRO!$E$50,0)) -> 215402 | H137: 1 | I137: 1 | J137: 1 | K137: 0 | L137: =IF(INTRO!$E$38="Endemic", IF($H137>0, IF($H137=4,"Unknown", IF($H137=99,"Stopped", $D137)), 0),"Not required") -> 468266 | M137: =IF(INTRO!$E$40="Endemic", IF($I137>0, IF($I137=4,"Unknown",IF($I137=99,"Stopped", $D137)), 0),"Not required") -> 468266 | N137: =IF(INTRO!$E$42="Endemic", IF(AND($J137>1,$J137<5), IF($J137=4, "Unknown", E137+F137), 0),"Not required") -> 0 | O137: =IF(INTRO!$E$44="Endemic", IF(AND($K137>0,$K137<5), IF($K137=4,"Unknown", IF($K137=1, $F137*0.33, IF($K137=2, $F137*0.5+$G137*0.2, SUM(F137:G137)))), 0),"Not required") -> 0 | P137: 1 | Q137: 1 | R137: 0 | S137: 0 | T137: MDA1 (IVM+ALB) | X137: 13979 | Y137: Kamwesha
A138: =IF(INTRO!$E$34<>0,INTRO!$E$34,"") -> DRC | B138: KASAI | C138: Kanzala | D138: 285052 | E138: =IF(INTRO!$E$48="","",ROUND($D138*INTRO!$E$48,0)) -> 54160 | F138: =IF(INTRO!$E$49="","",ROUND($D138*INTRO!$E$49,0)) -> 99768 | G138: =IF(INTRO!$E$50="","",ROUND($D138*INTRO!$E$50,0)) -> 131124 | H138: 0 | I138: 1 | J138: 1 | K138: 0 | L138: =IF(INTRO!$E$38="Endemic", IF($H138>0, IF($H138=4,"Unknown", IF($H138=99,"Stopped", $D138)), 0),"Not required") -> 0 | M138: =IF(INTRO!$E$40="Endemic", IF($I138>0, IF($I138=4,"Unknown",IF($I138=99,"Stopped", $D138)), 0),"Not required") -> 285052 | N138: =IF(INTRO!$E$42="Endemic", IF(AND($J138>1,$J138<5), IF($J138=4, "Unknown", E138+F138), 0),"Not required") -> 0 | O138: =IF(INTRO!$E$44="Endemic", IF(AND($K138>0,$K138<5), IF($K138=4,"Unknown", IF($K138=1, $F138*0.33, IF($K138=2, $F138*0.5+$G138*0.2, SUM(F138:G138)))), 0),"Not required") -> 0 | P138: 0 | Q138: 1 | R138: 0 | S138: 0 | T138: MDA3 (IVM) | X138: 13981 | Y138: Kanzala
A139: =IF(INTRO!$E$34<>0,INTRO!$E$34,"") -> DRC | B139: KASAI | C139: Kitangwa | D139: 278178 | E139: =IF(INTRO!$E$48="","",ROUND($D139*INTRO!$E$48,0)) -> 52854 | F139: =IF(INTRO!$E$49="","",ROUND($D139*INTRO!$E$49,0)) -> 97362 | G139: =IF(INTRO!$E$50="","",ROUND($D139*INTRO!$E$50,0)) -> 127962 | H139: 1 | I139: 1 | J139: 1 | K139: 0 | L139: =IF(INTRO!$E$38="Endemic", IF($H139>0, IF($H139=4,"Unknown", IF($H139=99,"Stopped", $D139)), 0),"Not required") -> 278178 | M139: =IF(INTRO!$E$40="Endemic", IF($I139>0, IF($I139=4,"Unknown",IF($I139=99,"Stopped", $D139)), 0),"Not required") -> 278178 | N139: =IF(INTRO!$E$42="Endemic", IF(AND($J139>1,$J139<5), IF($J139=4, "Unknown", E139+F139), 0),"Not required") -> 0 | O139: =IF(INTRO!$E$44="Endemic", IF(AND($K139>0,$K139<5), IF($K139=4,"Unknown", IF($K139=1, $F139*0.33, IF($K139=2, $F139*0.5+$G139*0.2, SUM(F139:G139)))), 0),"Not required") -> 0 | P139: 1 | Q139: 1 | R139: 0 | S139: 0 | T139: MDA1 (IVM+ALB) | X139: 13985 | Y139: Kitangwa
A140: =IF(INTRO!$E$34<>0,INTRO!$E$34,"") -> DRC | B140: KASAI | C140: Luebo | D140: 259167 | E140: =IF(INTRO!$E$48="","",ROUND($D140*INTRO!$E$48,0)) -> 49242 | F140: =IF(INTRO!$E$49="","",ROUND($D140*INTRO!$E$49,0)) -> 90708 | G140: =IF(INTRO!$E$50="","",ROUND($D140*INTRO!$E$50,0)) -> 119217 | H140: 1 | I140: 1 | J140: 3 | K140: 1 | L140: =IF(INTRO!$E$38="Endemic", IF($H140>0, IF($H140=4,"Unknown", IF($H140=99,"Stopped", $D140)), 0),"Not required") -> 259167 | M140: =IF(INTRO!$E$40="Endemic", IF($I140>0, IF($I140=4,"Unknown",IF($I140=99,"Stopped", $D140)), 0),"Not required") -> 259167 | N140: =IF(INTRO!$E$42="Endemic", IF(AND($J140>1,$J140<5), IF($J140=4, "Unknown", E140+F140), 0),"Not required") -> 139950 | O140: =IF(INTRO!$E$44="Endemic", IF(AND($K140>0,$K140<5), IF($K140=4,"Unknown", IF($K140=1, $F140*0.33, IF($K140=2, $F140*0.5+$G140*0.2, SUM(F140:G140)))), 0),"Not required") -> 29933.64 | P140: 1 | Q140: 1 | R140: 1 | S140: 1 | T140: MDA1 (IVM+ALB) | U140: T2 (PZQ) | X140: 13989 | Y140: Luebo
A141: =IF(INTRO!$E$34<>0,INTRO!$E$34,"") -> DRC | B141: KASAI | C141: Mikope | D141: 186139 | E141: =IF(INTRO!$E$48="","",ROUND($D141*INTRO!$E$48,0)) -> 35366 | F141: =IF(INTRO!$E$49="","",ROUND($D141*INTRO!$E$49,0)) -> 65149 | G141: =IF(INTRO!$E$50="","",ROUND($D141*INTRO!$E$50,0)) -> 85624 | H141: 1 | I141: 1 | J141: 3 | K141: 0 | L141: =IF(INTRO!$E$38="Endemic", IF($H141>0, IF($H141=4,"Unknown", IF($H141=99,"Stopped", $D141)), 0),"Not required") -> 186139 | M141: =IF(INTRO!$E$40="Endemic", IF($I141>0, IF($I141=4,"Unknown",IF($I141=99,"Stopped", $D141)), 0),"Not required") -> 186139 | N141: =IF(INTRO!$E$42="Endemic", IF(AND($J141>1,$J141<5), IF($J141=4, "Unknown", E141+F141), 0),"Not required") -> 100515 | O141: =IF(INTRO!$E$44="Endemic", IF(AND($K141>0,$K141<5), IF($K141=4,"Unknown", IF($K141=1, $F141*0.33, IF($K141=2, $F141*0.5+$G141*0.2, SUM(F141:G141)))), 0),"Not required") -> 0 | P141: 1 | Q141: 1 | R141: 1 | S141: 0 | T141: MDA1 (IVM+ALB) | X141: 13994 | Y141: Mikope
A142: =IF(INTRO!$E$34<>0,INTRO!$E$34,"") -> DRC | B142: KASAI | C142: Mushenge | D142: 169936 | E142: =IF(INTRO!$E$48="","",ROUND($D142*INTRO!$E$48,0)) -> 32288 | F142: =IF(INTRO!$E$49="","",ROUND($D142*INTRO!$E$49,0)) -> 59478 | G142: =IF(INTRO!$E$50="","",ROUND($D142*INTRO!$E$50,0)) -> 78171 | H142: 1 | I142: 1 | J142: 3 | K142: 0 | L142: =IF(INTRO!$E$38="Endemic", IF($H142>0, IF($H142=4,"Unknown", IF($H142=99,"Stopped", $D142)), 0),"Not required") -> 169936 | M142: =IF(INTRO!$E$40="Endemic", IF($I142>0, IF($I142=4,"Unknown",IF($I142=99,"Stopped", $D142)), 0),"Not required") -> 169936 | N142: =IF(INTRO!$E$42="Endemic", IF(AND($J142>1,$J142<5), IF($J142=4, "Unknown", E142+F142), 0),"Not required") -> 91766 | O142: =IF(INTRO!$E$44="Endemic", IF(AND($K142>0,$K142<5), IF($K142=4,"Unknown", IF($K142=1, $F142*0.33, IF($K142=2, $F142*0.5+$G142*0.2, SUM(F142:G142)))), 0),"Not required") -> 0 | P142: 1 | Q142: 1 | R142: 1 | S142: 0 | T142: MDA1 (IVM+ALB) | X142: 13995 | Y142: Mushenge
A143: =IF(INTRO!$E$34<>0,INTRO!$E$34,"") -> DRC | B143: KASAI | C143: Mutenna | D143: 299925 | E143: =IF(INTRO!$E$48="","",ROUND($D143*INTRO!$E$48,0)) -> 56986 | F143: =IF(INTRO!$E$49="","",ROUND($D143*INTRO!$E$49,0)) -> 104974 | G143: =IF(INTRO!$E$50="","",ROUND($D143*INTRO!$E$50,0)) -> 137966 | H143: 1 | I143: 1 | J143: 1 | K143: 0 | L143: =IF(INTRO!$E$38="Endemic", IF($H143>0, IF($H143=4,"Unknown", IF($H143=99,"Stopped", $D143)), 0),"Not required") -> 299925 | M143: =IF(INTRO!$E$40="Endemic", IF($I143>0, IF($I143=4,"Unknown",IF($I143=99,"Stopped", $D143)), 0),"Not required") -> 299925 | N143: =IF(INTRO!$E$42="Endemic", IF(AND($J143>1,$J143<5), IF($J143=4, "Unknown", E143+F143), 0),"Not required") -> 0 | O143: =IF(INTRO!$E$44="Endemic", IF(AND($K143>0,$K143<5), IF($K143=4,"Unknown", IF($K143=1, $F143*0.33, IF($K143=2, $F143*0.5+$G143*0.2, SUM(F143:G143)))), 0),"Not required") -> 0 | P143: 1 | Q143: 1 | R143: 0 | S143: 0 | T143: MDA1 (IVM+ALB) | X143: 13997 | Y143: Mutenna
A144: =IF(INTRO!$E$34<>0,INTRO!$E$34,"") -> DRC | B144: KASAI | C144: Mweka | D144: 217253 | E144: =IF(INTRO!$E$48="","",ROUND($D144*INTRO!$E$48,0)) -> 41278 | F144: =IF(INTRO!$E$49="","",ROUND($D144*INTRO!$E$49,0)) -> 76039 | G144: =IF(INTRO!$E$50="","",ROUND($D144*INTRO!$E$50,0)) -> 99936 | H144: 0 | I144: 1 | J144: 2 | K144: 0 | L144: =IF(INTRO!$E$38="Endemic", IF($H144>0, IF($H144=4,"Unknown", IF($H144=99,"Stopped", $D144)), 0),"Not required") -> 0 | M144: =IF(INTRO!$E$40="Endemic", IF($I144>0, IF($I144=4,"Unknown",IF($I144=99,"Stopped", $D144)), 0),"Not required") -> 217253 | N144: =IF(INTRO!$E$42="Endemic", IF(AND($J144>1,$J144<5), IF($J144=4, "Unknown", E144+F144), 0),"Not required") -> 117317 | O144: =IF(INTRO!$E$44="Endemic", IF(AND($K144>0,$K144<5), IF($K144=4,"Unknown", IF($K144=1, $F144*0.33, IF($K144=2, $F144*0.5+$G144*0.2, SUM(F144:G144)))), 0),"Not required") -> 0 | P144: 0 | Q144: 1 | R144: 1 | S144: 0 | T144: MDA3 (IVM) | U144: T3 (ALB/MBD) | X144: 13999 | Y144: Mweka
A145: =IF(INTRO!$E$34<>0,INTRO!$E$34,"") -> DRC | B145: KASAI | C145: Ndjoko Punda | D145: 167721 | E145: =IF(INTRO!$E$48="","",ROUND($D145*INTRO!$E$48,0)) -> 31867 | F145: =IF(INTRO!$E$49="","",ROUND($D145*INTRO!$E$49,0)) -> 58702 | G145: =IF(INTRO!$E$50="","",ROUND($D145*INTRO!$E$50,0)) -> 77152 | H145: 1 | I145: 1 | J145: 3 | K145: 0 | L145: =IF(INTRO!$E$38="Endemic", IF($H145>0, IF($H145=4,"Unknown", IF($H145=99,"Stopped", $D145)), 0),"Not required") -> 167721 | M145: =IF(INTRO!$E$40="Endemic", IF($I145>0, IF($I145=4,"Unknown",IF($I145=99,"Stopped", $D145)), 0),"Not required") -> 167721 | N145: =IF(INTRO!$E$42="Endemic", IF(AND($J145>1,$J145<5), IF($J145=4, "Unknown", E145+F145), 0),"Not required") -> 90569 | O145: =IF(INTRO!$E$44="Endemic", IF(AND($K145>0,$K145<5), IF($K145=4,"Unknown", IF($K145=1, $F145*0.33, IF($K145=2, $F145*0.5+$G145*0.2, SUM(F145:G145)))), 0),"Not required") -> 0 | P145: 1 | Q145: 1 | R145: 1 | S145: 0 | T145: MDA1 (IVM+ALB) | X145: 14003 | Y145: Ndjoko Punda
A146: =IF(INTRO!$E$34<>0,INTRO!$E$34,"") -> DRC | B146: KASAI | C146: Nyanga | D146: 116674 | E146: =IF(INTRO!$E$48="","",ROUND($D146*INTRO!$E$48,0)) -> 22168 | F146: =IF(INTRO!$E$49="","",ROUND($D146*INTRO!$E$49,0)) -> 40836 | G146: =IF(INTRO!$E$50="","",ROUND($D146*INTRO!$E$50,0)) -> 53670 | H146: 1 | I146: 1 | J146: 1 | K146: 0 | L146: =IF(INTRO!$E$38="Endemic", IF($H146>0, IF($H146=4,"Unknown", IF($H146=99,"Stopped", $D146)), 0),"Not required") -> 116674 | M146: =IF(INTRO!$E$40="Endemic", IF($I146>0, IF($I146=4,"Unknown",IF($I146=99,"Stopped", $D146)), 0),"Not required") -> 116674 | N146: =IF(INTRO!$E$42="Endemic", IF(AND($J146>1,$J146<5), IF($J146=4, "Unknown", E146+F146), 0),"Not required") -> 0 | O146: =IF(INTRO!$E$44="Endemic", IF(AND($K146>0,$K146<5), IF($K146=4,"Unknown", IF($K146=1, $F146*0.33, IF($K146=2, $F146*0.5+$G146*0.2, SUM(F146:G146)))), 0),"Not required") -> 0 | P146: 1 | Q146: 1 | R146: 0 | S146: 0 | T146: MDA1 (IVM+ALB) | X146: 14004 | Y146: Nyanga
A147: =IF(INTRO!$E$34<>0,INTRO!$E$34,"") -> DRC | B147: KASAI | C147: Tshikapa | D147: 392919 | E147: =IF(INTRO!$E$48="","",ROUND($D147*INTRO!$E$48,0)) -> 74655 | F147: =IF(INTRO!$E$49="","",ROUND($D147*INTRO!$E$49,0)) -> 137522 | G147: =IF(INTRO!$E$50="","",ROUND($D147*INTRO!$E$50,0)) -> 180743 | H147: 0 | I147: 1 | J147: 1 | K147: 0 | L147: =IF(INTRO!$E$38="Endemic", IF($H147>0, IF($H147=4,"Unknown", IF($H147=99,"Stopped", $D147)), 0),"Not required") -> 0 | M147: =IF(INTRO!$E$40="Endemic", IF($I147>0, IF($I147=4,"Unknown",IF($I147=99,"Stopped", $D147)), 0),"Not required") -> 392919 | N147: =IF(INTRO!$E$42="Endemic", IF(AND($J147>1,$J147<5), IF($J147=4, "Unknown", E147+F147), 0),"Not required") -> 0 | O147: =IF(INTRO!$E$44="Endemic", IF(AND($K147>0,$K147<5), IF($K147=4,"Unknown", IF($K147=1, $F147*0.33, IF($K147=2, $F147*0.5+$G147*0.2, SUM(F147:G147)))), 0),"Not required") -> 0 | P147: 0 | Q147: 1 | R147: 0 | S147: 0 | T147: MDA3 (IVM) | X147: 14006 | Y147: Tshikapa
A148: =IF(INTRO!$E$34<>0,INTRO!$E$34,"") -> DRC | B148: KASAI CENTRAL | C148: Bena Leke | D148: 298340 | E148: =IF(INTRO!$E$48="","",ROUND($D148*INTRO!$E$48,0)) -> 56685 | F148: =IF(INTRO!$E$49="","",ROUND($D148*INTRO!$E$49,0)) -> 104419 | G148: =IF(INTRO!$E$50="","",ROUND($D148*INTRO!$E$50,0)) -> 137236 | H148: 0 | I148: 1 | J148: 3 | K148: 0 | L148: =IF(INTRO!$E$38="Endemic", IF($H148>0, IF($H148=4,"Unknown", IF($H148=99,"Stopped", $D148)), 0),"Not required") -> 0 | M148: =IF(INTRO!$E$40="Endemic", IF($I148>0, IF($I148=4,"Unknown",IF($I148=99,"Stopped", $D148)), 0),"Not required") -> 298340 | N148: =IF(INTRO!$E$42="Endemic", IF(AND($J148>1,$J148<5), IF($J148=4, "Unknown", E148+F148), 0),"Not required") -> 161104 | O148: =IF(INTRO!$E$44="Endemic", IF(AND($K148>0,$K148<5), IF($K148=4,"Unknown", IF($K148=1, $F148*0.33, IF($K148=2, $F148*0.5+$G148*0.2, SUM(F148:G148)))), 0),"Not required") -> 0 | P148: 0 | Q148: 1 | R148: 1 | S148: 0 | T148: MDA3 (IVM) | U148: T3 (ALB/MBD) | X148: 13969 | Y148: Bena Leke
A149: =IF(INTRO!$E$34<>0,INTRO!$E$34,"") -> DRC | B149: KASAI CENTRAL | C149: Bena Tshadi | D149: 119127 | E149: =IF(INTRO!$E$48="","",ROUND($D149*INTRO!$E$48,0)) -> 22634 | F149: =IF(INTRO!$E$49="","",ROUND($D149*INTRO!$E$49,0)) -> 41694 | G149: =IF(INTRO!$E$50="","",ROUND($D149*INTRO!$E$50,0)) -> 54798 | H149: 0 | I149: 1 | J149: 3 | K149: 0 | L149: =IF(INTRO!$E$38="Endemic", IF($H149>0, IF($H149=4,"Unknown", IF($H149=99,"Stopped", $D149)), 0),"Not required") -> 0 | M149: =IF(INTRO!$E$40="Endemic", IF($I149>0, IF($I149=4,"Unknown",IF($I149=99,"Stopped", $D149)), 0),"Not required") -> 119127 | N149: =IF(INTRO!$E$42="Endemic", IF(AND($J149>1,$J149<5), IF($J149=4, "Unknown", E149+F149), 0),"Not required") -> 64328 | O149: =IF(INTRO!$E$44="Endemic", IF(AND($K149>0,$K149<5), IF($K149=4,"Unknown", IF($K149=1, $F149*0.33, IF($K149=2, $F149*0.5+$G149*0.2, SUM(F149:G149)))), 0),"Not required") -> 0 | P149: 0 | Q149: 1 | R149: 1 | S149: 0 | T149: MDA3 (IVM) | U149: T3 (ALB/MBD) | X149: 13982 | Y149: Bena Tshadi
A150: =IF(INTRO!$E$34<>0,INTRO!$E$34,"") -> DRC | B150: KASAI CENTRAL | C150: Bilonda | D150: 90391 | E150: =IF(INTRO!$E$48="","",ROUND($D150*INTRO!$E$48,0)) -> 17174 | F150: =IF(INTRO!$E$49="","",ROUND($D150*INTRO!$E$49,0)) -> 31637 | G150: =IF(INTRO!$E$50="","",ROUND($D150*INTRO!$E$50,0)) -> 41580 | H150: 1 | I150: 1 | J150: 2 | K150: 0 | L150: =IF(INTRO!$E$38="Endemic", IF($H150>0, IF($H150=4,"Unknown", IF($H150=99,"Stopped", $D150)), 0),"Not required") -> 90391 | M150: =IF(INTRO!$E$40="Endemic", IF($I150>0, IF($I150=4,"Unknown",IF($I150=99,"Stopped", $D150)), 0),"Not required") -> 90391 | N150: =IF(INTRO!$E$42="Endemic", IF(AND($J150>1,$J150<5), IF($J150=4, "Unknown", E150+F150), 0),"Not required") -> 48811 | O150: =IF(INTRO!$E$44="Endemic", IF(AND($K150>0,$K150<5), IF($K150=4,"Unknown", IF($K150=1, $F150*0.33, IF($K150=2, $F150*0.5+$G150*0.2, SUM(F150:G150)))), 0),"Not required") -> 0 | P150: 1 | Q150: 1 | R150: 1 | S150: 0 | T150: MDA1 (IVM+ALB) | X150: 13970 | Y150: Bilonda
A151: =IF(INTRO!$E$34<>0,INTRO!$E$34,"") -> DRC | B151: KASAI CENTRAL | C151: Bobozo | D151: 42269 | E151: =IF(INTRO!$E$48="","",ROUND($D151*INTRO!$E$48,0)) -> 8031 | F151: =IF(INTRO!$E$49="","",ROUND($D151*INTRO!$E$49,0)) -> 14794 | G151: =IF(INTRO!$E$50="","",ROUND($D151*INTRO!$E$50,0)) -> 19444 | H151: 0 | I151: 1 | J151: 2 | K151: 0 | L151: =IF(INTRO!$E$38="Endemic", IF($H151>0, IF($H151=4,"Unknown", IF($H151=99,"Stopped", $D151)), 0),"Not required") -> 0 | M151: =IF(INTRO!$E$40="Endemic", IF($I151>0, IF($I151=4,"Unknown",IF($I151=99,"Stopped", $D151)), 0),"Not required") -> 42269 | N151: =IF(INTRO!$E$42="Endemic", IF(AND($J151>1,$J151<5), IF($J151=4, "Unknown", E151+F151), 0),"Not required") -> 22825 | O151: =IF(INTRO!$E$44="Endemic", IF(AND($K151>0,$K151<5), IF($K151=4,"Unknown", IF($K151=1, $F151*0.33, IF($K151=2, $F151*0.5+$G151*0.2, SUM(F151:G151)))), 0),"Not required") -> 0 | P151: 0 | Q151: 1 | R151: 1 | S151: 0 | T151: MDA3 (IVM) | U151: T3 (ALB/MBD) | X151: 13971 | Y151: Bobozo
A152: =IF(INTRO!$E$34<>0,INTRO!$E$34,"") -> DRC | B152: KASAI CENTRAL | C152: Bukonde | D152: 106205 | E152: =IF(INTRO!$E$48="","",ROUND($D152*INTRO!$E$48,0)) -> 20179 | F152: =IF(INTRO!$E$49="","",ROUND($D152*INTRO!$E$49,0)) -> 37172 | G152: =IF(INTRO!$E$50="","",ROUND($D152*INTRO!$E$50,0)) -> 48854 | H152: 0 | I152: 1 | J152: 2 | K152: 1 | L152: =IF(INTRO!$E$38="Endemic", IF($H152>0, IF($H152=4,"Unknown", IF($H152=99,"Stopped", $D152)), 0),"Not required") -> 0 | M152: =IF(INTRO!$E$40="Endemic", IF($I152>0, IF($I152=4,"Unknown",IF($I152=99,"Stopped", $D152)), 0),"Not required") -> 106205 | N152: =IF(INTRO!$E$42="Endemic", IF(AND($J152>1,$J152<5), IF($J152=4, "Unknown", E152+F152), 0),"Not required") -> 57351 | O152: =IF(INTRO!$E$44="Endemic", IF(AND($K152>0,$K152<5), IF($K152=4,"Unknown", IF($K152=1, $F152*0.33, IF($K152=2, $F152*0.5+$G152*0.2, SUM(F152:G152)))), 0),"Not required") -> 12266.76 | P152: 0 | Q152: 1 | R152: 1 | S152: 1 | T152: MDA3 (IVM) | U152: T1 (PZQ+ALB/MBD) | X152: 14338 | Y152: Bukonde
A153: =IF(INTRO!$E$34<>0,INTRO!$E$34,"") -> DRC | B153: KASAI CENTRAL | C153: Demba | D153: 356168 | E153: =IF(INTRO!$E$48="","",ROUND($D153*INTRO!$E$48,0)) -> 67672 | F153: =IF(INTRO!$E$49="","",ROUND($D153*INTRO!$E$49,0)) -> 124659 | G153: =IF(INTRO!$E$50="","",ROUND($D153*INTRO!$E$50,0)) -> 163837 | H153: 0 | I153: 1 | J153: 2 | K153: 0 | L153: =IF(INTRO!$E$38="Endemic", IF($H153>0, IF($H153=4,"Unknown", IF($H153=99,"Stopped", $D153)), 0),"Not required") -> 0 | M153: =IF(INTRO!$E$40="Endemic", IF($I153>0, IF($I153=4,"Unknown",IF($I153=99,"Stopped", $D153)), 0),"Not required") -> 356168 | N153: =IF(INTRO!$E$42="Endemic", IF(AND($J153>1,$J153<5), IF($J153=4, "Unknown", E153+F153), 0),"Not required") -> 192331 | O153: =IF(INTRO!$E$44="Endemic", IF(AND($K153>0,$K153<5), IF($K153=4,"Unknown", IF($K153=1, $F153*0.33, IF($K153=2, $F153*0.5+$G153*0.2, SUM(F153:G153)))), 0),"Not required") -> 0 | P153: 0 | Q153: 1 | R153: 1 | S153: 0 | T153: MDA3 (IVM) | U153: T3 (ALB/MBD) | X153: 13974 | Y153: Demba
A154: =IF(INTRO!$E$34<>0,INTRO!$E$34,"") -> DRC | B154: KASAI CENTRAL | C154: Dibaya | D154: 166421 | E154: =IF(INTRO!$E$48="","",ROUND($D154*INTRO!$E$48,0)) -> 31620 | F154: =IF(INTRO!$E$49="","",ROUND($D154*INTRO!$E$49,0)) -> 58247 | G154: =IF(INTRO!$E$50="","",ROUND($D154*INTRO!$E$50,0)) -> 76554 | H154: 0 | I154: 1 | J154: 2 | K154: 0 | L154: =IF(INTRO!$E$38="Endemic", IF($H154>0, IF($H154=4,"Unknown", IF($H154=99,"Stopped", $D154)), 0),"Not required") -> 0 | M154: =IF(INTRO!$E$40="Endemic", IF($I154>0, IF($I154=4,"Unknown",IF($I154=99,"Stopped", $D154)), 0),"Not required") -> 166421 | N154: =IF(INTRO!$E$42="Endemic", IF(AND($J154>1,$J154<5), IF($J154=4, "Unknown", E154+F154), 0),"Not required") -> 89867 | O154: =IF(INTRO!$E$44="Endemic", IF(AND($K154>0,$K154<5), IF($K154=4,"Unknown", IF($K154=1, $F154*0.33, IF($K154=2, $F154*0.5+$G154*0.2, SUM(F154:G154)))), 0),"Not required") -> 0 | P154: 0 | Q154: 1 | R154: 1 | S154: 0 | T154: MDA3 (IVM) | U154: T3 (ALB/MBD) | X154: 13975 | Y154: Dibaya
A155: =IF(INTRO!$E$34<>0,INTRO!$E$34,"") -> DRC | B155: KASAI CENTRAL | C155: Kalomba | D155: 160157 | E155: =IF(INTRO!$E$48="","",ROUND($D155*INTRO!$E$48,0)) -> 30430 | F155: =IF(INTRO!$E$49="","",ROUND($D155*INTRO!$E$49,0)) -> 56055 | G155: =IF(INTRO!$E$50="","",ROUND($D155*INTRO!$E$50,0)) -> 73672 | H155: 1 | I155: 1 | J155: 2 | K155: 0 | L155: =IF(INTRO!$E$38="Endemic", IF($H155>0, IF($H155=4,"Unknown", IF($H155=99,"Stopped", $D155)), 0),"Not required") -> 160157 | M155: =IF(INTRO!$E$40="Endemic", IF($I155>0, IF($I155=4,"Unknown",IF($I155=99,"Stopped", $D155)), 0),"Not required") -> 160157 | N155: =IF(INTRO!$E$42="Endemic", IF(AND($J155>1,$J155<5), IF($J155=4, "Unknown", E155+F155), 0),"Not required") -> 86485 | O155: =IF(INTRO!$E$44="Endemic", IF(AND($K155>0,$K155<5), IF($K155=4,"Unknown", IF($K155=1, $F155*0.33, IF($K155=2, $F155*0.5+$G155*0.2, SUM(F155:G155)))), 0),"Not required") -> 0 | P155: 1 | Q155: 1 | R155: 1 | S155: 0 | T155: MDA1 (IVM+ALB) | X155: 14332 | Y155: Kalomda
A156: =IF(INTRO!$E$34<>0,INTRO!$E$34,"") -> DRC | B156: KASAI CENTRAL | C156: Kananga | D156: 294457 | E156: =IF(INTRO!$E$48="","",ROUND($D156*INTRO!$E$48,0)) -> 55947 | F156: =IF(INTRO!$E$49="","",ROUND($D156*INTRO!$E$49,0)) -> 103060 | G156: =IF(INTRO!$E$50="","",ROUND($D156*INTRO!$E$50,0)) -> 135450 | H156: 1 | I156: 1 | J156: 2 | K156: 0 | L156: =IF(INTRO!$E$38="Endemic", IF($H156>0, IF($H156=4,"Unknown", IF($H156=99,"Stopped", $D156)), 0),"Not required") -> 294457 | M156: =IF(INTRO!$E$40="Endemic", IF($I156>0, IF($I156=4,"Unknown",IF($I156=99,"Stopped", $D156)), 0),"Not required") -> 294457 | N156: =IF(INTRO!$E$42="Endemic", IF(AND($J156>1,$J156<5), IF($J156=4, "Unknown", E156+F156), 0),"Not required") -> 159007 | O156: =IF(INTRO!$E$44="Endemic", IF(AND($K156>0,$K156<5), IF($K156=4,"Unknown", IF($K156=1, $F156*0.33, IF($K156=2, $F156*0.5+$G156*0.2, SUM(F156:G156)))), 0),"Not required") -> 0 | P156: 1 | Q156: 1 | R156: 1 | S156: 0 | T156: MDA1 (IVM+ALB) | X156: 13980 | Y156: Kananga
A157: =IF(INTRO!$E$34<>0,INTRO!$E$34,"") -> DRC | B157: KASAI CENTRAL | C157: Katende | D157: 103692 | E157: =IF(INTRO!$E$48="","",ROUND($D157*INTRO!$E$48,0)) -> 19701 | F157: =IF(INTRO!$E$49="","",ROUND($D157*INTRO!$E$49,0)) -> 36292 | G157: =IF(INTRO!$E$50="","",ROUND($D157*INTRO!$E$50,0)) -> 47698 | H157: 1 | I157: 1 | J157: 3 | K157: 0 | L157: =IF(INTRO!$E$38="Endemic", IF($H157>0, IF($H157=4,"Unknown", IF($H157=99,"Stopped", $D157)), 0),"Not required") -> 103692 | M157: =IF(INTRO!$E$40="Endemic", IF($I157>0, IF($I157=4,"Unknown",IF($I157=99,"Stopped", $D157)), 0),"Not required") -> 103692 | N157: =IF(INTRO!$E$42="Endemic", IF(AND($J157>1,$J157<5), IF($J157=4, "Unknown", E157+F157), 0),"Not required") -> 55993 | O157: =IF(INTRO!$E$44="Endemic", IF(AND($K157>0,$K157<5), IF($K157=4,"Unknown", IF($K157=1, $F157*0.33, IF($K157=2, $F157*0.5+$G157*0.2, SUM(F157:G157)))), 0),"Not required") -> 0 | P157: 1 | Q157: 1 | R157: 1 | S157: 0 | T157: MDA1 (IVM+ALB) | X157: 13983 | Y157: Katende
A158: =IF(INTRO!$E$34<>0,INTRO!$E$34,"") -> DRC | B158: KASAI CENTRAL | C158: Katoka | D158: 131748 | E158: =IF(INTRO!$E$48="","",ROUND($D158*INTRO!$E$48,0)) -> 25032 | F158: =IF(INTRO!$E$49="","",ROUND($D158*INTRO!$E$49,0)) -> 46112 | G158: =IF(INTRO!$E$50="","",ROUND($D158*INTRO!$E$50,0)) -> 60604 | H158: 0 | I158: 1 | J158: 1 | K158: 1 | L158: =IF(INTRO!$E$38="Endemic", IF($H158>0, IF($H158=4,"Unknown", IF($H158=99,"Stopped", $D158)), 0),"Not required") -> 0 | M158: =IF(INTRO!$E$40="Endemic", IF($I158>0, IF($I158=4,"Unknown",IF($I158=99,"Stopped", $D158)), 0),"Not required") -> 131748 | N158: =IF(INTRO!$E$42="Endemic", IF(AND($J158>1,$J158<5), IF($J158=4, "Unknown", E158+F158), 0),"Not required") -> 0 | O158: =IF(INTRO!$E$44="Endemic", IF(AND($K158>0,$K158<5), IF($K158=4,"Unknown", IF($K158=1, $F158*0.33, IF($K158=2, $F158*0.5+$G158*0.2, SUM(F158:G158)))), 0),"Not required") -> 15216.96 | P158: 0 | Q158: 1 | R158: 0 | S158: 1 | T158: MDA3 (IVM) | U158: T2 (PZQ) | X158: 13984 | Y158: Katoka
A159: =IF(INTRO!$E$34<>0,INTRO!$E$34,"") -> DRC | B159: KASAI CENTRAL | C159: Luambo | D159: 259286 | E159: =IF(INTRO!$E$48="","",ROUND($D159*INTRO!$E$48,0)) -> 49264 | F159: =IF(INTRO!$E$49="","",ROUND($D159*INTRO!$E$49,0)) -> 90750 | G159: =IF(INTRO!$E$50="","",ROUND($D159*INTRO!$E$50,0)) -> 119272 | H159: 1 | I159: 1 | J159: 3 | K159: 1 | L159: =IF(INTRO!$E$38="Endemic", IF($H159>0, IF($H159=4,"Unknown", IF($H159=99,"Stopped", $D159)), 0),"Not required") -> 259286 | M159: =IF(INTRO!$E$40="Endemic", IF($I159>0, IF($I159=4,"Unknown",IF($I159=99,"Stopped", $D159)), 0),"Not required") -> 259286 | N159: =IF(INTRO!$E$42="Endemic", IF(AND($J159>1,$J159<5), IF($J159=4, "Unknown", E159+F159), 0),"Not required") -> 140014 | O159: =IF(INTRO!$E$44="Endemic", IF(AND($K159>0,$K159<5), IF($K159=4,"Unknown", IF($K159=1, $F159*0.33, IF($K159=2, $F159*0.5+$G159*0.2, SUM(F159:G159)))), 0),"Not required") -> 29947.5 | P159: 1 | Q159: 1 | R159: 1 | S159: 1 | T159: MDA1 (IVM+ALB) | U159: T2 (PZQ) | X159: 13986 | Y159: Luambo
A160: =IF(INTRO!$E$34<>0,INTRO!$E$34,"") -> DRC | B160: KASAI CENTRAL | C160: Lubondaie | D160: 151398 | E160: =IF(INTRO!$E$48="","",ROUND($D160*INTRO!$E$48,0)) -> 28766 | F160: =IF(INTRO!$E$49="","",ROUND($D160*INTRO!$E$49,0)) -> 52989 | G160: =IF(INTRO!$E$50="","",ROUND($D160*INTRO!$E$50,0)) -> 69643 | H160: 0 | I160: 1 | J160: 3 | K160: 1 | L160: =IF(INTRO!$E$38="Endemic", IF($H160>0, IF($H160=4,"Unknown", IF($H160=99,"Stopped", $D160)), 0),"Not required") -> 0 | M160: =IF(INTRO!$E$40="Endemic", IF($I160>0, IF($I160=4,"Unknown",IF($I160=99,"Stopped", $D160)), 0),"Not required") -> 151398 | N160: =IF(INTRO!$E$42="Endemic", IF(AND($J160>1,$J160<5), IF($J160=4, "Unknown", E160+F160), 0),"Not required") -> 81755 | O160: =IF(INTRO!$E$44="Endemic", IF(AND($K160>0,$K160<5), IF($K160=4,"Unknown", IF($K160=1, $F160*0.33, IF($K160=2, $F160*0.5+$G160*0.2, SUM(F160:G160)))), 0),"Not required") -> 17486.37 | P160: 0 | Q160: 1 | R160: 1 | S160: 1 | T160: MDA3 (IVM) | U160: T1 (PZQ+ALB/MBD) | X160: 13987 | Y160: Lubondaie
A161: =IF(INTRO!$E$34<>0,INTRO!$E$34,"") -> DRC | B161: KASAI CENTRAL | C161: Lubunga | D161: 108384 | E161: =IF(INTRO!$E$48="","",ROUND($D161*INTRO!$E$48,0)) -> 20593 | F161: =IF(INTRO!$E$49="","",ROUND($D161*INTRO!$E$49,0)) -> 37934 | G161: =IF(INTRO!$E$50="","",ROUND($D161*INTRO!$E$50,0)) -> 49857 | H161: 0 | I161: 1 | J161: 3 | K161: 2 | L161: =IF(INTRO!$E$38="Endemic", IF($H161>0, IF($H161=4,"Unknown", IF($H161=99,"Stopped", $D161)), 0),"Not required") -> 0 | M161: =IF(INTRO!$E$40="Endemic", IF($I161>0, IF($I161=4,"Unknown",IF($I161=99,"Stopped", $D161)), 0),"Not required") -> 108384 | N161: =IF(INTRO!$E$42="Endemic", IF(AND($J161>1,$J161<5), IF($J161=4, "Unknown", E161+F161), 0),"Not required") -> 58527 | O161: =IF(INTRO!$E$44="Endemic", IF(AND($K161>0,$K161<5), IF($K161=4,"Unknown", IF($K161=1, $F161*0.33, IF($K161=2, $F161*0.5+$G161*0.2, SUM(F161:G161)))), 0),"Not required") -> 28938.4 | P161: 0 | Q161: 1 | R161: 1 | S161: 1 | T161: MDA3 (IVM) | U161: T1 (PZQ+ALB/MBD) | X161: 14257 | Y161: Lubunga (1)
A162: =IF(INTRO!$E$34<>0,INTRO!$E$34,"") -> DRC | B162: KASAI CENTRAL | C162: Luiza | D162: 179341 | E162: =IF(INTRO!$E$48="","",ROUND($D162*INTRO!$E$48,0)) -> 34075 | F162: =IF(INTRO!$E$49="","",ROUND($D162*INTRO!$E$49,0)) -> 62769 | G162: =IF(INTRO!$E$50="","",ROUND($D162*INTRO!$E$50,0)) -> 82497 | H162: 0 | I162: 1 | J162: 2 | K162: 0 | L162: =IF(INTRO!$E$38="Endemic", IF($H162>0, IF($H162=4,"Unknown", IF($H162=99,"Stopped", $D162)), 0),"Not required") -> 0 | M162: =IF(INTRO!$E$40="Endemic", IF($I162>0, IF($I162=4,"Unknown",IF($I162=99,"Stopped", $D162)), 0),"Not required") -> 179341 | N162: =IF(INTRO!$E$42="Endemic", IF(AND($J162>1,$J162<5), IF($J162=4, "Unknown", E162+F162), 0),"Not required") -> 96844 | O162: =IF(INTRO!$E$44="Endemic", IF(AND($K162>0,$K162<5), IF($K162=4,"Unknown", IF($K162=1, $F162*0.33, IF($K162=2, $F162*0.5+$G162*0.2, SUM(F162:G162)))), 0),"Not required") -> 0 | P162: 0 | Q162: 1 | R162: 1 | S162: 0 | T162: MDA3 (IVM) | U162: T3 (ALB/MBD) | X162: 13990 | Y162: Luiza
A163: =IF(INTRO!$E$34<>0,INTRO!$E$34,"") -> DRC | B163: KASAI CENTRAL | C163: Lukonga | D163: 283713 | E163: =IF(INTRO!$E$48="","",ROUND($D163*INTRO!$E$48,0)) -> 53905 | F163: =IF(INTRO!$E$49="","",ROUND($D163*INTRO!$E$49,0)) -> 99300 | G163: =IF(INTRO!$E$50="","",ROUND($D163*INTRO!$E$50,0)) -> 130508 | H163: 1 | I163: 1 | J163: 2 | K163: 1 | L163: =IF(INTRO!$E$38="Endemic", IF($H163>0, IF($H163=4,"Unknown", IF($H163=99,"Stopped", $D163)), 0),"Not required") -> 283713 | M163: =IF(INTRO!$E$40="Endemic", IF($I163>0, IF($I163=4,"Unknown",IF($I163=99,"Stopped", $D163)), 0),"Not required") -> 283713 | N163: =IF(INTRO!$E$42="Endemic", IF(AND($J163>1,$J163<5), IF($J163=4, "Unknown", E163+F163), 0),"Not required") -> 153205 | O163: =IF(INTRO!$E$44="Endemic", IF(AND($K163>0,$K163<5), IF($K163=4,"Unknown", IF($K163=1, $F163*0.33, IF($K163=2, $F163*0.5+$G163*0.2, SUM(F163:G163)))), 0),"Not required") -> 32769 | P163: 1 | Q163: 1 | R163: 1 | S163: 1 | T163: MDA1 (IVM+ALB) | U163: T2 (PZQ) | X163: 13991 | Y163: Lukonga
A164: =IF(INTRO!$E$34<>0,INTRO!$E$34,"") -> DRC | B164: KASAI CENTRAL | C164: Mikalayi | D164: 239956 | E164: =IF(INTRO!$E$48="","",ROUND($D164*INTRO!$E$48,0)) -> 45592 | F164: =IF(INTRO!$E$49="","",ROUND($D164*INTRO!$E$49,0)) -> 83985 | G164: =IF(INTRO!$E$50="","",ROUND($D164*INTRO!$E$50,0)) -> 110380 | H164: 0 | I164: 1 | J164: 3 | K164: 0 | L164: =IF(INTRO!$E$38="Endemic", IF($H164>0, IF($H164=4,"Unknown", IF($H164=99,"Stopped", $D164)), 0),"Not required") -> 0 | M164: =IF(INTRO!$E$40="Endemic", IF($I164>0, IF($I164=4,"Unknown",IF($I164=99,"Stopped", $D164)), 0),"Not required") -> 239956 | N164: =IF(INTRO!$E$42="Endemic", IF(AND($J164>1,$J164<5), IF($J164=4, "Unknown", E164+F164), 0),"Not required") -> 129577 | O164: =IF(INTRO!$E$44="Endemic", IF(AND($K164>0,$K164<5), IF($K164=4,"Unknown", IF($K164=1, $F164*0.33, IF($K164=2, $F164*0.5+$G164*0.2, SUM(F164:G164)))), 0),"Not required") -> 0 | P164: 0 | Q164: 1 | R164: 1 | S164: 0 | T164: MDA3 (IVM) | U164: T3 (ALB/MBD) | X164: 13993 | Y164: Mikalayi
A165: =IF(INTRO!$E$34<>0,INTRO!$E$34,"") -> DRC | B165: KASAI CENTRAL | C165: Masuika | D165: 219082 | E165: =IF(INTRO!$E$48="","",ROUND($D165*INTRO!$E$48,0)) -> 41626 | F165: =IF(INTRO!$E$49="","",ROUND($D165*INTRO!$E$49,0)) -> 76679 | G165: =IF(INTRO!$E$50="","",ROUND($D165*INTRO!$E$50,0)) -> 100778 | H165: 1 | I165: 1 | J165: 3 | K165: 0 | L165: =IF(INTRO!$E$38="Endemic", IF($H165>0, IF($H165=4,"Unknown", IF($H165=99,"Stopped", $D165)), 0),"Not required") -> 219082 | M165: =IF(INTRO!$E$40="Endemic", IF($I165>0, IF($I165=4,"Unknown",IF($I165=99,"Stopped", $D165)), 0),"Not required") -> 219082 | N165: =IF(INTRO!$E$42="Endemic", IF(AND($J165>1,$J165<5), IF($J165=4, "Unknown", E165+F165), 0),"Not required") -> 118305 | O165: =IF(INTRO!$E$44="Endemic", IF(AND($K165>0,$K165<5), IF($K165=4,"Unknown", IF($K165=1, $F165*0.33, IF($K165=2, $F165*0.5+$G165*0.2, SUM(F165:G165)))), 0),"Not required") -> 0 | P165: 1 | Q165: 1 | R165: 1 | S165: 0 | T165: MDA1 (IVM+ALB) | X165: 13996 | Y165: Musuika
A166: =IF(INTRO!$E$34<>0,INTRO!$E$34,"") -> DRC | B166: KASAI CENTRAL | C166: Mutoto | D166: 138319 | E166: =IF(INTRO!$E$48="","",ROUND($D166*INTRO!$E$48,0)) -> 26281 | F166: =IF(INTRO!$E$49="","",ROUND($D166*INTRO!$E$49,0)) -> 48412 | G166: =IF(INTRO!$E$50="","",ROUND($D166*INTRO!$E$50,0)) -> 63627 | H166: 1 | I166: 1 | J166: 3 | K166: 0 | L166: =IF(INTRO!$E$38="Endemic", IF($H166>0, IF($H166=4,"Unknown", IF($H166=99,"Stopped", $D166)), 0),"Not required") -> 138319 | M166: =IF(INTRO!$E$40="Endemic", IF($I166>0, IF($I166=4,"Unknown",IF($I166=99,"Stopped", $D166)), 0),"Not required") -> 138319 | N166: =IF(INTRO!$E$42="Endemic", IF(AND($J166>1,$J166<5), IF($J166=4, "Unknown", E166+F166), 0),"Not required") -> 74693 | O166: =IF(INTRO!$E$44="Endemic", IF(AND($K166>0,$K166<5), IF($K166=4,"Unknown", IF($K166=1, $F166*0.33, IF($K166=2, $F166*0.5+$G166*0.2, SUM(F166:G166)))), 0),"Not required") -> 0 | P166: 1 | Q166: 1 | R166: 1 | S166: 0 | T166: MDA1 (IVM+ALB) | X166: 13998 | Y166: Mutoto
A167: =IF(INTRO!$E$34<>0,INTRO!$E$34,"") -> DRC | B167: KASAI CENTRAL | C167: Mwetshi | D167: 115623 | E167: =IF(INTRO!$E$48="","",ROUND($D167*INTRO!$E$48,0)) -> 21968 | F167: =IF(INTRO!$E$49="","",ROUND($D167*INTRO!$E$49,0)) -> 40468 | G167: =IF(INTRO!$E$50="","",ROUND($D167*INTRO!$E$50,0)) -> 53187 | H167: 0 | I167: 1 | J167: 3 | K167: 1 | L167: =IF(INTRO!$E$38="Endemic", IF($H167>0, IF($H167=4,"Unknown", IF($H167=99,"Stopped", $D167)), 0),"Not required") -> 0 | M167: =IF(INTRO!$E$40="Endemic", IF($I167>0, IF($I167=4,"Unknown",IF($I167=99,"Stopped", $D167)), 0),"Not required") -> 115623 | N167: =IF(INTRO!$E$42="Endemic", IF(AND($J167>1,$J167<5), IF($J167=4, "Unknown", E167+F167), 0),"Not required") -> 62436 | O167: =IF(INTRO!$E$44="Endemic", IF(AND($K167>0,$K167<5), IF($K167=4,"Unknown", IF($K167=1, $F167*0.33, IF($K167=2, $F167*0.5+$G167*0.2, SUM(F167:G167)))), 0),"Not required") -> 13354.44 | P167: 0 | Q167: 1 | R167: 1 | S167: 1 | T167: MDA3 (IVM) | U167: T1 (PZQ+ALB/MBD) | X167: 14000 | Y167: Mwetshi
A168: =IF(INTRO!$E$34<>0,INTRO!$E$34,"") -> DRC | B168: KASAI CENTRAL | C168: Ndekesha | D168: 166386 | E168: =IF(INTRO!$E$48="","",ROUND($D168*INTRO!$E$48,0)) -> 31613 | F168: =IF(INTRO!$E$49="","",ROUND($D168*INTRO!$E$49,0)) -> 58235 | G168: =IF(INTRO!$E$50="","",ROUND($D168*INTRO!$E$50,0)) -> 76538 | H168: 0 | I168: 1 | J168: 2 | K168: 0 | L168: =IF(INTRO!$E$38="Endemic", IF($H168>0, IF($H168=4,"Unknown", IF($H168=99,"Stopped", $D168)), 0),"Not required") -> 0 | M168: =IF(INTRO!$E$40="Endemic", IF($I168>0, IF($I168=4,"Unknown",IF($I168=99,"Stopped", $D168)), 0),"Not required") -> 166386 | N168: =IF(INTRO!$E$42="Endemic", IF(AND($J168>1,$J168<5), IF($J168=4, "Unknown", E168+F168), 0),"Not required") -> 89848 | O168: =IF(INTRO!$E$44="Endemic", IF(AND($K168>0,$K168<5), IF($K168=4,"Unknown", IF($K168=1, $F168*0.33, IF($K168=2, $F168*0.5+$G168*0.2, SUM(F168:G168)))), 0),"Not required") -> 0 | P168: 0 | Q168: 1 | R168: 1 | S168: 0 | T168: MDA3 (IVM) | U168: T3 (ALB/MBD) | X168: 14001 | Y168: Ndekesha
A169: =IF(INTRO!$E$34<>0,INTRO!$E$34,"") -> DRC | B169: KASAI CENTRAL | C169: Ndesha | D169: 103641 | E169: =IF(INTRO!$E$48="","",ROUND($D169*INTRO!$E$48,0)) -> 19692 | F169: =IF(INTRO!$E$49="","",ROUND($D169*INTRO!$E$49,0)) -> 36274 | G169: =IF(INTRO!$E$50="","",ROUND($D169*INTRO!$E$50,0)) -> 47675 | H169: 0 | I169: 1 | J169: 2 | K169: 0 | L169: =IF(INTRO!$E$38="Endemic", IF($H169>0, IF($H169=4,"Unknown", IF($H169=99,"Stopped", $D169)), 0),"Not required") -> 0 | M169: =IF(INTRO!$E$40="Endemic", IF($I169>0, IF($I169=4,"Unknown",IF($I169=99,"Stopped", $D169)), 0),"Not required") -> 103641 | N169: =IF(INTRO!$E$42="Endemic", IF(AND($J169>1,$J169<5), IF($J169=4, "Unknown", E169+F169), 0),"Not required") -> 55966 | O169: =IF(INTRO!$E$44="Endemic", IF(AND($K169>0,$K169<5), IF($K169=4,"Unknown", IF($K169=1, $F169*0.33, IF($K169=2, $F169*0.5+$G169*0.2, SUM(F169:G169)))), 0),"Not required") -> 0 | P169: 0 | Q169: 1 | R169: 1 | S169: 0 | T169: MDA3 (IVM) | U169: T3 (ALB/MBD) | X169: 14002 | Y169: Ndesha
A170: =IF(INTRO!$E$34<>0,INTRO!$E$34,"") -> DRC | B170: KASAI CENTRAL | C170: Tshibala | D170: 243083 | E170: =IF(INTRO!$E$48="","",ROUND($D170*INTRO!$E$48,0)) -> 46186 | F170: =IF(INTRO!$E$49="","",ROUND($D170*INTRO!$E$49,0)) -> 85079 | G170: =IF(INTRO!$E$50="","",ROUND($D170*INTRO!$E$50,0)) -> 111818 | H170: 1 | I170: 1 | J170: 2 | K170: 0 | L170: =IF(INTRO!$E$38="Endemic", IF($H170>0, IF($H170=4,"Unknown", IF($H170=99,"Stopped", $D170)), 0),"Not required") -> 243083 | M170: =IF(INTRO!$E$40="Endemic", IF($I170>0, IF($I170=4,"Unknown",IF($I170=99,"Stopped", $D170)), 0),"Not required") -> 243083 | N170: =IF(INTRO!$E$42="Endemic", IF(AND($J170>1,$J170<5), IF($J170=4, "Unknown", E170+F170), 0),"Not required") -> 131265 | O170: =IF(INTRO!$E$44="Endemic", IF(AND($K170>0,$K170<5), IF($K170=4,"Unknown", IF($K170=1, $F170*0.33, IF($K170=2, $F170*0.5+$G170*0.2, SUM(F170:G170)))), 0),"Not required") -> 0 | P170: 1 | Q170: 1 | R170: 1 | S170: 0 | T170: MDA1 (IVM+ALB) | X170: 14005 | Y170: Tshibala
A171: =IF(INTRO!$E$34<>0,INTRO!$E$34,"") -> DRC | B171: KASAI CENTRAL | C171: Tshikaji | D171: 127008 | E171: =IF(INTRO!$E$48="","",ROUND($D171*INTRO!$E$48,0)) -> 24132 | F171: =IF(INTRO!$E$49="","",ROUND($D171*INTRO!$E$49,0)) -> 44453 | G171: =IF(INTRO!$E$50="","",ROUND($D171*INTRO!$E$50,0)) -> 58424 | H171: 0 | I171: 1 | J171: 3 | K171: 0 | L171: =IF(INTRO!$E$38="Endemic", IF($H171>0, IF($H171=4,"Unknown", IF($H171=99,"Stopped", $D171)), 0),"Not required") -> 0 | M171: =IF(INTRO!$E$40="Endemic", IF($I171>0, IF($I171=4,"Unknown",IF($I171=99,"Stopped", $D171)), 0),"Not required") -> 127008 | N171: =IF(INTRO!$E$42="Endemic", IF(AND($J171>1,$J171<5), IF($J171=4, "Unknown", E171+F171), 0),"Not required") -> 68585 | O171: =IF(INTRO!$E$44="Endemic", IF(AND($K171>0,$K171<5), IF($K171=4,"Unknown", IF($K171=1, $F171*0.33, IF($K171=2, $F171*0.5+$G171*0.2, SUM(F171:G171)))), 0),"Not required") -> 0 | P171: 0 | Q171: 1 | R171: 1 | S171: 0 | T171: MDA3 (IVM) | U171: T3 (ALB/MBD) | X171: 14058 | Y171: Tshikaji
A172: =IF(INTRO!$E$34<>0,INTRO!$E$34,"") -> DRC | B172: KASAI CENTRAL | C172: Tshikula | D172: 141148 | E172: =IF(INTRO!$E$48="","",ROUND($D172*INTRO!$E$48,0)) -> 26818 | F172: =IF(INTRO!$E$49="","",ROUND($D172*INTRO!$E$49,0)) -> 49402 | G172: =IF(INTRO!$E$50="","",ROUND($D172*INTRO!$E$50,0)) -> 64928 | H172: 0 | I172: 1 | J172: 2 | K172: 0 | L172: =IF(INTRO!$E$38="Endemic", IF($H172>0, IF($H172=4,"Unknown", IF($H172=99,"Stopped", $D172)), 0),"Not required") -> 0 | M172: =IF(INTRO!$E$40="Endemic", IF($I172>0, IF($I172=4,"Unknown",IF($I172=99,"Stopped", $D172)), 0),"Not required") -> 141148 | N172: =IF(INTRO!$E$42="Endemic", IF(AND($J172>1,$J172<5), IF($J172=4, "Unknown", E172+F172), 0),"Not required") -> 76220 | O172: =IF(INTRO!$E$44="Endemic", IF(AND($K172>0,$K172<5), IF($K172=4,"Unknown", IF($K172=1, $F172*0.33, IF($K172=2, $F172*0.5+$G172*0.2, SUM(F172:G172)))), 0),"Not required") -> 0 | P172: 0 | Q172: 1 | R172: 1 | S172: 0 | T172: MDA3 (IVM) | U172: T3 (ALB/MBD) | X172: 14007 | Y172: Tshikula
A173: =IF(INTRO!$E$34<>0,INTRO!$E$34,"") -> DRC | B173: KASAI CENTRAL | C173: Yangala | D173: 160845 | E173: =IF(INTRO!$E$48="","",ROUND($D173*INTRO!$E$48,0)) -> 30561 | F173: =IF(INTRO!$E$49="","",ROUND($D173*INTRO!$E$49,0)) -> 56296 | G173: =IF(INTRO!$E$50="","",ROUND($D173*INTRO!$E$50,0)) -> 73989 | H173: 1 | I173: 1 | J173: 2 | K173: 1 | L173: =IF(INTRO!$E$38="Endemic", IF($H173>0, IF($H173=4,"Unknown", IF($H173=99,"Stopped", $D173)), 0),"Not required") -> 160845 | M173: =IF(INTRO!$E$40="Endemic", IF($I173>0, IF($I173=4,"Unknown",IF($I173=99,"Stopped", $D173)), 0),"Not required") -> 160845 | N173: =IF(INTRO!$E$42="Endemic", IF(AND($J173>1,$J173<5), IF($J173=4, "Unknown", E173+F173), 0),"Not required") -> 86857 | O173: =IF(INTRO!$E$44="Endemic", IF(AND($K173>0,$K173<5), IF($K173=4,"Unknown", IF($K173=1, $F173*0.33, IF($K173=2, $F173*0.5+$G173*0.2, SUM(F173:G173)))), 0),"Not required") -> 18577.68 | P173: 1 | Q173: 1 | R173: 1 | S173: 1 | T173: MDA1 (IVM+ALB) | U173: T2 (PZQ) | X173: 14008 | Y173: Yangala
A174: =IF(INTRO!$E$34<>0,INTRO!$E$34,"") -> DRC | B174: KASAI ORIENTAL | C174: Bibanga | D174: 156882 | E174: =IF(INTRO!$E$48="","",ROUND($D174*INTRO!$E$48,0)) -> 29808 | F174: =IF(INTRO!$E$49="","",ROUND($D174*INTRO!$E$49,0)) -> 54909 | G174: =IF(INTRO!$E$50="","",ROUND($D174*INTRO!$E$50,0)) -> 72166 | H174: 1 | I174: 1 | J174: 1 | K174: 2 | L174: =IF(INTRO!$E$38="Endemic", IF($H174>0, IF($H174=4,"Unknown", IF($H174=99,"Stopped", $D174)), 0),"Not required") -> 156882 | M174: =IF(INTRO!$E$40="Endemic", IF($I174>0, IF($I174=4,"Unknown",IF($I174=99,"Stopped", $D174)), 0),"Not required") -> 156882 | N174: =IF(INTRO!$E$42="Endemic", IF(AND($J174>1,$J174<5), IF($J174=4, "Unknown", E174+F174), 0),"Not required") -> 0 | O174: =IF(INTRO!$E$44="Endemic", IF(AND($K174>0,$K174<5), IF($K174=4,"Unknown", IF($K174=1, $F174*0.33, IF($K174=2, $F174*0.5+$G174*0.2, SUM(F174:G174)))), 0),"Not required") -> 41887.7 | P174: 1 | Q174: 1 | R174: 0 | S174: 0 | T174: MDA1 (IVM+ALB) | X174: 14010 | Y174: Bibanga
A175: =IF(INTRO!$E$34<>0,INTRO!$E$34,"") -> DRC | B175: KASAI ORIENTAL | C175: Bimpemba | D175: 249497 | E175: =IF(INTRO!$E$48="","",ROUND($D175*INTRO!$E$48,0)) -> 47404 | F175: =IF(INTRO!$E$49="","",ROUND($D175*INTRO!$E$49,0)) -> 87324 | G175: =IF(INTRO!$E$50="","",ROUND($D175*INTRO!$E$50,0)) -> 114769 | H175: 0 | I175: 0 | J175: 1 | K175: 2 | L175: =IF(INTRO!$E$38="Endemic", IF($H175>0, IF($H175=4,"Unknown", IF($H175=99,"Stopped", $D175)), 0),"Not required") -> 0 | M175: =IF(INTRO!$E$40="Endemic", IF($I175>0, IF($I175=4,"Unknown",IF($I175=99,"Stopped", $D175)), 0),"Not required") -> 0 | N175: =IF(INTRO!$E$42="Endemic", IF(AND($J175>1,$J175<5), IF($J175=4, "Unknown", E175+F175), 0),"Not required") -> 0 | O175: =IF(INTRO!$E$44="Endemic", IF(AND($K175>0,$K175<5), IF($K175=4,"Unknown", IF($K175=1, $F175*0.33, IF($K175=2, $F175*0.5+$G175*0.2, SUM(F175:G175)))), 0),"Not required") -> 66615.8 | P175: 0 | Q175: 0 | R175: 0 | S175: 1 | T175: T2 (PZQ) | X175: 14011 | Y175: Bimpemba
A176: =IF(INTRO!$E$34<>0,INTRO!$E$34,"") -> DRC | B176: KASAI ORIENTAL | C176: Bonzola | D176: 184397 | E176: =IF(INTRO!$E$48="","",ROUND($D176*INTRO!$E$48,0)) -> 35035 | F176: =IF(INTRO!$E$49="","",ROUND($D176*INTRO!$E$49,0)) -> 64539 | G176: =IF(INTRO!$E$50="","",ROUND($D176*INTRO!$E$50,0)) -> 84823 | H176: 1 | I176: 0 | J176: 1 | K176: 1 | L176: =IF(INTRO!$E$38="Endemic", IF($H176>0, IF($H176=4,"Unknown", IF($H176=99,"Stopped", $D176)), 0),"Not required") -> 184397 | M176: =IF(INTRO!$E$40="Endemic", IF($I176>0, IF($I176=4,"Unknown",IF($I176=99,"Stopped", $D176)), 0),"Not required") -> 0 | N176: =IF(INTRO!$E$42="Endemic", IF(AND($J176>1,$J176<5), IF($J176=4, "Unknown", E176+F176), 0),"Not required") -> 0 | O176: =IF(INTRO!$E$44="Endemic", IF(AND($K176>0,$K176<5), IF($K176=4,"Unknown", IF($K176=1, $F176*0.33, IF($K176=2, $F176*0.5+$G176*0.2, SUM(F176:G176)))), 0),"Not required") -> 21297.87 | P176: 1 | Q176: 0 | R176: 0 | S176: 1 | T176: MDA1 (IVM+ALB) | U176: T2 (PZQ) | X176: 14012 | Y176: Bonzola
A177: =IF(INTRO!$E$34<>0,INTRO!$E$34,"") -> DRC | B177: KASAI ORIENTAL | C177: Dibindi | D177: 270426 | E177: =IF(INTRO!$E$48="","",ROUND($D177*INTRO!$E$48,0)) -> 51381 | F177: =IF(INTRO!$E$49="","",ROUND($D177*INTRO!$E$49,0)) -> 94649 | G177: =IF(INTRO!$E$50="","",ROUND($D177*INTRO!$E$50,0)) -> 124396 | H177: 0 | I177: 0 | J177: 2 | K177: 2 | L177: =IF(INTRO!$E$38="Endemic", IF($H177>0, IF($H177=4,"Unknown", IF($H177=99,"Stopped", $D177)), 0),"Not required") -> 0 | M177: =IF(INTRO!$E$40="Endemic", IF($I177>0, IF($I177=4,"Unknown",IF($I177=99,"Stopped", $D177)), 0),"Not required") -> 0 | N177: =IF(INTRO!$E$42="Endemic", IF(AND($J177>1,$J177<5), IF($J177=4, "Unknown", E177+F177), 0),"Not required") -> 146030 | O177: =IF(INTRO!$E$44="Endemic", IF(AND($K177>0,$K177<5), IF($K177=4,"Unknown", IF($K177=1, $F177*0.33, IF($K177=2, $F177*0.5+$G177*0.2, SUM(F177:G177)))), 0),"Not required") -> 72203.7 | P177: 0 | Q177: 0 | R177: 1 | S177: 1 | T177: T1 (PZQ+ALB/MBD) | X177: 14013 | Y177: Dibindi
A178: =IF(INTRO!$E$34<>0,INTRO!$E$34,"") -> DRC | B178: KASAI ORIENTAL | C178: Diulu | D178: 380793 | E178: =IF(INTRO!$E$48="","",ROUND($D178*INTRO!$E$48,0)) -> 72351 | F178: =IF(INTRO!$E$49="","",ROUND($D178*INTRO!$E$49,0)) -> 133278 | G178: =IF(INTRO!$E$50="","",ROUND($D178*INTRO!$E$50,0)) -> 175165 | H178: 0 | I178: 0 | J178: 1 | K178: 2 | L178: =IF(INTRO!$E$38="Endemic", IF($H178>0, IF($H178=4,"Unknown", IF($H178=99,"Stopped", $D178)), 0),"Not required") -> 0 | M178: =IF(INTRO!$E$40="Endemic", IF($I178>0, IF($I178=4,"Unknown",IF($I178=99,"Stopped", $D178)), 0),"Not required") -> 0 | N178: =IF(INTRO!$E$42="Endemic", IF(AND($J178>1,$J178<5), IF($J178=4, "Unknown", E178+F178), 0),"Not required") -> 0 | O178: =IF(INTRO!$E$44="Endemic", IF(AND($K178>0,$K178<5), IF($K178=4,"Unknown", IF($K178=1, $F178*0.33, IF($K178=2, $F178*0.5+$G178*0.2, SUM(F178:G178)))), 0),"Not required") -> 101672 | P178: 0 | Q178: 0 | R178: 0 | S178: 1 | T178: T2 (PZQ) | X178: 14014 | Y178: Diulu
A179: =IF(INTRO!$E$34<>0,INTRO!$E$34,"") -> DRC | B179: KASAI ORIENTAL | C179: Kabeya Kamuanga | D179: 189132 | E179: =IF(INTRO!$E$48="","",ROUND($D179*INTRO!$E$48,0)) -> 35935 | F179: =IF(INTRO!$E$49="","",ROUND($D179*INTRO!$E$49,0)) -> 66196 | G179: =IF(INTRO!$E$50="","",ROUND($D179*INTRO!$E$50,0)) -> 87001 | H179: 0 | I179: 1 | J179: 1 | K179: 2 | L179: =IF(INTRO!$E$38="Endemic", IF($H179>0, IF($H179=4,"Unknown", IF($H179=99,"Stopped", $D179)), 0),"Not required") -> 0 | M179: =IF(INTRO!$E$40="Endemic", IF($I179>0, IF($I179=4,"Unknown",IF($I179=99,"Stopped", $D179)), 0),"Not required") -> 189132 | N179: =IF(INTRO!$E$42="Endemic", IF(AND($J179>1,$J179<5), IF($J179=4, "Unknown", E179+F179), 0),"Not required") -> 0 | O179: =IF(INTRO!$E$44="Endemic", IF(AND($K179>0,$K179<5), IF($K179=4,"Unknown", IF($K179=1, $F179*0.33, IF($K179=2, $F179*0.5+$G179*0.2, SUM(F179:G179)))), 0),"Not required") -> 50498.2 | P179: 0 | Q179: 1 | R179: 0 | S179: 0 | T179: MDA3 (IVM) | X179: 14016 | Y179: Kabeya Kamuanga
A180: =IF(INTRO!$E$34<>0,INTRO!$E$34,"") -> DRC | B180: KASAI ORIENTAL | C180: Kansele | D180: 269380 | E180: =IF(INTRO!$E$48="","",ROUND($D180*INTRO!$E$48,0)) -> 51182 | F180: =IF(INTRO!$E$49="","",ROUND($D180*INTRO!$E$49,0)) -> 94283 | G180: =IF(INTRO!$E$50="","",ROUND($D180*INTRO!$E$50,0)) -> 123915 | H180: 0 | I180: 0 | J180: 2 | K180: 1 | L180: =IF(INTRO!$E$38="Endemic", IF($H180>0, IF($H180=4,"Unknown", IF($H180=99,"Stopped", $D180)), 0),"Not required") -> 0 | M180: =IF(INTRO!$E$40="Endemic", IF($I180>0, IF($I180=4,"Unknown",IF($I180=99,"Stopped", $D180)), 0),"Not required") -> 0 | N180: =IF(INTRO!$E$42="Endemic", IF(AND($J180>1,$J180<5), IF($J180=4, "Unknown", E180+F180), 0),"Not required") -> 145465 | O180: =IF(INTRO!$E$44="Endemic", IF(AND($K180>0,$K180<5), IF($K180=4,"Unknown", IF($K180=1, $F180*0.33, IF($K180=2, $F180*0.5+$G180*0.2, SUM(F180:G180)))), 0),"Not required") -> 31113.39 | P180: 0 | Q180: 0 | R180: 1 | S180: 1 | T180: T1 (PZQ+ALB/MBD) | X180: 14024 | Y180: Kansele
A181: =IF(INTRO!$E$34<>0,INTRO!$E$34,"") -> DRC | B181: KASAI ORIENTAL | C181: Kasansa | D181: 209789 | E181: =IF(INTRO!$E$48="","",ROUND($D181*INTRO!$E$48,0)) -> 39860 | F181: =IF(INTRO!$E$49="","",ROUND($D181*INTRO!$E$49,0)) -> 73426 | G181: =IF(INTRO!$E$50="","",ROUND($D181*INTRO!$E$50,0)) -> 96503 | H181: 0 | I181: 1 | J181: 1 | K181: 2 | L181: =IF(INTRO!$E$38="Endemic", IF($H181>0, IF($H181=4,"Unknown", IF($H181=99,"Stopped", $D181)), 0),"Not required") -> 0 | M181: =IF(INTRO!$E$40="Endemic", IF($I181>0, IF($I181=4,"Unknown",IF($I181=99,"Stopped", $D181)), 0),"Not required") -> 209789 | N181: =IF(INTRO!$E$42="Endemic", IF(AND($J181>1,$J181<5), IF($J181=4, "Unknown", E181+F181), 0),"Not required") -> 0 | O181: =IF(INTRO!$E$44="Endemic", IF(AND($K181>0,$K181<5), IF($K181=4,"Unknown", IF($K181=1, $F181*0.33, IF($K181=2, $F181*0.5+$G181*0.2, SUM(F181:G181)))), 0),"Not required") -> 56013.6 | P181: 0 | Q181: 1 | R181: 0 | S181: 0 | T181: MDA3 (IVM) | X181: 14025 | Y181: Kasansa
A182: =IF(INTRO!$E$34<>0,INTRO!$E$34,"") -> DRC | B182: KASAI ORIENTAL | C182: Lubilanji | D182: 273886 | E182: =IF(INTRO!$E$48="","",ROUND($D182*INTRO!$E$48,0)) -> 52038 | F182: =IF(INTRO!$E$49="","",ROUND($D182*INTRO!$E$49,0)) -> 95860 | G182: =IF(INTRO!$E$50="","",ROUND($D182*INTRO!$E$50,0)) -> 125988 | H182: 1 | I182: 0 | J182: 2 | K182: 2 | L182: =IF(INTRO!$E$38="Endemic", IF($H182>0, IF($H182=4,"Unknown", IF($H182=99,"Stopped", $D182)), 0),"Not required") -> 273886 | M182: =IF(INTRO!$E$40="Endemic", IF($I182>0, IF($I182=4,"Unknown",IF($I182=99,"Stopped", $D182)), 0),"Not required") -> 0 | N182: =IF(INTRO!$E$42="Endemic", IF(AND($J182>1,$J182<5), IF($J182=4, "Unknown", E182+F182), 0),"Not required") -> 147898 | O182: =IF(INTRO!$E$44="Endemic", IF(AND($K182>0,$K182<5), IF($K182=4,"Unknown", IF($K182=1, $F182*0.33, IF($K182=2, $F182*0.5+$G182*0.2, SUM(F182:G182)))), 0),"Not required") -> 73127.6 | P182: 1 | Q182: 0 | R182: 1 | S182: 1 | T182: MDA1 (IVM+ALB) | U182: T2 (PZQ) | X182: 14031 | Y182: Lubilanji
A183: =IF(INTRO!$E$34<>0,INTRO!$E$34,"") -> DRC | B183: KASAI ORIENTAL | C183: Lukelenge | D183: 297376 | E183: =IF(INTRO!$E$48="","",ROUND($D183*INTRO!$E$48,0)) -> 56501 | F183: =IF(INTRO!$E$49="","",ROUND($D183*INTRO!$E$49,0)) -> 104082 | G183: =IF(INTRO!$E$50="","",ROUND($D183*INTRO!$E$50,0)) -> 136793 | H183: 0 | I183: 0 | J183: 1 | K183: 2 | L183: =IF(INTRO!$E$38="Endemic", IF($H183>0, IF($H183=4,"Unknown", IF($H183=99,"Stopped", $D183)), 0),"Not required") -> 0 | M183: =IF(INTRO!$E$40="Endemic", IF($I183>0, IF($I183=4,"Unknown",IF($I183=99,"Stopped", $D183)), 0),"Not required") -> 0 | N183: =IF(INTRO!$E$42="Endemic", IF(AND($J183>1,$J183<5), IF($J183=4, "Unknown", E183+F183), 0),"Not required") -> 0 | O183: =IF(INTRO!$E$44="Endemic", IF(AND($K183>0,$K183<5), IF($K183=4,"Unknown", IF($K183=1, $F183*0.33, IF($K183=2, $F183*0.5+$G183*0.2, SUM(F183:G183)))), 0),"Not required") -> 79399.6 | P183: 0 | Q183: 0 | R183: 0 | S183: 0 | X183: 14033 | Y183: Lukelenge
A184: =IF(INTRO!$E$34<>0,INTRO!$E$34,"") -> DRC | B184: KASAI ORIENTAL | C184: Miabi | D184: 152920 | E184: =IF(INTRO!$E$48="","",ROUND($D184*INTRO!$E$48,0)) -> 29055 | F184: =IF(INTRO!$E$49="","",ROUND($D184*INTRO!$E$49,0)) -> 53522 | G184: =IF(INTRO!$E$50="","",ROUND($D184*INTRO!$E$50,0)) -> 70343 | H184: 0 | I184: 1 | J184: 1 | K184: 1 | L184: =IF(INTRO!$E$38="Endemic", IF($H184>0, IF($H184=4,"Unknown", IF($H184=99,"Stopped", $D184)), 0),"Not required") -> 0 | M184: =IF(INTRO!$E$40="Endemic", IF($I184>0, IF($I184=4,"Unknown",IF($I184=99,"Stopped", $D184)), 0),"Not required") -> 152920 | N184: =IF(INTRO!$E$42="Endemic", IF(AND($J184>1,$J184<5), IF($J184=4, "Unknown", E184+F184), 0),"Not required") -> 0 | O184: =IF(INTRO!$E$44="Endemic", IF(AND($K184>0,$K184<5), IF($K184=4,"Unknown", IF($K184=1, $F184*0.33, IF($K184=2, $F184*0.5+$G184*0.2, SUM(F184:G184)))), 0),"Not required") -> 17662.26 | P184: 0 | Q184: 1 | R184: 0 | S184: 1 | T184: MDA3 (IVM) | U184: T2 (PZQ) | X184: 14037 | Y184: Miabi
A185: =IF(INTRO!$E$34<>0,INTRO!$E$34,"") -> DRC | B185: KASAI ORIENTAL | C185: Mpokolo | D185: 273331 | E185: =IF(INTRO!$E$48="","",ROUND($D185*INTRO!$E$48,0)) -> 51933 | F185: =IF(INTRO!$E$49="","",ROUND($D185*INTRO!$E$49,0)) -> 95666 | G185: =IF(INTRO!$E$50="","",ROUND($D185*INTRO!$E$50,0)) -> 125732 | H185: 1 | I185: 0 | J185: 1 | K185: 2 | L185: =IF(INTRO!$E$38="Endemic", IF($H185>0, IF($H185=4,"Unknown", IF($H185=99,"Stopped", $D185)), 0),"Not required") -> 273331 | M185: =IF(INTRO!$E$40="Endemic", IF($I185>0, IF($I185=4,"Unknown",IF($I185=99,"Stopped", $D185)), 0),"Not required") -> 0 | N185: =IF(INTRO!$E$42="Endemic", IF(AND($J185>1,$J185<5), IF($J185=4, "Unknown", E185+F185), 0),"Not required") -> 0 | O185: =IF(INTRO!$E$44="Endemic", IF(AND($K185>0,$K185<5), IF($K185=4,"Unknown", IF($K185=1, $F185*0.33, IF($K185=2, $F185*0.5+$G185*0.2, SUM(F185:G185)))), 0),"Not required") -> 72979.4 | P185: 1 | Q185: 0 | R185: 0 | S185: 0 | T185: MDA1 (IVM+ALB) | X185: 14039 | Y185: Mpokolo
A186: =IF(INTRO!$E$34<>0,INTRO!$E$34,"") -> DRC | B186: KASAI ORIENTAL | C186: Mukumbi | D186: 151610 | E186: =IF(INTRO!$E$48="","",ROUND($D186*INTRO!$E$48,0)) -> 28806 | F186: =IF(INTRO!$E$49="","",ROUND($D186*INTRO!$E$49,0)) -> 53064 | G186: =IF(INTRO!$E$50="","",ROUND($D186*INTRO!$E$50,0)) -> 69741 | H186: 1 | I186: 1 | J186: 1 | K186: 2 | L186: =IF(INTRO!$E$38="Endemic", IF($H186>0, IF($H186=4,"Unknown", IF($H186=99,"Stopped", $D186)), 0),"Not required") -> 151610 | M186: =IF(INTRO!$E$40="Endemic", IF($I186>0, IF($I186=4,"Unknown",IF($I186=99,"Stopped", $D186)), 0),"Not required") -> 151610 | N186: =IF(INTRO!$E$42="Endemic", IF(AND($J186>1,$J186<5), IF($J186=4, "Unknown", E186+F186), 0),"Not required") -> 0 | O186: =IF(INTRO!$E$44="Endemic", IF(AND($K186>0,$K186<5), IF($K186=4,"Unknown", IF($K186=1, $F186*0.33, IF($K186=2, $F186*0.5+$G186*0.2, SUM(F186:G186)))), 0),"Not required") -> 40480.2 | P186: 1 | Q186: 1 | R186: 0 | S186: 1 | T186: MDA1 (IVM+ALB) | U186: T2 (PZQ) | X186: 14040 | Y186: Mukumbi
A187: =IF(INTRO!$E$34<>0,INTRO!$E$34,"") -> DRC | B187: KASAI ORIENTAL | C187: Muya | D187: 379281 | E187: =IF(INTRO!$E$48="","",ROUND($D187*INTRO!$E$48,0)) -> 72063 | F187: =IF(INTRO!$E$49="","",ROUND($D187*INTRO!$E$49,0)) -> 132748 | G187: =IF(INTRO!$E$50="","",ROUND($D187*INTRO!$E$50,0)) -> 174469 | H187: 0 | I187: 0 | J187: 1 | K187: 2 | L187: =IF(INTRO!$E$38="Endemic", IF($H187>0, IF($H187=4,"Unknown", IF($H187=99,"Stopped", $D187)), 0),"Not required") -> 0 | M187: =IF(INTRO!$E$40="Endemic", IF($I187>0, IF($I187=4,"Unknown",IF($I187=99,"Stopped", $D187)), 0),"Not required") -> 0 | N187: =IF(INTRO!$E$42="Endemic", IF(AND($J187>1,$J187<5), IF($J187=4, "Unknown", E187+F187), 0),"Not required") -> 0 | O187: =IF(INTRO!$E$44="Endemic", IF(AND($K187>0,$K187<5), IF($K187=4,"Unknown", IF($K187=1, $F187*0.33, IF($K187=2, $F187*0.5+$G187*0.2, SUM(F187:G187)))), 0),"Not required") -> 101267.8 | P187: 0 | Q187: 0 | R187: 0 | S187: 0 | X187: 14042 | Y187: Muya
A188: =IF(INTRO!$E$34<>0,INTRO!$E$34,"") -> DRC | B188: KASAI ORIENTAL | C188: Nzaba | D188: 318954 | E188: =IF(INTRO!$E$48="","",ROUND($D188*INTRO!$E$48,0)) -> 60601 | F188: =IF(INTRO!$E$49="","",ROUND($D188*INTRO!$E$49,0)) -> 111634 | G188: =IF(INTRO!$E$50="","",ROUND($D188*INTRO!$E$50,0)) -> 146719 | H188: 0 | I188: 0 | J188: 1 | K188: 1 | L188: =IF(INTRO!$E$38="Endemic", IF($H188>0, IF($H188=4,"Unknown", IF($H188=99,"Stopped", $D188)), 0),"Not required") -> 0 | M188: =IF(INTRO!$E$40="Endemic", IF($I188>0, IF($I188=4,"Unknown",IF($I188=99,"Stopped", $D188)), 0),"Not required") -> 0 | N188: =IF(INTRO!$E$42="Endemic", IF(AND($J188>1,$J188<5), IF($J188=4, "Unknown", E188+F188), 0),"Not required") -> 0 | O188: =IF(INTRO!$E$44="Endemic", IF(AND($K188>0,$K188<5), IF($K188=4,"Unknown", IF($K188=1, $F188*0.33, IF($K188=2, $F188*0.5+$G188*0.2, SUM(F188:G188)))), 0),"Not required") -> 36839.22 | P188: 0 | Q188: 0 | R188: 0 | S188: 0 | X188: 14045 | Y188: Nzaba
A189: =IF(INTRO!$E$34<>0,INTRO!$E$34,"") -> DRC | B189: KASAI ORIENTAL | C189: Tshilenge | D189: 297757 | E189: =IF(INTRO!$E$48="","",ROUND($D189*INTRO!$E$48,0)) -> 56574 | F189: =IF(INTRO!$E$49="","",ROUND($D189*INTRO!$E$49,0)) -> 104215 | G189: =IF(INTRO!$E$50="","",ROUND($D189*INTRO!$E$50,0)) -> 136968 | H189: 0 | I189: 1 | J189: 2 | K189: 2 | L189: =IF(INTRO!$E$38="Endemic", IF($H189>0, IF($H189=4,"Unknown", IF($H189=99,"Stopped", $D189)), 0),"Not required") -> 0 | M189: =IF(INTRO!$E$40="Endemic", IF($I189>0, IF($I189=4,"Unknown",IF($I189=99,"Stopped", $D189)), 0),"Not required") -> 297757 | N189: =IF(INTRO!$E$42="Endemic", IF(AND($J189>1,$J189<5), IF($J189=4, "Unknown", E189+F189), 0),"Not required") -> 160789 | O189: =IF(INTRO!$E$44="Endemic", IF(AND($K189>0,$K189<5), IF($K189=4,"Unknown", IF($K189=1, $F189*0.33, IF($K189=2, $F189*0.5+$G189*0.2, SUM(F189:G189)))), 0),"Not required") -> 79501.1 | P189: 0 | Q189: 1 | R189: 1 | S189: 0 | T189: MDA3 (IVM) | U189: T3 (ALB/MBD) | X189: 14049 | Y189: Tshilenge
A190: =IF(INTRO!$E$34<>0,INTRO!$E$34,"") -> DRC | B190: KASAI ORIENTAL | C190: Tshilundu | D190: 190672 | E190: =IF(INTRO!$E$48="","",ROUND($D190*INTRO!$E$48,0)) -> 36228 | F190: =IF(INTRO!$E$49="","",ROUND($D190*INTRO!$E$49,0)) -> 66735 | G190: =IF(INTRO!$E$50="","",ROUND($D190*INTRO!$E$50,0)) -> 87709 | H190: 0 | I190: 1 | J190: 1 | K190: 1 | L190: =IF(INTRO!$E$38="Endemic", IF($H190>0, IF($H190=4,"Unknown", IF($H190=99,"Stopped", $D190)), 0),"Not required") -> 0 | M190: =IF(INTRO!$E$40="Endemic", IF($I190>0, IF($I190=4,"Unknown",IF($I190=99,"Stopped", $D190)), 0),"Not required") -> 190672 | N190: =IF(INTRO!$E$42="Endemic", IF(AND($J190>1,$J190<5), IF($J190=4, "Unknown", E190+F190), 0),"Not required") -> 0 | O190: =IF(INTRO!$E$44="Endemic", IF(AND($K190>0,$K190<5), IF($K190=4,"Unknown", IF($K190=1, $F190*0.33, IF($K190=2, $F190*0.5+$G190*0.2, SUM(F190:G190)))), 0),"Not required") -> 22022.55 | P190: 0 | Q190: 1 | R190: 0 | S190: 1 | T190: MDA3 (IVM) | U190: T2 (PZQ) | X190: 14050 | Y190: Tshilundu
A191: =IF(INTRO!$E$34<>0,INTRO!$E$34,"") -> DRC | B191: KASAI ORIENTAL | C191: Tshitenge | D191: 244163 | E191: =IF(INTRO!$E$48="","",ROUND($D191*INTRO!$E$48,0)) -> 46391 | F191: =IF(INTRO!$E$49="","",ROUND($D191*INTRO!$E$49,0)) -> 85457 | G191: =IF(INTRO!$E$50="","",ROUND($D191*INTRO!$E$50,0)) -> 112315 | H191: 1 | I191: 1 | J191: 1 | K191: 2 | L191: =IF(INTRO!$E$38="Endemic", IF($H191>0, IF($H191=4,"Unknown", IF($H191=99,"Stopped", $D191)), 0),"Not required") -> 244163 | M191: =IF(INTRO!$E$40="Endemic", IF($I191>0, IF($I191=4,"Unknown",IF($I191=99,"Stopped", $D191)), 0),"Not required") -> 244163 | N191: =IF(INTRO!$E$42="Endemic", IF(AND($J191>1,$J191<5), IF($J191=4, "Unknown", E191+F191), 0),"Not required") -> 0 | O191: =IF(INTRO!$E$44="Endemic", IF(AND($K191>0,$K191<5), IF($K191=4,"Unknown", IF($K191=1, $F191*0.33, IF($K191=2, $F191*0.5+$G191*0.2, SUM(F191:G191)))), 0),"Not required") -> 65191.5 | P191: 1 | Q191: 1 | R191: 0 | S191: 0 | T191: MDA1 (IVM+ALB) | X191: 14057 | Y191: Tshitenge
A192: =IF(INTRO!$E$34<>0,INTRO!$E$34,"") -> DRC | B192: KASAI ORIENTAL | C192: Tshitshimbi | D192: 244163 | E192: =IF(INTRO!$E$48="","",ROUND($D192*INTRO!$E$48,0)) -> 46391 | F192: =IF(INTRO!$E$49="","",ROUND($D192*INTRO!$E$49,0)) -> 85457 | G192: =IF(INTRO!$E$50="","",ROUND($D192*INTRO!$E$50,0)) -> 112315 | H192: 0 | I192: 1 | J192: 1 | K192: 2 | L192: =IF(INTRO!$E$38="Endemic", IF($H192>0, IF($H192=4,"Unknown", IF($H192=99,"Stopped", $D192)), 0),"Not required") -> 0 | M192: =IF(INTRO!$E$40="Endemic", IF($I192>0, IF($I192=4,"Unknown",IF($I192=99,"Stopped", $D192)), 0),"Not required") -> 244163 | N192: =IF(INTRO!$E$42="Endemic", IF(AND($J192>1,$J192<5), IF($J192=4, "Unknown", E192+F192), 0),"Not required") -> 0 | O192: =IF(INTRO!$E$44="Endemic", IF(AND($K192>0,$K192<5), IF($K192=4,"Unknown", IF($K192=1, $F192*0.33, IF($K192=2, $F192*0.5+$G192*0.2, SUM(F192:G192)))), 0),"Not required") -> 65191.5 | P192: 0 | Q192: 1 | R192: 0 | S192: 0 | T192: MDA3 (IVM) | X192: 14051 | Y192: Tshitshimbi
A193: =IF(INTRO!$E$34<>0,INTRO!$E$34,"") -> DRC | B193: KINSHASA | C193: Bandalungwa | D193: 185103 | E193: =IF(INTRO!$E$48="","",ROUND($D193*INTRO!$E$48,0)) -> 35170 | F193: =IF(INTRO!$E$49="","",ROUND($D193*INTRO!$E$49,0)) -> 64786 | G193: =IF(INTRO!$E$50="","",ROUND($D193*INTRO!$E$50,0)) -> 85147 | H193: 0 | I193: 0 | J193: 3 | K193: 1 | L193: =IF(INTRO!$E$38="Endemic", IF($H193>0, IF($H193=4,"Unknown", IF($H193=99,"Stopped", $D193)), 0),"Not required") -> 0 | M193: =IF(INTRO!$E$40="Endemic", IF($I193>0, IF($I193=4,"Unknown",IF($I193=99,"Stopped", $D193)), 0),"Not required") -> 0 | N193: =IF(INTRO!$E$42="Endemic", IF(AND($J193>1,$J193<5), IF($J193=4, "Unknown", E193+F193), 0),"Not required") -> 99956 | O193: =IF(INTRO!$E$44="Endemic", IF(AND($K193>0,$K193<5), IF($K193=4,"Unknown", IF($K193=1, $F193*0.33, IF($K193=2, $F193*0.5+$G193*0.2, SUM(F193:G193)))), 0),"Not required") -> 21379.38 | P193: 0 | Q193: 0 | R193: 0 | S193: 0 | X193: 14126 | Y193: Bandalungwa
A194: =IF(INTRO!$E$34<>0,INTRO!$E$34,"") -> DRC | B194: KINSHASA | C194: Barumbu | D194: 154736 | E194: =IF(INTRO!$E$48="","",ROUND($D194*INTRO!$E$48,0)) -> 29400 | F194: =IF(INTRO!$E$49="","",ROUND($D194*INTRO!$E$49,0)) -> 54158 | G194: =IF(INTRO!$E$50="","",ROUND($D194*INTRO!$E$50,0)) -> 71179 | H194: 0 | I194: 0 | J194: 3 | K194: 1 | L194: =IF(INTRO!$E$38="Endemic", IF($H194>0, IF($H194=4,"Unknown", IF($H194=99,"Stopped", $D194)), 0),"Not required") -> 0 | M194: =IF(INTRO!$E$40="Endemic", IF($I194>0, IF($I194=4,"Unknown",IF($I194=99,"Stopped", $D194)), 0),"Not required") -> 0 | N194: =IF(INTRO!$E$42="Endemic", IF(AND($J194>1,$J194<5), IF($J194=4, "Unknown", E194+F194), 0),"Not required") -> 83558 | O194: =IF(INTRO!$E$44="Endemic", IF(AND($K194>0,$K194<5), IF($K194=4,"Unknown", IF($K194=1, $F194*0.33, IF($K194=2, $F194*0.5+$G194*0.2, SUM(F194:G194)))), 0),"Not required") -> 17872.14 | P194: 0 | Q194: 0 | R194: 0 | S194: 0 | X194: 14127 | Y194: Barumbu
A195: =IF(INTRO!$E$34<>0,INTRO!$E$34,"") -> DRC | B195: KINSHASA | C195: Binza-Metéo | D195: 409104 | E195: =IF(INTRO!$E$48="","",ROUND($D195*INTRO!$E$48,0)) -> 77730 | F195: =IF(INTRO!$E$49="","",ROUND($D195*INTRO!$E$49,0)) -> 143186 | G195: =IF(INTRO!$E$50="","",ROUND($D195*INTRO!$E$50,0)) -> 188188 | H195: 0 | I195: 0 | J195: 3 | K195: 1 | L195: =IF(INTRO!$E$38="Endemic", IF($H195>0, IF($H195=4,"Unknown", IF($H195=99,"Stopped", $D195)), 0),"Not required") -> 0 | M195: =IF(INTRO!$E$40="Endemic", IF($I195>0, IF($I195=4,"Unknown",IF($I195=99,"Stopped", $D195)), 0),"Not required") -> 0 | N195: =IF(INTRO!$E$42="Endemic", IF(AND($J195>1,$J195<5), IF($J195=4, "Unknown", E195+F195), 0),"Not required") -> 220916 | O195: =IF(INTRO!$E$44="Endemic", IF(AND($K195>0,$K195<5), IF($K195=4,"Unknown", IF($K195=1, $F195*0.33, IF($K195=2, $F195*0.5+$G195*0.2, SUM(F195:G195)))), 0),"Not required") -> 47251.38 | P195: 0 | Q195: 0 | R195: 0 | S195: 0 | X195: 14128 | Y195: Binza-Metéo
A196: =IF(INTRO!$E$34<>0,INTRO!$E$34,"") -> DRC | B196: KINSHASA | C196: Binza-Ozone | D196: 58451 | E196: =IF(INTRO!$E$48="","",ROUND($D196*INTRO!$E$48,0)) -> 11106 | F196: =IF(INTRO!$E$49="","",ROUND($D196*INTRO!$E$49,0)) -> 20458 | G196: =IF(INTRO!$E$50="","",ROUND($D196*INTRO!$E$50,0)) -> 26887 | H196: 0 | I196: 1 | J196: 3 | K196: 1 | L196: =IF(INTRO!$E$38="Endemic", IF($H196>0, IF($H196=4,"Unknown", IF($H196=99,"Stopped", $D196)), 0),"Not required") -> 0 | M196: =IF(INTRO!$E$40="Endemic", IF($I196>0, IF($I196=4,"Unknown",IF($I196=99,"Stopped", $D196)), 0),"Not required") -> 58451 | N196: =IF(INTRO!$E$42="Endemic", IF(AND($J196>1,$J196<5), IF($J196=4, "Unknown", E196+F196), 0),"Not required") -> 31564 | O196: =IF(INTRO!$E$44="Endemic", IF(AND($K196>0,$K196<5), IF($K196=4,"Unknown", IF($K196=1, $F196*0.33, IF($K196=2, $F196*0.5+$G196*0.2, SUM(F196:G196)))), 0),"Not required") -> 6751.14 | P196: 0 | Q196: 1 | R196: 0 | S196: 0 | T196: MDA3 (IVM) | X196: 14129 | Y196: Binza-Ozone
A197: =IF(INTRO!$E$34<>0,INTRO!$E$34,"") -> DRC | B197: KINSHASA | C197: Biyela | D197: 229315 | E197: =IF(INTRO!$E$48="","",ROUND($D197*INTRO!$E$48,0)) -> 43570 | F197: =IF(INTRO!$E$49="","",ROUND($D197*INTRO!$E$49,0)) -> 80260 | G197: =IF(INTRO!$E$50="","",ROUND($D197*INTRO!$E$50,0)) -> 105485 | H197: 0 | I197: 0 | J197: 3 | K197: 1 | L197: =IF(INTRO!$E$38="Endemic", IF($H197>0, IF($H197=4,"Unknown", IF($H197=99,"Stopped", $D197)), 0),"Not required") -> 0 | M197: =IF(INTRO!$E$40="Endemic", IF($I197>0, IF($I197=4,"Unknown",IF($I197=99,"Stopped", $D197)), 0),"Not required") -> 0 | N197: =IF(INTRO!$E$42="Endemic", IF(AND($J197>1,$J197<5), IF($J197=4, "Unknown", E197+F197), 0),"Not required") -> 123830 | O197: =IF(INTRO!$E$44="Endemic", IF(AND($K197>0,$K197<5), IF($K197=4,"Unknown", IF($K197=1, $F197*0.33, IF($K197=2, $F197*0.5+$G197*0.2, SUM(F197:G197)))), 0),"Not required") -> 26485.8 | P197: 0 | Q197: 0 | R197: 0 | S197: 0 | X197: 14130 | Y197: Biyela
A198: =IF(INTRO!$E$34<>0,INTRO!$E$34,"") -> DRC | B198: KINSHASA | C198: Bumbu | D198: 422189 | E198: =IF(INTRO!$E$48="","",ROUND($D198*INTRO!$E$48,0)) -> 80216 | F198: =IF(INTRO!$E$49="","",ROUND($D198*INTRO!$E$49,0)) -> 147766 | G198: =IF(INTRO!$E$50="","",ROUND($D198*INTRO!$E$50,0)) -> 194207 | H198: 0 | I198: 0 | J198: 3 | K198: 1 | L198: =IF(INTRO!$E$38="Endemic", IF($H198>0, IF($H198=4,"Unknown", IF($H198=99,"Stopped", $D198)), 0),"Not required") -> 0 | M198: =IF(INTRO!$E$40="Endemic", IF($I198>0, IF($I198=4,"Unknown",IF($I198=99,"Stopped", $D198)), 0),"Not required") -> 0 | N198: =IF(INTRO!$E$42="Endemic", IF(AND($J198>1,$J198<5), IF($J198=4, "Unknown", E198+F198), 0),"Not required") -> 227982 | O198: =IF(INTRO!$E$44="Endemic", IF(AND($K198>0,$K198<5), IF($K198=4,"Unknown", IF($K198=1, $F198*0.33, IF($K198=2, $F198*0.5+$G198*0.2, SUM(F198:G198)))), 0),"Not required") -> 48762.78 | P198: 0 | Q198: 0 | R198: 0 | S198: 0 | X198: 14131 | Y198: Bumbu
A199: =IF(INTRO!$E$34<>0,INTRO!$E$34,"") -> DRC | B199: KINSHASA | C199: Gombe | D199: 33219 | E199: =IF(INTRO!$E$48="","",ROUND($D199*INTRO!$E$48,0)) -> 6312 | F199: =IF(INTRO!$E$49="","",ROUND($D199*INTRO!$E$49,0)) -> 11627 | G199: =IF(INTRO!$E$50="","",ROUND($D199*INTRO!$E$50,0)) -> 15281 | H199: 0 | I199: 0 | J199: 3 | K199: 1 | L199: =IF(INTRO!$E$38="Endemic", IF($H199>0, IF($H199=4,"Unknown", IF($H199=99,"Stopped", $D199)), 0),"Not required") -> 0 | M199: =IF(INTRO!$E$40="Endemic", IF($I199>0, IF($I199=4,"Unknown",IF($I199=99,"Stopped", $D199)), 0),"Not required") -> 0 | N199: =IF(INTRO!$E$42="Endemic", IF(AND($J199>1,$J199<5), IF($J199=4, "Unknown", E199+F199), 0),"Not required") -> 17939 | O199: =IF(INTRO!$E$44="Endemic", IF(AND($K199>0,$K199<5), IF($K199=4,"Unknown", IF($K199=1, $F199*0.33, IF($K199=2, $F199*0.5+$G199*0.2, SUM(F199:G199)))), 0),"Not required") -> 3836.91 | P199: 0 | Q199: 0 | R199: 0 | S199: 0 | X199: 14132 | Y199: Gombe
A200: =IF(INTRO!$E$34<>0,INTRO!$E$34,"") -> DRC | B200: KINSHASA | C200: Kalamu I | D200: 148611 | E200: =IF(INTRO!$E$48="","",ROUND($D200*INTRO!$E$48,0)) -> 28236 | F200: =IF(INTRO!$E$49="","",ROUND($D200*INTRO!$E$49,0)) -> 52014 | G200: =IF(INTRO!$E$50="","",ROUND($D200*INTRO!$E$50,0)) -> 68361 | H200: 0 | I200: 0 | J200: 3 | K200: 1 | L200: =IF(INTRO!$E$38="Endemic", IF($H200>0, IF($H200=4,"Unknown", IF($H200=99,"Stopped", $D200)), 0),"Not required") -> 0 | M200: =IF(INTRO!$E$40="Endemic", IF($I200>0, IF($I200=4,"Unknown",IF($I200=99,"Stopped", $D200)), 0),"Not required") -> 0 | N200: =IF(INTRO!$E$42="Endemic", IF(AND($J200>1,$J200<5), IF($J200=4, "Unknown", E200+F200), 0),"Not required") -> 80250 | O200: =IF(INTRO!$E$44="Endemic", IF(AND($K200>0,$K200<5), IF($K200=4,"Unknown", IF($K200=1, $F200*0.33, IF($K200=2, $F200*0.5+$G200*0.2, SUM(F200:G200)))), 0),"Not required") -> 17164.62 | P200: 0 | Q200: 0 | R200: 0 | S200: 0 | X200: 14133 | Y200: Kalamu I
A201: =IF(INTRO!$E$34<>0,INTRO!$E$34,"") -> DRC | B201: KINSHASA | C201: Kalamu II | D201: 132644 | E201: =IF(INTRO!$E$48="","",ROUND($D201*INTRO!$E$48,0)) -> 25202 | F201: =IF(INTRO!$E$49="","",ROUND($D201*INTRO!$E$49,0)) -> 46425 | G201: =IF(INTRO!$E$50="","",ROUND($D201*INTRO!$E$50,0)) -> 61016 | H201: 0 | I201: 0 | J201: 3 | K201: 1 | L201: =IF(INTRO!$E$38="Endemic", IF($H201>0, IF($H201=4,"Unknown", IF($H201=99,"Stopped", $D201)), 0),"Not required") -> 0 | M201: =IF(INTRO!$E$40="Endemic", IF($I201>0, IF($I201=4,"Unknown",IF($I201=99,"Stopped", $D201)), 0),"Not required") -> 0 | N201: =IF(INTRO!$E$42="Endemic", IF(AND($J201>1,$J201<5), IF($J201=4, "Unknown", E201+F201), 0),"Not required") -> 71627 | O201: =IF(INTRO!$E$44="Endemic", IF(AND($K201>0,$K201<5), IF($K201=4,"Unknown", IF($K201=1, $F201*0.33, IF($K201=2, $F201*0.5+$G201*0.2, SUM(F201:G201)))), 0),"Not required") -> 15320.25 | P201: 0 | Q201: 0 | R201: 0 | S201: 0 | X201: 14134 | Y201: Kalamu II
A202: =IF(INTRO!$E$34<>0,INTRO!$E$34,"") -> DRC | B202: KINSHASA | C202: Kasa Vubu | D202: 135372 | E202: =IF(INTRO!$E$48="","",ROUND($D202*INTRO!$E$48,0)) -> 25721 | F202: =IF(INTRO!$E$49="","",ROUND($D202*INTRO!$E$49,0)) -> 47380 | G202: =IF(INTRO!$E$50="","",ROUND($D202*INTRO!$E$50,0)) -> 62271 | H202: 0 | I202: 0 | J202: 3 | K202: 1 | L202: =IF(INTRO!$E$38="Endemic", IF($H202>0, IF($H202=4,"Unknown", IF($H202=99,"Stopped", $D202)), 0),"Not required") -> 0 | M202: =IF(INTRO!$E$40="Endemic", IF($I202>0, IF($I202=4,"Unknown",IF($I202=99,"Stopped", $D202)), 0),"Not required") -> 0 | N202: =IF(INTRO!$E$42="Endemic", IF(AND($J202>1,$J202<5), IF($J202=4, "Unknown", E202+F202), 0),"Not required") -> 73101 | O202: =IF(INTRO!$E$44="Endemic", IF(AND($K202>0,$K202<5), IF($K202=4,"Unknown", IF($K202=1, $F202*0.33, IF($K202=2, $F202*0.5+$G202*0.2, SUM(F202:G202)))), 0),"Not required") -> 15635.4 | P202: 0 | Q202: 0 | R202: 0 | S202: 0 | X202: 14135 | Y202: Kasa Vubu
A203: =IF(INTRO!$E$34<>0,INTRO!$E$34,"") -> DRC | B203: KINSHASA | C203: Kikimi | D203: 261908 | E203: =IF(INTRO!$E$48="","",ROUND($D203*INTRO!$E$48,0)) -> 49763 | F203: =IF(INTRO!$E$49="","",ROUND($D203*INTRO!$E$49,0)) -> 91668 | G203: =IF(INTRO!$E$50="","",ROUND($D203*INTRO!$E$50,0)) -> 120478 | H203: 0 | I203: 0 | J203: 3 | K203: 1 | L203: =IF(INTRO!$E$38="Endemic", IF($H203>0, IF($H203=4,"Unknown", IF($H203=99,"Stopped", $D203)), 0),"Not required") -> 0 | M203: =IF(INTRO!$E$40="Endemic", IF($I203>0, IF($I203=4,"Unknown",IF($I203=99,"Stopped", $D203)), 0),"Not required") -> 0 | N203: =IF(INTRO!$E$42="Endemic", IF(AND($J203>1,$J203<5), IF($J203=4, "Unknown", E203+F203), 0),"Not required") -> 141431 | O203: =IF(INTRO!$E$44="Endemic", IF(AND($K203>0,$K203<5), IF($K203=4,"Unknown", IF($K203=1, $F203*0.33, IF($K203=2, $F203*0.5+$G203*0.2, SUM(F203:G203)))), 0),"Not required") -> 30250.44 | P203: 0 | Q203: 0 | R203: 0 | S203: 0 | X203: 14136 | Y203: Kikimi
... 324 more rows

Sheet MDA1
A1: MDA 1 - Ivermectin (IVM) and Albendazole (ALB)
A2: Administrative structure, population requiring PC by age group, population treated by age group and coverage
A4: TOTAL | G4: =SUM(G$9:G$1000) -> 7093823 | H4: =SUM(H$9:H$1000) -> 9323317 | I4: =SUM(I$9:I$1000) -> 16417140 | K4: =SUM(K$9:K$1000) -> 6942122 | L4: =SUM(L$9:L$1000) -> 9123931 | M4: =SUM(M$9:M$1000) -> 16066055 | O4: =IF(G4<>0, IF(K4/G4*100=0, "-", K4/G4*100), " ") -> 97.86150571 | P4: =IF(H4<>0, IF(L4/H4*100=0, "-", L4/H4*100), " ") -> 97.86142636 | Q4: =IF(I4<>0, IF(M4/I4*100=0, "-", M4/I4*100), " ") -> 97.86147283
D6: PC implemented | E6: Date | F6: Population targeted for MDA 1 | J6: Population treated | N6: Programme coverage (%)
A7: Country | B7: Province/State | C7: District | F7: PreSAC | G7: SAC | H7: Adults | I7: Total | J7: PreSAC | K7: SAC | L7: Adults | M7: Total | N7: PreSAC | O7: SAC | P7: Adults | Q7: Total
A9: =IF(COUNTRY_INFO!A9=0," ",COUNTRY_INFO!A9) -> DRC | B9: =IF(COUNTRY_INFO!B9=0," ",COUNTRY_INFO!B9) -> BAS UELE | C9: =IF(COUNTRY_INFO!C9=0," ",COUNTRY_INFO!C9) -> Aketi | D9: =IF(COUNTRY_INFO!$T$9:$T$1000="MDA1 (IVM+ALB)", COUNTRY_INFO!$T$9:$T$1000, " ") ->  | I9: =SUM(F9:H9) -> 0 | O9: =IF(G9<>0, IF(K9/G9*100=0, "-", K9/G9*100), " ") ->  | P9: =IF(H9<>0, IF(L9/H9*100=0, "-", L9/H9*100), " ") -> 
A10: =IF(COUNTRY_INFO!A10=0," ",COUNTRY_INFO!A10) -> DRC | B10: =IF(COUNTRY_INFO!B10=0," ",COUNTRY_INFO!B10) -> BAS UELE | C10: =IF(COUNTRY_INFO!C10=0," ",COUNTRY_INFO!C10) -> Ango | D10: =IF(COUNTRY_INFO!$T$9:$T$1000="MDA1 (IVM+ALB)", COUNTRY_INFO!$T$9:$T$1000, " ") ->  | I10: =SUM(F10:H10) -> 0 | O10: =IF(G10<>0, IF(K10/G10*100=0, "-", K10/G10*100), " ") ->  | P10: =IF(H10<>0, IF(L10/H10*100=0, "-", L10/H10*100), " ") ->  | Q10: =IF(I10<>0, IF(M10/I10*100=0, "-", M10/I10*100), " ") -> 
A11: =IF(COUNTRY_INFO!A11=0," ",COUNTRY_INFO!A11) -> DRC | B11: =IF(COUNTRY_INFO!B11=0," ",COUNTRY_INFO!B11) -> BAS UELE | C11: =IF(COUNTRY_INFO!C11=0," ",COUNTRY_INFO!C11) -> Bili | D11: =IF(COUNTRY_INFO!$T$9:$T$1000="MDA1 (IVM+ALB)", COUNTRY_INFO!$T$9:$T$1000, " ") ->  | I11: 0
A12: =IF(COUNTRY_INFO!A12=0," ",COUNTRY_INFO!A12) -> DRC | B12: =IF(COUNTRY_INFO!B12=0," ",COUNTRY_INFO!B12) -> BAS UELE | C12: =IF(COUNTRY_INFO!C12=0," ",COUNTRY_INFO!C12) -> Bondo | D12: =IF(COUNTRY_INFO!$T$9:$T$1000="MDA1 (IVM+ALB)", COUNTRY_INFO!$T$9:$T$1000, " ") ->  | I12: 0
A13: =IF(COUNTRY_INFO!A13=0," ",COUNTRY_INFO!A13) -> DRC | B13: =IF(COUNTRY_INFO!B13=0," ",COUNTRY_INFO!B13) -> BAS UELE | C13: =IF(COUNTRY_INFO!C13=0," ",COUNTRY_INFO!C13) -> Buta | D13: =IF(COUNTRY_INFO!$T$9:$T$1000="MDA1 (IVM+ALB)", COUNTRY_INFO!$T$9:$T$1000, " ") ->  | I13: 0
A14: =IF(COUNTRY_INFO!A14=0," ",COUNTRY_INFO!A14) -> DRC | B14: =IF(COUNTRY_INFO!B14=0," ",COUNTRY_INFO!B14) -> BAS UELE | C14: =IF(COUNTRY_INFO!C14=0," ",COUNTRY_INFO!C14) -> Dingela | D14: =IF(COUNTRY_INFO!$T$9:$T$1000="MDA1 (IVM+ALB)", COUNTRY_INFO!$T$9:$T$1000, " ") ->  | I14: 0
A15: =IF(COUNTRY_INFO!A15=0," ",COUNTRY_INFO!A15) -> DRC | B15: =IF(COUNTRY_INFO!B15=0," ",COUNTRY_INFO!B15) -> BAS UELE | C15: =IF(COUNTRY_INFO!C15=0," ",COUNTRY_INFO!C15) -> Likati | D15: =IF(COUNTRY_INFO!$T$9:$T$1000="MDA1 (IVM+ALB)", COUNTRY_INFO!$T$9:$T$1000, " ") ->  | I15: 0
A16: =IF(COUNTRY_INFO!A16=0," ",COUNTRY_INFO!A16) -> DRC | B16: =IF(COUNTRY_INFO!B16=0," ",COUNTRY_INFO!B16) -> BAS UELE | C16: =IF(COUNTRY_INFO!C16=0," ",COUNTRY_INFO!C16) -> Monga | D16: =IF(COUNTRY_INFO!$T$9:$T$1000="MDA1 (IVM+ALB)", COUNTRY_INFO!$T$9:$T$1000, " ") ->  | I16: 0
A17: =IF(COUNTRY_INFO!A17=0," ",COUNTRY_INFO!A17) -> DRC | B17: =IF(COUNTRY_INFO!B17=0," ",COUNTRY_INFO!B17) -> BAS UELE | C17: =IF(COUNTRY_INFO!C17=0," ",COUNTRY_INFO!C17) -> Poko | D17: =IF(COUNTRY_INFO!$T$9:$T$1000="MDA1 (IVM+ALB)", COUNTRY_INFO!$T$9:$T$1000, " ") ->  | I17: 0
A18: =IF(COUNTRY_INFO!A18=0," ",COUNTRY_INFO!A18) -> DRC | B18: =IF(COUNTRY_INFO!B18=0," ",COUNTRY_INFO!B18) -> BAS UELE | C18: =IF(COUNTRY_INFO!C18=0," ",COUNTRY_INFO!C18) -> Titule | D18: =IF(COUNTRY_INFO!$T$9:$T$1000="MDA1 (IVM+ALB)", COUNTRY_INFO!$T$9:$T$1000, " ") ->  | I18: 0
A19: =IF(COUNTRY_INFO!A19=0," ",COUNTRY_INFO!A19) -> DRC | B19: =IF(COUNTRY_INFO!B19=0," ",COUNTRY_INFO!B19) -> BAS UELE | C19: =IF(COUNTRY_INFO!C19=0," ",COUNTRY_INFO!C19) -> Viadana | D19: =IF(COUNTRY_INFO!$T$9:$T$1000="MDA1 (IVM+ALB)", COUNTRY_INFO!$T$9:$T$1000, " ") ->  | I19: 0
A20: =IF(COUNTRY_INFO!A20=0," ",COUNTRY_INFO!A20) -> DRC | B20: =IF(COUNTRY_INFO!B20=0," ",COUNTRY_INFO!B20) -> EQUATEUR | C20: =IF(COUNTRY_INFO!C20=0," ",COUNTRY_INFO!C20) -> Basankusu | D20: =IF(COUNTRY_INFO!$T$9:$T$1000="MDA1 (IVM+ALB)", COUNTRY_INFO!$T$9:$T$1000, " ") ->  | I20: 0
A21: =IF(COUNTRY_INFO!A21=0," ",COUNTRY_INFO!A21) -> DRC | B21: =IF(COUNTRY_INFO!B21=0," ",COUNTRY_INFO!B21) -> EQUATEUR | C21: =IF(COUNTRY_INFO!C21=0," ",COUNTRY_INFO!C21) -> Bikoro | D21: =IF(COUNTRY_INFO!$T$9:$T$1000="MDA1 (IVM+ALB)", COUNTRY_INFO!$T$9:$T$1000, " ") ->  | I21: 0
A22: =IF(COUNTRY_INFO!A22=0," ",COUNTRY_INFO!A22) -> DRC | B22: =IF(COUNTRY_INFO!B22=0," ",COUNTRY_INFO!B22) -> EQUATEUR | C22: =IF(COUNTRY_INFO!C22=0," ",COUNTRY_INFO!C22) -> Bolenge | D22: =IF(COUNTRY_INFO!$T$9:$T$1000="MDA1 (IVM+ALB)", COUNTRY_INFO!$T$9:$T$1000, " ") ->  | I22: 0
A23: =IF(COUNTRY_INFO!A23=0," ",COUNTRY_INFO!A23) -> DRC | B23: =IF(COUNTRY_INFO!B23=0," ",COUNTRY_INFO!B23) -> EQUATEUR | C23: =IF(COUNTRY_INFO!C23=0," ",COUNTRY_INFO!C23) -> Bolomba | D23: =IF(COUNTRY_INFO!$T$9:$T$1000="MDA1 (IVM+ALB)", COUNTRY_INFO!$T$9:$T$1000, " ") ->  | I23: 0
A24: =IF(COUNTRY_INFO!A24=0," ",COUNTRY_INFO!A24) -> DRC | B24: =IF(COUNTRY_INFO!B24=0," ",COUNTRY_INFO!B24) -> EQUATEUR | C24: =IF(COUNTRY_INFO!C24=0," ",COUNTRY_INFO!C24) -> Bomongo | D24: =IF(COUNTRY_INFO!$T$9:$T$1000="MDA1 (IVM+ALB)", COUNTRY_INFO!$T$9:$T$1000, " ") ->  | I24: 0
A25: =IF(COUNTRY_INFO!A25=0," ",COUNTRY_INFO!A25) -> DRC | B25: =IF(COUNTRY_INFO!B25=0," ",COUNTRY_INFO!B25) -> EQUATEUR | C25: =IF(COUNTRY_INFO!C25=0," ",COUNTRY_INFO!C25) -> Djombo | D25: =IF(COUNTRY_INFO!$T$9:$T$1000="MDA1 (IVM+ALB)", COUNTRY_INFO!$T$9:$T$1000, " ") ->  | I25: 0
A26: =IF(COUNTRY_INFO!A26=0," ",COUNTRY_INFO!A26) -> DRC | B26: =IF(COUNTRY_INFO!B26=0," ",COUNTRY_INFO!B26) -> EQUATEUR | C26: =IF(COUNTRY_INFO!C26=0," ",COUNTRY_INFO!C26) -> Iboko | D26: =IF(COUNTRY_INFO!$T$9:$T$1000="MDA1 (IVM+ALB)", COUNTRY_INFO!$T$9:$T$1000, " ") ->  | I26: 0
A27: =IF(COUNTRY_INFO!A27=0," ",COUNTRY_INFO!A27) -> DRC | B27: =IF(COUNTRY_INFO!B27=0," ",COUNTRY_INFO!B27) -> EQUATEUR | C27: =IF(COUNTRY_INFO!C27=0," ",COUNTRY_INFO!C27) -> Ingende | D27: =IF(COUNTRY_INFO!$T$9:$T$1000="MDA1 (IVM+ALB)", COUNTRY_INFO!$T$9:$T$1000, " ") ->  | I27: 0
A28: =IF(COUNTRY_INFO!A28=0," ",COUNTRY_INFO!A28) -> DRC | B28: =IF(COUNTRY_INFO!B28=0," ",COUNTRY_INFO!B28) -> EQUATEUR | C28: =IF(COUNTRY_INFO!C28=0," ",COUNTRY_INFO!C28) -> Irebu | D28: =IF(COUNTRY_INFO!$T$9:$T$1000="MDA1 (IVM+ALB)", COUNTRY_INFO!$T$9:$T$1000, " ") ->  | I28: 0
A29: =IF(COUNTRY_INFO!A29=0," ",COUNTRY_INFO!A29) -> DRC | B29: =IF(COUNTRY_INFO!B29=0," ",COUNTRY_INFO!B29) -> EQUATEUR | C29: =IF(COUNTRY_INFO!C29=0," ",COUNTRY_INFO!C29) -> Lilanga Bobangi | D29: =IF(COUNTRY_INFO!$T$9:$T$1000="MDA1 (IVM+ALB)", COUNTRY_INFO!$T$9:$T$1000, " ") ->  | I29: 0
A30: =IF(COUNTRY_INFO!A30=0," ",COUNTRY_INFO!A30) -> DRC | B30: =IF(COUNTRY_INFO!B30=0," ",COUNTRY_INFO!B30) -> EQUATEUR | C30: =IF(COUNTRY_INFO!C30=0," ",COUNTRY_INFO!C30) -> Lotumbe | D30: =IF(COUNTRY_INFO!$T$9:$T$1000="MDA1 (IVM+ALB)", COUNTRY_INFO!$T$9:$T$1000, " ") ->  | I30: 0
A31: =IF(COUNTRY_INFO!A31=0," ",COUNTRY_INFO!A31) -> DRC | B31: =IF(COUNTRY_INFO!B31=0," ",COUNTRY_INFO!B31) -> EQUATEUR | C31: =IF(COUNTRY_INFO!C31=0," ",COUNTRY_INFO!C31) -> Lukolela | D31: =IF(COUNTRY_INFO!$T$9:$T$1000="MDA1 (IVM+ALB)", COUNTRY_INFO!$T$9:$T$1000, " ") ->  | I31: 0
A32: =IF(COUNTRY_INFO!A32=0," ",COUNTRY_INFO!A32) -> DRC | B32: =IF(COUNTRY_INFO!B32=0," ",COUNTRY_INFO!B32) -> EQUATEUR | C32: =IF(COUNTRY_INFO!C32=0," ",COUNTRY_INFO!C32) -> Makanza | D32: =IF(COUNTRY_INFO!$T$9:$T$1000="MDA1 (IVM+ALB)", COUNTRY_INFO!$T$9:$T$1000, " ") ->  | I32: 0
A33: =IF(COUNTRY_INFO!A33=0," ",COUNTRY_INFO!A33) -> DRC | B33: =IF(COUNTRY_INFO!B33=0," ",COUNTRY_INFO!B33) -> EQUATEUR | C33: =IF(COUNTRY_INFO!C33=0," ",COUNTRY_INFO!C33) -> Mampoko | D33: =IF(COUNTRY_INFO!$T$9:$T$1000="MDA1 (IVM+ALB)", COUNTRY_INFO!$T$9:$T$1000, " ") ->  | I33: 0
A34: =IF(COUNTRY_INFO!A34=0," ",COUNTRY_INFO!A34) -> DRC | B34: =IF(COUNTRY_INFO!B34=0," ",COUNTRY_INFO!B34) -> EQUATEUR | C34: =IF(COUNTRY_INFO!C34=0," ",COUNTRY_INFO!C34) -> Mbandaka | D34: =IF(COUNTRY_INFO!$T$9:$T$1000="MDA1 (IVM+ALB)", COUNTRY_INFO!$T$9:$T$1000, " ") ->  | I34: 0
A35: =IF(COUNTRY_INFO!A35=0," ",COUNTRY_INFO!A35) -> DRC | B35: =IF(COUNTRY_INFO!B35=0," ",COUNTRY_INFO!B35) -> EQUATEUR | C35: =IF(COUNTRY_INFO!C35=0," ",COUNTRY_INFO!C35) -> Monieka | D35: =IF(COUNTRY_INFO!$T$9:$T$1000="MDA1 (IVM+ALB)", COUNTRY_INFO!$T$9:$T$1000, " ") ->  | I35: 0
A36: =IF(COUNTRY_INFO!A36=0," ",COUNTRY_INFO!A36) -> DRC | B36: =IF(COUNTRY_INFO!B36=0," ",COUNTRY_INFO!B36) -> EQUATEUR | C36: =IF(COUNTRY_INFO!C36=0," ",COUNTRY_INFO!C36) -> Ntondo | D36: =IF(COUNTRY_INFO!$T$9:$T$1000="MDA1 (IVM+ALB)", COUNTRY_INFO!$T$9:$T$1000, " ") ->  | I36: 0
A37: =IF(COUNTRY_INFO!A37=0," ",COUNTRY_INFO!A37) -> DRC | B37: =IF(COUNTRY_INFO!B37=0," ",COUNTRY_INFO!B37) -> EQUATEUR | C37: =IF(COUNTRY_INFO!C37=0," ",COUNTRY_INFO!C37) -> Wangata | D37: =IF(COUNTRY_INFO!$T$9:$T$1000="MDA1 (IVM+ALB)", COUNTRY_INFO!$T$9:$T$1000, " ") ->  | I37: 0
A38: =IF(COUNTRY_INFO!A38=0," ",COUNTRY_INFO!A38) -> DRC | B38: =IF(COUNTRY_INFO!B38=0," ",COUNTRY_INFO!B38) -> HAUT KATANGA | C38: =IF(COUNTRY_INFO!C38=0," ",COUNTRY_INFO!C38) -> Kafubu | D38: =IF(COUNTRY_INFO!$T$9:$T$1000="MDA1 (IVM+ALB)", COUNTRY_INFO!$T$9:$T$1000, " ") ->  | I38: 0
A39: =IF(COUNTRY_INFO!A39=0," ",COUNTRY_INFO!A39) -> DRC | B39: =IF(COUNTRY_INFO!B39=0," ",COUNTRY_INFO!B39) -> HAUT KATANGA | C39: =IF(COUNTRY_INFO!C39=0," ",COUNTRY_INFO!C39) -> Kamalondo | D39: =IF(COUNTRY_INFO!$T$9:$T$1000="MDA1 (IVM+ALB)", COUNTRY_INFO!$T$9:$T$1000, " ") ->  | I39: 0
A40: =IF(COUNTRY_INFO!A40=0," ",COUNTRY_INFO!A40) -> DRC | B40: =IF(COUNTRY_INFO!B40=0," ",COUNTRY_INFO!B40) -> HAUT KATANGA | C40: =IF(COUNTRY_INFO!C40=0," ",COUNTRY_INFO!C40) -> Kambove | D40: =IF(COUNTRY_INFO!$T$9:$T$1000="MDA1 (IVM+ALB)", COUNTRY_INFO!$T$9:$T$1000, " ") ->  | I40: 0
A41: =IF(COUNTRY_INFO!A41=0," ",COUNTRY_INFO!A41) -> DRC | B41: =IF(COUNTRY_INFO!B41=0," ",COUNTRY_INFO!B41) -> HAUT KATANGA | C41: =IF(COUNTRY_INFO!C41=0," ",COUNTRY_INFO!C41) -> Kampemba | D41: =IF(COUNTRY_INFO!$T$9:$T$1000="MDA1 (IVM+ALB)", COUNTRY_INFO!$T$9:$T$1000, " ") ->  | I41: 0
A42: =IF(COUNTRY_INFO!A42=0," ",COUNTRY_INFO!A42) -> DRC | B42: =IF(COUNTRY_INFO!B42=0," ",COUNTRY_INFO!B42) -> HAUT KATANGA | C42: =IF(COUNTRY_INFO!C42=0," ",COUNTRY_INFO!C42) -> Kapolobwe | D42: =IF(COUNTRY_INFO!$T$9:$T$1000="MDA1 (IVM+ALB)", COUNTRY_INFO!$T$9:$T$1000, " ") ->  | I42: 0
A43: =IF(COUNTRY_INFO!A43=0," ",COUNTRY_INFO!A43) -> DRC | B43: =IF(COUNTRY_INFO!B43=0," ",COUNTRY_INFO!B43) -> HAUT KATANGA | C43: =IF(COUNTRY_INFO!C43=0," ",COUNTRY_INFO!C43) -> Kasenga | D43: =IF(COUNTRY_INFO!$T$9:$T$1000="MDA1 (IVM+ALB)", COUNTRY_INFO!$T$9:$T$1000, " ") -> MDA1 (IVM+ALB) | G43: 41880 | H43: 55043 | I43: 96923 | K43: 39852 | L43: 52377 | M43: 92229 | O43: 95.15759312 | P43: 95.156514 | Q43: 95.15698028
A44: =IF(COUNTRY_INFO!A44=0," ",COUNTRY_INFO!A44) -> DRC | B44: =IF(COUNTRY_INFO!B44=0," ",COUNTRY_INFO!B44) -> HAUT KATANGA | C44: =IF(COUNTRY_INFO!C44=0," ",COUNTRY_INFO!C44) -> Kashobwe | D44: =IF(COUNTRY_INFO!$T$9:$T$1000="MDA1 (IVM+ALB)", COUNTRY_INFO!$T$9:$T$1000, " ") ->  | I44: 0
A45: =IF(COUNTRY_INFO!A45=0," ",COUNTRY_INFO!A45) -> DRC | B45: =IF(COUNTRY_INFO!B45=0," ",COUNTRY_INFO!B45) -> HAUT KATANGA | C45: =IF(COUNTRY_INFO!C45=0," ",COUNTRY_INFO!C45) -> Katuba | D45: =IF(COUNTRY_INFO!$T$9:$T$1000="MDA1 (IVM+ALB)", COUNTRY_INFO!$T$9:$T$1000, " ") ->  | I45: 0
A46: =IF(COUNTRY_INFO!A46=0," ",COUNTRY_INFO!A46) -> DRC | B46: =IF(COUNTRY_INFO!B46=0," ",COUNTRY_INFO!B46) -> HAUT KATANGA | C46: =IF(COUNTRY_INFO!C46=0," ",COUNTRY_INFO!C46) -> Kenya | D46: =IF(COUNTRY_INFO!$T$9:$T$1000="MDA1 (IVM+ALB)", COUNTRY_INFO!$T$9:$T$1000, " ") -> MDA1 (IVM+ALB) | G46: 70877 | H46: 93152 | I46: 164029 | K46: 69723 | L46: 91637 | M46: 161360 | O46: 98.37182725 | P46: 98.3736259 | Q46: 98.3728487
A47: =IF(COUNTRY_INFO!A47=0," ",COUNTRY_INFO!A47) -> DRC | B47: =IF(COUNTRY_INFO!B47=0," ",COUNTRY_INFO!B47) -> HAUT KATANGA | C47: =IF(COUNTRY_INFO!C47=0," ",COUNTRY_INFO!C47) -> Kikula | D47: =IF(COUNTRY_INFO!$T$9:$T$1000="MDA1 (IVM+ALB)", COUNTRY_INFO!$T$9:$T$1000, " ") ->  | I47: 0
A48: =IF(COUNTRY_INFO!A48=0," ",COUNTRY_INFO!A48) -> DRC | B48: =IF(COUNTRY_INFO!B48=0," ",COUNTRY_INFO!B48) -> HAUT KATANGA | C48: =IF(COUNTRY_INFO!C48=0," ",COUNTRY_INFO!C48) -> Kilela Balanda | D48: =IF(COUNTRY_INFO!$T$9:$T$1000="MDA1 (IVM+ALB)", COUNTRY_INFO!$T$9:$T$1000, " ") ->  | I48: 0
A49: =IF(COUNTRY_INFO!A49=0," ",COUNTRY_INFO!A49) -> DRC | B49: =IF(COUNTRY_INFO!B49=0," ",COUNTRY_INFO!B49) -> HAUT KATANGA | C49: =IF(COUNTRY_INFO!C49=0," ",COUNTRY_INFO!C49) -> Kilwa | D49: =IF(COUNTRY_INFO!$T$9:$T$1000="MDA1 (IVM+ALB)", COUNTRY_INFO!$T$9:$T$1000, " ") -> MDA1 (IVM+ALB) | G49: 108797 | H49: 142990 | I49: 251787 | K49: 104021 | L49: 136713 | M49: 240734 | O49: 95.61017307 | P49: 95.61018253 | Q49: 95.61017844
A50: =IF(COUNTRY_INFO!A50=0," ",COUNTRY_INFO!A50) -> DRC | B50: =IF(COUNTRY_INFO!B50=0," ",COUNTRY_INFO!B50) -> HAUT KATANGA | C50: =IF(COUNTRY_INFO!C50=0," ",COUNTRY_INFO!C50) -> Kipushi | D50: =IF(COUNTRY_INFO!$T$9:$T$1000="MDA1 (IVM+ALB)", COUNTRY_INFO!$T$9:$T$1000, " ") -> MDA1 (IVM+ALB) | G50: 63573 | H50: 83553 | I50: 147126 | K50: 62406 | L50: 82019 | M50: 144425 | O50: 98.16431504 | P50: 98.16403959 | Q50: 98.16415861
A51: =IF(COUNTRY_INFO!A51=0," ",COUNTRY_INFO!A51) -> DRC | B51: =IF(COUNTRY_INFO!B51=0," ",COUNTRY_INFO!B51) -> HAUT KATANGA | C51: =IF(COUNTRY_INFO!C51=0," ",COUNTRY_INFO!C51) -> Kisanga | D51: =IF(COUNTRY_INFO!$T$9:$T$1000="MDA1 (IVM+ALB)", COUNTRY_INFO!$T$9:$T$1000, " ") -> MDA1 (IVM+ALB) | G51: 81538 | H51: 107165 | I51: 188703 | K51: 70289 | L51: 92379 | M51: 162668 | O51: 86.20397851 | P51: 86.2025848 | Q51: 86.20318702
A52: =IF(COUNTRY_INFO!A52=0," ",COUNTRY_INFO!A52) -> DRC | B52: =IF(COUNTRY_INFO!B52=0," ",COUNTRY_INFO!B52) -> HAUT KATANGA | C52: =IF(COUNTRY_INFO!C52=0," ",COUNTRY_INFO!C52) -> Kowe | D52: =IF(COUNTRY_INFO!$T$9:$T$1000="MDA1 (IVM+ALB)", COUNTRY_INFO!$T$9:$T$1000, " ") ->  | I52: 0
A53: =IF(COUNTRY_INFO!A53=0," ",COUNTRY_INFO!A53) -> DRC | B53: =IF(COUNTRY_INFO!B53=0," ",COUNTRY_INFO!B53) -> HAUT KATANGA | C53: =IF(COUNTRY_INFO!C53=0," ",COUNTRY_INFO!C53) -> Likasi | D53: =IF(COUNTRY_INFO!$T$9:$T$1000="MDA1 (IVM+ALB)", COUNTRY_INFO!$T$9:$T$1000, " ") -> MDA1 (IVM+ALB) | G53: 36387 | H53: 47823 | I53: 84210 | K53: 34990 | L53: 45987 | M53: 80977 | O53: 96.16071674 | P53: 96.16084311 | Q53: 96.1607885
A54: =IF(COUNTRY_INFO!A54=0," ",COUNTRY_INFO!A54) -> DRC | B54: =IF(COUNTRY_INFO!B54=0," ",COUNTRY_INFO!B54) -> HAUT KATANGA | C54: =IF(COUNTRY_INFO!C54=0," ",COUNTRY_INFO!C54) -> Lubumbashi | D54: =IF(COUNTRY_INFO!$T$9:$T$1000="MDA1 (IVM+ALB)", COUNTRY_INFO!$T$9:$T$1000, " ") -> MDA1 (IVM+ALB) | G54: 47741 | H54: 62746 | I54: 110487 | K54: 43740 | L54: 57487 | M54: 101227 | O54: 91.61936281 | P54: 91.61858923 | Q54: 91.61892349
A55: =IF(COUNTRY_INFO!A55=0," ",COUNTRY_INFO!A55) -> DRC | B55: =IF(COUNTRY_INFO!B55=0," ",COUNTRY_INFO!B55) -> HAUT KATANGA | C55: =IF(COUNTRY_INFO!C55=0," ",COUNTRY_INFO!C55) -> Lukafu | D55: =IF(COUNTRY_INFO!$T$9:$T$1000="MDA1 (IVM+ALB)", COUNTRY_INFO!$T$9:$T$1000, " ") -> MDA1 (IVM+ALB) | G55: 34025 | H55: 44719 | I55: 78744 | K55: 33547 | L55: 44091 | M55: 77638 | O55: 98.59515062 | P55: 98.59567522 | Q55: 98.59544854
A56: =IF(COUNTRY_INFO!A56=0," ",COUNTRY_INFO!A56) -> DRC | B56: =IF(COUNTRY_INFO!B56=0," ",COUNTRY_INFO!B56) -> HAUT KATANGA | C56: =IF(COUNTRY_INFO!C56=0," ",COUNTRY_INFO!C56) -> Mitwaba | D56: =IF(COUNTRY_INFO!$T$9:$T$1000="MDA1 (IVM+ALB)", COUNTRY_INFO!$T$9:$T$1000, " ") -> MDA1 (IVM+ALB) | G56: 40177 | H56: 52803 | I56: 92980 | K56: 39968 | L56: 52530 | M56: 92498 | O56: 99.47980188 | P56: 99.48298392 | Q56: 99.48160895
A57: =IF(COUNTRY_INFO!A57=0," ",COUNTRY_INFO!A57) -> DRC | B57: =IF(COUNTRY_INFO!B57=0," ",COUNTRY_INFO!B57) -> HAUT KATANGA | C57: =IF(COUNTRY_INFO!C57=0," ",COUNTRY_INFO!C57) -> Mufunga Sampwe | D57: =IF(COUNTRY_INFO!$T$9:$T$1000="MDA1 (IVM+ALB)", COUNTRY_INFO!$T$9:$T$1000, " ") -> MDA1 (IVM+ALB) | G57: 63167 | H57: 83019 | I57: 146186 | K57: 63021 | L57: 82827 | M57: 145848 | O57: 99.76886666 | P57: 99.76872764 | Q57: 99.76878771
A58: =IF(COUNTRY_INFO!A58=0," ",COUNTRY_INFO!A58) -> DRC | B58: =IF(COUNTRY_INFO!B58=0," ",COUNTRY_INFO!B58) -> HAUT KATANGA | C58: =IF(COUNTRY_INFO!C58=0," ",COUNTRY_INFO!C58) -> Mumbunda | D58: =IF(COUNTRY_INFO!$T$9:$T$1000="MDA1 (IVM+ALB)", COUNTRY_INFO!$T$9:$T$1000, " ") ->  | I58: 0
A59: =IF(COUNTRY_INFO!A59=0," ",COUNTRY_INFO!A59) -> DRC | B59: =IF(COUNTRY_INFO!B59=0," ",COUNTRY_INFO!B59) -> HAUT KATANGA | C59: =IF(COUNTRY_INFO!C59=0," ",COUNTRY_INFO!C59) -> Panda | D59: =IF(COUNTRY_INFO!$T$9:$T$1000="MDA1 (IVM+ALB)", COUNTRY_INFO!$T$9:$T$1000, " ") ->  | I59: 0
A60: =IF(COUNTRY_INFO!A60=0," ",COUNTRY_INFO!A60) -> DRC | B60: =IF(COUNTRY_INFO!B60=0," ",COUNTRY_INFO!B60) -> HAUT KATANGA | C60: =IF(COUNTRY_INFO!C60=0," ",COUNTRY_INFO!C60) -> Pweto | D60: =IF(COUNTRY_INFO!$T$9:$T$1000="MDA1 (IVM+ALB)", COUNTRY_INFO!$T$9:$T$1000, " ") ->  | I60: 0
A61: =IF(COUNTRY_INFO!A61=0," ",COUNTRY_INFO!A61) -> DRC | B61: =IF(COUNTRY_INFO!B61=0," ",COUNTRY_INFO!B61) -> HAUT KATANGA | C61: =IF(COUNTRY_INFO!C61=0," ",COUNTRY_INFO!C61) -> Ruashi | D61: =IF(COUNTRY_INFO!$T$9:$T$1000="MDA1 (IVM+ALB)", COUNTRY_INFO!$T$9:$T$1000, " ") ->  | I61: 0
A62: =IF(COUNTRY_INFO!A62=0," ",COUNTRY_INFO!A62) -> DRC | B62: =IF(COUNTRY_INFO!B62=0," ",COUNTRY_INFO!B62) -> HAUT KATANGA | C62: =IF(COUNTRY_INFO!C62=0," ",COUNTRY_INFO!C62) -> Sakania | D62: =IF(COUNTRY_INFO!$T$9:$T$1000="MDA1 (IVM+ALB)", COUNTRY_INFO!$T$9:$T$1000, " ") -> MDA1 (IVM+ALB) | G62: 39823 | H62: 52339 | I62: 92162 | K62: 37036 | L62: 48676 | M62: 85712 | O62: 93.00153178 | P62: 93.00139475 | Q62: 93.00145396
A63: =IF(COUNTRY_INFO!A63=0," ",COUNTRY_INFO!A63) -> DRC | B63: =IF(COUNTRY_INFO!B63=0," ",COUNTRY_INFO!B63) -> HAUT KATANGA | C63: =IF(COUNTRY_INFO!C63=0," ",COUNTRY_INFO!C63) -> Tshamilemba | D63: =IF(COUNTRY_INFO!$T$9:$T$1000="MDA1 (IVM+ALB)", COUNTRY_INFO!$T$9:$T$1000, " ") ->  | I63: 0
A64: =IF(COUNTRY_INFO!A64=0," ",COUNTRY_INFO!A64) -> DRC | B64: =IF(COUNTRY_INFO!B64=0," ",COUNTRY_INFO!B64) -> HAUT KATANGA | C64: =IF(COUNTRY_INFO!C64=0," ",COUNTRY_INFO!C64) -> Vangu | D64: =IF(COUNTRY_INFO!$T$9:$T$1000="MDA1 (IVM+ALB)", COUNTRY_INFO!$T$9:$T$1000, " ") ->  | I64: 0
A65: =IF(COUNTRY_INFO!A65=0," ",COUNTRY_INFO!A65) -> DRC | B65: =IF(COUNTRY_INFO!B65=0," ",COUNTRY_INFO!B65) -> HAUT LOMAMI | C65: =IF(COUNTRY_INFO!C65=0," ",COUNTRY_INFO!C65) -> Bukama | D65: =IF(COUNTRY_INFO!$T$9:$T$1000="MDA1 (IVM+ALB)", COUNTRY_INFO!$T$9:$T$1000, " ") ->  | I65: 0
A66: =IF(COUNTRY_INFO!A66=0," ",COUNTRY_INFO!A66) -> DRC | B66: =IF(COUNTRY_INFO!B66=0," ",COUNTRY_INFO!B66) -> HAUT LOMAMI | C66: =IF(COUNTRY_INFO!C66=0," ",COUNTRY_INFO!C66) -> Butumba | D66: =IF(COUNTRY_INFO!$T$9:$T$1000="MDA1 (IVM+ALB)", COUNTRY_INFO!$T$9:$T$1000, " ") ->  | I66: 0
A67: =IF(COUNTRY_INFO!A67=0," ",COUNTRY_INFO!A67) -> DRC | B67: =IF(COUNTRY_INFO!B67=0," ",COUNTRY_INFO!B67) -> HAUT LOMAMI | C67: =IF(COUNTRY_INFO!C67=0," ",COUNTRY_INFO!C67) -> Kabondo Dianda | D67: =IF(COUNTRY_INFO!$T$9:$T$1000="MDA1 (IVM+ALB)", COUNTRY_INFO!$T$9:$T$1000, " ") ->  | I67: 0
A68: =IF(COUNTRY_INFO!A68=0," ",COUNTRY_INFO!A68) -> DRC | B68: =IF(COUNTRY_INFO!B68=0," ",COUNTRY_INFO!B68) -> HAUT LOMAMI | C68: =IF(COUNTRY_INFO!C68=0," ",COUNTRY_INFO!C68) -> Kabongo | D68: =IF(COUNTRY_INFO!$T$9:$T$1000="MDA1 (IVM+ALB)", COUNTRY_INFO!$T$9:$T$1000, " ") -> MDA1 (IVM+ALB) | G68: 109357 | H68: 143726 | I68: 253083 | K68: 104037 | L68: 136734 | M68: 240771 | O68: 95.13519939 | P68: 95.13518779 | Q68: 95.1351928
A69: =IF(COUNTRY_INFO!A69=0," ",COUNTRY_INFO!A69) -> DRC | B69: =IF(COUNTRY_INFO!B69=0," ",COUNTRY_INFO!B69) -> HAUT LOMAMI | C69: =IF(COUNTRY_INFO!C69=0," ",COUNTRY_INFO!C69) -> Kamina | D69: =IF(COUNTRY_INFO!$T$9:$T$1000="MDA1 (IVM+ALB)", COUNTRY_INFO!$T$9:$T$1000, " ") ->  | I69: 0
A70: =IF(COUNTRY_INFO!A70=0," ",COUNTRY_INFO!A70) -> DRC | B70: =IF(COUNTRY_INFO!B70=0," ",COUNTRY_INFO!B70) -> HAUT LOMAMI | C70: =IF(COUNTRY_INFO!C70=0," ",COUNTRY_INFO!C70) -> Kamina Base (Baka) | D70: =IF(COUNTRY_INFO!$T$9:$T$1000="MDA1 (IVM+ALB)", COUNTRY_INFO!$T$9:$T$1000, " ") -> MDA1 (IVM+ALB) | G70: 10501 | H70: 13802 | I70: 24303 | K70: 10982 | L70: 14434 | M70: 25416 | O70: 104.5805161 | P70: 104.5790465 | Q70: 104.5796815
A71: =IF(COUNTRY_INFO!A71=0," ",COUNTRY_INFO!A71) -> DRC | B71: =IF(COUNTRY_INFO!B71=0," ",COUNTRY_INFO!B71) -> HAUT LOMAMI | C71: =IF(COUNTRY_INFO!C71=0," ",COUNTRY_INFO!C71) -> Kaniama | D71: =IF(COUNTRY_INFO!$T$9:$T$1000="MDA1 (IVM+ALB)", COUNTRY_INFO!$T$9:$T$1000, " ") -> MDA1 (IVM+ALB) | G71: 106726 | H71: 140268 | I71: 246994 | K71: 106297 | L71: 139705 | M71: 246002 | O71: 99.59803609 | P71: 99.59862549 | Q71: 99.59837081
A72: =IF(COUNTRY_INFO!A72=0," ",COUNTRY_INFO!A72) -> DRC | B72: =IF(COUNTRY_INFO!B72=0," ",COUNTRY_INFO!B72) -> HAUT LOMAMI | C72: =IF(COUNTRY_INFO!C72=0," ",COUNTRY_INFO!C72) -> Kayamba | D72: =IF(COUNTRY_INFO!$T$9:$T$1000="MDA1 (IVM+ALB)", COUNTRY_INFO!$T$9:$T$1000, " ") -> MDA1 (IVM+ALB) | G72: 37668 | H72: 49507 | I72: 87175 | K72: 37808 | L72: 49691 | M72: 87499 | O72: 100.3716683 | P72: 100.3716646 | Q72: 100.3716662
A73: =IF(COUNTRY_INFO!A73=0," ",COUNTRY_INFO!A73) -> DRC | B73: =IF(COUNTRY_INFO!B73=0," ",COUNTRY_INFO!B73) -> HAUT LOMAMI | C73: =IF(COUNTRY_INFO!C73=0," ",COUNTRY_INFO!C73) -> Kinda | D73: =IF(COUNTRY_INFO!$T$9:$T$1000="MDA1 (IVM+ALB)", COUNTRY_INFO!$T$9:$T$1000, " ") ->  | I73: 0
A74: =IF(COUNTRY_INFO!A74=0," ",COUNTRY_INFO!A74) -> DRC | B74: =IF(COUNTRY_INFO!B74=0," ",COUNTRY_INFO!B74) -> HAUT LOMAMI | C74: =IF(COUNTRY_INFO!C74=0," ",COUNTRY_INFO!C74) -> Kinkonja | D74: =IF(COUNTRY_INFO!$T$9:$T$1000="MDA1 (IVM+ALB)", COUNTRY_INFO!$T$9:$T$1000, " ") ->  | I74: =SUM(F74:H74) -> 0 | O74: =IF(G74<>0, IF(K74/G74*100=0, "-", K74/G74*100), " ") ->  | P74: =IF(H74<>0, IF(L74/H74*100=0, "-", L74/H74*100), " ") ->  | Q74: =IF(I74<>0, IF(M74/I74*100=0, "-", M74/I74*100), " ") -> 
A75: =IF(COUNTRY_INFO!A75=0," ",COUNTRY_INFO!A75) -> DRC | B75: =IF(COUNTRY_INFO!B75=0," ",COUNTRY_INFO!B75) -> HAUT LOMAMI | C75: =IF(COUNTRY_INFO!C75=0," ",COUNTRY_INFO!C75) -> Kitenge | D75: =IF(COUNTRY_INFO!$T$9:$T$1000="MDA1 (IVM+ALB)", COUNTRY_INFO!$T$9:$T$1000, " ") ->  | I75: 0
A76: =IF(COUNTRY_INFO!A76=0," ",COUNTRY_INFO!A76) -> DRC | B76: =IF(COUNTRY_INFO!B76=0," ",COUNTRY_INFO!B76) -> HAUT LOMAMI | C76: =IF(COUNTRY_INFO!C76=0," ",COUNTRY_INFO!C76) -> Lwamba | D76: =IF(COUNTRY_INFO!$T$9:$T$1000="MDA1 (IVM+ALB)", COUNTRY_INFO!$T$9:$T$1000, " ") ->  | I76: 0
A77: =IF(COUNTRY_INFO!A77=0," ",COUNTRY_INFO!A77) -> DRC | B77: =IF(COUNTRY_INFO!B77=0," ",COUNTRY_INFO!B77) -> HAUT LOMAMI | C77: =IF(COUNTRY_INFO!C77=0," ",COUNTRY_INFO!C77) -> Malemba Nkulu | D77: =IF(COUNTRY_INFO!$T$9:$T$1000="MDA1 (IVM+ALB)", COUNTRY_INFO!$T$9:$T$1000, " ") ->  | I77: 0
A78: =IF(COUNTRY_INFO!A78=0," ",COUNTRY_INFO!A78) -> DRC | B78: =IF(COUNTRY_INFO!B78=0," ",COUNTRY_INFO!B78) -> HAUT LOMAMI | C78: =IF(COUNTRY_INFO!C78=0," ",COUNTRY_INFO!C78) -> Mukanga | D78: =IF(COUNTRY_INFO!$T$9:$T$1000="MDA1 (IVM+ALB)", COUNTRY_INFO!$T$9:$T$1000, " ") ->  | I78: 0
A79: =IF(COUNTRY_INFO!A79=0," ",COUNTRY_INFO!A79) -> DRC | B79: =IF(COUNTRY_INFO!B79=0," ",COUNTRY_INFO!B79) -> HAUT LOMAMI | C79: =IF(COUNTRY_INFO!C79=0," ",COUNTRY_INFO!C79) -> Mulongo | D79: =IF(COUNTRY_INFO!$T$9:$T$1000="MDA1 (IVM+ALB)", COUNTRY_INFO!$T$9:$T$1000, " ") ->  | I79: 0
A80: =IF(COUNTRY_INFO!A80=0," ",COUNTRY_INFO!A80) -> DRC | B80: =IF(COUNTRY_INFO!B80=0," ",COUNTRY_INFO!B80) -> HAUT LOMAMI | C80: =IF(COUNTRY_INFO!C80=0," ",COUNTRY_INFO!C80) -> Songa | D80: =IF(COUNTRY_INFO!$T$9:$T$1000="MDA1 (IVM+ALB)", COUNTRY_INFO!$T$9:$T$1000, " ") -> MDA1 (IVM+ALB) | G80: 68937 | H80: 90603 | I80: 159540 | K80: 67319 | L80: 88477 | M80: 155796 | O80: 97.65292949 | P80: 97.65349933 | Q80: 97.6532531
A81: =IF(COUNTRY_INFO!A81=0," ",COUNTRY_INFO!A81) -> DRC | B81: =IF(COUNTRY_INFO!B81=0," ",COUNTRY_INFO!B81) -> HAUT UELE | C81: =IF(COUNTRY_INFO!C81=0," ",COUNTRY_INFO!C81) -> Aba | D81: =IF(COUNTRY_INFO!$T$9:$T$1000="MDA1 (IVM+ALB)", COUNTRY_INFO!$T$9:$T$1000, " ") ->  | I81: 0
A82: =IF(COUNTRY_INFO!A82=0," ",COUNTRY_INFO!A82) -> DRC | B82: =IF(COUNTRY_INFO!B82=0," ",COUNTRY_INFO!B82) -> HAUT UELE | C82: =IF(COUNTRY_INFO!C82=0," ",COUNTRY_INFO!C82) -> Bomamangbetu | D82: =IF(COUNTRY_INFO!$T$9:$T$1000="MDA1 (IVM+ALB)", COUNTRY_INFO!$T$9:$T$1000, " ") ->  | I82: 0
A83: =IF(COUNTRY_INFO!A83=0," ",COUNTRY_INFO!A83) -> DRC | B83: =IF(COUNTRY_INFO!B83=0," ",COUNTRY_INFO!B83) -> HAUT UELE | C83: =IF(COUNTRY_INFO!C83=0," ",COUNTRY_INFO!C83) -> Doruma | D83: =IF(COUNTRY_INFO!$T$9:$T$1000="MDA1 (IVM+ALB)", COUNTRY_INFO!$T$9:$T$1000, " ") ->  | I83: 0
A84: =IF(COUNTRY_INFO!A84=0," ",COUNTRY_INFO!A84) -> DRC | B84: =IF(COUNTRY_INFO!B84=0," ",COUNTRY_INFO!B84) -> HAUT UELE | C84: =IF(COUNTRY_INFO!C84=0," ",COUNTRY_INFO!C84) -> Dungu | D84: =IF(COUNTRY_INFO!$T$9:$T$1000="MDA1 (IVM+ALB)", COUNTRY_INFO!$T$9:$T$1000, " ") ->  | I84: 0
A85: =IF(COUNTRY_INFO!A85=0," ",COUNTRY_INFO!A85) -> DRC | B85: =IF(COUNTRY_INFO!B85=0," ",COUNTRY_INFO!B85) -> HAUT UELE | C85: =IF(COUNTRY_INFO!C85=0," ",COUNTRY_INFO!C85) -> Faradje | D85: =IF(COUNTRY_INFO!$T$9:$T$1000="MDA1 (IVM+ALB)", COUNTRY_INFO!$T$9:$T$1000, " ") ->  | I85: 0
A86: =IF(COUNTRY_INFO!A86=0," ",COUNTRY_INFO!A86) -> DRC | B86: =IF(COUNTRY_INFO!B86=0," ",COUNTRY_INFO!B86) -> HAUT UELE | C86: =IF(COUNTRY_INFO!C86=0," ",COUNTRY_INFO!C86) -> Gombari | D86: =IF(COUNTRY_INFO!$T$9:$T$1000="MDA1 (IVM+ALB)", COUNTRY_INFO!$T$9:$T$1000, " ") ->  | I86: 0
A87: =IF(COUNTRY_INFO!A87=0," ",COUNTRY_INFO!A87) -> DRC | B87: =IF(COUNTRY_INFO!B87=0," ",COUNTRY_INFO!B87) -> HAUT UELE | C87: =IF(COUNTRY_INFO!C87=0," ",COUNTRY_INFO!C87) -> Isiro | D87: =IF(COUNTRY_INFO!$T$9:$T$1000="MDA1 (IVM+ALB)", COUNTRY_INFO!$T$9:$T$1000, " ") ->  | I87: 0
A88: =IF(COUNTRY_INFO!A88=0," ",COUNTRY_INFO!A88) -> DRC | B88: =IF(COUNTRY_INFO!B88=0," ",COUNTRY_INFO!B88) -> HAUT UELE | C88: =IF(COUNTRY_INFO!C88=0," ",COUNTRY_INFO!C88) -> Makoro | D88: =IF(COUNTRY_INFO!$T$9:$T$1000="MDA1 (IVM+ALB)", COUNTRY_INFO!$T$9:$T$1000, " ") ->  | I88: 0
A89: =IF(COUNTRY_INFO!A89=0," ",COUNTRY_INFO!A89) -> DRC | B89: =IF(COUNTRY_INFO!B89=0," ",COUNTRY_INFO!B89) -> HAUT UELE | C89: =IF(COUNTRY_INFO!C89=0," ",COUNTRY_INFO!C89) -> Niangara | D89: =IF(COUNTRY_INFO!$T$9:$T$1000="MDA1 (IVM+ALB)", COUNTRY_INFO!$T$9:$T$1000, " ") ->  | I89: 0
A90: =IF(COUNTRY_INFO!A90=0," ",COUNTRY_INFO!A90) -> DRC | B90: =IF(COUNTRY_INFO!B90=0," ",COUNTRY_INFO!B90) -> HAUT UELE | C90: =IF(COUNTRY_INFO!C90=0," ",COUNTRY_INFO!C90) -> Pawa | D90: =IF(COUNTRY_INFO!$T$9:$T$1000="MDA1 (IVM+ALB)", COUNTRY_INFO!$T$9:$T$1000, " ") ->  | I90: 0
A91: =IF(COUNTRY_INFO!A91=0," ",COUNTRY_INFO!A91) -> DRC | B91: =IF(COUNTRY_INFO!B91=0," ",COUNTRY_INFO!B91) -> HAUT UELE | C91: =IF(COUNTRY_INFO!C91=0," ",COUNTRY_INFO!C91) -> Rungu | D91: =IF(COUNTRY_INFO!$T$9:$T$1000="MDA1 (IVM+ALB)", COUNTRY_INFO!$T$9:$T$1000, " ") ->  | I91: 0
A92: =IF(COUNTRY_INFO!A92=0," ",COUNTRY_INFO!A92) -> DRC | B92: =IF(COUNTRY_INFO!B92=0," ",COUNTRY_INFO!B92) -> HAUT UELE | C92: =IF(COUNTRY_INFO!C92=0," ",COUNTRY_INFO!C92) -> Wamba | D92: =IF(COUNTRY_INFO!$T$9:$T$1000="MDA1 (IVM+ALB)", COUNTRY_INFO!$T$9:$T$1000, " ") ->  | I92: 0
A93: =IF(COUNTRY_INFO!A93=0," ",COUNTRY_INFO!A93) -> DRC | B93: =IF(COUNTRY_INFO!B93=0," ",COUNTRY_INFO!B93) -> HAUT UELE | C93: =IF(COUNTRY_INFO!C93=0," ",COUNTRY_INFO!C93) -> Wasta | D93: =IF(COUNTRY_INFO!$T$9:$T$1000="MDA1 (IVM+ALB)", COUNTRY_INFO!$T$9:$T$1000, " ") ->  | I93: 0
A94: =IF(COUNTRY_INFO!A94=0," ",COUNTRY_INFO!A94) -> DRC | B94: =IF(COUNTRY_INFO!B94=0," ",COUNTRY_INFO!B94) -> ITURI | C94: =IF(COUNTRY_INFO!C94=0," ",COUNTRY_INFO!C94) -> Adi | D94: =IF(COUNTRY_INFO!$T$9:$T$1000="MDA1 (IVM+ALB)", COUNTRY_INFO!$T$9:$T$1000, " ") ->  | I94: 0
A95: =IF(COUNTRY_INFO!A95=0," ",COUNTRY_INFO!A95) -> DRC | B95: =IF(COUNTRY_INFO!B95=0," ",COUNTRY_INFO!B95) -> ITURI | C95: =IF(COUNTRY_INFO!C95=0," ",COUNTRY_INFO!C95) -> Adja | D95: =IF(COUNTRY_INFO!$T$9:$T$1000="MDA1 (IVM+ALB)", COUNTRY_INFO!$T$9:$T$1000, " ") ->  | I95: 0
A96: =IF(COUNTRY_INFO!A96=0," ",COUNTRY_INFO!A96) -> DRC | B96: =IF(COUNTRY_INFO!B96=0," ",COUNTRY_INFO!B96) -> ITURI | C96: =IF(COUNTRY_INFO!C96=0," ",COUNTRY_INFO!C96) -> Angumu | D96: =IF(COUNTRY_INFO!$T$9:$T$1000="MDA1 (IVM+ALB)", COUNTRY_INFO!$T$9:$T$1000, " ") -> MDA1 (IVM+ALB) | G96: 60557 | H96: 79590 | I96: 140147 | K96: 60485 | L96: 79494 | M96: 139979 | O96: 99.88110375 | P96: 99.87938183 | Q96: 99.88012587
A97: =IF(COUNTRY_INFO!A97=0," ",COUNTRY_INFO!A97) -> DRC | B97: =IF(COUNTRY_INFO!B97=0," ",COUNTRY_INFO!B97) -> ITURI | C97: =IF(COUNTRY_INFO!C97=0," ",COUNTRY_INFO!C97) -> Ariwara | D97: =IF(COUNTRY_INFO!$T$9:$T$1000="MDA1 (IVM+ALB)", COUNTRY_INFO!$T$9:$T$1000, " ") -> MDA1 (IVM+ALB) | G97: 4415 | H97: 5803 | I97: 10218 | K97: 4483 | L97: 5893 | M97: 10376 | O97: 101.5402039 | P97: 101.5509219 | Q97: 101.5462909
A98: =IF(COUNTRY_INFO!A98=0," ",COUNTRY_INFO!A98) -> DRC | B98: =IF(COUNTRY_INFO!B98=0," ",COUNTRY_INFO!B98) -> ITURI | C98: =IF(COUNTRY_INFO!C98=0," ",COUNTRY_INFO!C98) -> Aru | D98: =IF(COUNTRY_INFO!$T$9:$T$1000="MDA1 (IVM+ALB)", COUNTRY_INFO!$T$9:$T$1000, " ") ->  | I98: 0
A99: =IF(COUNTRY_INFO!A99=0," ",COUNTRY_INFO!A99) -> DRC | B99: =IF(COUNTRY_INFO!B99=0," ",COUNTRY_INFO!B99) -> ITURI | C99: =IF(COUNTRY_INFO!C99=0," ",COUNTRY_INFO!C99) -> Augnba | D99: =IF(COUNTRY_INFO!$T$9:$T$1000="MDA1 (IVM+ALB)", COUNTRY_INFO!$T$9:$T$1000, " ") ->  | I99: 0
A100: =IF(COUNTRY_INFO!A100=0," ",COUNTRY_INFO!A100) -> DRC | B100: =IF(COUNTRY_INFO!B100=0," ",COUNTRY_INFO!B100) -> ITURI | C100: =IF(COUNTRY_INFO!C100=0," ",COUNTRY_INFO!C100) -> Bambu | D100: =IF(COUNTRY_INFO!$T$9:$T$1000="MDA1 (IVM+ALB)", COUNTRY_INFO!$T$9:$T$1000, " ") ->  | I100: 0
A101: =IF(COUNTRY_INFO!A101=0," ",COUNTRY_INFO!A101) -> DRC | B101: =IF(COUNTRY_INFO!B101=0," ",COUNTRY_INFO!B101) -> ITURI | C101: =IF(COUNTRY_INFO!C101=0," ",COUNTRY_INFO!C101) -> Biringi | D101: =IF(COUNTRY_INFO!$T$9:$T$1000="MDA1 (IVM+ALB)", COUNTRY_INFO!$T$9:$T$1000, " ") -> MDA1 (IVM+ALB) | G101: 50962 | H101: 66979 | I101: 117941 | K101: 51322 | L101: 67451 | M101: 118773 | O101: 100.7064087 | P101: 100.7046985 | Q101: 100.7054375
A102: =IF(COUNTRY_INFO!A102=0," ",COUNTRY_INFO!A102) -> DRC | B102: =IF(COUNTRY_INFO!B102=0," ",COUNTRY_INFO!B102) -> ITURI | C102: =IF(COUNTRY_INFO!C102=0," ",COUNTRY_INFO!C102) -> Boga | D102: =IF(COUNTRY_INFO!$T$9:$T$1000="MDA1 (IVM+ALB)", COUNTRY_INFO!$T$9:$T$1000, " ") -> MDA1 (IVM+ALB) | G102: 25027 | H102: 32893 | I102: 57920 | K102: 23931 | L102: 31453 | M102: 55384 | O102: 95.62072961 | P102: 95.62216885 | Q102: 95.62154696
A103: =IF(COUNTRY_INFO!A103=0," ",COUNTRY_INFO!A103) -> DRC | B103: =IF(COUNTRY_INFO!B103=0," ",COUNTRY_INFO!B103) -> ITURI | C103: =IF(COUNTRY_INFO!C103=0," ",COUNTRY_INFO!C103) -> Bunia | D103: =IF(COUNTRY_INFO!$T$9:$T$1000="MDA1 (IVM+ALB)", COUNTRY_INFO!$T$9:$T$1000, " ") ->  | I103: 0
A104: =IF(COUNTRY_INFO!A104=0," ",COUNTRY_INFO!A104) -> DRC | B104: =IF(COUNTRY_INFO!B104=0," ",COUNTRY_INFO!B104) -> ITURI | C104: =IF(COUNTRY_INFO!C104=0," ",COUNTRY_INFO!C104) -> Damas | D104: =IF(COUNTRY_INFO!$T$9:$T$1000="MDA1 (IVM+ALB)", COUNTRY_INFO!$T$9:$T$1000, " ") -> MDA1 (IVM+ALB) | G104: 35110 | H104: 46145 | I104: 81255 | K104: 34962 | L104: 45950 | M104: 80912 | O104: 99.57846767 | P104: 99.57741901 | Q104: 99.57787213
A105: =IF(COUNTRY_INFO!A105=0," ",COUNTRY_INFO!A105) -> DRC | B105: =IF(COUNTRY_INFO!B105=0," ",COUNTRY_INFO!B105) -> ITURI | C105: =IF(COUNTRY_INFO!C105=0," ",COUNTRY_INFO!C105) -> Drodro | D105: =IF(COUNTRY_INFO!$T$9:$T$1000="MDA1 (IVM+ALB)", COUNTRY_INFO!$T$9:$T$1000, " ") ->  | I105: 0
A106: =IF(COUNTRY_INFO!A106=0," ",COUNTRY_INFO!A106) -> DRC | B106: =IF(COUNTRY_INFO!B106=0," ",COUNTRY_INFO!B106) -> ITURI | C106: =IF(COUNTRY_INFO!C106=0," ",COUNTRY_INFO!C106) -> Fataki | D106: =IF(COUNTRY_INFO!$T$9:$T$1000="MDA1 (IVM+ALB)", COUNTRY_INFO!$T$9:$T$1000, " ") ->  | I106: 0
A107: =IF(COUNTRY_INFO!A107=0," ",COUNTRY_INFO!A107) -> DRC | B107: =IF(COUNTRY_INFO!B107=0," ",COUNTRY_INFO!B107) -> ITURI | C107: =IF(COUNTRY_INFO!C107=0," ",COUNTRY_INFO!C107) -> Gethy | D107: =IF(COUNTRY_INFO!$T$9:$T$1000="MDA1 (IVM+ALB)", COUNTRY_INFO!$T$9:$T$1000, " ") ->  | I107: 0
A108: =IF(COUNTRY_INFO!A108=0," ",COUNTRY_INFO!A108) -> DRC | B108: =IF(COUNTRY_INFO!B108=0," ",COUNTRY_INFO!B108) -> ITURI | C108: =IF(COUNTRY_INFO!C108=0," ",COUNTRY_INFO!C108) -> Jiba | D108: =IF(COUNTRY_INFO!$T$9:$T$1000="MDA1 (IVM+ALB)", COUNTRY_INFO!$T$9:$T$1000, " ") ->  | I108: 0
A109: =IF(COUNTRY_INFO!A109=0," ",COUNTRY_INFO!A109) -> DRC | B109: =IF(COUNTRY_INFO!B109=0," ",COUNTRY_INFO!B109) -> ITURI | C109: =IF(COUNTRY_INFO!C109=0," ",COUNTRY_INFO!C109) -> Kambale | D109: =IF(COUNTRY_INFO!$T$9:$T$1000="MDA1 (IVM+ALB)", COUNTRY_INFO!$T$9:$T$1000, " ") -> MDA1 (IVM+ALB) | G109: 47247 | H109: 62096 | I109: 109343 | K109: 47192 | L109: 62023 | M109: 109215 | O109: 99.88359049 | P109: 99.88244009 | Q109: 99.88293718
A110: =IF(COUNTRY_INFO!A110=0," ",COUNTRY_INFO!A110) -> DRC | B110: =IF(COUNTRY_INFO!B110=0," ",COUNTRY_INFO!B110) -> ITURI | C110: =IF(COUNTRY_INFO!C110=0," ",COUNTRY_INFO!C110) -> Kilo | D110: =IF(COUNTRY_INFO!$T$9:$T$1000="MDA1 (IVM+ALB)", COUNTRY_INFO!$T$9:$T$1000, " ") ->  | I110: 0
A111: =IF(COUNTRY_INFO!A111=0," ",COUNTRY_INFO!A111) -> DRC | B111: =IF(COUNTRY_INFO!B111=0," ",COUNTRY_INFO!B111) -> ITURI | C111: =IF(COUNTRY_INFO!C111=0," ",COUNTRY_INFO!C111) -> Komanda | D111: =IF(COUNTRY_INFO!$T$9:$T$1000="MDA1 (IVM+ALB)", COUNTRY_INFO!$T$9:$T$1000, " ") -> MDA1 (IVM+ALB) | G111: 77627 | H111: 102024 | I111: 179651 | K111: 70102 | L111: 92135 | M111: 162237 | O111: 90.30620789 | P111: 90.30718262 | Q111: 90.30676144
A112: =IF(COUNTRY_INFO!A112=0," ",COUNTRY_INFO!A112) -> DRC | B112: =IF(COUNTRY_INFO!B112=0," ",COUNTRY_INFO!B112) -> ITURI | C112: =IF(COUNTRY_INFO!C112=0," ",COUNTRY_INFO!C112) -> Laybo | D112: =IF(COUNTRY_INFO!$T$9:$T$1000="MDA1 (IVM+ALB)", COUNTRY_INFO!$T$9:$T$1000, " ") ->  | I112: 0
A113: =IF(COUNTRY_INFO!A113=0," ",COUNTRY_INFO!A113) -> DRC | B113: =IF(COUNTRY_INFO!B113=0," ",COUNTRY_INFO!B113) -> ITURI | C113: =IF(COUNTRY_INFO!C113=0," ",COUNTRY_INFO!C113) -> Linga | D113: =IF(COUNTRY_INFO!$T$9:$T$1000="MDA1 (IVM+ALB)", COUNTRY_INFO!$T$9:$T$1000, " ") ->  | I113: 0
A114: =IF(COUNTRY_INFO!A114=0," ",COUNTRY_INFO!A114) -> DRC | B114: =IF(COUNTRY_INFO!B114=0," ",COUNTRY_INFO!B114) -> ITURI | C114: =IF(COUNTRY_INFO!C114=0," ",COUNTRY_INFO!C114) -> Lita | D114: =IF(COUNTRY_INFO!$T$9:$T$1000="MDA1 (IVM+ALB)", COUNTRY_INFO!$T$9:$T$1000, " ") ->  | I114: 0
A115: =IF(COUNTRY_INFO!A115=0," ",COUNTRY_INFO!A115) -> DRC | B115: =IF(COUNTRY_INFO!B115=0," ",COUNTRY_INFO!B115) -> ITURI | C115: =IF(COUNTRY_INFO!C115=0," ",COUNTRY_INFO!C115) -> Logo | D115: =IF(COUNTRY_INFO!$T$9:$T$1000="MDA1 (IVM+ALB)", COUNTRY_INFO!$T$9:$T$1000, " ") ->  | I115: 0
A116: =IF(COUNTRY_INFO!A116=0," ",COUNTRY_INFO!A116) -> DRC | B116: =IF(COUNTRY_INFO!B116=0," ",COUNTRY_INFO!B116) -> ITURI | C116: =IF(COUNTRY_INFO!C116=0," ",COUNTRY_INFO!C116) -> Lolwa | D116: =IF(COUNTRY_INFO!$T$9:$T$1000="MDA1 (IVM+ALB)", COUNTRY_INFO!$T$9:$T$1000, " ") -> MDA1 (IVM+ALB) | G116: 21152 | H116: 27800 | I116: 48952 | K116: 20965 | L116: 27555 | M116: 48520 | O116: 99.11592284 | P116: 99.11870504 | Q116: 99.11750286
A117: =IF(COUNTRY_INFO!A117=0," ",COUNTRY_INFO!A117) -> DRC | B117: =IF(COUNTRY_INFO!B117=0," ",COUNTRY_INFO!B117) -> ITURI | C117: =IF(COUNTRY_INFO!C117=0," ",COUNTRY_INFO!C117) -> Mahagi | D117: =IF(COUNTRY_INFO!$T$9:$T$1000="MDA1 (IVM+ALB)", COUNTRY_INFO!$T$9:$T$1000, " ") ->  | I117: 0
A118: =IF(COUNTRY_INFO!A118=0," ",COUNTRY_INFO!A118) -> DRC | B118: =IF(COUNTRY_INFO!B118=0," ",COUNTRY_INFO!B118) -> ITURI | C118: =IF(COUNTRY_INFO!C118=0," ",COUNTRY_INFO!C118) -> Mambasa | D118: =IF(COUNTRY_INFO!$T$9:$T$1000="MDA1 (IVM+ALB)", COUNTRY_INFO!$T$9:$T$1000, " ") -> MDA1 (IVM+ALB) | G118: 33804 | H118: 44428 | I118: 78232 | K118: 27042 | L118: 35540 | M118: 62582 | O118: 79.99645012 | P118: 79.994598 | Q118: 79.9953983
A119: =IF(COUNTRY_INFO!A119=0," ",COUNTRY_INFO!A119) -> DRC | B119: =IF(COUNTRY_INFO!B119=0," ",COUNTRY_INFO!B119) -> ITURI | C119: =IF(COUNTRY_INFO!C119=0," ",COUNTRY_INFO!C119) -> Mandima | D119: =IF(COUNTRY_INFO!$T$9:$T$1000="MDA1 (IVM+ALB)", COUNTRY_INFO!$T$9:$T$1000, " ") -> MDA1 (IVM+ALB) | G119: 50695 | H119: 66628 | I119: 117323 | K119: 39902 | L119: 52442 | M119: 92344 | O119: 78.70993195 | P119: 78.70865102 | Q119: 78.7092045
A120: =IF(COUNTRY_INFO!A120=0," ",COUNTRY_INFO!A120) -> DRC | B120: =IF(COUNTRY_INFO!B120=0," ",COUNTRY_INFO!B120) -> ITURI | C120: =IF(COUNTRY_INFO!C120=0," ",COUNTRY_INFO!C120) -> Mangala | D120: =IF(COUNTRY_INFO!$T$9:$T$1000="MDA1 (IVM+ALB)", COUNTRY_INFO!$T$9:$T$1000, " ") ->  | I120: 0
A121: =IF(COUNTRY_INFO!A121=0," ",COUNTRY_INFO!A121) -> DRC | B121: =IF(COUNTRY_INFO!B121=0," ",COUNTRY_INFO!B121) -> ITURI | C121: =IF(COUNTRY_INFO!C121=0," ",COUNTRY_INFO!C121) -> Mongbwalu | D121: =IF(COUNTRY_INFO!$T$9:$T$1000="MDA1 (IVM+ALB)", COUNTRY_INFO!$T$9:$T$1000, " ") ->  | I121: 0
A122: =IF(COUNTRY_INFO!A122=0," ",COUNTRY_INFO!A122) -> DRC | B122: =IF(COUNTRY_INFO!B122=0," ",COUNTRY_INFO!B122) -> ITURI | C122: =IF(COUNTRY_INFO!C122=0," ",COUNTRY_INFO!C122) -> Niania | D122: =IF(COUNTRY_INFO!$T$9:$T$1000="MDA1 (IVM+ALB)", COUNTRY_INFO!$T$9:$T$1000, " ") -> MDA1 (IVM+ALB) | G122: 26142 | H122: 34358 | I122: 60500 | K122: 18018 | L122: 23681 | M122: 41699 | O122: 68.92357126 | P122: 68.924268 | Q122: 68.92396694
A123: =IF(COUNTRY_INFO!A123=0," ",COUNTRY_INFO!A123) -> DRC | B123: =IF(COUNTRY_INFO!B123=0," ",COUNTRY_INFO!B123) -> ITURI | C123: =IF(COUNTRY_INFO!C123=0," ",COUNTRY_INFO!C123) -> Nizi | D123: =IF(COUNTRY_INFO!$T$9:$T$1000="MDA1 (IVM+ALB)", COUNTRY_INFO!$T$9:$T$1000, " ") ->  | I123: 0
A124: =IF(COUNTRY_INFO!A124=0," ",COUNTRY_INFO!A124) -> DRC | B124: =IF(COUNTRY_INFO!B124=0," ",COUNTRY_INFO!B124) -> ITURI | C124: =IF(COUNTRY_INFO!C124=0," ",COUNTRY_INFO!C124) -> Nyankunde | D124: =IF(COUNTRY_INFO!$T$9:$T$1000="MDA1 (IVM+ALB)", COUNTRY_INFO!$T$9:$T$1000, " ") -> MDA1 (IVM+ALB) | G124: 35627 | H124: 46824 | I124: 82451 | K124: 35092 | L124: 46122 | M124: 81214 | O124: 98.49832992 | P124: 98.50076884 | Q124: 98.49971498
A125: =IF(COUNTRY_INFO!A125=0," ",COUNTRY_INFO!A125) -> DRC | B125: =IF(COUNTRY_INFO!B125=0," ",COUNTRY_INFO!B125) -> ITURI | C125: =IF(COUNTRY_INFO!C125=0," ",COUNTRY_INFO!C125) -> Nyarambe | D125: =IF(COUNTRY_INFO!$T$9:$T$1000="MDA1 (IVM+ALB)", COUNTRY_INFO!$T$9:$T$1000, " ") -> MDA1 (IVM+ALB) | G125: 80659 | H125: 106008 | I125: 186667 | K125: 83816 | L125: 110159 | M125: 193975 | O125: 103.9140084 | P125: 103.9157422 | Q125: 103.914993
A126: =IF(COUNTRY_INFO!A126=0," ",COUNTRY_INFO!A126) -> DRC | B126: =IF(COUNTRY_INFO!B126=0," ",COUNTRY_INFO!B126) -> ITURI | C126: =IF(COUNTRY_INFO!C126=0," ",COUNTRY_INFO!C126) -> Rethy | D126: =IF(COUNTRY_INFO!$T$9:$T$1000="MDA1 (IVM+ALB)", COUNTRY_INFO!$T$9:$T$1000, " ") -> MDA1 (IVM+ALB) | G126: 71629 | H126: 94141 | I126: 165770 | K126: 69213 | L126: 90966 | M126: 160179 | O126: 96.62706446 | P126: 96.62739933 | Q126: 96.62725463
A127: =IF(COUNTRY_INFO!A127=0," ",COUNTRY_INFO!A127) -> DRC | B127: =IF(COUNTRY_INFO!B127=0," ",COUNTRY_INFO!B127) -> ITURI | C127: =IF(COUNTRY_INFO!C127=0," ",COUNTRY_INFO!C127) -> Rimba | D127: =IF(COUNTRY_INFO!$T$9:$T$1000="MDA1 (IVM+ALB)", COUNTRY_INFO!$T$9:$T$1000, " ") ->  | I127: 0
A128: =IF(COUNTRY_INFO!A128=0," ",COUNTRY_INFO!A128) -> DRC | B128: =IF(COUNTRY_INFO!B128=0," ",COUNTRY_INFO!B128) -> ITURI | C128: =IF(COUNTRY_INFO!C128=0," ",COUNTRY_INFO!C128) -> Rwampara | D128: =IF(COUNTRY_INFO!$T$9:$T$1000="MDA1 (IVM+ALB)", COUNTRY_INFO!$T$9:$T$1000, " ") -> MDA1 (IVM+ALB) | G128: 46730 | H128: 61417 | I128: 108147 | K128: 41854 | L128: 55008 | M128: 96862 | O128: 89.56558956 | P128: 89.56477848 | Q128: 89.56512894
A129: =IF(COUNTRY_INFO!A129=0," ",COUNTRY_INFO!A129) -> DRC | B129: =IF(COUNTRY_INFO!B129=0," ",COUNTRY_INFO!B129) -> ITURI | C129: =IF(COUNTRY_INFO!C129=0," ",COUNTRY_INFO!C129) -> Tchomia | D129: =IF(COUNTRY_INFO!$T$9:$T$1000="MDA1 (IVM+ALB)", COUNTRY_INFO!$T$9:$T$1000, " ") ->  | I129: 0
A130: =IF(COUNTRY_INFO!A130=0," ",COUNTRY_INFO!A130) -> DRC | B130: =IF(COUNTRY_INFO!B130=0," ",COUNTRY_INFO!B130) -> KASAI | C130: =IF(COUNTRY_INFO!C130=0," ",COUNTRY_INFO!C130) -> Banga Lubaka | D130: =IF(COUNTRY_INFO!$T$9:$T$1000="MDA1 (IVM+ALB)", COUNTRY_INFO!$T$9:$T$1000, " ") -> MDA1 (IVM+ALB) | G130: 61853 | H130: 81293 | I130: 143146 | K130: 61959 | L130: 81432 | M130: 143391 | O130: 100.1713741 | P130: 100.1709864 | Q130: 100.1711539
A131: =IF(COUNTRY_INFO!A131=0," ",COUNTRY_INFO!A131) -> DRC | B131: =IF(COUNTRY_INFO!B131=0," ",COUNTRY_INFO!B131) -> KASAI | C131: =IF(COUNTRY_INFO!C131=0," ",COUNTRY_INFO!C131) -> Bulape | D131: =IF(COUNTRY_INFO!$T$9:$T$1000="MDA1 (IVM+ALB)", COUNTRY_INFO!$T$9:$T$1000, " ") ->  | I131: 0
A132: =IF(COUNTRY_INFO!A132=0," ",COUNTRY_INFO!A132) -> DRC | B132: =IF(COUNTRY_INFO!B132=0," ",COUNTRY_INFO!B132) -> KASAI | C132: =IF(COUNTRY_INFO!C132=0," ",COUNTRY_INFO!C132) -> Dekese | D132: =IF(COUNTRY_INFO!$T$9:$T$1000="MDA1 (IVM+ALB)", COUNTRY_INFO!$T$9:$T$1000, " ") ->  | I132: 0
A133: =IF(COUNTRY_INFO!A133=0," ",COUNTRY_INFO!A133) -> DRC | B133: =IF(COUNTRY_INFO!B133=0," ",COUNTRY_INFO!B133) -> KASAI | C133: =IF(COUNTRY_INFO!C133=0," ",COUNTRY_INFO!C133) -> Ilebo | D133: =IF(COUNTRY_INFO!$T$9:$T$1000="MDA1 (IVM+ALB)", COUNTRY_INFO!$T$9:$T$1000, " ") -> MDA1 (IVM+ALB) | G133: 67371 | H133: 88544 | I133: 155915 | K133: 67590 | L133: 88832 | M133: 156422 | O133: 100.3250657 | P133: 100.325262 | Q133: 100.3251772
A134: =IF(COUNTRY_INFO!A134=0," ",COUNTRY_INFO!A134) -> DRC | B134: =IF(COUNTRY_INFO!B134=0," ",COUNTRY_INFO!B134) -> KASAI | C134: =IF(COUNTRY_INFO!C134=0," ",COUNTRY_INFO!C134) -> Kakenge | D134: =IF(COUNTRY_INFO!$T$9:$T$1000="MDA1 (IVM+ALB)", COUNTRY_INFO!$T$9:$T$1000, " ") ->  | I134: 0
A135: =IF(COUNTRY_INFO!A135=0," ",COUNTRY_INFO!A135) -> DRC | B135: =IF(COUNTRY_INFO!B135=0," ",COUNTRY_INFO!B135) -> KASAI | C135: =IF(COUNTRY_INFO!C135=0," ",COUNTRY_INFO!C135) -> Kalonda | D135: =IF(COUNTRY_INFO!$T$9:$T$1000="MDA1 (IVM+ALB)", COUNTRY_INFO!$T$9:$T$1000, " ") ->  | I135: 0
A136: =IF(COUNTRY_INFO!A136=0," ",COUNTRY_INFO!A136) -> DRC | B136: =IF(COUNTRY_INFO!B136=0," ",COUNTRY_INFO!B136) -> KASAI | C136: =IF(COUNTRY_INFO!C136=0," ",COUNTRY_INFO!C136) -> Kamonya | D136: =IF(COUNTRY_INFO!$T$9:$T$1000="MDA1 (IVM+ALB)", COUNTRY_INFO!$T$9:$T$1000, " ") -> MDA1 (IVM+ALB) | G136: 154845 | H136: 203511 | I136: 358356 | K136: 156020 | L136: 205054 | M136: 361074 | O136: 100.7588233 | P136: 100.75819 | Q136: 100.7584637
A137: =IF(COUNTRY_INFO!A137=0," ",COUNTRY_INFO!A137) -> DRC | B137: =IF(COUNTRY_INFO!B137=0," ",COUNTRY_INFO!B137) -> KASAI | C137: =IF(COUNTRY_INFO!C137=0," ",COUNTRY_INFO!C137) -> Kamwesha | D137: =IF(COUNTRY_INFO!$T$9:$T$1000="MDA1 (IVM+ALB)", COUNTRY_INFO!$T$9:$T$1000, " ") -> MDA1 (IVM+ALB) | G137: 163893 | H137: 215402 | I137: 379295 | K137: 165350 | L137: 217318 | M137: 382668 | O137: 100.8889946 | P137: 100.8894996 | Q137: 100.8892814
A138: =IF(COUNTRY_INFO!A138=0," ",COUNTRY_INFO!A138) -> DRC | B138: =IF(COUNTRY_INFO!B138=0," ",COUNTRY_INFO!B138) -> KASAI | C138: =IF(COUNTRY_INFO!C138=0," ",COUNTRY_INFO!C138) -> Kanzala | D138: =IF(COUNTRY_INFO!$T$9:$T$1000="MDA1 (IVM+ALB)", COUNTRY_INFO!$T$9:$T$1000, " ") ->  | I138: =SUM(F138:H138) -> 0 | O138: =IF(G138<>0, IF(K138/G138*100=0, "-", K138/G138*100), " ") ->  | P138: =IF(H138<>0, IF(L138/H138*100=0, "-", L138/H138*100), " ") ->  | Q138: =IF(I138<>0, IF(M138/I138*100=0, "-", M138/I138*100), " ") -> 
A139: =IF(COUNTRY_INFO!A139=0," ",COUNTRY_INFO!A139) -> DRC | B139: =IF(COUNTRY_INFO!B139=0," ",COUNTRY_INFO!B139) -> KASAI | C139: =IF(COUNTRY_INFO!C139=0," ",COUNTRY_INFO!C139) -> Kitangwa | D139: =IF(COUNTRY_INFO!$T$9:$T$1000="MDA1 (IVM+ALB)", COUNTRY_INFO!$T$9:$T$1000, " ") -> MDA1 (IVM+ALB) | G139: 97362 | H139: 127962 | I139: 225324 | K139: 99015 | L139: 130133 | M139: 229148 | O139: 101.6977876 | P139: 101.6965974 | Q139: 101.6971117
A140: =IF(COUNTRY_INFO!A140=0," ",COUNTRY_INFO!A140) -> DRC | B140: =IF(COUNTRY_INFO!B140=0," ",COUNTRY_INFO!B140) -> KASAI | C140: =IF(COUNTRY_INFO!C140=0," ",COUNTRY_INFO!C140) -> Luebo | D140: =IF(COUNTRY_INFO!$T$9:$T$1000="MDA1 (IVM+ALB)", COUNTRY_INFO!$T$9:$T$1000, " ") -> MDA1 (IVM+ALB) | G140: 90708 | H140: 119217 | I140: 209925 | K140: 90951 | L140: 119535 | M140: 210486 | O140: 100.2678926 | P140: 100.2667405 | Q140: 100.2672383
A141: =IF(COUNTRY_INFO!A141=0," ",COUNTRY_INFO!A141) -> DRC | B141: =IF(COUNTRY_INFO!B141=0," ",COUNTRY_INFO!B141) -> KASAI | C141: =IF(COUNTRY_INFO!C141=0," ",COUNTRY_INFO!C141) -> Mikope | D141: =IF(COUNTRY_INFO!$T$9:$T$1000="MDA1 (IVM+ALB)", COUNTRY_INFO!$T$9:$T$1000, " ") -> MDA1 (IVM+ALB) | G141: 65149 | H141: 85624 | I141: 150773 | K141: 65121 | L141: 85588 | M141: 150709 | O141: 99.9570216 | P141: 99.95795571 | Q141: 99.95755208
A142: =IF(COUNTRY_INFO!A142=0," ",COUNTRY_INFO!A142) -> DRC | B142: =IF(COUNTRY_INFO!B142=0," ",COUNTRY_INFO!B142) -> KASAI | C142: =IF(COUNTRY_INFO!C142=0," ",COUNTRY_INFO!C142) -> Mushenge | D142: =IF(COUNTRY_INFO!$T$9:$T$1000="MDA1 (IVM+ALB)", COUNTRY_INFO!$T$9:$T$1000, " ") -> MDA1 (IVM+ALB) | G142: 59478 | H142: 78171 | I142: 137649 | K142: 59529 | L142: 78237 | M142: 137766 | O142: 100.085746 | P142: 100.0844303 | Q142: 100.0849988
A143: =IF(COUNTRY_INFO!A143=0," ",COUNTRY_INFO!A143) -> DRC | B143: =IF(COUNTRY_INFO!B143=0," ",COUNTRY_INFO!B143) -> KASAI | C143: =IF(COUNTRY_INFO!C143=0," ",COUNTRY_INFO!C143) -> Mutenna | D143: =IF(COUNTRY_INFO!$T$9:$T$1000="MDA1 (IVM+ALB)", COUNTRY_INFO!$T$9:$T$1000, " ") -> MDA1 (IVM+ALB) | G143: 104974 | H143: 137966 | I143: 242940 | K143: 105295 | L143: 138387 | M143: 243682 | O143: 100.30579 | P143: 100.3051476 | Q143: 100.3054252
A144: =IF(COUNTRY_INFO!A144=0," ",COUNTRY_INFO!A144) -> DRC | B144: =IF(COUNTRY_INFO!B144=0," ",COUNTRY_INFO!B144) -> KASAI | C144: =IF(COUNTRY_INFO!C144=0," ",COUNTRY_INFO!C144) -> Mweka | D144: =IF(COUNTRY_INFO!$T$9:$T$1000="MDA1 (IVM+ALB)", COUNTRY_INFO!$T$9:$T$1000, " ") ->  | I144: 0
A145: =IF(COUNTRY_INFO!A145=0," ",COUNTRY_INFO!A145) -> DRC | B145: =IF(COUNTRY_INFO!B145=0," ",COUNTRY_INFO!B145) -> KASAI | C145: =IF(COUNTRY_INFO!C145=0," ",COUNTRY_INFO!C145) -> Ndjoko Punda | D145: =IF(COUNTRY_INFO!$T$9:$T$1000="MDA1 (IVM+ALB)", COUNTRY_INFO!$T$9:$T$1000, " ") -> MDA1 (IVM+ALB) | G145: 58702 | H145: 77152 | I145: 135854 | K145: 58888 | L145: 77396 | M145: 136284 | O145: 100.3168546 | P145: 100.3162588 | Q145: 100.3165163
A146: =IF(COUNTRY_INFO!A146=0," ",COUNTRY_INFO!A146) -> DRC | B146: =IF(COUNTRY_INFO!B146=0," ",COUNTRY_INFO!B146) -> KASAI | C146: =IF(COUNTRY_INFO!C146=0," ",COUNTRY_INFO!C146) -> Nyanga | D146: =IF(COUNTRY_INFO!$T$9:$T$1000="MDA1 (IVM+ALB)", COUNTRY_INFO!$T$9:$T$1000, " ") -> MDA1 (IVM+ALB) | G146: 40836 | H146: 53670 | I146: 94506 | K146: 40864 | L146: 53706 | M146: 94570 | O146: 100.068567 | P146: 100.0670766 | Q146: 100.0677206
A147: =IF(COUNTRY_INFO!A147=0," ",COUNTRY_INFO!A147) -> DRC | B147: =IF(COUNTRY_INFO!B147=0," ",COUNTRY_INFO!B147) -> KASAI | C147: =IF(COUNTRY_INFO!C147=0," ",COUNTRY_INFO!C147) -> Tshikapa | D147: =IF(COUNTRY_INFO!$T$9:$T$1000="MDA1 (IVM+ALB)", COUNTRY_INFO!$T$9:$T$1000, " ") ->  | I147: 0
A148: =IF(COUNTRY_INFO!A148=0," ",COUNTRY_INFO!A148) -> DRC | B148: =IF(COUNTRY_INFO!B148=0," ",COUNTRY_INFO!B148) -> KASAI CENTRAL | C148: =IF(COUNTRY_INFO!C148=0," ",COUNTRY_INFO!C148) -> Bena Leke | D148: =IF(COUNTRY_INFO!$T$9:$T$1000="MDA1 (IVM+ALB)", COUNTRY_INFO!$T$9:$T$1000, " ") ->  | I148: 0
A149: =IF(COUNTRY_INFO!A149=0," ",COUNTRY_INFO!A149) -> DRC | B149: =IF(COUNTRY_INFO!B149=0," ",COUNTRY_INFO!B149) -> KASAI CENTRAL | C149: =IF(COUNTRY_INFO!C149=0," ",COUNTRY_INFO!C149) -> Bena Tshadi | D149: =IF(COUNTRY_INFO!$T$9:$T$1000="MDA1 (IVM+ALB)", COUNTRY_INFO!$T$9:$T$1000, " ") ->  | I149: 0
A150: =IF(COUNTRY_INFO!A150=0," ",COUNTRY_INFO!A150) -> DRC | B150: =IF(COUNTRY_INFO!B150=0," ",COUNTRY_INFO!B150) -> KASAI CENTRAL | C150: =IF(COUNTRY_INFO!C150=0," ",COUNTRY_INFO!C150) -> Bilonda | D150: =IF(COUNTRY_INFO!$T$9:$T$1000="MDA1 (IVM+ALB)", COUNTRY_INFO!$T$9:$T$1000, " ") -> MDA1 (IVM+ALB) | G150: 31637 | H150: 41580 | I150: 73217 | K150: 31678 | L150: 41634 | M150: 73312 | O150: 100.1295951 | P150: 100.1298701 | Q150: 100.1297513
A151: =IF(COUNTRY_INFO!A151=0," ",COUNTRY_INFO!A151) -> DRC | B151: =IF(COUNTRY_INFO!B151=0," ",COUNTRY_INFO!B151) -> KASAI CENTRAL | C151: =IF(COUNTRY_INFO!C151=0," ",COUNTRY_INFO!C151) -> Bobozo | D151: =IF(COUNTRY_INFO!$T$9:$T$1000="MDA1 (IVM+ALB)", COUNTRY_INFO!$T$9:$T$1000, " ") ->  | I151: 0
A152: =IF(COUNTRY_INFO!A152=0," ",COUNTRY_INFO!A152) -> DRC | B152: =IF(COUNTRY_INFO!B152=0," ",COUNTRY_INFO!B152) -> KASAI CENTRAL | C152: =IF(COUNTRY_INFO!C152=0," ",COUNTRY_INFO!C152) -> Bukonde | D152: =IF(COUNTRY_INFO!$T$9:$T$1000="MDA1 (IVM+ALB)", COUNTRY_INFO!$T$9:$T$1000, " ") ->  | I152: 0
A153: =IF(COUNTRY_INFO!A153=0," ",COUNTRY_INFO!A153) -> DRC | B153: =IF(COUNTRY_INFO!B153=0," ",COUNTRY_INFO!B153) -> KASAI CENTRAL | C153: =IF(COUNTRY_INFO!C153=0," ",COUNTRY_INFO!C153) -> Demba | D153: =IF(COUNTRY_INFO!$T$9:$T$1000="MDA1 (IVM+ALB)", COUNTRY_INFO!$T$9:$T$1000, " ") ->  | I153: 0
A154: =IF(COUNTRY_INFO!A154=0," ",COUNTRY_INFO!A154) -> DRC | B154: =IF(COUNTRY_INFO!B154=0," ",COUNTRY_INFO!B154) -> KASAI CENTRAL | C154: =IF(COUNTRY_INFO!C154=0," ",COUNTRY_INFO!C154) -> Dibaya | D154: =IF(COUNTRY_INFO!$T$9:$T$1000="MDA1 (IVM+ALB)", COUNTRY_INFO!$T$9:$T$1000, " ") ->  | I154: 0
A155: =IF(COUNTRY_INFO!A155=0," ",COUNTRY_INFO!A155) -> DRC | B155: =IF(COUNTRY_INFO!B155=0," ",COUNTRY_INFO!B155) -> KASAI CENTRAL | C155: =IF(COUNTRY_INFO!C155=0," ",COUNTRY_INFO!C155) -> Kalomba | D155: =IF(COUNTRY_INFO!$T$9:$T$1000="MDA1 (IVM+ALB)", COUNTRY_INFO!$T$9:$T$1000, " ") -> MDA1 (IVM+ALB) | G155: 56055 | H155: 73672 | I155: 129727 | K155: 56385 | L155: 74106 | M155: 130491 | O155: 100.5887075 | P155: 100.5890976 | Q155: 100.5889291
A156: =IF(COUNTRY_INFO!A156=0," ",COUNTRY_INFO!A156) -> DRC | B156: =IF(COUNTRY_INFO!B156=0," ",COUNTRY_INFO!B156) -> KASAI CENTRAL | C156: =IF(COUNTRY_INFO!C156=0," ",COUNTRY_INFO!C156) -> Kananga | D156: =IF(COUNTRY_INFO!$T$9:$T$1000="MDA1 (IVM+ALB)", COUNTRY_INFO!$T$9:$T$1000, " ") -> MDA1 (IVM+ALB) | G156: 103060 | H156: 135450 | I156: 238510 | K156: 103339 | L156: 135817 | M156: 239156 | O156: 100.2707161 | P156: 100.2709487 | Q156: 100.2708482
A157: =IF(COUNTRY_INFO!A157=0," ",COUNTRY_INFO!A157) -> DRC | B157: =IF(COUNTRY_INFO!B157=0," ",COUNTRY_INFO!B157) -> KASAI CENTRAL | C157: =IF(COUNTRY_INFO!C157=0," ",COUNTRY_INFO!C157) -> Katende | D157: =IF(COUNTRY_INFO!$T$9:$T$1000="MDA1 (IVM+ALB)", COUNTRY_INFO!$T$9:$T$1000, " ") -> MDA1 (IVM+ALB) | G157: 36292 | H157: 47698 | I157: 83990 | K157: 36409 | L157: 47851 | M157: 84260 | O157: 100.3223851 | P157: 100.3207682 | Q157: 100.3214668
A158: =IF(COUNTRY_INFO!A158=0," ",COUNTRY_INFO!A158) -> DRC | B158: =IF(COUNTRY_INFO!B158=0," ",COUNTRY_INFO!B158) -> KASAI CENTRAL | C158: =IF(COUNTRY_INFO!C158=0," ",COUNTRY_INFO!C158) -> Katoka | D158: =IF(COUNTRY_INFO!$T$9:$T$1000="MDA1 (IVM+ALB)", COUNTRY_INFO!$T$9:$T$1000, " ") ->  | I158: 0
A159: =IF(COUNTRY_INFO!A159=0," ",COUNTRY_INFO!A159) -> DRC | B159: =IF(COUNTRY_INFO!B159=0," ",COUNTRY_INFO!B159) -> KASAI CENTRAL | C159: =IF(COUNTRY_INFO!C159=0," ",COUNTRY_INFO!C159) -> Luambo | D159: =IF(COUNTRY_INFO!$T$9:$T$1000="MDA1 (IVM+ALB)", COUNTRY_INFO!$T$9:$T$1000, " ") -> MDA1 (IVM+ALB) | G159: 90750 | H159: 119272 | I159: 210022 | K159: 91032 | L159: 119643 | M159: 210675 | O159: 100.3107438 | P159: 100.3110537 | Q159: 100.3109198
A160: =IF(COUNTRY_INFO!A160=0," ",COUNTRY_INFO!A160) -> DRC | B160: =IF(COUNTRY_INFO!B160=0," ",COUNTRY_INFO!B160) -> KASAI CENTRAL | C160: =IF(COUNTRY_INFO!C160=0," ",COUNTRY_INFO!C160) -> Lubondaie | D160: =IF(COUNTRY_INFO!$T$9:$T$1000="MDA1 (IVM+ALB)", COUNTRY_INFO!$T$9:$T$1000, " ") ->  | I160: 0
A161: =IF(COUNTRY_INFO!A161=0," ",COUNTRY_INFO!A161) -> DRC | B161: =IF(COUNTRY_INFO!B161=0," ",COUNTRY_INFO!B161) -> KASAI CENTRAL | C161: =IF(COUNTRY_INFO!C161=0," ",COUNTRY_INFO!C161) -> Lubunga | D161: =IF(COUNTRY_INFO!$T$9:$T$1000="MDA1 (IVM+ALB)", COUNTRY_INFO!$T$9:$T$1000, " ") ->  | I161: 0
A162: =IF(COUNTRY_INFO!A162=0," ",COUNTRY_INFO!A162) -> DRC | B162: =IF(COUNTRY_INFO!B162=0," ",COUNTRY_INFO!B162) -> KASAI CENTRAL | C162: =IF(COUNTRY_INFO!C162=0," ",COUNTRY_INFO!C162) -> Luiza | D162: =IF(COUNTRY_INFO!$T$9:$T$1000="MDA1 (IVM+ALB)", COUNTRY_INFO!$T$9:$T$1000, " ") ->  | I162: 0
A163: =IF(COUNTRY_INFO!A163=0," ",COUNTRY_INFO!A163) -> DRC | B163: =IF(COUNTRY_INFO!B163=0," ",COUNTRY_INFO!B163) -> KASAI CENTRAL | C163: =IF(COUNTRY_INFO!C163=0," ",COUNTRY_INFO!C163) -> Lukonga | D163: =IF(COUNTRY_INFO!$T$9:$T$1000="MDA1 (IVM+ALB)", COUNTRY_INFO!$T$9:$T$1000, " ") -> MDA1 (IVM+ALB) | G163: 99300 | H163: 130508 | I163: 229808 | K163: 100110 | L163: 131572 | M163: 231682 | O163: 100.81571 | P163: 100.8152757 | Q163: 100.8154633
A164: =IF(COUNTRY_INFO!A164=0," ",COUNTRY_INFO!A164) -> DRC | B164: =IF(COUNTRY_INFO!B164=0," ",COUNTRY_INFO!B164) -> KASAI CENTRAL | C164: =IF(COUNTRY_INFO!C164=0," ",COUNTRY_INFO!C164) -> Mikalayi | D164: =IF(COUNTRY_INFO!$T$9:$T$1000="MDA1 (IVM+ALB)", COUNTRY_INFO!$T$9:$T$1000, " ") ->  | I164: 0
A165: =IF(COUNTRY_INFO!A165=0," ",COUNTRY_INFO!A165) -> DRC | B165: =IF(COUNTRY_INFO!B165=0," ",COUNTRY_INFO!B165) -> KASAI CENTRAL | C165: =IF(COUNTRY_INFO!C165=0," ",COUNTRY_INFO!C165) -> Masuika | D165: =IF(COUNTRY_INFO!$T$9:$T$1000="MDA1 (IVM+ALB)", COUNTRY_INFO!$T$9:$T$1000, " ") -> MDA1 (IVM+ALB) | G165: 76679 | H165: 100778 | I165: 177457 | K165: 76751 | L165: 100873 | M165: 177624 | O165: 100.0938979 | P165: 100.0942666 | Q165: 100.0941073
A166: =IF(COUNTRY_INFO!A166=0," ",COUNTRY_INFO!A166) -> DRC | B166: =IF(COUNTRY_INFO!B166=0," ",COUNTRY_INFO!B166) -> KASAI CENTRAL | C166: =IF(COUNTRY_INFO!C166=0," ",COUNTRY_INFO!C166) -> Mutoto | D166: =IF(COUNTRY_INFO!$T$9:$T$1000="MDA1 (IVM+ALB)", COUNTRY_INFO!$T$9:$T$1000, " ") -> MDA1 (IVM+ALB) | G166: 48412 | H166: 63627 | I166: 112039 | K166: 48385 | L166: 63592 | M166: 111977 | O166: 99.9442287 | P166: 99.94499191 | Q166: 99.94466213
A167: =IF(COUNTRY_INFO!A167=0," ",COUNTRY_INFO!A167) -> DRC | B167: =IF(COUNTRY_INFO!B167=0," ",COUNTRY_INFO!B167) -> KASAI CENTRAL | C167: =IF(COUNTRY_INFO!C167=0," ",COUNTRY_INFO!C167) -> Mwetshi | D167: =IF(COUNTRY_INFO!$T$9:$T$1000="MDA1 (IVM+ALB)", COUNTRY_INFO!$T$9:$T$1000, " ") ->  | I167: 0
A168: =IF(COUNTRY_INFO!A168=0," ",COUNTRY_INFO!A168) -> DRC | B168: =IF(COUNTRY_INFO!B168=0," ",COUNTRY_INFO!B168) -> KASAI CENTRAL | C168: =IF(COUNTRY_INFO!C168=0," ",COUNTRY_INFO!C168) -> Ndekesha | D168: =IF(COUNTRY_INFO!$T$9:$T$1000="MDA1 (IVM+ALB)", COUNTRY_INFO!$T$9:$T$1000, " ") ->  | I168: 0
A169: =IF(COUNTRY_INFO!A169=0," ",COUNTRY_INFO!A169) -> DRC | B169: =IF(COUNTRY_INFO!B169=0," ",COUNTRY_INFO!B169) -> KASAI CENTRAL | C169: =IF(COUNTRY_INFO!C169=0," ",COUNTRY_INFO!C169) -> Ndesha | D169: =IF(COUNTRY_INFO!$T$9:$T$1000="MDA1 (IVM+ALB)", COUNTRY_INFO!$T$9:$T$1000, " ") ->  | I169: 0
A170: =IF(COUNTRY_INFO!A170=0," ",COUNTRY_INFO!A170) -> DRC | B170: =IF(COUNTRY_INFO!B170=0," ",COUNTRY_INFO!B170) -> KASAI CENTRAL | C170: =IF(COUNTRY_INFO!C170=0," ",COUNTRY_INFO!C170) -> Tshibala | D170: =IF(COUNTRY_INFO!$T$9:$T$1000="MDA1 (IVM+ALB)", COUNTRY_INFO!$T$9:$T$1000, " ") -> MDA1 (IVM+ALB) | G170: 85079 | H170: 111818 | I170: 196897 | K170: 85779 | L170: 112738 | M170: 198517 | O170: 100.8227647 | P170: 100.8227656 | Q170: 100.8227652
A171: =IF(COUNTRY_INFO!A171=0," ",COUNTRY_INFO!A171) -> DRC | B171: =IF(COUNTRY_INFO!B171=0," ",COUNTRY_INFO!B171) -> KASAI CENTRAL | C171: =IF(COUNTRY_INFO!C171=0," ",COUNTRY_INFO!C171) -> Tshikaji | D171: =IF(COUNTRY_INFO!$T$9:$T$1000="MDA1 (IVM+ALB)", COUNTRY_INFO!$T$9:$T$1000, " ") ->  | I171: 0
A172: =IF(COUNTRY_INFO!A172=0," ",COUNTRY_INFO!A172) -> DRC | B172: =IF(COUNTRY_INFO!B172=0," ",COUNTRY_INFO!B172) -> KASAI CENTRAL | C172: =IF(COUNTRY_INFO!C172=0," ",COUNTRY_INFO!C172) -> Tshikula | D172: =IF(COUNTRY_INFO!$T$9:$T$1000="MDA1 (IVM+ALB)", COUNTRY_INFO!$T$9:$T$1000, " ") ->  | I172: 0
A173: =IF(COUNTRY_INFO!A173=0," ",COUNTRY_INFO!A173) -> DRC | B173: =IF(COUNTRY_INFO!B173=0," ",COUNTRY_INFO!B173) -> KASAI CENTRAL | C173: =IF(COUNTRY_INFO!C173=0," ",COUNTRY_INFO!C173) -> Yangala | D173: =IF(COUNTRY_INFO!$T$9:$T$1000="MDA1 (IVM+ALB)", COUNTRY_INFO!$T$9:$T$1000, " ") -> MDA1 (IVM+ALB) | G173: 56296 | H173: 73989 | I173: 130285 | K173: 56082 | L173: 73708 | M173: 129790 | O173: 99.61986642 | P173: 99.62021382 | Q173: 99.62006371
A174: =IF(COUNTRY_INFO!A174=0," ",COUNTRY_INFO!A174) -> DRC | B174: =IF(COUNTRY_INFO!B174=0," ",COUNTRY_INFO!B174) -> KASAI ORIENTAL | C174: =IF(COUNTRY_INFO!C174=0," ",COUNTRY_INFO!C174) -> Bibanga | D174: =IF(COUNTRY_INFO!$T$9:$T$1000="MDA1 (IVM+ALB)", COUNTRY_INFO!$T$9:$T$1000, " ") -> MDA1 (IVM+ALB) | G174: 54909 | H174: 72166 | I174: 127075 | K174: 53364 | L174: 70136 | M174: 123500 | O174: 97.18625362 | P174: 97.18704099 | Q174: 97.18670077
A175: =IF(COUNTRY_INFO!A175=0," ",COUNTRY_INFO!A175) -> DRC | B175: =IF(COUNTRY_INFO!B175=0," ",COUNTRY_INFO!B175) -> KASAI ORIENTAL | C175: =IF(COUNTRY_INFO!C175=0," ",COUNTRY_INFO!C175) -> Bimpemba | D175: =IF(COUNTRY_INFO!$T$9:$T$1000="MDA1 (IVM+ALB)", COUNTRY_INFO!$T$9:$T$1000, " ") ->  | I175: 0
A176: =IF(COUNTRY_INFO!A176=0," ",COUNTRY_INFO!A176) -> DRC | B176: =IF(COUNTRY_INFO!B176=0," ",COUNTRY_INFO!B176) -> KASAI ORIENTAL | C176: =IF(COUNTRY_INFO!C176=0," ",COUNTRY_INFO!C176) -> Bonzola | D176: =IF(COUNTRY_INFO!$T$9:$T$1000="MDA1 (IVM+ALB)", COUNTRY_INFO!$T$9:$T$1000, " ") -> MDA1 (IVM+ALB) | G176: 64539 | H176: 84823 | I176: 149362 | K176: 64388 | L176: 84624 | M176: 149012 | O176: 99.76603294 | P176: 99.76539382 | Q176: 99.76566998
A177: =IF(COUNTRY_INFO!A177=0," ",COUNTRY_INFO!A177) -> DRC | B177: =IF(COUNTRY_INFO!B177=0," ",COUNTRY_INFO!B177) -> KASAI ORIENTAL | C177: =IF(COUNTRY_INFO!C177=0," ",COUNTRY_INFO!C177) -> Dibindi | D177: =IF(COUNTRY_INFO!$T$9:$T$1000="MDA1 (IVM+ALB)", COUNTRY_INFO!$T$9:$T$1000, " ") ->  | I177: 0
A178: =IF(COUNTRY_INFO!A178=0," ",COUNTRY_INFO!A178) -> DRC | B178: =IF(COUNTRY_INFO!B178=0," ",COUNTRY_INFO!B178) -> KASAI ORIENTAL | C178: =IF(COUNTRY_INFO!C178=0," ",COUNTRY_INFO!C178) -> Diulu | D178: =IF(COUNTRY_INFO!$T$9:$T$1000="MDA1 (IVM+ALB)", COUNTRY_INFO!$T$9:$T$1000, " ") ->  | I178: 0
A179: =IF(COUNTRY_INFO!A179=0," ",COUNTRY_INFO!A179) -> DRC | B179: =IF(COUNTRY_INFO!B179=0," ",COUNTRY_INFO!B179) -> KASAI ORIENTAL | C179: =IF(COUNTRY_INFO!C179=0," ",COUNTRY_INFO!C179) -> Kabeya Kamuanga | D179: =IF(COUNTRY_INFO!$T$9:$T$1000="MDA1 (IVM+ALB)", COUNTRY_INFO!$T$9:$T$1000, " ") ->  | I179: 0
A180: =IF(COUNTRY_INFO!A180=0," ",COUNTRY_INFO!A180) -> DRC | B180: =IF(COUNTRY_INFO!B180=0," ",COUNTRY_INFO!B180) -> KASAI ORIENTAL | C180: =IF(COUNTRY_INFO!C180=0," ",COUNTRY_INFO!C180) -> Kansele | D180: =IF(COUNTRY_INFO!$T$9:$T$1000="MDA1 (IVM+ALB)", COUNTRY_INFO!$T$9:$T$1000, " ") ->  | I180: 0
A181: =IF(COUNTRY_INFO!A181=0," ",COUNTRY_INFO!A181) -> DRC | B181: =IF(COUNTRY_INFO!B181=0," ",COUNTRY_INFO!B181) -> KASAI ORIENTAL | C181: =IF(COUNTRY_INFO!C181=0," ",COUNTRY_INFO!C181) -> Kasansa | D181: =IF(COUNTRY_INFO!$T$9:$T$1000="MDA1 (IVM+ALB)", COUNTRY_INFO!$T$9:$T$1000, " ") ->  | I181: 0
A182: =IF(COUNTRY_INFO!A182=0," ",COUNTRY_INFO!A182) -> DRC | B182: =IF(COUNTRY_INFO!B182=0," ",COUNTRY_INFO!B182) -> KASAI ORIENTAL | C182: =IF(COUNTRY_INFO!C182=0," ",COUNTRY_INFO!C182) -> Lubilanji | D182: =IF(COUNTRY_INFO!$T$9:$T$1000="MDA1 (IVM+ALB)", COUNTRY_INFO!$T$9:$T$1000, " ") -> MDA1 (IVM+ALB) | G182: 95860 | H182: 125988 | I182: 221848 | K182: 96124 | L182: 126334 | M182: 222458 | O182: 100.2754016 | P182: 100.2746293 | Q182: 100.274963
A183: =IF(COUNTRY_INFO!A183=0," ",COUNTRY_INFO!A183) -> DRC | B183: =IF(COUNTRY_INFO!B183=0," ",COUNTRY_INFO!B183) -> KASAI ORIENTAL | C183: =IF(COUNTRY_INFO!C183=0," ",COUNTRY_INFO!C183) -> Lukelenge | D183: =IF(COUNTRY_INFO!$T$9:$T$1000="MDA1 (IVM+ALB)", COUNTRY_INFO!$T$9:$T$1000, " ") ->  | I183: 0
A184: =IF(COUNTRY_INFO!A184=0," ",COUNTRY_INFO!A184) -> DRC | B184: =IF(COUNTRY_INFO!B184=0," ",COUNTRY_INFO!B184) -> KASAI ORIENTAL | C184: =IF(COUNTRY_INFO!C184=0," ",COUNTRY_INFO!C184) -> Miabi | D184: =IF(COUNTRY_INFO!$T$9:$T$1000="MDA1 (IVM+ALB)", COUNTRY_INFO!$T$9:$T$1000, " ") ->  | I184: 0
A185: =IF(COUNTRY_INFO!A185=0," ",COUNTRY_INFO!A185) -> DRC | B185: =IF(COUNTRY_INFO!B185=0," ",COUNTRY_INFO!B185) -> KASAI ORIENTAL | C185: =IF(COUNTRY_INFO!C185=0," ",COUNTRY_INFO!C185) -> Mpokolo | D185: =IF(COUNTRY_INFO!$T$9:$T$1000="MDA1 (IVM+ALB)", COUNTRY_INFO!$T$9:$T$1000, " ") -> MDA1 (IVM+ALB) | G185: 95666 | H185: 125732 | I185: 221398 | K185: 96630 | L185: 126999 | M185: 223629 | O185: 101.0076725 | P185: 101.0076989 | Q185: 101.0076875
A186: =IF(COUNTRY_INFO!A186=0," ",COUNTRY_INFO!A186) -> DRC | B186: =IF(COUNTRY_INFO!B186=0," ",COUNTRY_INFO!B186) -> KASAI ORIENTAL | C186: =IF(COUNTRY_INFO!C186=0," ",COUNTRY_INFO!C186) -> Mukumbi | D186: =IF(COUNTRY_INFO!$T$9:$T$1000="MDA1 (IVM+ALB)", COUNTRY_INFO!$T$9:$T$1000, " ") -> MDA1 (IVM+ALB) | G186: 53064 | H186: 69741 | I186: 122805 | K186: 53031 | L186: 69699 | M186: 122730 | O186: 99.93781095 | P186: 99.93977718 | Q186: 99.93892757
A187: =IF(COUNTRY_INFO!A187=0," ",COUNTRY_INFO!A187) -> DRC | B187: =IF(COUNTRY_INFO!B187=0," ",COUNTRY_INFO!B187) -> KASAI ORIENTAL | C187: =IF(COUNTRY_INFO!C187=0," ",COUNTRY_INFO!C187) -> Muya | D187: =IF(COUNTRY_INFO!$T$9:$T$1000="MDA1 (IVM+ALB)", COUNTRY_INFO!$T$9:$T$1000, " ") ->  | I187: 0
A188: =IF(COUNTRY_INFO!A188=0," ",COUNTRY_INFO!A188) -> DRC | B188: =IF(COUNTRY_INFO!B188=0," ",COUNTRY_INFO!B188) -> KASAI ORIENTAL | C188: =IF(COUNTRY_INFO!C188=0," ",COUNTRY_INFO!C188) -> Nzaba | D188: =IF(COUNTRY_INFO!$T$9:$T$1000="MDA1 (IVM+ALB)", COUNTRY_INFO!$T$9:$T$1000, " ") ->  | I188: 0
A189: =IF(COUNTRY_INFO!A189=0," ",COUNTRY_INFO!A189) -> DRC | B189: =IF(COUNTRY_INFO!B189=0," ",COUNTRY_INFO!B189) -> KASAI ORIENTAL | C189: =IF(COUNTRY_INFO!C189=0," ",COUNTRY_INFO!C189) -> Tshilenge | D189: =IF(COUNTRY_INFO!$T$9:$T$1000="MDA1 (IVM+ALB)", COUNTRY_INFO!$T$9:$T$1000, " ") ->  | I189: 0
A190: =IF(COUNTRY_INFO!A190=0," ",COUNTRY_INFO!A190) -> DRC | B190: =IF(COUNTRY_INFO!B190=0," ",COUNTRY_INFO!B190) -> KASAI ORIENTAL | C190: =IF(COUNTRY_INFO!C190=0," ",COUNTRY_INFO!C190) -> Tshilundu | D190: =IF(COUNTRY_INFO!$T$9:$T$1000="MDA1 (IVM+ALB)", COUNTRY_INFO!$T$9:$T$1000, " ") ->  | I190: 0
A191: =IF(COUNTRY_INFO!A191=0," ",COUNTRY_INFO!A191) -> DRC | B191: =IF(COUNTRY_INFO!B191=0," ",COUNTRY_INFO!B191) -> KASAI ORIENTAL | C191: =IF(COUNTRY_INFO!C191=0," ",COUNTRY_INFO!C191) -> Tshitenge | D191: =IF(COUNTRY_INFO!$T$9:$T$1000="MDA1 (IVM+ALB)", COUNTRY_INFO!$T$9:$T$1000, " ") -> MDA1 (IVM+ALB) | G191: 85457 | H191: 112315 | I191: 197772 | K191: 85361 | L191: 112189 | M191: 197550 | O191: 99.8876628 | P191: 99.88781552 | Q191: 99.88774953
A192: =IF(COUNTRY_INFO!A192=0," ",COUNTRY_INFO!A192) -> DRC | B192: =IF(COUNTRY_INFO!B192=0," ",COUNTRY_INFO!B192) -> KASAI ORIENTAL | C192: =IF(COUNTRY_INFO!C192=0," ",COUNTRY_INFO!C192) -> Tshitshimbi | D192: =IF(COUNTRY_INFO!$T$9:$T$1000="MDA1 (IVM+ALB)", COUNTRY_INFO!$T$9:$T$1000, " ") ->  | I192: 0
A193: =IF(COUNTRY_INFO!A193=0," ",COUNTRY_INFO!A193) -> DRC | B193: =IF(COUNTRY_INFO!B193=0," ",COUNTRY_INFO!B193) -> KINSHASA | C193: =IF(COUNTRY_INFO!C193=0," ",COUNTRY_INFO!C193) -> Bandalungwa | D193: =IF(COUNTRY_INFO!$T$9:$T$1000="MDA1 (IVM+ALB)", COUNTRY_INFO!$T$9:$T$1000, " ") ->  | I193: 0
A194: =IF(COUNTRY_INFO!A194=0," ",COUNTRY_INFO!A194) -> DRC | B194: =IF(COUNTRY_INFO!B194=0," ",COUNTRY_INFO!B194) -> KINSHASA | C194: =IF(COUNTRY_INFO!C194=0," ",COUNTRY_INFO!C194) -> Barumbu | D194: =IF(COUNTRY_INFO!$T$9:$T$1000="MDA1 (IVM+ALB)", COUNTRY_INFO!$T$9:$T$1000, " ") ->  | I194: 0
A195: =IF(COUNTRY_INFO!A195=0," ",COUNTRY_INFO!A195) -> DRC | B195: =IF(COUNTRY_INFO!B195=0," ",COUNTRY_INFO!B195) -> KINSHASA | C195: =IF(COUNTRY_INFO!C195=0," ",COUNTRY_INFO!C195) -> Binza-Metéo | D195: =IF(COUNTRY_INFO!$T$9:$T$1000="MDA1 (IVM+ALB)", COUNTRY_INFO!$T$9:$T$1000, " ") ->  | I195: 0
A196: =IF(COUNTRY_INFO!A196=0," ",COUNTRY_INFO!A196) -> DRC | B196: =IF(COUNTRY_INFO!B196=0," ",COUNTRY_INFO!B196) -> KINSHASA | C196: =IF(COUNTRY_INFO!C196=0," ",COUNTRY_INFO!C196) -> Binza-Ozone | D196: =IF(COUNTRY_INFO!$T$9:$T$1000="MDA1 (IVM+ALB)", COUNTRY_INFO!$T$9:$T$1000, " ") ->  | I196: 0
A197: =IF(COUNTRY_INFO!A197=0," ",COUNTRY_INFO!A197) -> DRC | B197: =IF(COUNTRY_INFO!B197=0," ",COUNTRY_INFO!B197) -> KINSHASA | C197: =IF(COUNTRY_INFO!C197=0," ",COUNTRY_INFO!C197) -> Biyela | D197: =IF(COUNTRY_INFO!$T$9:$T$1000="MDA1 (IVM+ALB)", COUNTRY_INFO!$T$9:$T$1000, " ") ->  | I197: 0
A198: =IF(COUNTRY_INFO!A198=0," ",COUNTRY_INFO!A198) -> DRC | B198: =IF(COUNTRY_INFO!B198=0," ",COUNTRY_INFO!B198) -> KINSHASA | C198: =IF(COUNTRY_INFO!C198=0," ",COUNTRY_INFO!C198) -> Bumbu | D198: =IF(COUNTRY_INFO!$T$9:$T$1000="MDA1 (IVM+ALB)", COUNTRY_INFO!$T$9:$T$1000, " ") ->  | I198: 0
A199: =IF(COUNTRY_INFO!A199=0," ",COUNTRY_INFO!A199) -> DRC | B199: =IF(COUNTRY_INFO!B199=0," ",COUNTRY_INFO!B199) -> KINSHASA | C199: =IF(COUNTRY_INFO!C199=0," ",COUNTRY_INFO!C199) -> Gombe | D199: =IF(COUNTRY_INFO!$T$9:$T$1000="MDA1 (IVM+ALB)", COUNTRY_INFO!$T$9:$T$1000, " ") ->  | I199: 0
A200: =IF(COUNTRY_INFO!A200=0," ",COUNTRY_INFO!A200) -> DRC | B200: =IF(COUNTRY_INFO!B200=0," ",COUNTRY_INFO!B200) -> KINSHASA | C200: =IF(COUNTRY_INFO!C200=0," ",COUNTRY_INFO!C200) -> Kalamu I | D200: =IF(COUNTRY_INFO!$T$9:$T$1000="MDA1 (IVM+ALB)", COUNTRY_INFO!$T$9:$T$1000, " ") ->  | I200: 0
A201: =IF(COUNTRY_INFO!A201=0," ",COUNTRY_INFO!A201) -> DRC | B201: =IF(COUNTRY_INFO!B201=0," ",COUNTRY_INFO!B201) -> KINSHASA | C201: =IF(COUNTRY_INFO!C201=0," ",COUNTRY_INFO!C201) -> Kalamu II | D201: =IF(COUNTRY_INFO!$T$9:$T$1000="MDA1 (IVM+ALB)", COUNTRY_INFO!$T$9:$T$1000, " ") ->  | I201: 0
A202: =IF(COUNTRY_INFO!A202=0," ",COUNTRY_INFO!A202) -> DRC | B202: =IF(COUNTRY_INFO!B202=0," ",COUNTRY_INFO!B202) -> KINSHASA | C202: =IF(COUNTRY_INFO!C202=0," ",COUNTRY_INFO!C202) -> Kasa Vubu | D202: =IF(COUNTRY_INFO!$T$9:$T$1000="MDA1 (IVM+ALB)", COUNTRY_INFO!$T$9:$T$1000, " ") ->  | I202: =SUM(F202:H202) -> 0 | O202: =IF(G202<>0, IF(K202/G202*100=0, "-", K202/G202*100), " ") ->  | P202: =IF(H202<>0, IF(L202/H202*100=0, "-", L202/H202*100), " ") ->  | Q202: =IF(I202<>0, IF(M202/I202*100=0, "-", M202/I202*100), " ") -> 
A203: =IF(COUNTRY_INFO!A203=0," ",COUNTRY_INFO!A203) -> DRC | B203: =IF(COUNTRY_INFO!B203=0," ",COUNTRY_INFO!B203) -> KINSHASA | C203: =IF(COUNTRY_INFO!C203=0," ",COUNTRY_INFO!C203) -> Kikimi | D203: =IF(COUNTRY_INFO!$T$9:$T$1000="MDA1 (IVM+ALB)", COUNTRY_INFO!$T$9:$T$1000, " ") ->  | I203: 0
... 324 more rows

Sheet MDA2 (hidden)
A1: MDA 2 - Diethylcarbamazine citrate (DEC) + Albendazole (ALB)
A2: Administrative structure, population requiring PC by age group, population treated by age group and coverage
A4: TOTAL | F4: =SUM(F$9:F$1000) -> 0 | G4: =SUM(G$9:G$1000) -> 0 | H4: 0 | I4: 0 | J4: 0 | K4: 0 | L4: 0 | M4: 0 | N4: =IF(F4<>0, IF(J4/F4*100=0, "-", J4/F4*100), " ") ->  | O4: =IF(G4<>0, IF(K4/G4*100=0, "-", K4/G4*100), " ") ->  | P4: =IF(H4<>0, IF(L4/H4*100=0, "-", L4/H4*100), " ") ->  | Q4: =IF(I4<>0, IF(M4/I4*100=0, "-", M4/I4*100), " ") -> 
D6: PC implemented | E6: Date | F6: Population targeted for MDA 2 | J6: Population treated | N6: Programme coverage (%)
A7: Country | B7: Province/State | C7: District | F7: PreSAC | G7: SAC | H7: Adults | I7: Total | J7: PreSAC | K7: SAC | L7: Adults | M7: Total | N7: PreSAC | O7: SAC | P7: Adults | Q7: Total
A9: =IF(COUNTRY_INFO!A9=0," ",COUNTRY_INFO!A9) -> DRC | B9: =IF(COUNTRY_INFO!B9=0," ",COUNTRY_INFO!B9) -> BAS UELE | C9: =IF(COUNTRY_INFO!C9=0," ",COUNTRY_INFO!C9) -> Aketi | D9: =IF(COUNTRY_INFO!$T$9:$T$1000="MDA2 (DEC+ALB)", COUNTRY_INFO!$T$9:$T$1000, " ") ->  | I9: =SUM(F9:H9) -> 0 | M9: =SUM(J9:L9) -> 0 | N9: =IF(F9<>0, IF(J9/F9*100=0, "-", J9/F9*100), " ") -> 
A10: =IF(COUNTRY_INFO!A10=0," ",COUNTRY_INFO!A10) -> DRC | B10: =IF(COUNTRY_INFO!B10=0," ",COUNTRY_INFO!B10) -> BAS UELE | C10: =IF(COUNTRY_INFO!C10=0," ",COUNTRY_INFO!C10) -> Ango | D10: =IF(COUNTRY_INFO!$T$9:$T$1000="MDA2 (DEC+ALB)", COUNTRY_INFO!$T$9:$T$1000, " ") ->  | I10: =SUM(F10:H10) -> 0 | M10: =SUM(J10:L10) -> 0 | N10: =IF(F10<>0, IF(J10/F10*100=0, "-", J10/F10*100), " ") ->  | O10: =IF(G10<>0, IF(K10/G10*100=0, "-", K10/G10*100), " ") ->  | P10: =IF(H10<>0, IF(L10/H10*100=0, "-", L10/H10*100), " ") ->  | Q10: =IF(I10<>0, IF(M10/I10*100=0, "-", M10/I10*100), " ") -> 
A11: =IF(COUNTRY_INFO!A11=0," ",COUNTRY_INFO!A11) -> DRC | B11: =IF(COUNTRY_INFO!B11=0," ",COUNTRY_INFO!B11) -> BAS UELE | C11: =IF(COUNTRY_INFO!C11=0," ",COUNTRY_INFO!C11) -> Bili | D11: =IF(COUNTRY_INFO!$T$9:$T$1000="MDA2 (DEC+ALB)", COUNTRY_INFO!$T$9:$T$1000, " ") ->  | I11: 0 | M11: 0
A12: =IF(COUNTRY_INFO!A12=0," ",COUNTRY_INFO!A12) -> DRC | B12: =IF(COUNTRY_INFO!B12=0," ",COUNTRY_INFO!B12) -> BAS UELE | C12: =IF(COUNTRY_INFO!C12=0," ",COUNTRY_INFO!C12) -> Bondo | D12: =IF(COUNTRY_INFO!$T$9:$T$1000="MDA2 (DEC+ALB)", COUNTRY_INFO!$T$9:$T$1000, " ") ->  | I12: 0 | M12: 0
A13: =IF(COUNTRY_INFO!A13=0," ",COUNTRY_INFO!A13) -> DRC | B13: =IF(COUNTRY_INFO!B13=0," ",COUNTRY_INFO!B13) -> BAS UELE | C13: =IF(COUNTRY_INFO!C13=0," ",COUNTRY_INFO!C13) -> Buta | D13: =IF(COUNTRY_INFO!$T$9:$T$1000="MDA2 (DEC+ALB)", COUNTRY_INFO!$T$9:$T$1000, " ") ->  | I13: 0 | M13: 0
A14: =IF(COUNTRY_INFO!A14=0," ",COUNTRY_INFO!A14) -> DRC | B14: =IF(COUNTRY_INFO!B14=0," ",COUNTRY_INFO!B14) -> BAS UELE | C14: =IF(COUNTRY_INFO!C14=0," ",COUNTRY_INFO!C14) -> Dingela | D14: =IF(COUNTRY_INFO!$T$9:$T$1000="MDA2 (DEC+ALB)", COUNTRY_INFO!$T$9:$T$1000, " ") ->  | I14: 0 | M14: 0
A15: =IF(COUNTRY_INFO!A15=0," ",COUNTRY_INFO!A15) -> DRC | B15: =IF(COUNTRY_INFO!B15=0," ",COUNTRY_INFO!B15) -> BAS UELE | C15: =IF(COUNTRY_INFO!C15=0," ",COUNTRY_INFO!C15) -> Likati | D15: =IF(COUNTRY_INFO!$T$9:$T$1000="MDA2 (DEC+ALB)", COUNTRY_INFO!$T$9:$T$1000, " ") ->  | I15: 0 | M15: 0
A16: =IF(COUNTRY_INFO!A16=0," ",COUNTRY_INFO!A16) -> DRC | B16: =IF(COUNTRY_INFO!B16=0," ",COUNTRY_INFO!B16) -> BAS UELE | C16: =IF(COUNTRY_INFO!C16=0," ",COUNTRY_INFO!C16) -> Monga | D16: =IF(COUNTRY_INFO!$T$9:$T$1000="MDA2 (DEC+ALB)", COUNTRY_INFO!$T$9:$T$1000, " ") ->  | I16: 0 | M16: 0
A17: =IF(COUNTRY_INFO!A17=0," ",COUNTRY_INFO!A17) -> DRC | B17: =IF(COUNTRY_INFO!B17=0," ",COUNTRY_INFO!B17) -> BAS UELE | C17: =IF(COUNTRY_INFO!C17=0," ",COUNTRY_INFO!C17) -> Poko | D17: =IF(COUNTRY_INFO!$T$9:$T$1000="MDA2 (DEC+ALB)", COUNTRY_INFO!$T$9:$T$1000, " ") ->  | I17: 0 | M17: 0
A18: =IF(COUNTRY_INFO!A18=0," ",COUNTRY_INFO!A18) -> DRC | B18: =IF(COUNTRY_INFO!B18=0," ",COUNTRY_INFO!B18) -> BAS UELE | C18: =IF(COUNTRY_INFO!C18=0," ",COUNTRY_INFO!C18) -> Titule | D18: =IF(COUNTRY_INFO!$T$9:$T$1000="MDA2 (DEC+ALB)", COUNTRY_INFO!$T$9:$T$1000, " ") ->  | I18: 0 | M18: 0
A19: =IF(COUNTRY_INFO!A19=0," ",COUNTRY_INFO!A19) -> DRC | B19: =IF(COUNTRY_INFO!B19=0," ",COUNTRY_INFO!B19) -> BAS UELE | C19: =IF(COUNTRY_INFO!C19=0," ",COUNTRY_INFO!C19) -> Viadana | D19: =IF(COUNTRY_INFO!$T$9:$T$1000="MDA2 (DEC+ALB)", COUNTRY_INFO!$T$9:$T$1000, " ") ->  | I19: 0 | M19: 0
A20: =IF(COUNTRY_INFO!A20=0," ",COUNTRY_INFO!A20) -> DRC | B20: =IF(COUNTRY_INFO!B20=0," ",COUNTRY_INFO!B20) -> EQUATEUR | C20: =IF(COUNTRY_INFO!C20=0," ",COUNTRY_INFO!C20) -> Basankusu | D20: =IF(COUNTRY_INFO!$T$9:$T$1000="MDA2 (DEC+ALB)", COUNTRY_INFO!$T$9:$T$1000, " ") ->  | I20: 0 | M20: 0
A21: =IF(COUNTRY_INFO!A21=0," ",COUNTRY_INFO!A21) -> DRC | B21: =IF(COUNTRY_INFO!B21=0," ",COUNTRY_INFO!B21) -> EQUATEUR | C21: =IF(COUNTRY_INFO!C21=0," ",COUNTRY_INFO!C21) -> Bikoro | D21: =IF(COUNTRY_INFO!$T$9:$T$1000="MDA2 (DEC+ALB)", COUNTRY_INFO!$T$9:$T$1000, " ") ->  | I21: 0 | M21: 0
A22: =IF(COUNTRY_INFO!A22=0," ",COUNTRY_INFO!A22) -> DRC | B22: =IF(COUNTRY_INFO!B22=0," ",COUNTRY_INFO!B22) -> EQUATEUR | C22: =IF(COUNTRY_INFO!C22=0," ",COUNTRY_INFO!C22) -> Bolenge | D22: =IF(COUNTRY_INFO!$T$9:$T$1000="MDA2 (DEC+ALB)", COUNTRY_INFO!$T$9:$T$1000, " ") ->  | I22: 0 | M22: 0
A23: =IF(COUNTRY_INFO!A23=0," ",COUNTRY_INFO!A23) -> DRC | B23: =IF(COUNTRY_INFO!B23=0," ",COUNTRY_INFO!B23) -> EQUATEUR | C23: =IF(COUNTRY_INFO!C23=0," ",COUNTRY_INFO!C23) -> Bolomba | D23: =IF(COUNTRY_INFO!$T$9:$T$1000="MDA2 (DEC+ALB)", COUNTRY_INFO!$T$9:$T$1000, " ") ->  | I23: 0 | M23: 0
A24: =IF(COUNTRY_INFO!A24=0," ",COUNTRY_INFO!A24) -> DRC | B24: =IF(COUNTRY_INFO!B24=0," ",COUNTRY_INFO!B24) -> EQUATEUR | C24: =IF(COUNTRY_INFO!C24=0," ",COUNTRY_INFO!C24) -> Bomongo | D24: =IF(COUNTRY_INFO!$T$9:$T$1000="MDA2 (DEC+ALB)", COUNTRY_INFO!$T$9:$T$1000, " ") ->  | I24: 0 | M24: 0
A25: =IF(COUNTRY_INFO!A25=0," ",COUNTRY_INFO!A25) -> DRC | B25: =IF(COUNTRY_INFO!B25=0," ",COUNTRY_INFO!B25) -> EQUATEUR | C25: =IF(COUNTRY_INFO!C25=0," ",COUNTRY_INFO!C25) -> Djombo | D25: =IF(COUNTRY_INFO!$T$9:$T$1000="MDA2 (DEC+ALB)", COUNTRY_INFO!$T$9:$T$1000, " ") ->  | I25: 0 | M25: 0
A26: =IF(COUNTRY_INFO!A26=0," ",COUNTRY_INFO!A26) -> DRC | B26: =IF(COUNTRY_INFO!B26=0," ",COUNTRY_INFO!B26) -> EQUATEUR | C26: =IF(COUNTRY_INFO!C26=0," ",COUNTRY_INFO!C26) -> Iboko | D26: =IF(COUNTRY_INFO!$T$9:$T$1000="MDA2 (DEC+ALB)", COUNTRY_INFO!$T$9:$T$1000, " ") ->  | I26: 0 | M26: 0
A27: =IF(COUNTRY_INFO!A27=0," ",COUNTRY_INFO!A27) -> DRC | B27: =IF(COUNTRY_INFO!B27=0," ",COUNTRY_INFO!B27) -> EQUATEUR | C27: =IF(COUNTRY_INFO!C27=0," ",COUNTRY_INFO!C27) -> Ingende | D27: =IF(COUNTRY_INFO!$T$9:$T$1000="MDA2 (DEC+ALB)", COUNTRY_INFO!$T$9:$T$1000, " ") ->  | I27: 0 | M27: 0
A28: =IF(COUNTRY_INFO!A28=0," ",COUNTRY_INFO!A28) -> DRC | B28: =IF(COUNTRY_INFO!B28=0," ",COUNTRY_INFO!B28) -> EQUATEUR | C28: =IF(COUNTRY_INFO!C28=0," ",COUNTRY_INFO!C28) -> Irebu | D28: =IF(COUNTRY_INFO!$T$9:$T$1000="MDA2 (DEC+ALB)", COUNTRY_INFO!$T$9:$T$1000, " ") ->  | I28: 0 | M28: 0
A29: =IF(COUNTRY_INFO!A29=0," ",COUNTRY_INFO!A29) -> DRC | B29: =IF(COUNTRY_INFO!B29=0," ",COUNTRY_INFO!B29) -> EQUATEUR | C29: =IF(COUNTRY_INFO!C29=0," ",COUNTRY_INFO!C29) -> Lilanga Bobangi | D29: =IF(COUNTRY_INFO!$T$9:$T$1000="MDA2 (DEC+ALB)", COUNTRY_INFO!$T$9:$T$1000, " ") ->  | I29: 0 | M29: 0
A30: =IF(COUNTRY_INFO!A30=0," ",COUNTRY_INFO!A30) -> DRC | B30: =IF(COUNTRY_INFO!B30=0," ",COUNTRY_INFO!B30) -> EQUATEUR | C30: =IF(COUNTRY_INFO!C30=0," ",COUNTRY_INFO!C30) -> Lotumbe | D30: =IF(COUNTRY_INFO!$T$9:$T$1000="MDA2 (DEC+ALB)", COUNTRY_INFO!$T$9:$T$1000, " ") ->  | I30: 0 | M30: 0
A31: =IF(COUNTRY_INFO!A31=0," ",COUNTRY_INFO!A31) -> DRC | B31: =IF(COUNTRY_INFO!B31=0," ",COUNTRY_INFO!B31) -> EQUATEUR | C31: =IF(COUNTRY_INFO!C31=0," ",COUNTRY_INFO!C31) -> Lukolela | D31: =IF(COUNTRY_INFO!$T$9:$T$1000="MDA2 (DEC+ALB)", COUNTRY_INFO!$T$9:$T$1000, " ") ->  | I31: 0 | M31: 0
A32: =IF(COUNTRY_INFO!A32=0," ",COUNTRY_INFO!A32) -> DRC | B32: =IF(COUNTRY_INFO!B32=0," ",COUNTRY_INFO!B32) -> EQUATEUR | C32: =IF(COUNTRY_INFO!C32=0," ",COUNTRY_INFO!C32) -> Makanza | D32: =IF(COUNTRY_INFO!$T$9:$T$1000="MDA2 (DEC+ALB)", COUNTRY_INFO!$T$9:$T$1000, " ") ->  | I32: 0 | M32: 0
A33: =IF(COUNTRY_INFO!A33=0," ",COUNTRY_INFO!A33) -> DRC | B33: =IF(COUNTRY_INFO!B33=0," ",COUNTRY_INFO!B33) -> EQUATEUR | C33: =IF(COUNTRY_INFO!C33=0," ",COUNTRY_INFO!C33) -> Mampoko | D33: =IF(COUNTRY_INFO!$T$9:$T$1000="MDA2 (DEC+ALB)", COUNTRY_INFO!$T$9:$T$1000, " ") ->  | I33: 0 | M33: 0
A34: =IF(COUNTRY_INFO!A34=0," ",COUNTRY_INFO!A34) -> DRC | B34: =IF(COUNTRY_INFO!B34=0," ",COUNTRY_INFO!B34) -> EQUATEUR | C34: =IF(COUNTRY_INFO!C34=0," ",COUNTRY_INFO!C34) -> Mbandaka | D34: =IF(COUNTRY_INFO!$T$9:$T$1000="MDA2 (DEC+ALB)", COUNTRY_INFO!$T$9:$T$1000, " ") ->  | I34: 0 | M34: 0
A35: =IF(COUNTRY_INFO!A35=0," ",COUNTRY_INFO!A35) -> DRC | B35: =IF(COUNTRY_INFO!B35=0," ",COUNTRY_INFO!B35) -> EQUATEUR | C35: =IF(COUNTRY_INFO!C35=0," ",COUNTRY_INFO!C35) -> Monieka | D35: =IF(COUNTRY_INFO!$T$9:$T$1000="MDA2 (DEC+ALB)", COUNTRY_INFO!$T$9:$T$1000, " ") ->  | I35: 0 | M35: 0
A36: =IF(COUNTRY_INFO!A36=0," ",COUNTRY_INFO!A36) -> DRC | B36: =IF(COUNTRY_INFO!B36=0," ",COUNTRY_INFO!B36) -> EQUATEUR | C36: =IF(COUNTRY_INFO!C36=0," ",COUNTRY_INFO!C36) -> Ntondo | D36: =IF(COUNTRY_INFO!$T$9:$T$1000="MDA2 (DEC+ALB)", COUNTRY_INFO!$T$9:$T$1000, " ") ->  | I36: 0 | M36: 0
A37: =IF(COUNTRY_INFO!A37=0," ",COUNTRY_INFO!A37) -> DRC | B37: =IF(COUNTRY_INFO!B37=0," ",COUNTRY_INFO!B37) -> EQUATEUR | C37: =IF(COUNTRY_INFO!C37=0," ",COUNTRY_INFO!C37) -> Wangata | D37: =IF(COUNTRY_INFO!$T$9:$T$1000="MDA2 (DEC+ALB)", COUNTRY_INFO!$T$9:$T$1000, " ") ->  | I37: 0 | M37: 0
A38: =IF(COUNTRY_INFO!A38=0," ",COUNTRY_INFO!A38) -> DRC | B38: =IF(COUNTRY_INFO!B38=0," ",COUNTRY_INFO!B38) -> HAUT KATANGA | C38: =IF(COUNTRY_INFO!C38=0," ",COUNTRY_INFO!C38) -> Kafubu | D38: =IF(COUNTRY_INFO!$T$9:$T$1000="MDA2 (DEC+ALB)", COUNTRY_INFO!$T$9:$T$1000, " ") ->  | I38: 0 | M38: 0
A39: =IF(COUNTRY_INFO!A39=0," ",COUNTRY_INFO!A39) -> DRC | B39: =IF(COUNTRY_INFO!B39=0," ",COUNTRY_INFO!B39) -> HAUT KATANGA | C39: =IF(COUNTRY_INFO!C39=0," ",COUNTRY_INFO!C39) -> Kamalondo | D39: =IF(COUNTRY_INFO!$T$9:$T$1000="MDA2 (DEC+ALB)", COUNTRY_INFO!$T$9:$T$1000, " ") ->  | I39: 0 | M39: 0
A40: =IF(COUNTRY_INFO!A40=0," ",COUNTRY_INFO!A40) -> DRC | B40: =IF(COUNTRY_INFO!B40=0," ",COUNTRY_INFO!B40) -> HAUT KATANGA | C40: =IF(COUNTRY_INFO!C40=0," ",COUNTRY_INFO!C40) -> Kambove | D40: =IF(COUNTRY_INFO!$T$9:$T$1000="MDA2 (DEC+ALB)", COUNTRY_INFO!$T$9:$T$1000, " ") ->  | I40: 0 | M40: 0
A41: =IF(COUNTRY_INFO!A41=0," ",COUNTRY_INFO!A41) -> DRC | B41: =IF(COUNTRY_INFO!B41=0," ",COUNTRY_INFO!B41) -> HAUT KATANGA | C41: =IF(COUNTRY_INFO!C41=0," ",COUNTRY_INFO!C41) -> Kampemba | D41: =IF(COUNTRY_INFO!$T$9:$T$1000="MDA2 (DEC+ALB)", COUNTRY_INFO!$T$9:$T$1000, " ") ->  | I41: 0 | M41: 0
A42: =IF(COUNTRY_INFO!A42=0," ",COUNTRY_INFO!A42) -> DRC | B42: =IF(COUNTRY_INFO!B42=0," ",COUNTRY_INFO!B42) -> HAUT KATANGA | C42: =IF(COUNTRY_INFO!C42=0," ",COUNTRY_INFO!C42) -> Kapolobwe | D42: =IF(COUNTRY_INFO!$T$9:$T$1000="MDA2 (DEC+ALB)", COUNTRY_INFO!$T$9:$T$1000, " ") ->  | I42: 0 | M42: 0
A43: =IF(COUNTRY_INFO!A43=0," ",COUNTRY_INFO!A43) -> DRC | B43: =IF(COUNTRY_INFO!B43=0," ",COUNTRY_INFO!B43) -> HAUT KATANGA | C43: =IF(COUNTRY_INFO!C43=0," ",COUNTRY_INFO!C43) -> Kasenga | D43: =IF(COUNTRY_INFO!$T$9:$T$1000="MDA2 (DEC+ALB)", COUNTRY_INFO!$T$9:$T$1000, " ") ->  | I43: 0 | M43: 0
A44: =IF(COUNTRY_INFO!A44=0," ",COUNTRY_INFO!A44) -> DRC | B44: =IF(COUNTRY_INFO!B44=0," ",COUNTRY_INFO!B44) -> HAUT KATANGA | C44: =IF(COUNTRY_INFO!C44=0," ",COUNTRY_INFO!C44) -> Kashobwe | D44: =IF(COUNTRY_INFO!$T$9:$T$1000="MDA2 (DEC+ALB)", COUNTRY_INFO!$T$9:$T$1000, " ") ->  | I44: 0 | M44: 0
A45: =IF(COUNTRY_INFO!A45=0," ",COUNTRY_INFO!A45) -> DRC | B45: =IF(COUNTRY_INFO!B45=0," ",COUNTRY_INFO!B45) -> HAUT KATANGA | C45: =IF(COUNTRY_INFO!C45=0," ",COUNTRY_INFO!C45) -> Katuba | D45: =IF(COUNTRY_INFO!$T$9:$T$1000="MDA2 (DEC+ALB)", COUNTRY_INFO!$T$9:$T$1000, " ") ->  | I45: 0 | M45: 0
A46: =IF(COUNTRY_INFO!A46=0," ",COUNTRY_INFO!A46) -> DRC | B46: =IF(COUNTRY_INFO!B46=0," ",COUNTRY_INFO!B46) -> HAUT KATANGA | C46: =IF(COUNTRY_INFO!C46=0," ",COUNTRY_INFO!C46) -> Kenya | D46: =IF(COUNTRY_INFO!$T$9:$T$1000="MDA2 (DEC+ALB)", COUNTRY_INFO!$T$9:$T$1000, " ") ->  | I46: 0 | M46: 0
A47: =IF(COUNTRY_INFO!A47=0," ",COUNTRY_INFO!A47) -> DRC | B47: =IF(COUNTRY_INFO!B47=0," ",COUNTRY_INFO!B47) -> HAUT KATANGA | C47: =IF(COUNTRY_INFO!C47=0," ",COUNTRY_INFO!C47) -> Kikula | D47: =IF(COUNTRY_INFO!$T$9:$T$1000="MDA2 (DEC+ALB)", COUNTRY_INFO!$T$9:$T$1000, " ") ->  | I47: 0 | M47: 0
A48: =IF(COUNTRY_INFO!A48=0," ",COUNTRY_INFO!A48) -> DRC | B48: =IF(COUNTRY_INFO!B48=0," ",COUNTRY_INFO!B48) -> HAUT KATANGA | C48: =IF(COUNTRY_INFO!C48=0," ",COUNTRY_INFO!C48) -> Kilela Balanda | D48: =IF(COUNTRY_INFO!$T$9:$T$1000="MDA2 (DEC+ALB)", COUNTRY_INFO!$T$9:$T$1000, " ") ->  | I48: 0 | M48: 0
A49: =IF(COUNTRY_INFO!A49=0," ",COUNTRY_INFO!A49) -> DRC | B49: =IF(COUNTRY_INFO!B49=0," ",COUNTRY_INFO!B49) -> HAUT KATANGA | C49: =IF(COUNTRY_INFO!C49=0," ",COUNTRY_INFO!C49) -> Kilwa | D49: =IF(COUNTRY_INFO!$T$9:$T$1000="MDA2 (DEC+ALB)", COUNTRY_INFO!$T$9:$T$1000, " ") ->  | I49: 0 | M49: 0
A50: =IF(COUNTRY_INFO!A50=0," ",COUNTRY_INFO!A50) -> DRC | B50: =IF(COUNTRY_INFO!B50=0," ",COUNTRY_INFO!B50) -> HAUT KATANGA | C50: =IF(COUNTRY_INFO!C50=0," ",COUNTRY_INFO!C50) -> Kipushi | D50: =IF(COUNTRY_INFO!$T$9:$T$1000="MDA2 (DEC+ALB)", COUNTRY_INFO!$T$9:$T$1000, " ") ->  | I50: 0 | M50: 0
A51: =IF(COUNTRY_INFO!A51=0," ",COUNTRY_INFO!A51) -> DRC | B51: =IF(COUNTRY_INFO!B51=0," ",COUNTRY_INFO!B51) -> HAUT KATANGA | C51: =IF(COUNTRY_INFO!C51=0," ",COUNTRY_INFO!C51) -> Kisanga | D51: =IF(COUNTRY_INFO!$T$9:$T$1000="MDA2 (DEC+ALB)", COUNTRY_INFO!$T$9:$T$1000, " ") ->  | I51: 0 | M51: 0
A52: =IF(COUNTRY_INFO!A52=0," ",COUNTRY_INFO!A52) -> DRC | B52: =IF(COUNTRY_INFO!B52=0," ",COUNTRY_INFO!B52) -> HAUT KATANGA | C52: =IF(COUNTRY_INFO!C52=0," ",COUNTRY_INFO!C52) -> Kowe | D52: =IF(COUNTRY_INFO!$T$9:$T$1000="MDA2 (DEC+ALB)", COUNTRY_INFO!$T$9:$T$1000, " ") ->  | I52: 0 | M52: 0
A53: =IF(COUNTRY_INFO!A53=0," ",COUNTRY_INFO!A53) -> DRC | B53: =IF(COUNTRY_INFO!B53=0," ",COUNTRY_INFO!B53) -> HAUT KATANGA | C53: =IF(COUNTRY_INFO!C53=0," ",COUNTRY_INFO!C53) -> Likasi | D53: =IF(COUNTRY_INFO!$T$9:$T$1000="MDA2 (DEC+ALB)", COUNTRY_INFO!$T$9:$T$1000, " ") ->  | I53: 0 | M53: 0
A54: =IF(COUNTRY_INFO!A54=0," ",COUNTRY_INFO!A54) -> DRC | B54: =IF(COUNTRY_INFO!B54=0," ",COUNTRY_INFO!B54) -> HAUT KATANGA | C54: =IF(COUNTRY_INFO!C54=0," ",COUNTRY_INFO!C54) -> Lubumbashi | D54: =IF(COUNTRY_INFO!$T$9:$T$1000="MDA2 (DEC+ALB)", COUNTRY_INFO!$T$9:$T$1000, " ") ->  | I54: 0 | M54: 0
A55: =IF(COUNTRY_INFO!A55=0," ",COUNTRY_INFO!A55) -> DRC | B55: =IF(COUNTRY_INFO!B55=0," ",COUNTRY_INFO!B55) -> HAUT KATANGA | C55: =IF(COUNTRY_INFO!C55=0," ",COUNTRY_INFO!C55) -> Lukafu | D55: =IF(COUNTRY_INFO!$T$9:$T$1000="MDA2 (DEC+ALB)", COUNTRY_INFO!$T$9:$T$1000, " ") ->  | I55: 0 | M55: 0
A56: =IF(COUNTRY_INFO!A56=0," ",COUNTRY_INFO!A56) -> DRC | B56: =IF(COUNTRY_INFO!B56=0," ",COUNTRY_INFO!B56) -> HAUT KATANGA | C56: =IF(COUNTRY_INFO!C56=0," ",COUNTRY_INFO!C56) -> Mitwaba | D56: =IF(COUNTRY_INFO!$T$9:$T$1000="MDA2 (DEC+ALB)", COUNTRY_INFO!$T$9:$T$1000, " ") ->  | I56: 0 | M56: 0
A57: =IF(COUNTRY_INFO!A57=0," ",COUNTRY_INFO!A57) -> DRC | B57: =IF(COUNTRY_INFO!B57=0," ",COUNTRY_INFO!B57) -> HAUT KATANGA | C57: =IF(COUNTRY_INFO!C57=0," ",COUNTRY_INFO!C57) -> Mufunga Sampwe | D57: =IF(COUNTRY_INFO!$T$9:$T$1000="MDA2 (DEC+ALB)", COUNTRY_INFO!$T$9:$T$1000, " ") ->  | I57: 0 | M57: 0
A58: =IF(COUNTRY_INFO!A58=0," ",COUNTRY_INFO!A58) -> DRC | B58: =IF(COUNTRY_INFO!B58=0," ",COUNTRY_INFO!B58) -> HAUT KATANGA | C58: =IF(COUNTRY_INFO!C58=0," ",COUNTRY_INFO!C58) -> Mumbunda | D58: =IF(COUNTRY_INFO!$T$9:$T$1000="MDA2 (DEC+ALB)", COUNTRY_INFO!$T$9:$T$1000, " ") ->  | I58: 0 | M58: 0
A59: =IF(COUNTRY_INFO!A59=0," ",COUNTRY_INFO!A59) -> DRC | B59: =IF(COUNTRY_INFO!B59=0," ",COUNTRY_INFO!B59) -> HAUT KATANGA | C59: =IF(COUNTRY_INFO!C59=0," ",COUNTRY_INFO!C59) -> Panda | D59: =IF(COUNTRY_INFO!$T$9:$T$1000="MDA2 (DEC+ALB)", COUNTRY_INFO!$T$9:$T$1000, " ") ->  | I59: 0 | M59: 0
A60: =IF(COUNTRY_INFO!A60=0," ",COUNTRY_INFO!A60) -> DRC | B60: =IF(COUNTRY_INFO!B60=0," ",COUNTRY_INFO!B60) -> HAUT KATANGA | C60: =IF(COUNTRY_INFO!C60=0," ",COUNTRY_INFO!C60) -> Pweto | D60: =IF(COUNTRY_INFO!$T$9:$T$1000="MDA2 (DEC+ALB)", COUNTRY_INFO!$T$9:$T$1000, " ") ->  | I60: 0 | M60: 0
A61: =IF(COUNTRY_INFO!A61=0," ",COUNTRY_INFO!A61) -> DRC | B61: =IF(COUNTRY_INFO!B61=0," ",COUNTRY_INFO!B61) -> HAUT KATANGA | C61: =IF(COUNTRY_INFO!C61=0," ",COUNTRY_INFO!C61) -> Ruashi | D61: =IF(COUNTRY_INFO!$T$9:$T$1000="MDA2 (DEC+ALB)", COUNTRY_INFO!$T$9:$T$1000, " ") ->  | I61: 0 | M61: 0
A62: =IF(COUNTRY_INFO!A62=0," ",COUNTRY_INFO!A62) -> DRC | B62: =IF(COUNTRY_INFO!B62=0," ",COUNTRY_INFO!B62) -> HAUT KATANGA | C62: =IF(COUNTRY_INFO!C62=0," ",COUNTRY_INFO!C62) -> Sakania | D62: =IF(COUNTRY_INFO!$T$9:$T$1000="MDA2 (DEC+ALB)", COUNTRY_INFO!$T$9:$T$1000, " ") ->  | I62: 0 | M62: 0
A63: =IF(COUNTRY_INFO!A63=0," ",COUNTRY_INFO!A63) -> DRC | B63: =IF(COUNTRY_INFO!B63=0," ",COUNTRY_INFO!B63) -> HAUT KATANGA | C63: =IF(COUNTRY_INFO!C63=0," ",COUNTRY_INFO!C63) -> Tshamilemba | D63: =IF(COUNTRY_INFO!$T$9:$T$1000="MDA2 (DEC+ALB)", COUNTRY_INFO!$T$9:$T$1000, " ") ->  | I63: 0 | M63: 0
A64: =IF(COUNTRY_INFO!A64=0," ",COUNTRY_INFO!A64) -> DRC | B64: =IF(COUNTRY_INFO!B64=0," ",COUNTRY_INFO!B64) -> HAUT KATANGA | C64: =IF(COUNTRY_INFO!C64=0," ",COUNTRY_INFO!C64) -> Vangu | D64: =IF(COUNTRY_INFO!$T$9:$T$1000="MDA2 (DEC+ALB)", COUNTRY_INFO!$T$9:$T$1000, " ") ->  | I64: 0 | M64: 0
A65: =IF(COUNTRY_INFO!A65=0," ",COUNTRY_INFO!A65) -> DRC | B65: =IF(COUNTRY_INFO!B65=0," ",COUNTRY_INFO!B65) -> HAUT LOMAMI | C65: =IF(COUNTRY_INFO!C65=0," ",COUNTRY_INFO!C65) -> Bukama | D65: =IF(COUNTRY_INFO!$T$9:$T$1000="MDA2 (DEC+ALB)", COUNTRY_INFO!$T$9:$T$1000, " ") ->  | I65: 0 | M65: 0
A66: =IF(COUNTRY_INFO!A66=0," ",COUNTRY_INFO!A66) -> DRC | B66: =IF(COUNTRY_INFO!B66=0," ",COUNTRY_INFO!B66) -> HAUT LOMAMI | C66: =IF(COUNTRY_INFO!C66=0," ",COUNTRY_INFO!C66) -> Butumba | D66: =IF(COUNTRY_INFO!$T$9:$T$1000="MDA2 (DEC+ALB)", COUNTRY_INFO!$T$9:$T$1000, " ") ->  | I66: 0 | M66: 0
A67: =IF(COUNTRY_INFO!A67=0," ",COUNTRY_INFO!A67) -> DRC | B67: =IF(COUNTRY_INFO!B67=0," ",COUNTRY_INFO!B67) -> HAUT LOMAMI | C67: =IF(COUNTRY_INFO!C67=0," ",COUNTRY_INFO!C67) -> Kabondo Dianda | D67: =IF(COUNTRY_INFO!$T$9:$T$1000="MDA2 (DEC+ALB)", COUNTRY_INFO!$T$9:$T$1000, " ") ->  | I67: 0 | M67: 0
A68: =IF(COUNTRY_INFO!A68=0," ",COUNTRY_INFO!A68) -> DRC | B68: =IF(COUNTRY_INFO!B68=0," ",COUNTRY_INFO!B68) -> HAUT LOMAMI | C68: =IF(COUNTRY_INFO!C68=0," ",COUNTRY_INFO!C68) -> Kabongo | D68: =IF(COUNTRY_INFO!$T$9:$T$1000="MDA2 (DEC+ALB)", COUNTRY_INFO!$T$9:$T$1000, " ") ->  | I68: 0 | M68: 0
A69: =IF(COUNTRY_INFO!A69=0," ",COUNTRY_INFO!A69) -> DRC | B69: =IF(COUNTRY_INFO!B69=0," ",COUNTRY_INFO!B69) -> HAUT LOMAMI | C69: =IF(COUNTRY_INFO!C69=0," ",COUNTRY_INFO!C69) -> Kamina | D69: =IF(COUNTRY_INFO!$T$9:$T$1000="MDA2 (DEC+ALB)", COUNTRY_INFO!$T$9:$T$1000, " ") ->  | I69: 0 | M69: 0
A70: =IF(COUNTRY_INFO!A70=0," ",COUNTRY_INFO!A70) -> DRC | B70: =IF(COUNTRY_INFO!B70=0," ",COUNTRY_INFO!B70) -> HAUT LOMAMI | C70: =IF(COUNTRY_INFO!C70=0," ",COUNTRY_INFO!C70) -> Kamina Base (Baka) | D70: =IF(COUNTRY_INFO!$T$9:$T$1000="MDA2 (DEC+ALB)", COUNTRY_INFO!$T$9:$T$1000, " ") ->  | I70: 0 | M70: 0
A71: =IF(COUNTRY_INFO!A71=0," ",COUNTRY_INFO!A71) -> DRC | B71: =IF(COUNTRY_INFO!B71=0," ",COUNTRY_INFO!B71) -> HAUT LOMAMI | C71: =IF(COUNTRY_INFO!C71=0," ",COUNTRY_INFO!C71) -> Kaniama | D71: =IF(COUNTRY_INFO!$T$9:$T$1000="MDA2 (DEC+ALB)", COUNTRY_INFO!$T$9:$T$1000, " ") ->  | I71: 0 | M71: 0
A72: =IF(COUNTRY_INFO!A72=0," ",COUNTRY_INFO!A72) -> DRC | B72: =IF(COUNTRY_INFO!B72=0," ",COUNTRY_INFO!B72) -> HAUT LOMAMI | C72: =IF(COUNTRY_INFO!C72=0," ",COUNTRY_INFO!C72) -> Kayamba | D72: =IF(COUNTRY_INFO!$T$9:$T$1000="MDA2 (DEC+ALB)", COUNTRY_INFO!$T$9:$T$1000, " ") ->  | I72: 0 | M72: 0
A73: =IF(COUNTRY_INFO!A73=0," ",COUNTRY_INFO!A73) -> DRC | B73: =IF(COUNTRY_INFO!B73=0," ",COUNTRY_INFO!B73) -> HAUT LOMAMI | C73: =IF(COUNTRY_INFO!C73=0," ",COUNTRY_INFO!C73) -> Kinda | D73: =IF(COUNTRY_INFO!$T$9:$T$1000="MDA2 (DEC+ALB)", COUNTRY_INFO!$T$9:$T$1000, " ") ->  | I73: 0 | M73: 0
A74: =IF(COUNTRY_INFO!A74=0," ",COUNTRY_INFO!A74) -> DRC | B74: =IF(COUNTRY_INFO!B74=0," ",COUNTRY_INFO!B74) -> HAUT LOMAMI | C74: =IF(COUNTRY_INFO!C74=0," ",COUNTRY_INFO!C74) -> Kinkonja | D74: =IF(COUNTRY_INFO!$T$9:$T$1000="MDA2 (DEC+ALB)", COUNTRY_INFO!$T$9:$T$1000, " ") ->  | I74: =SUM(F74:H74) -> 0 | M74: =SUM(J74:L74) -> 0 | N74: =IF(F74<>0, IF(J74/F74*100=0, "-", J74/F74*100), " ") ->  | O74: =IF(G74<>0, IF(K74/G74*100=0, "-", K74/G74*100), " ") ->  | P74: =IF(H74<>0, IF(L74/H74*100=0, "-", L74/H74*100), " ") ->  | Q74: =IF(I74<>0, IF(M74/I74*100=0, "-", M74/I74*100), " ") -> 
A75: =IF(COUNTRY_INFO!A75=0," ",COUNTRY_INFO!A75) -> DRC | B75: =IF(COUNTRY_INFO!B75=0," ",COUNTRY_INFO!B75) -> HAUT LOMAMI | C75: =IF(COUNTRY_INFO!C75=0," ",COUNTRY_INFO!C75) -> Kitenge | D75: =IF(COUNTRY_INFO!$T$9:$T$1000="MDA2 (DEC+ALB)", COUNTRY_INFO!$T$9:$T$1000, " ") ->  | I75: 0 | M75: 0
A76: =IF(COUNTRY_INFO!A76=0," ",COUNTRY_INFO!A76) -> DRC | B76: =IF(COUNTRY_INFO!B76=0," ",COUNTRY_INFO!B76) -> HAUT LOMAMI | C76: =IF(COUNTRY_INFO!C76=0," ",COUNTRY_INFO!C76) -> Lwamba | D76: =IF(COUNTRY_INFO!$T$9:$T$1000="MDA2 (DEC+ALB)", COUNTRY_INFO!$T$9:$T$1000, " ") ->  | I76: 0 | M76: 0
A77: =IF(COUNTRY_INFO!A77=0," ",COUNTRY_INFO!A77) -> DRC | B77: =IF(COUNTRY_INFO!B77=0," ",COUNTRY_INFO!B77) -> HAUT LOMAMI | C77: =IF(COUNTRY_INFO!C77=0," ",COUNTRY_INFO!C77) -> Malemba Nkulu | D77: =IF(COUNTRY_INFO!$T$9:$T$1000="MDA2 (DEC+ALB)", COUNTRY_INFO!$T$9:$T$1000, " ") ->  | I77: 0 | M77: 0
A78: =IF(COUNTRY_INFO!A78=0," ",COUNTRY_INFO!A78) -> DRC | B78: =IF(COUNTRY_INFO!B78=0," ",COUNTRY_INFO!B78) -> HAUT LOMAMI | C78: =IF(COUNTRY_INFO!C78=0," ",COUNTRY_INFO!C78) -> Mukanga | D78: =IF(COUNTRY_INFO!$T$9:$T$1000="MDA2 (DEC+ALB)", COUNTRY_INFO!$T$9:$T$1000, " ") ->  | I78: 0 | M78: 0
A79: =IF(COUNTRY_INFO!A79=0," ",COUNTRY_INFO!A79) -> DRC | B79: =IF(COUNTRY_INFO!B79=0," ",COUNTRY_INFO!B79) -> HAUT LOMAMI | C79: =IF(COUNTRY_INFO!C79=0," ",COUNTRY_INFO!C79) -> Mulongo | D79: =IF(COUNTRY_INFO!$T$9:$T$1000="MDA2 (DEC+ALB)", COUNTRY_INFO!$T$9:$T$1000, " ") ->  | I79: 0 | M79: 0
A80: =IF(COUNTRY_INFO!A80=0," ",COUNTRY_INFO!A80) -> DRC | B80: =IF(COUNTRY_INFO!B80=0," ",COUNTRY_INFO!B80) -> HAUT LOMAMI | C80: =IF(COUNTRY_INFO!C80=0," ",COUNTRY_INFO!C80) -> Songa | D80: =IF(COUNTRY_INFO!$T$9:$T$1000="MDA2 (DEC+ALB)", COUNTRY_INFO!$T$9:$T$1000, " ") ->  | I80: 0 | M80: 0
A81: =IF(COUNTRY_INFO!A81=0," ",COUNTRY_INFO!A81) -> DRC | B81: =IF(COUNTRY_INFO!B81=0," ",COUNTRY_INFO!B81) -> HAUT UELE | C81: =IF(COUNTRY_INFO!C81=0," ",COUNTRY_INFO!C81) -> Aba | D81: =IF(COUNTRY_INFO!$T$9:$T$1000="MDA2 (DEC+ALB)", COUNTRY_INFO!$T$9:$T$1000, " ") ->  | I81: 0 | M81: 0
A82: =IF(COUNTRY_INFO!A82=0," ",COUNTRY_INFO!A82) -> DRC | B82: =IF(COUNTRY_INFO!B82=0," ",COUNTRY_INFO!B82) -> HAUT UELE | C82: =IF(COUNTRY_INFO!C82=0," ",COUNTRY_INFO!C82) -> Bomamangbetu | D82: =IF(COUNTRY_INFO!$T$9:$T$1000="MDA2 (DEC+ALB)", COUNTRY_INFO!$T$9:$T$1000, " ") ->  | I82: 0 | M82: 0
A83: =IF(COUNTRY_INFO!A83=0," ",COUNTRY_INFO!A83) -> DRC | B83: =IF(COUNTRY_INFO!B83=0," ",COUNTRY_INFO!B83) -> HAUT UELE | C83: =IF(COUNTRY_INFO!C83=0," ",COUNTRY_INFO!C83) -> Doruma | D83: =IF(COUNTRY_INFO!$T$9:$T$1000="MDA2 (DEC+ALB)", COUNTRY_INFO!$T$9:$T$1000, " ") ->  | I83: 0 | M83: 0
A84: =IF(COUNTRY_INFO!A84=0," ",COUNTRY_INFO!A84) -> DRC | B84: =IF(COUNTRY_INFO!B84=0," ",COUNTRY_INFO!B84) -> HAUT UELE | C84: =IF(COUNTRY_INFO!C84=0," ",COUNTRY_INFO!C84) -> Dungu | D84: =IF(COUNTRY_INFO!$T$9:$T$1000="MDA2 (DEC+ALB)", COUNTRY_INFO!$T$9:$T$1000, " ") ->  | I84: 0 | M84: 0
A85: =IF(COUNTRY_INFO!A85=0," ",COUNTRY_INFO!A85) -> DRC | B85: =IF(COUNTRY_INFO!B85=0," ",COUNTRY_INFO!B85) -> HAUT UELE | C85: =IF(COUNTRY_INFO!C85=0," ",COUNTRY_INFO!C85) -> Faradje | D85: =IF(COUNTRY_INFO!$T$9:$T$1000="MDA2 (DEC+ALB)", COUNTRY_INFO!$T$9:$T$1000, " ") ->  | I85: 0 | M85: 0
A86: =IF(COUNTRY_INFO!A86=0," ",COUNTRY_INFO!A86) -> DRC | B86: =IF(COUNTRY_INFO!B86=0," ",COUNTRY_INFO!B86) -> HAUT UELE | C86: =IF(COUNTRY_INFO!C86=0," ",COUNTRY_INFO!C86) -> Gombari | D86: =IF(COUNTRY_INFO!$T$9:$T$1000="MDA2 (DEC+ALB)", COUNTRY_INFO!$T$9:$T$1000, " ") ->  | I86: 0 | M86: 0
A87: =IF(COUNTRY_INFO!A87=0," ",COUNTRY_INFO!A87) -> DRC | B87: =IF(COUNTRY_INFO!B87=0," ",COUNTRY_INFO!B87) -> HAUT UELE | C87: =IF(COUNTRY_INFO!C87=0," ",COUNTRY_INFO!C87) -> Isiro | D87: =IF(COUNTRY_INFO!$T$9:$T$1000="MDA2 (DEC+ALB)", COUNTRY_INFO!$T$9:$T$1000, " ") ->  | I87: 0 | M87: 0
A88: =IF(COUNTRY_INFO!A88=0," ",COUNTRY_INFO!A88) -> DRC | B88: =IF(COUNTRY_INFO!B88=0," ",COUNTRY_INFO!B88) -> HAUT UELE | C88: =IF(COUNTRY_INFO!C88=0," ",COUNTRY_INFO!C88) -> Makoro | D88: =IF(COUNTRY_INFO!$T$9:$T$1000="MDA2 (DEC+ALB)", COUNTRY_INFO!$T$9:$T$1000, " ") ->  | I88: 0 | M88: 0
A89: =IF(COUNTRY_INFO!A89=0," ",COUNTRY_INFO!A89) -> DRC | B89: =IF(COUNTRY_INFO!B89=0," ",COUNTRY_INFO!B89) -> HAUT UELE | C89: =IF(COUNTRY_INFO!C89=0," ",COUNTRY_INFO!C89) -> Niangara | D89: =IF(COUNTRY_INFO!$T$9:$T$1000="MDA2 (DEC+ALB)", COUNTRY_INFO!$T$9:$T$1000, " ") ->  | I89: 0 | M89: 0
A90: =IF(COUNTRY_INFO!A90=0," ",COUNTRY_INFO!A90) -> DRC | B90: =IF(COUNTRY_INFO!B90=0," ",COUNTRY_INFO!B90) -> HAUT UELE | C90: =IF(COUNTRY_INFO!C90=0," ",COUNTRY_INFO!C90) -> Pawa | D90: =IF(COUNTRY_INFO!$T$9:$T$1000="MDA2 (DEC+ALB)", COUNTRY_INFO!$T$9:$T$1000, " ") ->  | I90: 0 | M90: 0
A91: =IF(COUNTRY_INFO!A91=0," ",COUNTRY_INFO!A91) -> DRC | B91: =IF(COUNTRY_INFO!B91=0," ",COUNTRY_INFO!B91) -> HAUT UELE | C91: =IF(COUNTRY_INFO!C91=0," ",COUNTRY_INFO!C91) -> Rungu | D91: =IF(COUNTRY_INFO!$T$9:$T$1000="MDA2 (DEC+ALB)", COUNTRY_INFO!$T$9:$T$1000, " ") ->  | I91: 0 | M91: 0
A92: =IF(COUNTRY_INFO!A92=0," ",COUNTRY_INFO!A92) -> DRC | B92: =IF(COUNTRY_INFO!B92=0," ",COUNTRY_INFO!B92) -> HAUT UELE | C92: =IF(COUNTRY_INFO!C92=0," ",COUNTRY_INFO!C92) -> Wamba | D92: =IF(COUNTRY_INFO!$T$9:$T$1000="MDA2 (DEC+ALB)", COUNTRY_INFO!$T$9:$T$1000, " ") ->  | I92: 0 | M92: 0
A93: =IF(COUNTRY_INFO!A93=0," ",COUNTRY_INFO!A93) -> DRC | B93: =IF(COUNTRY_INFO!B93=0," ",COUNTRY_INFO!B93) -> HAUT UELE | C93: =IF(COUNTRY_INFO!C93=0," ",COUNTRY_INFO!C93) -> Wasta | D93: =IF(COUNTRY_INFO!$T$9:$T$1000="MDA2 (DEC+ALB)", COUNTRY_INFO!$T$9:$T$1000, " ") ->  | I93: 0 | M93: 0
A94: =IF(COUNTRY_INFO!A94=0," ",COUNTRY_INFO!A94) -> DRC | B94: =IF(COUNTRY_INFO!B94=0," ",COUNTRY_INFO!B94) -> ITURI | C94: =IF(COUNTRY_INFO!C94=0," ",COUNTRY_INFO!C94) -> Adi | D94: =IF(COUNTRY_INFO!$T$9:$T$1000="MDA2 (DEC+ALB)", COUNTRY_INFO!$T$9:$T$1000, " ") ->  | I94: 0 | M94: 0
A95: =IF(COUNTRY_INFO!A95=0," ",COUNTRY_INFO!A95) -> DRC | B95: =IF(COUNTRY_INFO!B95=0," ",COUNTRY_INFO!B95) -> ITURI | C95: =IF(COUNTRY_INFO!C95=0," ",COUNTRY_INFO!C95) -> Adja | D95: =IF(COUNTRY_INFO!$T$9:$T$1000="MDA2 (DEC+ALB)", COUNTRY_INFO!$T$9:$T$1000, " ") ->  | I95: 0 | M95: 0
A96: =IF(COUNTRY_INFO!A96=0," ",COUNTRY_INFO!A96) -> DRC | B96: =IF(COUNTRY_INFO!B96=0," ",COUNTRY_INFO!B96) -> ITURI | C96: =IF(COUNTRY_INFO!C96=0," ",COUNTRY_INFO!C96) -> Angumu | D96: =IF(COUNTRY_INFO!$T$9:$T$1000="MDA2 (DEC+ALB)", COUNTRY_INFO!$T$9:$T$1000, " ") ->  | I96: 0 | M96: 0
A97: =IF(COUNTRY_INFO!A97=0," ",COUNTRY_INFO!A97) -> DRC | B97: =IF(COUNTRY_INFO!B97=0," ",COUNTRY_INFO!B97) -> ITURI | C97: =IF(COUNTRY_INFO!C97=0," ",COUNTRY_INFO!C97) -> Ariwara | D97: =IF(COUNTRY_INFO!$T$9:$T$1000="MDA2 (DEC+ALB)", COUNTRY_INFO!$T$9:$T$1000, " ") ->  | I97: 0 | M97: 0
A98: =IF(COUNTRY_INFO!A98=0," ",COUNTRY_INFO!A98) -> DRC | B98: =IF(COUNTRY_INFO!B98=0," ",COUNTRY_INFO!B98) -> ITURI | C98: =IF(COUNTRY_INFO!C98=0," ",COUNTRY_INFO!C98) -> Aru | D98: =IF(COUNTRY_INFO!$T$9:$T$1000="MDA2 (DEC+ALB)", COUNTRY_INFO!$T$9:$T$1000, " ") ->  | I98: 0 | M98: 0
A99: =IF(COUNTRY_INFO!A99=0," ",COUNTRY_INFO!A99) -> DRC | B99: =IF(COUNTRY_INFO!B99=0," ",COUNTRY_INFO!B99) -> ITURI | C99: =IF(COUNTRY_INFO!C99=0," ",COUNTRY_INFO!C99) -> Augnba | D99: =IF(COUNTRY_INFO!$T$9:$T$1000="MDA2 (DEC+ALB)", COUNTRY_INFO!$T$9:$T$1000, " ") ->  | I99: 0 | M99: 0
A100: =IF(COUNTRY_INFO!A100=0," ",COUNTRY_INFO!A100) -> DRC | B100: =IF(COUNTRY_INFO!B100=0," ",COUNTRY_INFO!B100) -> ITURI | C100: =IF(COUNTRY_INFO!C100=0," ",COUNTRY_INFO!C100) -> Bambu | D100: =IF(COUNTRY_INFO!$T$9:$T$1000="MDA2 (DEC+ALB)", COUNTRY_INFO!$T$9:$T$1000, " ") ->  | I100: 0 | M100: 0
A101: =IF(COUNTRY_INFO!A101=0," ",COUNTRY_INFO!A101) -> DRC | B101: =IF(COUNTRY_INFO!B101=0," ",COUNTRY_INFO!B101) -> ITURI | C101: =IF(COUNTRY_INFO!C101=0," ",COUNTRY_INFO!C101) -> Biringi | D101: =IF(COUNTRY_INFO!$T$9:$T$1000="MDA2 (DEC+ALB)", COUNTRY_INFO!$T$9:$T$1000, " ") ->  | I101: 0 | M101: 0
A102: =IF(COUNTRY_INFO!A102=0," ",COUNTRY_INFO!A102) -> DRC | B102: =IF(COUNTRY_INFO!B102=0," ",COUNTRY_INFO!B102) -> ITURI | C102: =IF(COUNTRY_INFO!C102=0," ",COUNTRY_INFO!C102) -> Boga | D102: =IF(COUNTRY_INFO!$T$9:$T$1000="MDA2 (DEC+ALB)", COUNTRY_INFO!$T$9:$T$1000, " ") ->  | I102: 0 | M102: 0
A103: =IF(COUNTRY_INFO!A103=0," ",COUNTRY_INFO!A103) -> DRC | B103: =IF(COUNTRY_INFO!B103=0," ",COUNTRY_INFO!B103) -> ITURI | C103: =IF(COUNTRY_INFO!C103=0," ",COUNTRY_INFO!C103) -> Bunia | D103: =IF(COUNTRY_INFO!$T$9:$T$1000="MDA2 (DEC+ALB)", COUNTRY_INFO!$T$9:$T$1000, " ") ->  | I103: 0 | M103: 0
A104: =IF(COUNTRY_INFO!A104=0," ",COUNTRY_INFO!A104) -> DRC | B104: =IF(COUNTRY_INFO!B104=0," ",COUNTRY_INFO!B104) -> ITURI | C104: =IF(COUNTRY_INFO!C104=0," ",COUNTRY_INFO!C104) -> Damas | D104: =IF(COUNTRY_INFO!$T$9:$T$1000="MDA2 (DEC+ALB)", COUNTRY_INFO!$T$9:$T$1000, " ") ->  | I104: 0 | M104: 0
A105: =IF(COUNTRY_INFO!A105=0," ",COUNTRY_INFO!A105) -> DRC | B105: =IF(COUNTRY_INFO!B105=0," ",COUNTRY_INFO!B105) -> ITURI | C105: =IF(COUNTRY_INFO!C105=0," ",COUNTRY_INFO!C105) -> Drodro | D105: =IF(COUNTRY_INFO!$T$9:$T$1000="MDA2 (DEC+ALB)", COUNTRY_INFO!$T$9:$T$1000, " ") ->  | I105: 0 | M105: 0
A106: =IF(COUNTRY_INFO!A106=0," ",COUNTRY_INFO!A106) -> DRC | B106: =IF(COUNTRY_INFO!B106=0," ",COUNTRY_INFO!B106) -> ITURI | C106: =IF(COUNTRY_INFO!C106=0," ",COUNTRY_INFO!C106) -> Fataki | D106: =IF(COUNTRY_INFO!$T$9:$T$1000="MDA2 (DEC+ALB)", COUNTRY_INFO!$T$9:$T$1000, " ") ->  | I106: 0 | M106: 0
A107: =IF(COUNTRY_INFO!A107=0," ",COUNTRY_INFO!A107) -> DRC | B107: =IF(COUNTRY_INFO!B107=0," ",COUNTRY_INFO!B107) -> ITURI | C107: =IF(COUNTRY_INFO!C107=0," ",COUNTRY_INFO!C107) -> Gethy | D107: =IF(COUNTRY_INFO!$T$9:$T$1000="MDA2 (DEC+ALB)", COUNTRY_INFO!$T$9:$T$1000, " ") ->  | I107: 0 | M107: 0
A108: =IF(COUNTRY_INFO!A108=0," ",COUNTRY_INFO!A108) -> DRC | B108: =IF(COUNTRY_INFO!B108=0," ",COUNTRY_INFO!B108) -> ITURI | C108: =IF(COUNTRY_INFO!C108=0," ",COUNTRY_INFO!C108) -> Jiba | D108: =IF(COUNTRY_INFO!$T$9:$T$1000="MDA2 (DEC+ALB)", COUNTRY_INFO!$T$9:$T$1000, " ") ->  | I108: 0 | M108: 0
A109: =IF(COUNTRY_INFO!A109=0," ",COUNTRY_INFO!A109) -> DRC | B109: =IF(COUNTRY_INFO!B109=0," ",COUNTRY_INFO!B109) -> ITURI | C109: =IF(COUNTRY_INFO!C109=0," ",COUNTRY_INFO!C109) -> Kambale | D109: =IF(COUNTRY_INFO!$T$9:$T$1000="MDA2 (DEC+ALB)", COUNTRY_INFO!$T$9:$T$1000, " ") ->  | I109: 0 | M109: 0
A110: =IF(COUNTRY_INFO!A110=0," ",COUNTRY_INFO!A110) -> DRC | B110: =IF(COUNTRY_INFO!B110=0," ",COUNTRY_INFO!B110) -> ITURI | C110: =IF(COUNTRY_INFO!C110=0," ",COUNTRY_INFO!C110) -> Kilo | D110: =IF(COUNTRY_INFO!$T$9:$T$1000="MDA2 (DEC+ALB)", COUNTRY_INFO!$T$9:$T$1000, " ") ->  | I110: 0 | M110: 0
A111: =IF(COUNTRY_INFO!A111=0," ",COUNTRY_INFO!A111) -> DRC | B111: =IF(COUNTRY_INFO!B111=0," ",COUNTRY_INFO!B111) -> ITURI | C111: =IF(COUNTRY_INFO!C111=0," ",COUNTRY_INFO!C111) -> Komanda | D111: =IF(COUNTRY_INFO!$T$9:$T$1000="MDA2 (DEC+ALB)", COUNTRY_INFO!$T$9:$T$1000, " ") ->  | I111: 0 | M111: 0
A112: =IF(COUNTRY_INFO!A112=0," ",COUNTRY_INFO!A112) -> DRC | B112: =IF(COUNTRY_INFO!B112=0," ",COUNTRY_INFO!B112) -> ITURI | C112: =IF(COUNTRY_INFO!C112=0," ",COUNTRY_INFO!C112) -> Laybo | D112: =IF(COUNTRY_INFO!$T$9:$T$1000="MDA2 (DEC+ALB)", COUNTRY_INFO!$T$9:$T$1000, " ") ->  | I112: 0 | M112: 0
A113: =IF(COUNTRY_INFO!A113=0," ",COUNTRY_INFO!A113) -> DRC | B113: =IF(COUNTRY_INFO!B113=0," ",COUNTRY_INFO!B113) -> ITURI | C113: =IF(COUNTRY_INFO!C113=0," ",COUNTRY_INFO!C113) -> Linga | D113: =IF(COUNTRY_INFO!$T$9:$T$1000="MDA2 (DEC+ALB)", COUNTRY_INFO!$T$9:$T$1000, " ") ->  | I113: 0 | M113: 0
A114: =IF(COUNTRY_INFO!A114=0," ",COUNTRY_INFO!A114) -> DRC | B114: =IF(COUNTRY_INFO!B114=0," ",COUNTRY_INFO!B114) -> ITURI | C114: =IF(COUNTRY_INFO!C114=0," ",COUNTRY_INFO!C114) -> Lita | D114: =IF(COUNTRY_INFO!$T$9:$T$1000="MDA2 (DEC+ALB)", COUNTRY_INFO!$T$9:$T$1000, " ") ->  | I114: 0 | M114: 0
A115: =IF(COUNTRY_INFO!A115=0," ",COUNTRY_INFO!A115) -> DRC | B115: =IF(COUNTRY_INFO!B115=0," ",COUNTRY_INFO!B115) -> ITURI | C115: =IF(COUNTRY_INFO!C115=0," ",COUNTRY_INFO!C115) -> Logo | D115: =IF(COUNTRY_INFO!$T$9:$T$1000="MDA2 (DEC+ALB)", COUNTRY_INFO!$T$9:$T$1000, " ") ->  | I115: 0 | M115: 0
A116: =IF(COUNTRY_INFO!A116=0," ",COUNTRY_INFO!A116) -> DRC | B116: =IF(COUNTRY_INFO!B116=0," ",COUNTRY_INFO!B116) -> ITURI | C116: =IF(COUNTRY_INFO!C116=0," ",COUNTRY_INFO!C116) -> Lolwa | D116: =IF(COUNTRY_INFO!$T$9:$T$1000="MDA2 (DEC+ALB)", COUNTRY_INFO!$T$9:$T$1000, " ") ->  | I116: 0 | M116: 0
A117: =IF(COUNTRY_INFO!A117=0," ",COUNTRY_INFO!A117) -> DRC | B117: =IF(COUNTRY_INFO!B117=0," ",COUNTRY_INFO!B117) -> ITURI | C117: =IF(COUNTRY_INFO!C117=0," ",COUNTRY_INFO!C117) -> Mahagi | D117: =IF(COUNTRY_INFO!$T$9:$T$1000="MDA2 (DEC+ALB)", COUNTRY_INFO!$T$9:$T$1000, " ") ->  | I117: 0 | M117: 0
A118: =IF(COUNTRY_INFO!A118=0," ",COUNTRY_INFO!A118) -> DRC | B118: =IF(COUNTRY_INFO!B118=0," ",COUNTRY_INFO!B118) -> ITURI | C118: =IF(COUNTRY_INFO!C118=0," ",COUNTRY_INFO!C118) -> Mambasa | D118: =IF(COUNTRY_INFO!$T$9:$T$1000="MDA2 (DEC+ALB)", COUNTRY_INFO!$T$9:$T$1000, " ") ->  | I118: 0 | M118: 0
A119: =IF(COUNTRY_INFO!A119=0," ",COUNTRY_INFO!A119) -> DRC | B119: =IF(COUNTRY_INFO!B119=0," ",COUNTRY_INFO!B119) -> ITURI | C119: =IF(COUNTRY_INFO!C119=0," ",COUNTRY_INFO!C119) -> Mandima | D119: =IF(COUNTRY_INFO!$T$9:$T$1000="MDA2 (DEC+ALB)", COUNTRY_INFO!$T$9:$T$1000, " ") ->  | I119: 0 | M119: 0
A120: =IF(COUNTRY_INFO!A120=0," ",COUNTRY_INFO!A120) -> DRC | B120: =IF(COUNTRY_INFO!B120=0," ",COUNTRY_INFO!B120) -> ITURI | C120: =IF(COUNTRY_INFO!C120=0," ",COUNTRY_INFO!C120) -> Mangala | D120: =IF(COUNTRY_INFO!$T$9:$T$1000="MDA2 (DEC+ALB)", COUNTRY_INFO!$T$9:$T$1000, " ") ->  | I120: 0 | M120: 0
A121: =IF(COUNTRY_INFO!A121=0," ",COUNTRY_INFO!A121) -> DRC | B121: =IF(COUNTRY_INFO!B121=0," ",COUNTRY_INFO!B121) -> ITURI | C121: =IF(COUNTRY_INFO!C121=0," ",COUNTRY_INFO!C121) -> Mongbwalu | D121: =IF(COUNTRY_INFO!$T$9:$T$1000="MDA2 (DEC+ALB)", COUNTRY_INFO!$T$9:$T$1000, " ") ->  | I121: 0 | M121: 0
A122: =IF(COUNTRY_INFO!A122=0," ",COUNTRY_INFO!A122) -> DRC | B122: =IF(COUNTRY_INFO!B122=0," ",COUNTRY_INFO!B122) -> ITURI | C122: =IF(COUNTRY_INFO!C122=0," ",COUNTRY_INFO!C122) -> Niania | D122: =IF(COUNTRY_INFO!$T$9:$T$1000="MDA2 (DEC+ALB)", COUNTRY_INFO!$T$9:$T$1000, " ") ->  | I122: 0 | M122: 0
A123: =IF(COUNTRY_INFO!A123=0," ",COUNTRY_INFO!A123) -> DRC | B123: =IF(COUNTRY_INFO!B123=0," ",COUNTRY_INFO!B123) -> ITURI | C123: =IF(COUNTRY_INFO!C123=0," ",COUNTRY_INFO!C123) -> Nizi | D123: =IF(COUNTRY_INFO!$T$9:$T$1000="MDA2 (DEC+ALB)", COUNTRY_INFO!$T$9:$T$1000, " ") ->  | I123: 0 | M123: 0
A124: =IF(COUNTRY_INFO!A124=0," ",COUNTRY_INFO!A124) -> DRC | B124: =IF(COUNTRY_INFO!B124=0," ",COUNTRY_INFO!B124) -> ITURI | C124: =IF(COUNTRY_INFO!C124=0," ",COUNTRY_INFO!C124) -> Nyankunde | D124: =IF(COUNTRY_INFO!$T$9:$T$1000="MDA2 (DEC+ALB)", COUNTRY_INFO!$T$9:$T$1000, " ") ->  | I124: 0 | M124: 0
A125: =IF(COUNTRY_INFO!A125=0," ",COUNTRY_INFO!A125) -> DRC | B125: =IF(COUNTRY_INFO!B125=0," ",COUNTRY_INFO!B125) -> ITURI | C125: =IF(COUNTRY_INFO!C125=0," ",COUNTRY_INFO!C125) -> Nyarambe | D125: =IF(COUNTRY_INFO!$T$9:$T$1000="MDA2 (DEC+ALB)", COUNTRY_INFO!$T$9:$T$1000, " ") ->  | I125: 0 | M125: 0
A126: =IF(COUNTRY_INFO!A126=0," ",COUNTRY_INFO!A126) -> DRC | B126: =IF(COUNTRY_INFO!B126=0," ",COUNTRY_INFO!B126) -> ITURI | C126: =IF(COUNTRY_INFO!C126=0," ",COUNTRY_INFO!C126) -> Rethy | D126: =IF(COUNTRY_INFO!$T$9:$T$1000="MDA2 (DEC+ALB)", COUNTRY_INFO!$T$9:$T$1000, " ") ->  | I126: 0 | M126: 0
A127: =IF(COUNTRY_INFO!A127=0," ",COUNTRY_INFO!A127) -> DRC | B127: =IF(COUNTRY_INFO!B127=0," ",COUNTRY_INFO!B127) -> ITURI | C127: =IF(COUNTRY_INFO!C127=0," ",COUNTRY_INFO!C127) -> Rimba | D127: =IF(COUNTRY_INFO!$T$9:$T$1000="MDA2 (DEC+ALB)", COUNTRY_INFO!$T$9:$T$1000, " ") ->  | I127: 0 | M127: 0
A128: =IF(COUNTRY_INFO!A128=0," ",COUNTRY_INFO!A128) -> DRC | B128: =IF(COUNTRY_INFO!B128=0," ",COUNTRY_INFO!B128) -> ITURI | C128: =IF(COUNTRY_INFO!C128=0," ",COUNTRY_INFO!C128) -> Rwampara | D128: =IF(COUNTRY_INFO!$T$9:$T$1000="MDA2 (DEC+ALB)", COUNTRY_INFO!$T$9:$T$1000, " ") ->  | I128: 0 | M128: 0
A129: =IF(COUNTRY_INFO!A129=0," ",COUNTRY_INFO!A129) -> DRC | B129: =IF(COUNTRY_INFO!B129=0," ",COUNTRY_INFO!B129) -> ITURI | C129: =IF(COUNTRY_INFO!C129=0," ",COUNTRY_INFO!C129) -> Tchomia | D129: =IF(COUNTRY_INFO!$T$9:$T$1000="MDA2 (DEC+ALB)", COUNTRY_INFO!$T$9:$T$1000, " ") ->  | I129: 0 | M129: 0
A130: =IF(COUNTRY_INFO!A130=0," ",COUNTRY_INFO!A130) -> DRC | B130: =IF(COUNTRY_INFO!B130=0," ",COUNTRY_INFO!B130) -> KASAI | C130: =IF(COUNTRY_INFO!C130=0," ",COUNTRY_INFO!C130) -> Banga Lubaka | D130: =IF(COUNTRY_INFO!$T$9:$T$1000="MDA2 (DEC+ALB)", COUNTRY_INFO!$T$9:$T$1000, " ") ->  | I130: 0 | M130: 0
A131: =IF(COUNTRY_INFO!A131=0," ",COUNTRY_INFO!A131) -> DRC | B131: =IF(COUNTRY_INFO!B131=0," ",COUNTRY_INFO!B131) -> KASAI | C131: =IF(COUNTRY_INFO!C131=0," ",COUNTRY_INFO!C131) -> Bulape | D131: =IF(COUNTRY_INFO!$T$9:$T$1000="MDA2 (DEC+ALB)", COUNTRY_INFO!$T$9:$T$1000, " ") ->  | I131: 0 | M131: 0
A132: =IF(COUNTRY_INFO!A132=0," ",COUNTRY_INFO!A132) -> DRC | B132: =IF(COUNTRY_INFO!B132=0," ",COUNTRY_INFO!B132) -> KASAI | C132: =IF(COUNTRY_INFO!C132=0," ",COUNTRY_INFO!C132) -> Dekese | D132: =IF(COUNTRY_INFO!$T$9:$T$1000="MDA2 (DEC+ALB)", COUNTRY_INFO!$T$9:$T$1000, " ") ->  | I132: 0 | M132: 0
A133: =IF(COUNTRY_INFO!A133=0," ",COUNTRY_INFO!A133) -> DRC | B133: =IF(COUNTRY_INFO!B133=0," ",COUNTRY_INFO!B133) -> KASAI | C133: =IF(COUNTRY_INFO!C133=0," ",COUNTRY_INFO!C133) -> Ilebo | D133: =IF(COUNTRY_INFO!$T$9:$T$1000="MDA2 (DEC+ALB)", COUNTRY_INFO!$T$9:$T$1000, " ") ->  | I133: 0 | M133: 0
A134: =IF(COUNTRY_INFO!A134=0," ",COUNTRY_INFO!A134) -> DRC | B134: =IF(COUNTRY_INFO!B134=0," ",COUNTRY_INFO!B134) -> KASAI | C134: =IF(COUNTRY_INFO!C134=0," ",COUNTRY_INFO!C134) -> Kakenge | D134: =IF(COUNTRY_INFO!$T$9:$T$1000="MDA2 (DEC+ALB)", COUNTRY_INFO!$T$9:$T$1000, " ") ->  | I134: 0 | M134: 0
A135: =IF(COUNTRY_INFO!A135=0," ",COUNTRY_INFO!A135) -> DRC | B135: =IF(COUNTRY_INFO!B135=0," ",COUNTRY_INFO!B135) -> KASAI | C135: =IF(COUNTRY_INFO!C135=0," ",COUNTRY_INFO!C135) -> Kalonda | D135: =IF(COUNTRY_INFO!$T$9:$T$1000="MDA2 (DEC+ALB)", COUNTRY_INFO!$T$9:$T$1000, " ") ->  | I135: 0 | M135: 0
